Workbook

Sheet modList01 (hidden)

Sheet Инструкция
AA1: (требуется обновление)
B2: ="Код шаблона: " & GetCode() -> Код шаблона: JKH.OPEN.INFO.BALANCE.WARM
B3: ="Версия " & GetVersion() -> Версия 6.0.1
B5: Показатели, подлежащие раскрытию теплоснабжающими, теплосетевыми организациями
E7: • На рабочем месте должен быть установлен MS Office 2003 SP3, 2007 SP3, 2010 с полной версией MS Excel • Макросы во время работы должны быть включены (!) • Для корректной работы отчёта требуется выбрать низкий уровень безопасности (В меню MS Excel 2003: Сервис | Макрос | Безопасность | выбрать пункт «Низкая безопасность» | OK) (В меню MS Excel 2007/2010: Параметры Excel | Центр управления безопасностью | Параметры центра управления безопасностью | Параметры макросов | Включить все макросы | ОК) • Если Вы работаете в табличном процессоре MS Excel 2007 и выше, то можете использовать для работы формат XLSM (Книга Excel с поддержкой макросов). При работе в формате XLSM заметно быстрее происходит сохранение файла, а также уменьшается размер по сравнению с форматом XLS • Не рекомендуется снимать защиту с листов и каким-либо образом модифицировать защищаемые формулы и расчётные поля, в противном случае, отчёт будет отклонён системой • При сохранении не следует выбирать формат XLSX (Книга Excel), так как в указанном формате макросы, необходимые для работы отчёта, безвозвратно удаляются
E21: A | F21: - необязательные для заполнения | O21: A | P21: - с формулами и константами
E22: A | F22: - обязательные для заполнения | O22: A | P22: - с выбором значений до двойному клику,
P23: либо с возможностью выбора даты из календаря или ручного ввода
E35: Если в предложенном Вам списке необходимая организация, МР/МО отсутствуют, обновите реестры с помощью кнопок В результате синхронизации с базой данных список организаций (МР/МО) будет заменён актуальным (механизм синхронизации требует подключения к сети Интернет и основан на использовании протокола HTTPS (TCP порт 443)) Если после обновления Вам не удалось найти необходимую организацию в списке, обратитесь к ответственному за поддержание реестра Вашего региона. Информация о региональных органах регулирования доступна по ссылке:
E40: http://www.fstrf.ru/regions/region/showlist
E46: • При сохранении шаблона осуществляется проверка корректности данных, в том числе на наличие значений в ячейках, обязательных для заполнения • Если какая-то ячейка не удовлетворяет условию проверки, на лист «Проверка» добавляется гиперссылка на данную ячейку и указывается причина ошибки • В колонке «Статус» для каждого сообщения возможны 2 значения: ошибка и предупреждение • При наличии сообщений со статусом «Ошибка» шаблон будет отклонён системой и не будет загружен в хранилище данных, сообщения со статусом «Предупреждение» носят информационный характер, и такой шаблон будет принят системой
E58: Web-сайт: | H58: http://support.eias.ru/index.php?a=add&catid=5
E59: Дистрибутивы: | H59: http://eias.ru/?page=show_distrs
H60: для устранения ошибок (например, "Compile error in hidden module")
E70: Принципы работы с шаблоном
E71: Перед началом работы с шаблоном Вам необходимо нажать кнопку "Приступить к заполнению", после чего на форме выбора выбрать из выпадающего списка нужный субъект РФ. После выбора субъекта РФ в шаблоне отобразятся листы для заполнения.
E72: На листе «Титульный» нужно заполнить все ячейки голубого и синего цвета. Для создания печатной формы нажмите на иконку принтера на листе «Титульный» (левый верхний угол).
E73: Гиперссылки на листах вводите, не нарушая цвет ячейки (если копируете гиперссылку из браузера, то выполните двойной щелчок левой кнопки мыши по ячейке и только после этого можете вставить скопированный элемент).
E74: При вводе даты на расчетных листах необходимо выбрать дату из календаря (иконка справа от выбранной ячейки), либо ввести дату непосредственно в ячейку в формате - 'ДД.ММ.ГГГГ'.
E75: Если какой-либо из показателей на расчетных листах для Вашей организации отсутствует, введите в поле, обязательное для заполнение, «0» (для числовых показателей) и «-» (для текстовых).
E76: Внимательно следите за информационными сообщениями на расчетных листах.
E77: Все необходимые комментарии по всем формам Вы можете отразить на листе «Комментарии».
E79: Обосновывающие материалы (документы) необходимо загружать с помощью "ЕИАС Мониторинг"
E80: Инструкция | I80: http://eias.ru/files/shablon/manual_loading_through_monitoring.pdf
E82: E-mail: | H82: openinfo@eias.ru
E83: Web-сайт: | H83: http://eias.ru/?page=show_templates
E98: При наличии подключения к Интернет, можно автоматически проверять наличие доступных обновлений. Выберите способ оповещения о наличии обновлений для отчёта:
F100: проверять доступные обновления (рекомендуется) | AA100: y
F102: никогда не проверять наличие обновлений (не рекомендуется)

Sheet Лог обновления (hidden)
A1: Дата/Время | B1: Сообщение | C1: Статус
A3: 2014-02-25T15:27:13 | B3: Проверка доступных обновлений... | C3: Информация
A4: 2014-02-25T15:27:13 | B4: Доступно обновление до версии 6.0.1 | C4: Информация
A5: 2014-02-25T15:27:13 | B5: Описание изменений: Версия 6.0.1 (только(!!!) для шаблонов версии 6.0) 1. корректировка наименования п.4 (новое значение - "Сведения об изменении стоимости основных фондов (в том числе за счет их ввода в эксплуатацию (вывода из эксплуатации)), их переоценки") листа "Показатели (факт)", 2. корректировка п.5, п.5.1 в части возможности ввода отрицательных значений, 3. увеличение списка видов деятельности на листе "Титульный". Если версия Вашего шаблона ниже 6.0, обратитесь к администратору Вашего субъекта РФ. | C5: Информация
A6: 2014-02-25T15:27:13 | B6: Размер файла обновления: 282624 байт | C6: Информация
A7: 2014-02-25T15:27:23 | B7: Подготовка к обновлению... | C7: Информация
A8: 2014-02-25T15:27:26 | B8: Сохранение файла резервной копии: T:\Упр. рег. в сфере КК\Мониторинга и наблюдения организаций коммунальной сферы\@Общая\ЕИАС\!!!! Шаблоны РЕГИОНАЛЬНЫЕ\ГОТОВЫЕ ШАБЛОНЫ\Раскрытие информации\!!! Новые шаблоны\ТС\JKH.OPEN.INFO.BALANCE.WARM.BKP..xls | C8: Информация
A9: 2014-02-25T15:27:39 | B9: Резервная копия создана: T:\Упр. рег. в сфере КК\Мониторинга и наблюдения организаций коммунальной сферы\@Общая\ЕИАС\!!!! Шаблоны РЕГИОНАЛЬНЫЕ\ГОТОВЫЕ ШАБЛОНЫ\Раскрытие информации\!!! Новые шаблоны\ТС\JKH.OPEN.INFO.BALANCE.WARM.BKP..xls | C9: Информация
A10: 2014-02-25T15:27:39 | B10: Создание книги для установки обновлений... | C10: Информация
A11: 2014-02-25T15:27:39 | B11: Ошибка при инициализации обновления | C11: Ошибка
A12: 2014-02-25T15:28:59 | B12: Проверка доступных обновлений... | C12: Информация
A13: 2014-02-25T15:29:03 | B13: Доступно обновление до версии 6.0.1 | C13: Информация
A14: 2014-02-25T15:29:03 | B14: Описание изменений: Версия 6.0.1 (только(!!!) для шаблонов версии 6.0) 1. корректировка наименования п.4 (новое значение - "Сведения об изменении стоимости основных фондов (в том числе за счет их ввода в эксплуатацию (вывода из эксплуатации)), их переоценки") листа "Показатели (факт)", 2. корректировка п.5, п.5.1 в части возможности ввода отрицательных значений, 3. увеличение списка видов деятельности на листе "Титульный". Если версия Вашего шаблона ниже 6.0, обратитесь к администратору Вашего субъекта РФ. | C14: Информация
A15: 2014-02-25T15:29:03 | B15: Размер файла обновления: 282624 байт | C15: Информация
A16: 2014-02-25T15:29:05 | B16: Подготовка к обновлению... | C16: Информация
A17: 2014-02-25T15:29:08 | B17: Сохранение файла резервной копии: T:\Упр. рег. в сфере КК\Мониторинга и наблюдения организаций коммунальной сферы\@Общая\ЕИАС\!!!! Шаблоны РЕГИОНАЛЬНЫЕ\ГОТОВЫЕ ШАБЛОНЫ\Раскрытие информации\!!! Новые шаблоны\ТС\JKH.OPEN.INFO.BALANCE.WARM.BKP..xls | C17: Информация
A18: 2014-02-25T15:29:21 | B18: Резервная копия создана: T:\Упр. рег. в сфере КК\Мониторинга и наблюдения организаций коммунальной сферы\@Общая\ЕИАС\!!!! Шаблоны РЕГИОНАЛЬНЫЕ\ГОТОВЫЕ ШАБЛОНЫ\Раскрытие информации\!!! Новые шаблоны\ТС\JKH.OPEN.INFO.BALANCE.WARM.BKP..xls | C18: Информация
A19: 2014-02-25T15:29:21 | B19: Создание книги для установки обновлений... | C19: Информация
A20: 2014-02-25T15:29:35 | B20: Файл обновления загружен: T:\Упр. рег. в сфере КК\Мониторинга и наблюдения организаций коммунальной сферы\@Общая\ЕИАС\!!!! Шаблоны РЕГИОНАЛЬНЫЕ\ГОТОВЫЕ ШАБЛОНЫ\Раскрытие информации\!!! Новые шаблоны\ТС\UPDATE.JKH.OPEN.INFO.BALANCE.WARM.TO.6.0.1.75.xls | C20: Информация
A21: 2014-02-25T15:29:49 | B21: Обновление завершилось удачно! Шаблон JKH.OPEN.INFO.BALANCE.WARM.BKP..xls сохранен под именем 'JKH.OPEN.INFO.BALANCE.WARM.BKP.(v6.0.1).xls' | C21: Информация
A22: 2017-04-05T14:31:31 | B22: Проверка доступных обновлений... | C22: Информация
A23: 2017-04-05T14:31:32 | B23: Версия шаблона 6.0.1 актуальна, обновление не требуется | C23: Информация
A24: 2017-04-05T16:15:49 | B24: Проверка доступных обновлений... | C24: Информация
A25: 2017-04-05T16:15:51 | B25: Версия шаблона 6.0.1 актуальна, обновление не требуется | C25: Информация
A26: 2017-04-06T08:33:47 | B26: Проверка доступных обновлений... | C26: Информация
A27: 2017-04-06T08:33:52 | B27: Версия шаблона 6.0.1 актуальна, обновление не требуется | C27: Информация
A28: 2017-04-07T08:02:58 | B28: Проверка доступных обновлений... | C28: Информация
A29: 2017-04-07T08:03:00 | B29: Версия шаблона 6.0.1 актуальна, обновление не требуется | C29: Информация
A30: 2017-04-07T14:17:37 | B30: Проверка доступных обновлений... | C30: Информация
A31: 2017-04-07T14:17:37 | B31: Версия шаблона 6.0.1 актуальна, обновление не требуется | C31: Информация
A32: 2017-04-10T08:13:30 | B32: Проверка доступных обновлений... | C32: Информация
A33: 2017-04-10T08:13:30 | B33: Версия шаблона 6.0.1 актуальна, обновление не требуется | C33: Информация
A34: 2017-04-10T16:01:07 | B34: Проверка доступных обновлений... | C34: Информация
A35: 2017-04-10T16:01:07 | B35: Версия шаблона 6.0.1 актуальна, обновление не требуется | C35: Информация
A36: 2017-04-11T08:34:02 | B36: Проверка доступных обновлений... | C36: Информация
A37: 2017-04-11T08:34:02 | B37: Версия шаблона 6.0.1 актуальна, обновление не требуется | C37: Информация
A38: 2017-04-17T15:49:07 | B38: Проверка доступных обновлений... | C38: Информация
A39: 2017-04-17T15:49:08 | B39: Версия шаблона 6.0.1 актуальна, обновление не требуется | C39: Информация
A40: 2017-04-17T16:12:42 | B40: Проверка доступных обновлений... | C40: Информация
A41: 2017-04-17T16:12:43 | B41: Версия шаблона 6.0.1 актуальна, обновление не требуется | C41: Информация
A42: 2017-04-24T15:58:00 | B42: Проверка доступных обновлений... | C42: Информация
A43: 2017-04-24T15:58:02 | B43: Версия шаблона 6.0.1 актуальна, обновление не требуется | C43: Информация
A44: 2017-04-24T17:05:57 | B44: Проверка доступных обновлений... | C44: Информация
A45: 2017-04-24T17:05:57 | B45: Версия шаблона 6.0.1 актуальна, обновление не требуется | C45: Информация
A46: 2017-04-25T17:25:39 | B46: Проверка доступных обновлений... | C46: Информация
A47: 2017-04-25T17:25:39 | B47: Версия шаблона 6.0.1 актуальна, обновление не требуется | C47: Информация
A48: 2017-04-27T16:25:47 | B48: Проверка доступных обновлений... | C48: Информация
A49: 2017-04-27T16:25:47 | B49: Версия шаблона 6.0.1 актуальна, обновление не требуется | C49: Информация
A50: 2017-04-28T08:21:48 | B50: Проверка доступных обновлений... | C50: Информация
A51: 2017-04-28T08:21:49 | B51: Версия шаблона 6.0.1 актуальна, обновление не требуется | C51: Информация
A52: 2017-04-28T08:27:52 | B52: Проверка доступных обновлений... | C52: Информация
A53: 2017-04-28T08:27:52 | B53: Версия шаблона 6.0.1 актуальна, обновление не требуется | C53: Информация
A54: 2017-04-28T09:13:41 | B54: Проверка доступных обновлений... | C54: Информация
A55: 2017-04-28T09:13:41 | B55: Версия шаблона 6.0.1 актуальна, обновление не требуется | C55: Информация
A56: 2018-04-25T08:39:58 | B56: Проверка доступных обновлений... | C56: Информация
A57: 2018-04-25T08:40:00 | B57: Нет доступных обновлений для шаблона с кодом JKH.OPEN.INFO.BALANCE.WARM! | C57: Информация
A58: 2018-04-25T10:50:03 | B58: Проверка доступных обновлений... | C58: Информация
A59: 2018-04-25T10:50:04 | B59: Нет доступных обновлений для шаблона с кодом JKH.OPEN.INFO.BALANCE.WARM! | C59: Информация
A60: 2018-04-25T14:48:15 | B60: Проверка доступных обновлений... | C60: Информация
A61: 2018-04-25T14:48:25 | B61: Нет доступных обновлений для шаблона с кодом JKH.OPEN.INFO.BALANCE.WARM! | C61: Информация
A62: 2018-04-27T21:12:48 | B62: Проверка доступных обновлений... | C62: Информация
A63: 2018-04-27T21:12:48 | B63: Нет доступных обновлений для шаблона с кодом JKH.OPEN.INFO.BALANCE.WARM! | C63: Информация
A64: 2018-04-28T10:17:36 | B64: Проверка доступных обновлений... | C64: Информация
A65: 2018-04-28T10:17:37 | B65: Нет доступных обновлений для шаблона с кодом JKH.OPEN.INFO.BALANCE.WARM! | C65: Информация

Sheet Титульный
F1: 26511317
F4: =version -> Версия 6.0.1
E5: Показатели, подлежащие раскрытию теплоснабжающими, теплосетевыми организациями
E7: Субъект РФ | F7: Удмуртская республика
E9: Публикация | F9: На сайте регулирующего органа
A11: Сайт организации в сети Интернет | E11: По желанию организации информация раскрыта в дополнительных источниках публикации? | F11: да
E13: Отчетный период (год) | F13: 2017
E15: Является ли данное юридическое лицо подразделением (филиалом) другой организации | F15: нет
E17: Наименование организации | F17: ООО "Удмуртские коммунальные системы"
E18: Наименование филиала
E19: ИНН | F19: 1833037470
E20: КПП | F20: 184001001
E22: Вид деятельности | F22: Передача
E24: Производство
E25: Передача
E26: Сбыт
E28: Режим налогообложения | F28: общий
E30: Регулируемая организация осуществляет сдачу годового бухгалтерского баланса в налоговые органы | F30: да
E32: Дата направления годового бухгалтерского баланса в налоговые органы | F32: 30.03.2018
E34: Превышает ли выручка от регулируемой деятельности 80% совокупной выручки за отчетный год | F34: да
E36: Организация выполняет инвестиционную программу | F36: да
A38: Печатное издание | E38: Отсутствует Интернет в границах территории муниципальных образований, где организация осуществляет регулируемые услуги | F38: нет
F40: Адрес регулируемой организации
E41: Юридический адрес | F41: ул. Буммашевская, д.11, г.Ижевск, Российская Федерация, 426039
E42: Почтовый адрес | F42: ул. Буммашевская, д.11, г.Ижевск, Российская Федерация, 426039
F44: Руководитель
E45: Фамилия, имя, отчество | F45: Балобанов Ярослав Викторович
E46: (код) номер телефона | F46: (3412) 903-509
F48: Главный бухгалтер
E49: Фамилия, имя, отчество | F49: Филиппова Юлия Сергеевна
E50: (код) номер телефона | F50: (3412)939-830
F52: Должностное лицо, ответственное за составление формы
E53: Фамилия, имя, отчество
E54: Должность
E55: (код) номер телефона
E56: e-mail

Sheet Список МО
D4: Дифференциация тарифа
D5: =IF(org=0,"Не определено",org) -> ООО "Удмуртские коммунальные системы"
F7: Система теплоснабжения
E8: Условный порядковый номер | F8: 1
E9: Описание | F9: Организация осуществляет регулируемую деятельность в двух муниципальных образованиях
D11: № п/п | E11: Муниципальный район | F11: № п/п | G11: Муниципальное образование | H11: ОКТМО
D12: 1 | E12: 2 | F12: 3 | G12: 4 | H12: 5
D13: 0 | F13: 0
C14: О | D14: 1 | E14: Город Ижевск | F14: 1 | G14: Город Ижевск | H14: 94701000
G15: Добавить МО
C16: О | D16: 2 | E16: Город Сарапул | F16: 1 | G16: Город Сарапул | H16: 94740000
G17: Добавить МО
E18: Добавить МР

Sheet Показатели (факт)
D5: Информация об основных показателях финансово-хозяйственной деятельности регулируемых организаций, включая структуру основных производственных затрат (в части регулируемой деятельности) *
D6: =IF(org=0,"Не определено",org) -> ООО "Удмуртские коммунальные системы"
D8: № п/п | E8: Информация, подлежащая раскрытию | F8: Единица измерения | G8: Значение
D9: 1 | E9: 2 | F9: 3 | G9: 4
D10: 1 | E10: Выручка от регулируемой деятельности, в том числе по видам деятельности: | F10: тыс руб | G10: =SUM(G11:G13) -> 1955287.398
D11: 1.0
C12: О | D12: 1.1 | E12: Теплоснабжение | F12: тыс руб | G12: 1955287.398
E13: Добавить вид деятельности
D14: 2 | E14: Себестоимость производимых товаров (оказываемых услуг) по регулируемому виду деятельности, включая: | F14: тыс руб | G14: =SUM(G15:G16)+G34+SUM(G37:G45)+G48+G51+G53 -> 1773020.03
D15: 2.1 | E15: Расходы на покупаемую тепловую энергию (мощность), теплоноситель | F15: тыс руб | G15: 506567.3495
D16: 2.2 | E16: Расходы на топливо | F16: тыс руб | G16: =SUMIF(flagSum_List02_2,"p",G17:G33) -> 77635.4444
A17: 2.2.0 | D17: =A17 -> 2.2.0
A18: 2.2.1 | C18: О | D18: =A18 -> 2.2.1 | E18: газ природный по регулируемой цене | F18: x | G18: =G19*G20+G21 -> 71228.03977 | H18: p
D19: =A18&".1" -> 2.2.1.1 | E19: Объем | F19: тыс м3 | G19: 16.217693
D20: =A18&".2" -> 2.2.1.2 | E20: Стоимость за единицу объема | F20: тыс руб | G20: 3.868498332
D21: =A18&".3" -> 2.2.1.3 | E21: Стоимость доставки | F21: тыс руб | G21: 71165.30165
D22: =A18&".4" -> 2.2.1.4 | E22: Способ приобретения | F22: x | G22: прямые договора без торгов
A23: 2.2.2 | C23: О | D23: =A23 -> 2.2.2 | E23: уголь каменный | F23: x | G23: =G24*G25+G26 -> 4631.532416 | H23: p
D24: =A23&".1" -> 2.2.2.1 | E24: Объем | F24: тонны | G24: 0.002792
D25: =A23&".2" -> 2.2.2.2 | E25: Стоимость за единицу объема | F25: тыс руб | G25: 2.724322194
D26: =A23&".3" -> 2.2.2.3 | E26: Стоимость доставки | F26: тыс руб | G26: 4631.52481
D27: =A23&".4" -> 2.2.2.4 | E27: Способ приобретения | F27: x | G27: прямые договора без торгов
A28: 2.2.3 | C28: О | D28: =A28 -> 2.2.3 | E28: электроэнергия (СН1) | F28: x | G28: =G29*G30+G31 -> 1775.872217 | H28: p
D29: =A28&".1" -> 2.2.3.1 | E29: Объем | F29: тыс кВт.ч | G29: 396
D30: =A28&".2" -> 2.2.3.2 | E30: Стоимость за единицу объема | F30: тыс руб | G30: 0.004480045754
D31: =A28&".3" -> 2.2.3.3 | E31: Стоимость доставки | F31: тыс руб | G31: 1774.098118
D32: =A28&".4" -> 2.2.3.4 | E32: Способ приобретения | F32: x | G32: прямые договора без торгов
E33: Добавить вид топлива
D34: 2.3 | E34: Расходы на покупаемую электрическую энергию (мощность), используемую в технологическом процессе | F34: тыс руб | G34: 197546.628
D35: 2.3.1 | E35: Средневзвешенная стоимость 1 кВт.ч (с учетом мощности) | F35: руб | G35: =G34/G36 -> 3.641645429
D36: 2.3.2 | E36: Объем приобретенной электрической энергии | F36: тыс кВт.ч | G36: =33250.91+4248.34+5399.12+11348.16 -> 54246.53
D37: 2.4 | E37: Расходы на приобретение холодной воды, используемой в технологическом процессе | F37: тыс руб | G37: 14402.44256
D38: 2.5 | E38: Расходы на хим.реагенты, используемые в технологическом процессе | F38: тыс руб | G38: 0
D39: 2.6 | E39: Расходы на оплату труда основного производственного персонала | F39: тыс руб | G39: =[1]РДП_УКС!$BA$36 -> 181675.6288
D40: 2.7 | E40: Отчисления на социальные нужды основного производственного персонала | F40: тыс руб | G40: =G39*0.302 -> 54866.03988
D41: 2.8 | E41: Расходы на оплату труда административно-управленческого персонала | F41: тыс руб | G41: =[1]РДП_УКС!$BA$35-[1]РДП_УКС!$BA$36 -> 27433.96842
D42: 2.9 | E42: Отчисления на социальные нужды административно-управленческого персонала | F42: тыс руб | G42: =[1]РДП_УКС!$BA$128-G40 -> 9086.247867
D43: 2.10 | E43: Расходы на амортизацию основных производственных средств | F43: тыс руб | G43: =[1]РДП_УКС!$BA$131 -> 224539.66
D44: 2.11 | E44: Расходы на аренду имущества, используемого для осуществления регулируемого вида деятельности | F44: тыс руб | G44: =[1]РДП_УКС!$BA$114 -> 5109.34108
D45: 2.12 | E45: Общепроизводственные расходы, в том числе отнесенные к ним: | F45: тыс руб | G45: 0
D46: 2.12.1 | E46: Расходы на текущий ремонт | F46: тыс руб | G46: 0
D47: 2.12.2 | E47: Расходы на капитальный ремонт | F47: тыс руб | G47: 0
D48: 2.13 | E48: Общехозяйственные расходы, в том числе отнесенные к ним: | F48: тыс руб | G48: 0
D49: 2.13.1 | E49: Расходы на текущий ремонт | F49: тыс руб | G49: 0
D50: 2.13.2 | E50: Расходы на капитальный ремонт | F50: тыс руб | G50: 0
D51: 2.14 | E51: Расходы на капитальный и текущий ремонт основных производственных средств, в том числе: | F51: тыс руб | G51: =[1]РДП_УКС!$BA$41 -> 207214.7383
D52: 2.14.1 | E52: Информация об объемах товаров и услуг, их стоимости и способах приобретения у тех организаций, сумма оплаты услуг которых превышает 20 процентов суммы расходов по указанной статье расходов | F52: x | G52: отсутствует
D53: 2.15 | E53: Прочие расходы, которые подлежат отнесению на регулируемые виды деятельности в соответствии с законодательством РФ | F53: тыс руб | G53: =SUM(G54:G56) -> 266942.5407
D54: 2.15.0
C55: О | D55: 2.15.1 | E55: Прочие расходы | F55: тыс руб | G55: =[1]РДП_УКС!$BA$178-List02_costs_OPS-G44-G43-G42-G41-G40-G39-G38-G37-G34-G16-G15 -> 266942.5407
E56: Добавить прочие расходы
D57: 3 | E57: Валовая прибыль (убытки) от реализации товаров и оказания услуг по регулируемому виду деятельности | F57: тыс руб | G57: =List02_p1-List02_p3 -> 182267.3686
D58: 4 | E58: Чистая прибыль, полученная от регулируемого вида деятельности, в том числе: | F58: тыс руб | G58: -394818.718
D59: 4.1 | E59: Размер расходования чистой прибыли на финансирование мероприятий, предусмотренных инвестиционной программой | F59: тыс руб | G59: 72964.22889
D60: 5 | E60: Сведения об изменении стоимости основных фондов, в том числе за счет их ввода в эксплуатацию (вывода из эксплуатации), а также стоимости их переоценки | F60: тыс руб | G60: 90240.979
D61: 5.1 | E61: За счет ввода (вывода) из эксплуатации | F61: тыс руб | G61: =G60 -> 90240.979
D62: 6 | E62: Стоимость переоценки основных фондов | F62: тыс руб | G62: 0
D63: 7 | E63: Годовая бухгалтерская отчетность, включая бухгалтерский баланс и приложения к нему | F63: x | G63: http://www.udmks.ru/regular/business/information/raskrytie-informatsii-ooo-uks-2018/
D64: 8 | E64: Установленная тепловая мощность объектов основных фондов, используемых для осуществления регулируемых видов деятельности, в том числе по каждому источнику тепловой энергии: | F64: Гкал/ч | G64: 90.16
D65: 8.0
C66: О | D66: 8.1 | E66: ул.Гагарина,24а | F66: Гкал/ч | G66: 2.76
C67: О | D67: 8.2 | E67: Котельная ул.Гагарина,27 | F67: Гкал/ч | G67: 3.16
C68: О | D68: 8.3 | E68: Котельная ул.Гагарина,35 | F68: Гкал/ч | G68: 1
C69: О | D69: 8.4 | E69: Котельная ГПО (Сельская 1б) | F69: Гкал/ч | G69: 3.73
C70: О | D70: 8.5 | E70: Котельная по ул.Азина,112 | F70: Гкал/ч | G70: 0.24
C71: О | D71: 8.6 | E71: Котельная Люлли | F71: Гкал/ч | G71: 2
C72: О | D72: 8.7 | E72: Котельная школы №12 (Азина 325) | F72: Гкал/ч | G72: 0.87
C73: О | D73: 8.8 | E73: Котельная по ул.1-я Донская,12 | F73: Гкал/ч | G73: 0.04
C74: О | D74: 8.9 | E74: Котельная по ул.Июльская,38 | F74: Гкал/ч | G74: 11.93
C75: О | D75: 8.10 | E75: Котельная "К.Мельница" Аграрная,28 | F75: Гкал/ч | G75: 6.57
C76: О | D76: 8.11 | E76: Котельная "Дружба,2В" | F76: Гкал/ч | G76: 39.61
C77: О | D77: 8.12 | E77: Котельная "Ялтинская,55" | F77: Гкал/ч | G77: 3.609
C78: О | D78: 8.13 | E78: Котельная мкр. Совхоз Медведево | F78: Гкал/ч | G78: 6.91
C79: О | D79: 8.14 | E79: Котельная "Михайлова,26б" | F79: Гкал/ч | G79: 0.221
C80: О | D80: 8.15 | E80: Котельная "Халтурина,17" | F80: Гкал/ч | G80: 0.17
C81: О | D81: 8.16 | E81: Котельная школы №6 (Калининградская ,23) | F81: Гкал/ч | G81: 0.31
C82: О | D82: 8.17 | E82: Котельная "сан.Медведево" (7км.Сарап.тр-та) | F82: Гкал/ч | G82: 0.24
C83: О | D83: 8.18 | E83: Котельная "Короткая,93" | F83: Гкал/ч | G83: 1.26
C84: О | D84: 8.19 | E84: Котельная "п.Октябрьский,2" | F84: Гкал/ч | G84: 0.85
C85: О | D85: 8.20 | E85: Котельная школы №65 | F85: Гкал/ч | G85: 0.7
C86: О | D86: 8.21 | E86: Котельная "д/с №107" Азина,277а | F86: Гкал/ч | G86: 0.173
C87: О | D87: 8.22 | E87: Котельная "Липовая Роща", ул.Оружейников,51 | F87: Гкал/ч | G87: 0.34
C88: О | D88: 8.23 | E88: Котельная "Школа №10" ул.Степная,81 | F88: Гкал/ч | G88: 1.8
C89: О | D89: 8.24 | E89: Котельная "Школа №38" ул.Татарская,92а | F89: Гкал/ч | G89: 1.33
C90: О | D90: 8.25 | E90: Котельная "Школа №36", ул.Камская,6 | F90: Гкал/ч | G90: 0.344
E91: Добавить источник тепловой энергии
D92: 9 | E92: Тепловая нагрузка по договорам, заключенным в рамках осуществления регулируемых видов деятельности | F92: Гкал/ч | G92: 31.96
D93: 10 | E93: Объем вырабатываемой регулируемой организацией тепловой энергии в рамках осуществления регулируемых видов деятельности | F93: тыс Гкал | G93: 105.9922082
D94: 11 | E94: Объем приобретаемой регулируемой организацией тепловой энергии в рамках осуществления регулируемых видов деятельности | F94: тыс Гкал | G94: =[1]РДП_УКС!$BA$105 -> 506567.3495
D95: 12 | E95: Объем тепловой энергии, отпускаемой потребителям по договорам, заключенным в рамках осуществления регулируемых видов деятельности, в том числе: | F95: тыс Гкал | G95: =SUM(G96:G97) -> 72229.23
D96: 12.1 | E96: Определенном по приборам учета | F96: тыс Гкал | G96: 72229.23
D97: 12.2 | E97: Определенном расчетным путем (нормативам потребления коммунальных услуг) | F97: тыс Гкал | G97: 0
D98: 13 | E98: Нормативы технологических потерь при передаче тепловой энергии, теплоносителя по тепловым сетям, утвержденные уполномоченным органом | F98: Ккал/ч.мес | G98: 0
D99: 14 | E99: Фактический объем потерь при передаче тепловой энергии | F99: тыс Гкал | G99: =433981.96+35666.39+103063.06+4615.24 -> 577326.65
D100: 15 | E100: Среднесписочная численность основного производственного персонала | F100: чел | G100: 616.4
D101: 16 | E101: Среднесписочная численность административно-управленческого персонала | F101: чел | G101: 70.79
D102: 17 | E102: Удельный расход условного топлива на единицу тепловой энергии, отпускаемой в тепловую сеть, в том числе с разбивкой по источникам тепловой энергии, используемым для осуществления регулируемых видов деятельности | F102: кг усл. топл/Гкал | G102: =415.544/G96 -> 0.005753127923
D103: 17.0
C104: О | D104: 17.1 | E104: ул.Гагарина, 24 а; ул.Гагарина, 27а; ул.Гагарина, 35; ГПО ул.Сельская 1а; ТКУ ул.Азина , 112; ул. Люллинская,62; ул.Азина,325; ул. 1-я Донская,12; ул.Июльская, 38; ул.Аграрная, 28; кр-н Совхоз Медведево; Труда 3; Азина 277а;Степная 81;Татарская 92; Оружейников,51а Короткая,93а; Михайлова,26Б; Щедрина,1; Калининградская,23; Халтурина,177 км; Сарапульского тракта,13; пос. Октябрьский Локомотивная, 40; Труда, 3 Ленина, 102 | F104: кг усл. топл/Гкал | G104: 0.005753127923
C105: О | D105: 17.2 | E105: Котельная "Дружба,2В" | F105: кг усл. топл/Гкал | G105: 0.005753127923
E106: Добавить источник тепловой энергии
D107: 18 | E107: Удельный расход электрической энергии на производство (передачу) тепловой энергии на единицу тепловой энергии, отпускаемой потребителям по договорам, заключенным в рамках осуществления регулируемой деятельности | F107: тыс кВт.ч/Гкал | G107: =G36/G95*1000 -> 751.0329267
D108: 19 | E108: Удельный расход холодной воды на производство (передачу) тепловой энергии на единицу тепловой энергии, отпускаемой потребителям по договорам, заключенным в рамках осуществления регулируемой деятельности | F108: м3/Гкал | G108: =923.2/G95 -> 0.01278152903
D109: 20 | E109: Комментарии | F109: x | G109: 0
D111: * | E111: Раскрывается не позднее 30 дней со дня сдачи годового бухгалтерского баланса в налоговые органы.

Sheet Показатели (2) (hidden)
D5: Информация об объемах товаров и услуг, их стоимости и способах приобретения *
D6: =IF(org=0,"Не определено",org) -> ООО "Удмуртские коммунальные системы"
D8: № п/п | E8: Наименование поставщика | G8: № п/п | H8: Способ приобретения | I8: Реквизиты договора | K8: № п/п | L8: Наименование товара/услуги | M8: Объем приобретенных товаров, услуг | N8: Единица измерения объема | O8: Стоимость, тыс.руб. | P8: Доля расходов, % (от суммы расходов по указанной статье)
D9: 1 | E9: 2 | G9: 3 | H9: 4 | I9: 5 | K9: 6 | L9: 7 | M9: 8 | N9: 9 | O9: 10 | P9: 11
E10: Расходы на ремонт (текущий и капитальный) основных производственных средств итого. Из них товары и услуги, приобретенные у организаций, сумма оплаты услуг которых превышает 20% суммы расходов по статье | O10: =List02_costs_OPS -> 207214.7383
D11: 0
E12: Добавить поставщика
D14: * | E14: Раскрывается не позднее 30 дней со дня сдачи годового бухгалтерского баланса в налоговые органы.

Sheet Потр. характеристики
D5: Информация об основных потребительских характеристиках регулируемых товаров и услуг *
D6: =IF(org=0,"Не определено",org) -> ООО "Удмуртские коммунальные системы"
D8: № п/п | E8: Информация, подлежащая раскрытию | F8: Значение | G8: Ссылки на документы
D9: 1 | E9: 2 | F9: 3 | G9: 4
D10: 1 | E10: Количество аварий на тепловых сетях (единиц на км) ** | F10: 2.611834542
D11: 2 | E11: Количество аварий на источниках тепловой энергии (единиц на источник)** | F11: 0
D12: 3 | E12: Показатели надежности и качества, установленные в соответствии с законодательством РФ | F12: 3.565
D13: 4 | E13: Доля числа исполненных в срок договоров о подключении (технологическом присоединении), % | F13: 100
D14: 5 | E14: Средняя продолжительность рассмотрения заявок на подключение (технологическое присоединение), дней | F14: 20
D15: 6 | E15: Комментарии | F15: п.5 указаны рабочие дни
D17: * | E17: Раскрывается не позднее 30 дней со дня сдачи годового бухгалтерского баланса в налоговые органы.
D18: ** | E18: Учитывать любое нарушение системы.

Sheet Инвестиции
E5: Информация об инвестиционных программах *
E6: =IF(org=0,"Не определено",org) -> ООО "Удмуртские коммунальные системы"
J8: О | K8: О | L8: О | M8: О | N8: О | O8: О | P8: О | Q8: О | R8: О | S8: О | T8: О | U8: О | V8: О | W8: О | X8: О | Y8: О | Z8: О | AA8: О | AB8: О | AC8: О | AD8: О | AE8: О | AF8: О | AG8: О | AH8: О | AI8: О | AJ8: О | AK8: О | AL8: О | AM8: О | AN8: О | AO8: О | AP8: О | AQ8: О | AR8: О | AS8: О | AT8: О | AU8: О | AV8: О | AW8: О | AX8: О | AY8: О | AZ8: О | BA8: О | BB8: О | BC8: О | BD8: О | BE8: О | BF8: О | BG8: О | BH8: О | BI8: О | BJ8: О | BK8: О | BL8: О | BM8: О | BN8: О | BO8: О | BP8: О | BQ8: О | BR8: О | BS8: О | BT8: О | BU8: О | BV8: О | BW8: О | BX8: О | BY8: О | BZ8: О | CA8: О | CB8: О | CC8: О | CD8: О | CE8: О | CF8: О | CG8: О | CH8: О | CI8: О | CJ8: О | CK8: О | CL8: О | CM8: О | CN8: О | CO8: О | CP8: О | CQ8: О | CR8: О | CS8: О | CT8: О | CU8: О | CV8: О | CW8: О | CX8: О | CY8: О | CZ8: О | DA8: О | DB8: О | DC8: О | DD8: О | DE8: О | DF8: О | DG8: О | DH8: О | DI8: О | DJ8: О | DK8: О | DL8: О | DM8: О | DN8: О | DO8: О | DP8: О | DQ8: О | DR8: О | DS8: О | DT8: О | DU8: О | DV8: О | DW8: О | DX8: О | DY8: О | DZ8: О | EA8: О | EB8: О | EC8: О | ED8: О | EE8: О | EF8: О | EG8: О | EH8: О | EI8: О | EJ8: О | EK8: О | EL8: О | EM8: О | EN8: О | EO8: О | EP8: О | EQ8: О | ER8: О | ES8: О | ET8: О | EU8: О | EV8: О | EW8: О | EX8: О | EY8: О | EZ8: О | FA8: О | FB8: О | FC8: О | FD8: О | FE8: О | FF8: О | FG8: О | FH8: О | FI8: О | FJ8: О | FK8: О | FL8: О | FM8: О | FN8: О | FO8: О | FP8: О | FQ8: О | FR8: О | FS8: О | FT8: О | FU8: О | FV8: О | FW8: О | FX8: О | FY8: О | FZ8: О | GA8: О | GB8: О | GC8: О | GD8: О | GE8: О | GF8: О | GG8: О | GH8: О | GI8: О | GJ8: О | GK8: О | GL8: О | GM8: О | GN8: О | GO8: О | GP8: О | GQ8: О | GR8: О | GS8: О | GT8: О | GU8: О | GV8: О | GW8: О | GX8: О | GY8: О | GZ8: О | HA8: О | HB8: О | HC8: О | HD8: О | HE8: О | HF8: О | HG8: О | HH8: О | HI8: О | HJ8: О | HK8: О | HL8: О | HM8: О | HN8: О | HO8: О | HP8: О | HQ8: О | HR8: О | HS8: О | HT8: О | HU8: О | HV8: О | HW8: О | HX8: О | HY8: О | HZ8: О | IA8: О | IB8: О | IC8: О | ID8: О | IE8: О | IF8: О | IG8: О | IH8: О | II8: О | IJ8: О | IK8: О | IL8: О | IM8: О | IN8: О | IO8: О | IP8: О | IQ8: О | IR8: О | IS8: О | IT8: О | IU8: О | IV8: О | IW8: О | IX8: О | IY8: О | IZ8: О | JA8: О | JB8: О | JC8: О | JD8: О | JE8: О | JF8: О | JG8: О | JH8: О | JI8: О | JJ8: О | JK8: О | JL8: О | JM8: О | JN8: О | JO8: О | JP8: О | JQ8: О | JR8: О | JS8: О | JT8: О | JU8: О | JV8: О | JW8: О | JX8: О | JY8: О | JZ8: О | KA8: О | KB8: О | KC8: О | KD8: О | KE8: О | KF8: О | KG8: О | KH8: О | KI8: О | KJ8: О | KK8: О | KL8: О | KM8: О | KN8: О | KO8: О | KP8: О | KQ8: О | KR8: О | KS8: О | KT8: О | KU8: О | KV8: О | KW8: О | KX8: О | KY8: О | KZ8: О | LA8: О | LB8: О | LC8: О | LD8: О | LE8: О | LF8: О | LG8: О | LH8: О | LI8: О | LJ8: О | LK8: О | LL8: О | LM8: О | LN8: О | LO8: О | LP8: О | LQ8: О | LR8: О | LS8: О | LT8: О | LU8: О | LV8: О | LW8: О | LX8: О | LY8: О | LZ8: О | MA8: О | MB8: О | MC8: О | MD8: О | ME8: О | MF8: О | MG8: О | MH8: О | MI8: О | MJ8: О | MK8: О | ML8: О | MM8: О | MN8: О | MO8: О | MP8: О | MQ8: О | MR8: О | MS8: О | MT8: О | MU8: О | MV8: О | MW8: О | MX8: О | MY8: О | MZ8: О | NA8: О | NB8: О | NC8: О | ND8: О | NE8: О | NF8: О | NG8: О | NH8: О | NI8: О | NJ8: О | NK8: О | NL8: О | NM8: О | NN8: О | NO8: О | NP8: О | NQ8: О | NR8: О | NS8: О | NT8: О | NU8: О | NV8: О | NW8: О | NX8: О | NY8: О | NZ8: О | OA8: О | OB8: О | OC8: О | OD8: О | OE8: О | OF8: О | OG8: О | OH8: О | OI8: О | OJ8: О | OK8: О | OL8: О | OM8: О | ON8: О | OO8: О | OP8: О | OQ8: О | OR8: О | OS8: О | OT8: О | OU8: О | OV8: О | OW8: О | OX8: О | OY8: О | OZ8: О | PA8: О | PB8: О | PC8: О | PD8: О | PE8: О | PF8: О | PG8: О | PH8: О | PI8: О | PJ8: О | PK8: О | PL8: О | PM8: О | PN8: О | PO8: О | PP8: О | PQ8: О | PR8: О | PS8: О | PT8: О | PU8: О | PV8: О | PW8: О | PX8: О | PY8: О | PZ8: О | QA8: О | QB8: О | QC8: О | QD8: О | QE8: О | QF8: О | QG8: О | QH8: О | QI8: О | QJ8: О | QK8: О | QL8: О | QM8: О | QN8: О | QO8: О | QP8: О | QQ8: О | QR8: О | QS8: О | QT8: О | QU8: О | QV8: О | QW8: О | QX8: О | QY8: О | QZ8: О | RA8: О | RB8: О | RC8: О | RD8: О | RE8: О | RF8: О | RG8: О | RH8: О | RI8: О | RJ8: О | RK8: О | RL8: О | RM8: О | RN8: О | RO8: О | RP8: О | RQ8: О | RR8: О | RS8: О | RT8: О | RU8: О | RV8: О | RW8: О | RX8: О | RY8: О | RZ8: О | SA8: О | SB8: О | SC8: О | SD8: О | SE8: О | SF8: О | SG8: О | SH8: О | SI8: О | SJ8: О | SK8: О | SL8: О | SM8: О | SN8: О | SO8: О | SP8: О | SQ8: О | SR8: О | SS8: О | ST8: О | SU8: О | SV8: О | SW8: О | SX8: О | SY8: О | SZ8: О | TA8: О | TB8: О | TC8: О | TD8: О | TE8: О | TF8: О | TG8: О | TH8: О | TI8: О | TJ8: О | TK8: О | TL8: О | TM8: О | TN8: О | TO8: О | TP8: О | TQ8: О | TR8: О | TS8: О | TT8: О | TU8: О | TV8: О | TW8: О | TX8: О | TY8: О
E9: № п/п | F9: Наименование показателя | G9: Единица измерения | H9: Значение | I9: ="Мероприятие " & I10-4 -> Мероприятие 0 | J9: Мероприятие 1 | K9: Мероприятие 2 | L9: Мероприятие 3 | M9: Мероприятие 4 | N9: Мероприятие 5 | O9: Мероприятие 6 | P9: Мероприятие 7 | Q9: Мероприятие 8 | R9: Мероприятие 9 | S9: Мероприятие 10 | T9: Мероприятие 11 | U9: Мероприятие 12 | V9: Мероприятие 13 | W9: Мероприятие 14 | X9: Мероприятие 15 | Y9: Мероприятие 16 | Z9: Мероприятие 17 | AA9: Мероприятие 18 | AB9: Мероприятие 19 | AC9: Мероприятие 20 | AD9: Мероприятие 21 | AE9: Мероприятие 22 | AF9: Мероприятие 23 | AG9: Мероприятие 24 | AH9: Мероприятие 25 | AI9: Мероприятие 26 | AJ9: Мероприятие 27 | AK9: Мероприятие 28 | AL9: Мероприятие 29 | AM9: Мероприятие 30 | AN9: Мероприятие 31 | AO9: ="Мероприятие " & AO10-4 -> Мероприятие 32 | AP9: Мероприятие 33 | AQ9: Мероприятие 34 | AR9: Мероприятие 35 | AS9: Мероприятие 36 | AT9: Мероприятие 37 | AU9: Мероприятие 38 | AV9: Мероприятие 39 | AW9: Мероприятие 40 | AX9: Мероприятие 41 | AY9: Мероприятие 42 | AZ9: Мероприятие 43 | BA9: Мероприятие 44 | BB9: Мероприятие 45 | BC9: Мероприятие 46 | BD9: Мероприятие 47 | BE9: Мероприятие 48 | BF9: Мероприятие 49 | BG9: Мероприятие 50 | BH9: Мероприятие 51 | BI9: Мероприятие 52 | BJ9: Мероприятие 53 | BK9: Мероприятие 54 | BL9: Мероприятие 55 | BM9: Мероприятие 56 | BN9: Мероприятие 57 | BO9: Мероприятие 58 | BP9: Мероприятие 59 | BQ9: Мероприятие 60 | BR9: Мероприятие 61 | BS9: Мероприятие 62 | BT9: Мероприятие 63 | BU9: ="Мероприятие " & BU10-4 -> Мероприятие 64 | BV9: Мероприятие 65 | BW9: Мероприятие 66 | BX9: Мероприятие 67 | BY9: Мероприятие 68 | BZ9: Мероприятие 69 | CA9: Мероприятие 70 | CB9: Мероприятие 71 | CC9: Мероприятие 72 | CD9: Мероприятие 73 | CE9: Мероприятие 74 | CF9: Мероприятие 75 | CG9: Мероприятие 76 | CH9: Мероприятие 77 | CI9: Мероприятие 78 | CJ9: Мероприятие 79 | CK9: Мероприятие 80 | CL9: Мероприятие 81 | CM9: Мероприятие 82 | CN9: Мероприятие 83 | CO9: Мероприятие 84 | CP9: Мероприятие 85 | CQ9: Мероприятие 86 | CR9: Мероприятие 87 | CS9: Мероприятие 88 | CT9: Мероприятие 89 | CU9: Мероприятие 90 | CV9: Мероприятие 91 | CW9: Мероприятие 92 | CX9: Мероприятие 93 | CY9: Мероприятие 94 | CZ9: Мероприятие 95 | DA9: Мероприятие 96 | DB9: Мероприятие 97 | DC9: Мероприятие 98 | DD9: Мероприятие 99 | DE9: Мероприятие 100 | DF9: Мероприятие 101 | DG9: Мероприятие 102 | DH9: Мероприятие 103 | DI9: Мероприятие 104 | DJ9: Мероприятие 105 | DK9: Мероприятие 106 | DL9: Мероприятие 107 | DM9: Мероприятие 108 | DN9: Мероприятие 109 | DO9: Мероприятие 110 | DP9: Мероприятие 111 | DQ9: Мероприятие 112 | DR9: Мероприятие 113 | DS9: Мероприятие 114 | DT9: Мероприятие 115 | DU9: Мероприятие 116 | DV9: Мероприятие 117 | DW9: Мероприятие 118 | DX9: Мероприятие 119 | DY9: Мероприятие 120 | DZ9: Мероприятие 121 | EA9: Мероприятие 122 | EB9: Мероприятие 123 | EC9: Мероприятие 124 | ED9: Мероприятие 125 | EE9: Мероприятие 126 | EF9: Мероприятие 127 | EG9: Мероприятие 128 | EH9: Мероприятие 129 | EI9: Мероприятие 130 | EJ9: Мероприятие 131 | EK9: Мероприятие 132 | EL9: Мероприятие 133 | EM9: Мероприятие 134 | EN9: Мероприятие 135 | EO9: Мероприятие 136 | EP9: Мероприятие 137 | EQ9: Мероприятие 138 | ER9: Мероприятие 139 | ES9: Мероприятие 140 | ET9: Мероприятие 141 | EU9: Мероприятие 142 | EV9: Мероприятие 143 | EW9: Мероприятие 144 | EX9: Мероприятие 145 | EY9: Мероприятие 146 | EZ9: Мероприятие 147 | FA9: Мероприятие 148 | FB9: Мероприятие 149 | FC9: Мероприятие 150 | FD9: Мероприятие 151 | FE9: Мероприятие 152 | FF9: Мероприятие 153 | FG9: Мероприятие 154 | FH9: Мероприятие 155 | FI9: Мероприятие 156 | FJ9: Мероприятие 157 | FK9: Мероприятие 158 | FL9: Мероприятие 159 | FM9: Мероприятие 160 | FN9: Мероприятие 161 | FO9: Мероприятие 162 | FP9: Мероприятие 163 | FQ9: Мероприятие 164 | FR9: Мероприятие 165 | FS9: Мероприятие 166 | FT9: Мероприятие 167 | FU9: Мероприятие 168 | FV9: Мероприятие 169 | FW9: Мероприятие 170 | FX9: Мероприятие 171 | FY9: Мероприятие 172 | FZ9: Мероприятие 173 | GA9: Мероприятие 174 | GB9: Мероприятие 175 | GC9: Мероприятие 176 | GD9: Мероприятие 177 | GE9: Мероприятие 178 | GF9: Мероприятие 179 | GG9: Мероприятие 180 | GH9: Мероприятие 181 | GI9: Мероприятие 182 | GJ9: Мероприятие 183 | GK9: Мероприятие 184 | GL9: Мероприятие 185 | GM9: ="Мероприятие " & GM10-4 -> Мероприятие 186 | GN9: Мероприятие 187 | GO9: Мероприятие 188 | GP9: Мероприятие 189 | GQ9: Мероприятие 190 | GR9: Мероприятие 191 | GS9: Мероприятие 192 | GT9: Мероприятие 193 | GU9: Мероприятие 194 | GV9: Мероприятие 195 | GW9: Мероприятие 196 | GX9: Мероприятие 197 | GY9: Мероприятие 198 | GZ9: Мероприятие 199 | HA9: Мероприятие 200 | HB9: Мероприятие 201 | HC9: Мероприятие 202 | HD9: Мероприятие 203 | HE9: Мероприятие 204 | HF9: Мероприятие 205 | HG9: Мероприятие 206 | HH9: Мероприятие 207 | HI9: Мероприятие 208 | HJ9: Мероприятие 209 | HK9: Мероприятие 210 | HL9: Мероприятие 211 | HM9: Мероприятие 212 | HN9: Мероприятие 213 | HO9: Мероприятие 214 | HP9: Мероприятие 215 | HQ9: Мероприятие 216 | HR9: Мероприятие 217 | HS9: Мероприятие 218 | HT9: Мероприятие 219 | HU9: Мероприятие 220 | HV9: Мероприятие 221 | HW9: Мероприятие 222 | HX9: Мероприятие 223 | HY9: Мероприятие 224 | HZ9: Мероприятие 225 | IA9: Мероприятие 226 | IB9: Мероприятие 227 | IC9: Мероприятие 228 | ID9: Мероприятие 229 | IE9: Мероприятие 230 | IF9: Мероприятие 231 | IG9: Мероприятие 232 | IH9: Мероприятие 233 | II9: Мероприятие 234 | IJ9: Мероприятие 235 | IK9: Мероприятие 236 | IL9: Мероприятие 237 | IM9: Мероприятие 238 | IN9: Мероприятие 239 | IO9: Мероприятие 240 | IP9: Мероприятие 241 | IQ9: Мероприятие 242 | IR9: Мероприятие 243 | IS9: Мероприятие 244 | IT9: Мероприятие 245 | IU9: ="Мероприятие " & IU10-4 -> Мероприятие 246 | IV9: Мероприятие 247 | IW9: Мероприятие 248 | IX9: Мероприятие 249 | IY9: Мероприятие 250 | IZ9: Мероприятие 251 | JA9: Мероприятие 252 | JB9: Мероприятие 253 | JC9: Мероприятие 254 | JD9: Мероприятие 255 | JE9: Мероприятие 256 | JF9: Мероприятие 257 | JG9: Мероприятие 258 | JH9: Мероприятие 259 | JI9: Мероприятие 260 | JJ9: Мероприятие 261 | JK9: Мероприятие 262 | JL9: Мероприятие 263 | JM9: Мероприятие 264 | JN9: Мероприятие 265 | JO9: Мероприятие 266 | JP9: Мероприятие 267 | JQ9: Мероприятие 268 | JR9: Мероприятие 269 | JS9: Мероприятие 270 | JT9: Мероприятие 271 | JU9: Мероприятие 272 | JV9: Мероприятие 273 | JW9: Мероприятие 274 | JX9: Мероприятие 275 | JY9: Мероприятие 276 | JZ9: Мероприятие 277 | KA9: Мероприятие 278 | KB9: Мероприятие 279 | KC9: Мероприятие 280 | KD9: Мероприятие 281 | KE9: Мероприятие 282 | KF9: Мероприятие 283 | KG9: Мероприятие 284 | KH9: Мероприятие 285 | KI9: Мероприятие 286 | KJ9: Мероприятие 287 | KK9: Мероприятие 288 | KL9: Мероприятие 289 | KM9: Мероприятие 290 | KN9: Мероприятие 291 | KO9: Мероприятие 292 | KP9: Мероприятие 293 | KQ9: Мероприятие 294 | KR9: Мероприятие 295 | KS9: Мероприятие 296 | KT9: Мероприятие 297 | KU9: Мероприятие 298 | KV9: Мероприятие 299 | KW9: Мероприятие 300 | KX9: Мероприятие 301 | KY9: Мероприятие 302 | KZ9: Мероприятие 303 | LA9: Мероприятие 304 | LB9: Мероприятие 305 | LC9: Мероприятие 306 | LD9: Мероприятие 307 | LE9: Мероприятие 308 | LF9: ="Мероприятие " & LF10-4 -> Мероприятие 309 | LG9: Мероприятие 310 | LH9: Мероприятие 311 | LI9: Мероприятие 312 | LJ9: Мероприятие 313 | LK9: Мероприятие 314 | LL9: Мероприятие 315 | LM9: Мероприятие 316 | LN9: Мероприятие 317 | LO9: Мероприятие 318 | LP9: Мероприятие 319 | LQ9: Мероприятие 320 | LR9: Мероприятие 321 | LS9: Мероприятие 322 | LT9: Мероприятие 323 | LU9: Мероприятие 324 | LV9: Мероприятие 325 | LW9: Мероприятие 326 | LX9: Мероприятие 327 | LY9: Мероприятие 328 | LZ9: Мероприятие 329 | MA9: Мероприятие 330 | MB9: Мероприятие 331 | MC9: Мероприятие 332 | MD9: Мероприятие 333 | ME9: Мероприятие 334 | MF9: Мероприятие 335 | MG9: Мероприятие 336 | MH9: Мероприятие 337 | MI9: Мероприятие 338 | MJ9: Мероприятие 339 | MK9: Мероприятие 340 | ML9: Мероприятие 341 | MM9: Мероприятие 342 | MN9: Мероприятие 343 | MO9: Мероприятие 344 | MP9: Мероприятие 345 | MQ9: Мероприятие 346 | MR9: Мероприятие 347 | MS9: Мероприятие 348 | MT9: Мероприятие 349 | MU9: Мероприятие 350 | MV9: Мероприятие 351 | MW9: Мероприятие 352 | MX9: Мероприятие 353 | MY9: Мероприятие 354 | MZ9: Мероприятие 355 | NA9: Мероприятие 356 | NB9: Мероприятие 357 | NC9: Мероприятие 358 | ND9: Мероприятие 359 | NE9: Мероприятие 360 | NF9: Мероприятие 361 | NG9: Мероприятие 362 | NH9: Мероприятие 363 | NI9: Мероприятие 364 | NJ9: Мероприятие 365 | NK9: Мероприятие 366 | NL9: Мероприятие 367 | NM9: Мероприятие 368 | NN9: Мероприятие 369 | NO9: Мероприятие 370 | NP9: Мероприятие 371 | NQ9: ="Мероприятие " & NQ10-4 -> Мероприятие 372 | NR9: Мероприятие 373 | NS9: Мероприятие 374 | NT9: Мероприятие 375 | NU9: Мероприятие 376 | NV9: Мероприятие 377 | NW9: Мероприятие 378 | NX9: Мероприятие 379 | NY9: Мероприятие 380 | NZ9: Мероприятие 381 | OA9: Мероприятие 382 | OB9: Мероприятие 383 | OC9: Мероприятие 384 | OD9: Мероприятие 385 | OE9: Мероприятие 386 | OF9: Мероприятие 387 | OG9: Мероприятие 388 | OH9: Мероприятие 389 | OI9: Мероприятие 390 | OJ9: Мероприятие 391 | OK9: Мероприятие 392 | OL9: Мероприятие 393 | OM9: Мероприятие 394 | ON9: Мероприятие 395 | OO9: Мероприятие 396 | OP9: Мероприятие 397 | OQ9: Мероприятие 398 | OR9: Мероприятие 399 | OS9: Мероприятие 400 | OT9: Мероприятие 401 | OU9: Мероприятие 402 | OV9: Мероприятие 403 | OW9: Мероприятие 404 | OX9: Мероприятие 405 | OY9: Мероприятие 406 | OZ9: Мероприятие 407 | PA9: Мероприятие 408 | PB9: Мероприятие 409 | PC9: Мероприятие 410 | PD9: Мероприятие 411 | PE9: Мероприятие 412 | PF9: Мероприятие 413 | PG9: Мероприятие 414 | PH9: Мероприятие 415 | PI9: Мероприятие 416 | PJ9: Мероприятие 417 | PK9: Мероприятие 418 | PL9: Мероприятие 419 | PM9: Мероприятие 420 | PN9: Мероприятие 421 | PO9: Мероприятие 422 | PP9: Мероприятие 423 | PQ9: Мероприятие 424 | PR9: Мероприятие 425 | PS9: Мероприятие 426 | PT9: Мероприятие 427 | PU9: Мероприятие 428 | PV9: Мероприятие 429 | PW9: Мероприятие 430 | PX9: Мероприятие 431 | PY9: Мероприятие 432 | PZ9: Мероприятие 433 | QA9: Мероприятие 434 | QB9: Мероприятие 435 | QC9: ="Мероприятие " & QC10-4 -> Мероприятие 436 | QD9: Мероприятие 437 | QE9: Мероприятие 438 | QF9: Мероприятие 439 | QG9: Мероприятие 440 | QH9: Мероприятие 441 | QI9: Мероприятие 442 | QJ9: Мероприятие 443 | QK9: Мероприятие 444 | QL9: Мероприятие 445 | QM9: Мероприятие 446 | QN9: Мероприятие 447 | QO9: Мероприятие 448 | QP9: Мероприятие 449 | QQ9: Мероприятие 450 | QR9: Мероприятие 451 | QS9: Мероприятие 452 | QT9: Мероприятие 453 | QU9: Мероприятие 454 | QV9: Мероприятие 455 | QW9: Мероприятие 456 | QX9: Мероприятие 457 | QY9: Мероприятие 458 | QZ9: Мероприятие 459 | RA9: Мероприятие 460 | RB9: Мероприятие 461 | RC9: Мероприятие 462 | RD9: Мероприятие 463 | RE9: Мероприятие 464 | RF9: Мероприятие 465 | RG9: Мероприятие 466 | RH9: Мероприятие 467 | RI9: Мероприятие 468 | RJ9: Мероприятие 469 | RK9: Мероприятие 470 | RL9: Мероприятие 471 | RM9: Мероприятие 472 | RN9: Мероприятие 473 | RO9: Мероприятие 474 | RP9: Мероприятие 475 | RQ9: Мероприятие 476 | RR9: Мероприятие 477 | RS9: Мероприятие 478 | RT9: Мероприятие 479 | RU9: Мероприятие 480 | RV9: Мероприятие 481 | RW9: Мероприятие 482 | RX9: Мероприятие 483 | RY9: Мероприятие 484 | RZ9: Мероприятие 485 | SA9: Мероприятие 486 | SB9: Мероприятие 487 | SC9: Мероприятие 488 | SD9: Мероприятие 489 | SE9: Мероприятие 490 | SF9: Мероприятие 491 | SG9: Мероприятие 492 | SH9: Мероприятие 493 | SI9: Мероприятие 494 | SJ9: Мероприятие 495 | SK9: Мероприятие 496 | SL9: Мероприятие 497 | SM9: Мероприятие 498 | SN9: Мероприятие 499 | SO9: ="Мероприятие " & SO10-4 -> Мероприятие 500 | SP9: ="Мероприятие " & SP10-4 -> Мероприятие 501 | SQ9: ="Мероприятие " & SQ10-4 -> Мероприятие 502 | SR9: ="Мероприятие " & SR10-4 -> Мероприятие 503 | SS9: ="Мероприятие " & SS10-4 -> Мероприятие 504 | ST9: Мероприятие 505 | SU9: Мероприятие 506 | SV9: Мероприятие 507 | SW9: Мероприятие 508 | SX9: Мероприятие 509 | SY9: Мероприятие 510 | SZ9: Мероприятие 511 | TA9: Мероприятие 512 | TB9: Мероприятие 513 | TC9: Мероприятие 514 | TD9: Мероприятие 515 | TE9: Мероприятие 516 | TF9: Мероприятие 517 | TG9: Мероприятие 518 | TH9: Мероприятие 519 | TI9: Мероприятие 520 | TJ9: Мероприятие 521 | TK9: Мероприятие 522 | TL9: Мероприятие 523 | TM9: Мероприятие 524 | TN9: Мероприятие 525 | TO9: Мероприятие 526 | TP9: Мероприятие 527 | TQ9: Мероприятие 528 | TR9: Мероприятие 529 | TS9: Мероприятие 530 | TT9: Мероприятие 531 | TU9: Мероприятие 532 | TV9: Мероприятие 533 | TW9: Мероприятие 534 | TX9: Мероприятие 535 | TY9: Мероприятие 536 | TZ9: Добавить мероприятие
E10: 1 | F10: 2 | G10: 3 | H10: 4 | I10: 4 | J10: 5 | K10: 6 | L10: 7 | M10: 8 | N10: 9 | O10: 10 | P10: 11 | Q10: 12 | R10: 13 | S10: 14 | T10: 15 | U10: 16 | V10: 17 | W10: 18 | X10: 19 | Y10: 20 | Z10: 21 | AA10: 22 | AB10: 23 | AC10: 24 | AD10: 25 | AE10: 26 | AF10: 27 | AG10: 28 | AH10: 29 | AI10: 30 | AJ10: 31 | AK10: 32 | AL10: 33 | AM10: 34 | AN10: 35 | AO10: 36 | AP10: 37 | AQ10: 38 | AR10: 39 | AS10: 40 | AT10: 41 | AU10: 42 | AV10: 43 | AW10: 44 | AX10: 45 | AY10: 46 | AZ10: 47 | BA10: 48 | BB10: 49 | BC10: 50 | BD10: 51 | BE10: 52 | BF10: 53 | BG10: 54 | BH10: 55 | BI10: 56 | BJ10: 57 | BK10: 58 | BL10: 59 | BM10: 60 | BN10: 61 | BO10: 62 | BP10: 63 | BQ10: 64 | BR10: 65 | BS10: 66 | BT10: 67 | BU10: 68 | BV10: 69 | BW10: 70 | BX10: 71 | BY10: 72 | BZ10: 73 | CA10: 74 | CB10: 75 | CC10: 76 | CD10: 77 | CE10: 78 | CF10: 79 | CG10: 80 | CH10: 81 | CI10: 82 | CJ10: 83 | CK10: 84 | CL10: 85 | CM10: 86 | CN10: 87 | CO10: 88 | CP10: 89 | CQ10: 90 | CR10: 91 | CS10: 92 | CT10: 93 | CU10: 94 | CV10: 95 | CW10: 96 | CX10: 97 | CY10: 98 | CZ10: 99 | DA10: 100 | DB10: 101 | DC10: 102 | DD10: 103 | DE10: 104 | DF10: 105 | DG10: 106 | DH10: 107 | DI10: 108 | DJ10: 109 | DK10: 110 | DL10: 111 | DM10: 112 | DN10: 113 | DO10: 114 | DP10: 115 | DQ10: 116 | DR10: 117 | DS10: 118 | DT10: 119 | DU10: 120 | DV10: 121 | DW10: 122 | DX10: 123 | DY10: 124 | DZ10: 125 | EA10: 126 | EB10: 127 | EC10: 128 | ED10: 129 | EE10: 130 | EF10: 131 | EG10: 132 | EH10: 133 | EI10: 134 | EJ10: 135 | EK10: 136 | EL10: 137 | EM10: 138 | EN10: 139 | EO10: 140 | EP10: 141 | EQ10: 142 | ER10: 143 | ES10: 144 | ET10: 145 | EU10: 146 | EV10: 147 | EW10: 148 | EX10: 149 | EY10: 150 | EZ10: 151 | FA10: 152 | FB10: 153 | FC10: 154 | FD10: 155 | FE10: 156 | FF10: 157 | FG10: 158 | FH10: 159 | FI10: 160 | FJ10: 161 | FK10: 162 | FL10: 163 | FM10: 164 | FN10: 165 | FO10: 166 | FP10: 167 | FQ10: 168 | FR10: 169 | FS10: 170 | FT10: 171 | FU10: 172 | FV10: 173 | FW10: 174 | FX10: 175 | FY10: 176 | FZ10: 177 | GA10: 178 | GB10: 179 | GC10: 180 | GD10: 181 | GE10: 182 | GF10: 183 | GG10: 184 | GH10: 185 | GI10: 186 | GJ10: 187 | GK10: 188 | GL10: 189 | GM10: 190 | GN10: 191 | GO10: 192 | GP10: 193 | GQ10: 194 | GR10: 195 | GS10: 196 | GT10: 197 | GU10: 198 | GV10: 199 | GW10: 200 | GX10: 201 | GY10: 202 | GZ10: 203 | HA10: 204 | HB10: 205 | HC10: 206 | HD10: 207 | HE10: 208 | HF10: 209 | HG10: 210 | HH10: 211 | HI10: 212 | HJ10: 213 | HK10: 214 | HL10: 215 | HM10: 216 | HN10: 217 | HO10: 218 | HP10: 219 | HQ10: 220 | HR10: 221 | HS10: 222 | HT10: 223 | HU10: 224 | HV10: 225 | HW10: 226 | HX10: 227 | HY10: 228 | HZ10: 229 | IA10: 230 | IB10: 231 | IC10: 232 | ID10: 233 | IE10: 234 | IF10: 235 | IG10: 236 | IH10: 237 | II10: 238 | IJ10: 239 | IK10: 240 | IL10: 241 | IM10: 242 | IN10: 243 | IO10: 244 | IP10: 245 | IQ10: 246 | IR10: 247 | IS10: 248 | IT10: 249 | IU10: 250 | IV10: 251 | IW10: 252 | IX10: 253 | IY10: 254 | IZ10: 255 | JA10: 256 | JB10: 257 | JC10: 258 | JD10: 259 | JE10: 260 | JF10: 261 | JG10: 262 | JH10: 263 | JI10: 264 | JJ10: 265 | JK10: 266 | JL10: 267 | JM10: 268 | JN10: 269 | JO10: 270 | JP10: 271 | JQ10: 272 | JR10: 273 | JS10: 274 | JT10: 275 | JU10: 276 | JV10: 277 | JW10: 278 | JX10: 279 | JY10: 280 | JZ10: 281 | KA10: 282 | KB10: 283 | KC10: 284 | KD10: 285 | KE10: 286 | KF10: 287 | KG10: 288 | KH10: 289 | KI10: 290 | KJ10: 291 | KK10: 292 | KL10: 293 | KM10: 294 | KN10: 295 | KO10: 296 | KP10: 297 | KQ10: 298 | KR10: 299 | KS10: 300 | KT10: 301 | KU10: 302 | KV10: 303 | KW10: 304 | KX10: 305 | KY10: 306 | KZ10: 307 | LA10: 308 | LB10: 309 | LC10: 310 | LD10: 311 | LE10: 312 | LF10: 313 | LG10: 314 | LH10: 315 | LI10: 316 | LJ10: 317 | LK10: 318 | LL10: 319 | LM10: 320 | LN10: 321 | LO10: 322 | LP10: 323 | LQ10: 324 | LR10: 325 | LS10: 326 | LT10: 327 | LU10: 328 | LV10: 329 | LW10: 330 | LX10: 331 | LY10: 332 | LZ10: 333 | MA10: 334 | MB10: 335 | MC10: 336 | MD10: 337 | ME10: 338 | MF10: 339 | MG10: 340 | MH10: 341 | MI10: 342 | MJ10: 343 | MK10: 344 | ML10: 345 | MM10: 346 | MN10: 347 | MO10: 348 | MP10: 349 | MQ10: 350 | MR10: 351 | MS10: 352 | MT10: 353 | MU10: 354 | MV10: 355 | MW10: 356 | MX10: 357 | MY10: 358 | MZ10: 359 | NA10: 360 | NB10: 361 | NC10: 362 | ND10: 363 | NE10: 364 | NF10: 365 | NG10: 366 | NH10: 367 | NI10: 368 | NJ10: 369 | NK10: 370 | NL10: 371 | NM10: 372 | NN10: 373 | NO10: 374 | NP10: 375 | NQ10: 376 | NR10: 377 | NS10: 378 | NT10: 379 | NU10: 380 | NV10: 381 | NW10: 382 | NX10: 383 | NY10: 384 | NZ10: 385 | OA10: 386 | OB10: 387 | OC10: 388 | OD10: 389 | OE10: 390 | OF10: 391 | OG10: 392 | OH10: 393 | OI10: 394 | OJ10: 395 | OK10: 396 | OL10: 397 | OM10: 398 | ON10: 399 | OO10: 400 | OP10: 401 | OQ10: 402 | OR10: 403 | OS10: 404 | OT10: 405 | OU10: 406 | OV10: 407 | OW10: 408 | OX10: 409 | OY10: 410 | OZ10: 411 | PA10: 412 | PB10: 413 | PC10: 414 | PD10: 415 | PE10: 416 | PF10: 417 | PG10: 418 | PH10: 419 | PI10: 420 | PJ10: 421 | PK10: 422 | PL10: 423 | PM10: 424 | PN10: 425 | PO10: 426 | PP10: 427 | PQ10: 428 | PR10: 429 | PS10: 430 | PT10: 431 | PU10: 432 | PV10: 433 | PW10: 434 | PX10: 435 | PY10: 436 | PZ10: 437 | QA10: 438 | QB10: 439 | QC10: 440 | QD10: 441 | QE10: 442 | QF10: 443 | QG10: 444 | QH10: 445 | QI10: 446 | QJ10: 447 | QK10: 448 | QL10: 449 | QM10: 450 | QN10: 451 | QO10: 452 | QP10: 453 | QQ10: 454 | QR10: 455 | QS10: 456 | QT10: 457 | QU10: 458 | QV10: 459 | QW10: 460 | QX10: 461 | QY10: 462 | QZ10: 463 | RA10: 464 | RB10: 465 | RC10: 466 | RD10: 467 | RE10: 468 | RF10: 469 | RG10: 470 | RH10: 471 | RI10: 472 | RJ10: 473 | RK10: 474 | RL10: 475 | RM10: 476 | RN10: 477 | RO10: 478 | RP10: 479 | RQ10: 480 | RR10: 481 | RS10: 482 | RT10: 483 | RU10: 484 | RV10: 485 | RW10: 486 | RX10: 487 | RY10: 488 | RZ10: 489 | SA10: 490 | SB10: 491 | SC10: 492 | SD10: 493 | SE10: 494 | SF10: 495 | SG10: 496 | SH10: 497 | SI10: 498 | SJ10: 499 | SK10: 500 | SL10: 501 | SM10: 502 | SN10: 503 | SO10: 504 | SP10: 505 | SQ10: 506 | SR10: 507 | SS10: 508 | ST10: 509 | SU10: 510 | SV10: 511 | SW10: 512 | SX10: 513 | SY10: 514 | SZ10: 515 | TA10: 516 | TB10: 517 | TC10: 518 | TD10: 519 | TE10: 520 | TF10: 521 | TG10: 522 | TH10: 523 | TI10: 524 | TJ10: 525 | TK10: 526 | TL10: 527 | TM10: 528 | TN10: 529 | TO10: 530 | TP10: 531 | TQ10: 532 | TR10: 533 | TS10: 534 | TT10: 535 | TU10: 536 | TV10: 537 | TW10: 538 | TX10: 539 | TY10: 540
E11: 1 | F11: Наименование инвестиционной программы (мероприятия) | G11: x | H11: Инвестиционная программа развития системы теплоснабжения г.Ижевска и г.Сарапула Общества с ограниченной ответственностью «Удмуртские коммунальные системы» на 2016-2032 год | J11: Техническое перевооружение. Сети теплоснабжения от ЦТП-42 ул. Школьная,25б | K11: Техническое перевооружение. Тепловая сеть ЦТП 'Металлистов 34Т | L11: Техническое перевооружение. Тепловая сеть ЦТП 5 мкр."Буммаш" Инв.№609010029 | M11: Техническое перевооружение сети теплоснабжения от ЦТП ул. Союзная, 37а (ЦТП-28мкр.А-6 "Аэропорт") | N11: Оборудование центрального теплового пункта Ленина 176а (ЦТП 1 мкр. А-12 Аэропорт) | O11: Установка насосного оборудования с частотным приводом, Замена теплообменного оборудования г. Сарапул, ул. Гоголя, 40 | P11: Техническое перевооружение 'Оборудование здания ЦТП Школьная 25б | Q11: Техническое перевооружение 'Оборудование нежилого помещения Металлистов 34Т | R11: Техническое перевооружение. Оборудование нежилого помещания ул.Девятого Января 185аТ (ЦТП 5 мкр."Буммаш") | S11: Техническое перевооружение котельной ул.Дружбы, 2-в | T11: ИНВЕРТОР СВАР. PICO 162>20Т.Р.г.Ижевск | U11: ИНВЕРТОР СВАР. PICO 162>20Т.Р. г.Сарапул | V11: ИНВЕРТОР СВАР. PICO 162>20Т.Р. г.Ижевск ГКТС | W11: ГАЗОАНАЛИЗАТОР ПГА-7 >20Т.Р. г.Ижевск | X11: ГАЗОАНАЛИЗАТОР ПГА-7 >20Т.Р. г.Сарапул | Y11: МОТОПОМПА ROBIN PTG 307D г.Ижевск | Z11: МОТОПОМПА ROBIN PTG 307D г.Сарапул | AA11: МОТОПОМПА ROBIN PTG 307D г.Ижевск ГКТС | AB11: ГЕНЕРАТОР БЕНЗИН. MAKITA EG601A г.Ижевск | AC11: ГЕНЕРАТОР вепрь АБП20-Т400/230вб-БС | AD11: Машина для раструбной сварки V-Weld R160 г.Ижевск | AE11: Машина для раструбной сварки V-Weld R160 г.Сарапул | AF11: Промывочная установка BUCHA г.Ижевск ГКТС | AG11: Промывочная установка BUCHA г.Сарапул | AH11: БЕНЗОПИЛА STIHL MS 361 N | AI11: ТОЛЩИНОМЕР УЛЬТРАЗВУКОВОЙ А1210>20Т.Р. | AJ11: Тепловизор Testo 885-2 | AK11: СТАНЦИЯ СВАР.АСПБВ250-8/3-Т400/230ВХБСГ г.Ижевск | AL11: СТАНЦИЯ СВАР.АСПБВ250-8/3-Т400/230ВХБСГ г.Сарапул | AM11: ВЕНТИЛЯТОР FSA-2100/SP г.Ижевск | AN11: ВЕНТИЛЯТОР ВЦ14-46-6,3 | AO11: Насос Grundfos MAGNA 32-100 F220 с электронным регулированием | AP11: насос Д 320/50 75квт | AQ11: насос "Гном" 40-25Т | AR11: насос КМ 80-65-200 | AS11: насос КМ 100-65-250 | AT11: Насос Grundfos TPE 50-360/2 A-F-A-GQQE | AU11: ПРИБОР PH-МЕТР МАРК-903 ПРОТОЧНЫЙ >20Т.Р | AV11: Техническое перевооружение ЦТП-Элеконд ул.Калинина,10а | AW11: Техническое перевооружение ЦТП-239 ул. Ленина,62а | AX11: Техническое перевооружение ЦТП-242 ул. Вокзальная,8а | AY11: Техническое перевооружение ЦТП-134 ул. Гоголя,99а | AZ11: Техническое перевооружение ЦТП-161 ул. Гоголя,40 | BA11: Техническое перевооружение ЦТП-162 ул. Интернациональная,55в | BB11: Техническое перевооружение ЦТП-36 ул. Мельникова,7а | BC11: Техническое перевооружение ЦТП-306 ул. Молодежная,5б | BD11: Техническое перевооружение ЦТП-ВСО ул. 20 лет Победы,27а | BE11: Техническое перевооружение ЦТП-137 ул. Ленина,2а | BF11: Техническое перевооружение ЦТП-ПожДепо ул. Азина,166а | BG11: Техническое перевооружение ЦТП-144 ул. Азина,144а | BH11: Техническое перевооружение ЦТП-Путейская, 3а | BI11: Техническое перевооружение ЦТП-114 г. Сарапул, ул. Пугачева, 58а. | BJ11: Техническое перевооружение ЦТП-285 ул. Электрозаводская, 4а | BK11: Устройство циркуляционного трубопровода ГВС г. Сарапул, ул. Калинина, 7а | BL11: Устройство циркуляционного трубопровода ГВС г. Сарапул, ул. Пугачева, 58а | BM11: Техническое перевооружение сети теплоснабжения от ЦТП Воткинское шоссе,136б (ЦТП 1 мкр. 1 бл."Буммаш") | BN11: Техническое перевооружение сети теплоснабжения от ТК-1317 | BO11: Техническое перевооружение квартальных сетей от ТК-2368 | BP11: Техническое перевооружение квартальных сетей от ТК-1217 | BQ11: Техническое перевооружение сети теплоснабжения от ТК-1224 | BR11: Техническое перевооружение квартальных сетей от ЦТП ул. Ворошилова, 79а/1 (ЦТП-1а мкр.Автопроизводства) | BS11: Техническое перевооружение квартальных сетей от ЦТП ул.Сабурова, 47а (ЦТП-1 2 Восточный мкр.) | BT11: Техническое перевооружение квартальных сетей от ЦТП ул.Сабурова, 37а (ЦТП-2 2 Восточный мкр.) | BU11: Техническое перевооружение сети теплоснабжения от ЦТП ул. Труда, 2а | BV11: Техническое перевооружение сети теплоснабжения от ЦТП ул. Труда, 1 (Автозаводской больницы) | BW11: Техническое перевооружение сети теплоснабжения от ЦТП Ленина,102 | BX11: Техническое перевооружение сети теплоснабжения от ЦТП ул. Ленина, 158а | BY11: Техническое перевооружение сети теплоснабжения от ЦТП Воровского,106а | BZ11: Техническое перевооружение сети теплоснабжения от БГВС Ленина,38б | CA11: Техническое перевооружение квартальных сетей от ТК-1136 | CB11: Техническое перевооружение квартальных сетей от ЦТП ул. Воровского, 160а ('ЦТП Гольянского поселка -1) | CC11: Техническое перевооружение сети теплоснабжения от ЦТП Оружейника Драгунова,62а (ЦТП-2 Ленинского района) | CD11: Техническое перевооружение квартальных сетей от ЦТП ул.Баранова 40 (ЦТП-4 Дет Больница) | CE11: Техническое перевооружение квартальных сетей от ЦТП ул. 30 лет Победы, 41 (ЦТП ИжГТУ) | CF11: Техническое перевооружение сети теплоснабжения от ЦТП 30 лет Победы,80а ( ЦТП 1 - 1 Северо - Западного района) | CG11: Техническое перевооружение сети теплоснабжения от ЦТП пер.Северный 47Т (ЦТП 46 мкр. "Север") | CH11: Техническое перевооружение сети теплоснабжения от ЦТП Карла Маркса,397а (ЦТП 11 мкр. "Север") | CI11: Техническое перевооружение сети теплоснабжения ТК 1431 | CJ11: Техническое перевооружение сети теплоснабжения от ЦТП Карла Маркса,293 (ЦТП 1 Мотозавод) | CK11: Техническое перевооружение сети теплоснабжения от ЦТП Песочная, 26а (ЦТП-43) | CL11: Замена теплообменного оборудования г. Сарапул, ул. Гоголя, 99а | CM11: Установка насосного оборудования с частотным приводом г. Сарапул, ул. Пугачева, 58а | CN11: Установка насосного оборудования с частотным приводом г. Сарапул, ул. Азина, 88 | CO11: Установка насосного оборудования с частотным приводом г. Сарапул, ул. Путейская, 3а | CP11: Установка насосного оборудования с частотным приводом г. Сарапул, ул. 20 лет Победы, 3б | CQ11: Техническое перевооружение 'Оборудование по ул.Калинина, 10а г.Сарапул | CR11: Техническое перевооружение 'Оборудование Дубровская, 53а г.Сарапул | CS11: Техническое перевооружение. Оборудование БГВС Коммунаров 224а | CT11: Техническое перевооружение. Оборудование зда6ния ЦТП Шишкина, 1 (ЦТП-2 Культбаза-1) | CU11: Техническое перевооружение. 'Оборудование нежилого помещения Тимирязева 3а (ЦТП 1 мкр Культбаза 2 ) | CV11: Техническое перевооружение. Оборудование здания ЦТП пл.50 лет Октября 15а (ЦТП 10 (Обком) | CW11: Техническое перевооружение. 'Оборудование нежилого помещения Воткинское шоссе 132б (ЦТП 1мкр.1 блок Буммаш) | CX11: Техническое перевооружение. Оборудование здания ЦТП Дзержинского, 39а (ЦТП 1-3 Буммаш) | CY11: Техническое перевооружение. Оборудование нежилого помещения Девятого Января 185аТ (ЦТП 5 буммаш) | CZ11: Техническое перевооружение. Оборудование здания ЦТП 9 Января 255а (ЦТП 6 Буммаш ) | DA11: Техническое перевооружение. Оборудование ЦТП Зенитная 9б | DB11: Техническое перевооружение. Оборудование здания ЦТП Ленина, 87б (ЦТП Кардиология ) | DC11: Техническое перевооружение. Оборудование здания ЦТП Редукторная 8а (ЦТП Культбаза 3) | DD11: Техническое перевооружение. Оборудование нежилого помещения Воткинское шоссе 136б (ЦТП Новая Ударная) | DE11: Техническое перевооружение. Оборудование здания ЦТП Парковая 9б | DF11: Техническое перевооружение. Оборудование здания ЦТП Серова 65/1 (ЦТП Радиозавод) | DG11: Техническое перевооружение. Оборудование ЦТП Воткинское шоссе 57/1 (ЦТП РКБ) | DH11: Техническое перевооружение оборудования ЦТП ул. Сабурова, 47а (ЦТП 1-2 "Восточный" мкр.) | DI11: Техническое перевооружение оборудования ЦТП ул. Сабурова, 37а (ЦТП 2-2 "Восточный" мкр. ) | DJ11: Техническое перевооружение. Оборудование ЦТП Барышникова 35а (ЦТП 1-1 "Восточный" мкр.) | DK11: Техническое перевооружение. 'Оборудование нежилого помещения на 1 этаже нежилого здания Труда 1 (ЦТП Автозаводской больницы) | DL11: Техническое перевооружение. Оборудование центрального теплового пункта Союзная 5б (ЦТП-27 мкр.А-6 "Аэропорт") | DM11: Техническое перевооружение 'Оборудование ИТП 39 Автозаводская 14 | DN11: Техническое перевооружение 'Оборудование нежилого помещения в подвале на 1 этаже ул. Наговицына 6 | DO11: Техническое перевооружение Оборудование здания ЦТП Союзная,147а (ЦТП 31а мкр. А-8) | DP11: Техническое перевооружение 'Оборудование центрального теплового пункта 'Ворошилова 25а (ЦТП 1 автопроизводство) | DQ11: Техническое перевооружение 'Оборудование центрально-теплового пункта 'Молодежная 34б (ЦТП 2 Аэропрот) | DR11: Техническое перевооружение Оборудование центрального теплового пункта Союзная 77а (ЦТП 26 Аэропорт) | DS11: Техническое перевооружение 'Оборудование ЦТП 'Союзная 37а (ЦТП 28 Аэропорт) | DT11: Техническое перевооружение Оборудование нежилого помещения в подвале и на 1 этаже нежилого здания (ЦТП) 'Ворошилова 28а (ЦТП 3 автопроизводство) | DU11: Техническое перевооружение 'Оборудование центрального теплового пункта 'Автозаводская 38а (ЦТП 3 Восточная) | DV11: Техническое перевооружение 'Оборудование здания ЦТП Молодежная 95а (ЦТП 3-А5 Аэропорт) | DW11: Техническое перевооружение 'Оборудование здания ЦТП 'Ворошилова 36а (ЦТП 4Автопроизв.) | DX11: Техническое перевооружение 'Оборудование центрального теплового пункта Труда 2а (ЦТП 6 Восточная) | DY11: Техническое перевооружение Оборудование центрально-теплового пункта 'Автозаводская 11а (ЦТП 8Вост. Мкр.) | DZ11: Техническое перевооружение 'Оборудование центрально-теплового пункта Молодежная 3а (ЦТП А-3 Аэропорт) | EA11: Техническое перевооружение Оборудование центрального теплового пункта 'Молодежная 109Ц (ЦТП Кооперативного техникума) | EB11: Техническое перевооружение 'Оборудование ЦТП Ворошилова 72а (ЦТП МВД) | EC11: Техническое перевооружение Оборудование нежилого помещения на 1 этаже нежилого здания 'Труда 3 (ЦТП РОЦ) | ED11: Техническое перевооружение 'Сети теплоснабжения врезка на пос.Старки 'врезка на ж.д.по ул. Спортивная, Линейная (Тепловая камера) | EE11: Техническое перевооружение оборудования ЦТП ул.40 лет Победы 118а (ЦТП-40 мкр. А-9) | EF11: Техническое перевооружение. Оборудование ЦТП Ленина,158а | EG11: Техническое перевооружение 'Оборудование здания ЦТП Ключевой поселок 63а (ЦТП Ключевой поселок,63а) | EH11: Техническое перевооружение Оборудование индивидуального теплового пункта Удмуртская, 151а (ИТП 38) | EI11: Техническое перевооружение 'Оборудование центрально-теплового пункта Воровского, 165а (ЦТП 1 Гольянского поселка) | EJ11: Техническое перевооружение Оборудование нежилого помещения на 1 этажах нежилых зданий Восточная, 42 (ЦТП 2 Гольянского поселка ) | EK11: Техническое перевооружение оборудования ЦТП 23 ю-1 ул. Красноармейская, 67а | EL11: Техническое перевооружение Оборудование центрального теплового пункта Удмуртская, 145а (ЦТП 25 Ю-2 ) | EM11: Техническое перевооружение Оборудование центрального теплового пункта 40 лет Победы, 130а (ЦТП 39 мкр А-9 ) | EN11: Техническое перевооружение. 'Оборудование здания ЦТП Советская, 2а (ЦТП-26) | EO11: Техническое перевооружение. Оборудование нежилого помещения на 1 этаже здания ЦТП Удмуртская, 197Т (ЦТП-47) | EP11: Техническое перевооружение оборудования Вадима Сивкова, 105а (ЦТП-В.Сивкова) | EQ11: Техническое перевооружение Оборудование здания ЦТП Ленина 116а (ЦТП-Ипподромный) | ER11: Техническое перевооружение. Оборудовани здания ЦТП Промышленная, 52а (ЦТП-МОК ) | ES11: Техническое перевооружение Оборудование центрально-теплового пункта .Ухтомского, 23а (ЦТП-Ухтомского) | ET11: Техническое перевооружение. Оборудование ЦТП Халтурина, 2 | EU11: Техническое перевооружение 'Оборудование центрального теплового пункта Тверская 54аТ (ЦТП 5 ) | EV11: Техническое перевооружение 'Оборудование центрального теплового пункта 'Заречное шоссе 59а (ЦТП 6) | EW11: Техническое перевооружение Оборудование центрально-теплового пункта Клубная 85а (ЦТП 8) | EX11: Техническое перевооружение 'Оборудование здания ЦТП Балезинская 68 (ЦТП ЗЯБ) | EY11: Техническое перевооружение 'Оборудование здания ЦТП Оружейника Драгунова 62а (ЦТП 2 Ленинского р-на) | EZ11: Техническое перевооружение 'Оборудование нежилого помещения на 1 этаже здания (ЦТП) Клубная 72 (ЦТП-3 Ленинского р-на) | FA11: Техническое перевооружение оборудования ЦТП Мужвайка | FB11: Техническое перевооружение Оборудование центрального теплового пункта Тверская 54аТ (ЦТП-5 Ленинского р-на) | FC11: Техническое перевооружение 'Оборудование центрального теплового пункта Заречное шоссе 49а (ЦТП-6-1 Ленинского р-на) | FD11: Техническое перевооружение 'Оборудование центрально-теплового пункта Баранова 71а (ЦТП-7 Ленинского р-на) | FE11: Техническое перевооружение 'Оборудование центрального теплового пункта Клубная 21 (ЦТП-8 Ленинского р-на) | FF11: Техническое перевооружение оборудования ИТП гор.Машиностроителей 99а (ИТП Зеленая) | FG11: Техническое перевооружение'Оборудование здания ЦТП Саратовская 36а (ЦТП-20 ) | FH11: Техническое перевооружение оборудования БГВС Чайковского 74 | FI11: Техническое перевооружение. Оборудование ЦТП 'Металлистов 31 (ЦТП 4 6 мкр. С-З) | FJ11: Техническое перевооружение. 'Оборудование нежилого помещения на 1 этаже здания ЦТП ( Литер А) 'Пушкинская 245б (ЦТП Весна) | FK11: Техническое перевооружение Оборудование здания ЦТП '30 лет Победы 80а (ЦТП 1 - 1 Северо - Западного района) | FL11: Техническое перевооружение. Оборудование ИТП Пушкинская 233 | FM11: Техническое перевооружение. 'Оборудование центрально-теплового пункта К.Маркса 397а (ЦТП 11 Север) | FN11: Техническое перевооружение. 'Оборудование центрального теплового пункта '10 лет Октября 21а (ЦТП 15-2) | FO11: Техническое перевооружение. 'Оборудование ЦТП 'Металлистов 31 (ЦТП 4) | FP11: Техническое перевооружение. 'Оборудование нежилого помещения 'пер.Северный 47Т (ЦТП 46) | FQ11: Техническое перевооружение.'Оборудование здания (ЦТП) 'Нижняя 18 (ЦТП 9 С-З) | FR11: Техническое перевооружение. 'Оборудование здания ЦТП '50 лет Пионерии 26а ( ЦТП Береговая) | FS11: Техническое перевооружение. 'Оборудование нежилого помещения на 1 этаже здания ЦТП ( Литер А) 'Пушкинская 245б (ЦТП Весна) | FT11: Техническое перевооружение. Оборудование нежилого помещения'К.Маркса 265Т (ЦТП Мотозавод 2) | FU11: Техническое перевооружение. Сети теплоснабжения от ЦТП Сабурова 47а | FV11: Техническое перевооружение. Сети теплоснабжения от ЦТП ул. Сабурова, 37а | FW11: Техническое перевооружение. Сети теплоснабжения от ЦТП 40 лет Победы 78а | FX11: Техническое перевооружение. Сети теплоснабжения от ТК-1224 | FY11: Техническое перевооружение. Сети теплоснабжения от ЦТП ул. Воткинское шоссе, 17а | FZ11: Техническое перевооружение. Сети теплоснабжения от ТК-1430 (ввод на ЦТП ул. 30 лет Победы, 2) | GA11: Техническое перевооружение. Сети теплоснабжения от ТК-1431 | GB11: Техническое перевооружение. Сети теплоснабжения от ЦТП ул. 30 лет Победы,80а | GC11: Техническое перевооружение. Сети теплоснабжения от ТК-1414 ( ввод на ЦТП ул. 10 лет Октября, 21а) | GD11: Техническое перевооружение. Сети теплоснабжения от ТК-1317/6 (ввод на ЦТП ул. Коммунаров,361а) | GE11: Техническое перевооружение. Сети теплоснабжения от ЦТП ул. Воровского, 165а | GF11: Техническое перевооружение. Сети теплоснабжения от ЦТП ул. 40 лет Победы, 130а | GG11: Техническое перевооружение. Сети теплоснабжения от ЦТП ул.Ленина 102 | GH11: Техническое перевооружение. Сети теплоснабжения от ЦТП ул. Степана Разина, 50а | GI11: Техническое перевооружение. Сети теплоснабжения от БГВС ул. Ленина, 38Б | GJ11: Техническое перевооружение. Сети теплоснабжения от ЦТП ул. Холмогорова, 90а | GK11: Техническое перевооружение. Сети теплоснабжения от ТК-1609а | GL11: Техническое перевооружение. Сети теплоснабжения от ЦТП ул. Девятого Января, 185аТ | GM11: Сети теплоснабжения от ЦТП ул. Редукторная 8 | GN11: Техническое перевооружение.Сети теплоснабжения от ЦТП пер.Северный 71 | GO11: Техническое перевооружение.Сети теплоснабжения от ЦТП ул. Олега Кошевого, 22а | GP11: Техническое перевооружение. Сети теплоснабжения от ТК-1222 | GQ11: Техническое перевооружение. Сети теплоснабжения от ТК-1317/2 | GR11: Техническое перевооружение. Сети теплоснабжения от ТК-1214 | GS11: Техническое перевооружение. Сети теплоснабжения от ТК-1317/6 (ввод на ЦТП ул. Коммунаров,361а) | GT11: Техническое перевооружение. Сети теплоснабжения от ТК-1415 (ввод на ЦТП ул. 10 лет Октября ,7а | GU11: Техническое перевооружение. Сети теплоснабжения от ТК-1416а (ввод на ИТП ул. Холмогорова, 36б) | GV11: Техническое перевооружение. Сети теплоснабжения от ТК-1420 (ввод на ИТП ул. Холмогорова,11в) | GW11: Техническое перевооружение. Сети теплоснабжения от ЦТП Металлистов 52 | GX11: Техническое перевооружение. Сети теплоснабжения от ЦТП ул. Парковая,5 | GY11: Техническое перевооружение. Сети теплоснабжени от ЦТП ул. Ухтомского, 23а | GZ11: Техническое перевооружение. Сети теплоснабжения от ТК-1100 | HA11: Техническое перевооружение. Сети теплоснабжения от ТК-1138 | HB11: Техническое перевооружение. Сети теплоснабжения от котельной ул. Промышленная, 8 | HC11: Техническое перевооружение. Сети теплоснабжения от ТК-2816 (ввод на ЦТП ул. Ухтомского, 17а, ЦТП ул. Ухтомского, 23а) | HD11: Техническое перевооружение. Сети теплоснабжения от ТК-1609а | HE11: Техническое перевооружение. Сети теплоснабжения от ТК-2305 | HF11: Техническое перевооружение. Сети теплоснабжения от ТК-2305 | HG11: Техническое перевооружение. Сети теплоснабжения от ТК-1317/2 | HH11: Техническое перевооружение. Сети теплоснабжения от ЦТП ул. Парковая,5 | HI11: Техническое перевооружение. Сети теплоснабжения от ТК-1100 | HJ11: Устройство циркуляционного трубопровода ГВС, г. Сарапул, ул. Гоголя, 99а | HK11: Устройство циркуляционного трубопровода ГВС г. Сарапул, ул. Ленина, 62а | HL11: замена ТО, установка насосного оборудования с частотным приводом г. Сарапул, ул. Вокзальная, 8а | HM11: Замена теплообменного оборудования, установка насосного оборудования с частотным приводом г. Сарапул, ул. 20 лет Победы, 5б | HN11: Установка насосного оборудования с частотным приводом г. Сарапул, ул. Калинина, 7а | HO11: Установка насосного оборудования с частотным приводом г. Сарапул, ул. Дубровкая, 59а | HP11: Замена теплообменного оборудования, установка насосного оборудования с частотным приводом г. Сарапул, ул. Лескова, 16 а | HQ11: Замена теплообменного оборудования г. Сарапул, ул. Дубровская, 53а | HR11: Техническое перевооружение. Сети теплоснабжения от ТК-2728 (ввод на ЦТП ул. Сабурова, 47а) | HS11: Техническое перевооружение. Сети теплоснабжения от ЦТП Автозаводская 24а | HT11: Техническое перевооружение. Сети теплоснабжения от ЦТП ул. Автозаводская, 11а | HU11: Техническое перевооружение. Сети теплоснабжения от ЦТП 40 лет Победы 78а | HV11: Техническое перевооружение. Сети теплоснабжения от ЦТП ул. Тимирязева, 3а | HW11: Техническое перевооружение. 'Сети теплоснабжения от ТК-1431 | HX11: Техническое перевооружение. Сети теплоснабжения от ТК-1521 (ввод на ЦТП ул. 30 лет Победы, 80а) | HY11: Техническое перевооружение. Сети теплоснабжения от ЦТП ул. 30 лет Победы,80а | HZ11: Техническое перевооружение. 'Сети теплоснабжения от ТК-1317/6 (ввод на ЦТП ул. Коммунаров,361а) | IA11: Техническое перевооружение. Сети теплоснабжения от ЦТП ул. Песочная, 26а | IB11: Техническое перевооружение. 'Сети теплоснабжения от ТК-2736 (ввод на ЦТП ул. Труда, 3) | IC11: Техническое перевооружение. Сети теплоснабжения от ЦТП ул. Удмуртская, 145а | ID11: Техническое перевооружение. Сети теплоснабжения от ТК-1100 | IE11: Техническое перевооружение. 'Сети теплоснабжения от ТК-1118/1 | IF11: Техническое перевооружение. 'Сети теплоснабжения от ТК-1132 | IG11: Техническое перевооружение. 'Сети теплоснабжения от ЦТП ул. Ленина, 116а | IH11: Техническое перевооружение. Сети теплоснабжения от ТК-1217 | II11: Техническое перевооружение. 'Сети теплоснабжения от ЦТП ул. Девятого Января, 185аТ | IJ11: Оборудование центрально-теплового пункта Ленина 176а (ЦТП №1 мкр. А-12 Аэропорт) | IK11: Техническое перевооружение. Сети теплоснабжения от котельной ул. Механизаторская, 22 | IL11: Техническое перевооружение. Сети теплоснабжения ТК-1334 – ТК-1333 | IM11: Техническое перевооружение. Сети теплоснабжения ТК-1334 – ТК-1333 | IN11: Техническое перевооружение. Сети теплоснабжения Гольянский посёлок, 1 | IO11: Техническое перевооружение. Сети теплоснабжения от ТК-1134/6 (ввод на ЦТП ул. Советская, 37) | IP11: Техническое перевооружение. Сети теплоснабжения от ТК-ТК-1917/4 (резервный ввод на ЦТП ул. Красноармейская, 76а) | IQ11: Техническое перевооружение. Сети теплоснабжения от ЦТП Воткинское шоссе, 136б | IR11: Техническое перевооружение. Сети теплоснабжения от ЦТП Воткинское шоссе, 136 б | IS11: Техническое перевооружение. Сети теплоснабжения от ТК-1613 (ввод на ЦТП ул. Кооперативная, 1а) | IT11: Техническое перевооружение. Сети теплоснабжения от ТК-1331 (ввод на ЦТП ул. Льва Толстого, 26а, ЦТП ул. Тимирязева, 19а, ЦТП ул. Тимирязева 3а) | IU11: Техническое перевооружение. Сети теплоснабжения от ТК-2211 | IV11: Техническое перевооружение.Сети теплоснабжения от | IW11: Техническое перевооружение.Сети теплоснабжения от котельной ул. Механизаторская, 22 . | IX11: Техническое перевооружение.Сети теплоснабжения от ЦТП Воткинское шоссе 46а | IY11: Техническое перевооружение.Сети теплоснабжения от ЦТП ул. Редукторная, 8а | IZ11: Техническое перевооружение. Сети теплоснабжения от ЦТП Воткинское шоссе, 136б | JA11: Сети теплоснабжения от ТК-2704 (ввод на ЦТП ул. Автозаводская, 38а) | JB11: Сети теплоснабжения от ТК-1224 | JC11: Сети теплоснабжения от ТК-2132 (ввод на ЦТП ул. Воткинское шоссе, 70а) | JD11: Сети теплоснабжения от ТК-1431 | JE11: Сети теплоснабжения от ТК-1521 (ввод на ЦТП ул. 30 лет Победы, 80а) | JF11: Сети теплоснабжения от ЦТП ул. 30 лет Победы,80а | JG11: Сети теплоснабжения от ТК-1304/1 | JH11: Сеть теплоснабжения от ТК-1103а (ввод на ЦТП ул. Советская, 2а) | JI11: Сеть теплоснабжения от ЦТП ул.Холмогорова 45а | JJ11: Сети теплоснабжения от ТК- Воткинское шоссе, 13 км | JK11: Сети теплоснабжения от ЦТП ул.Советская 2а | JL11: Сети теплоснабжения от ЦТП ул. Ленина, 158а | JM11: Сети теплоснабжения от ЦТП ул. Парковая,5 | JN11: Сети теплоснабжения от ЦТП ул. Воровского, 129 | JO11: Сети теплоснабжения от БГВС Орджоникидзе 10а | JP11: Сети теплоснабжения от ТК-1109а | JQ11: Сети теплоснабжения от ТК-1118/1 | JR11: Сети теплоснабжения от ТК-1705/7 (ввод на ИТП ул. Вадима Сивкова, 103а) | JS11: Сети теплоснабжения от ЦТП Воткинское шоссе, 136б | JT11: Сети теплоснабжения от ЦТП Воткинское шоссе 46а | JU11: Сети теплоснабжения от ТК 2135а | JV11: Сети теплоснабжения от ТК-1118/2 | JW11: Сети теплоснабжения от ТК-1216 | JX11: Сети теплоснабжения от ТК-1317 | JY11: Сети теплоснабжения от ТК-2211 | JZ11: Сети теплоснабжения от ТК-2368 | KA11: Сети теплоснабжения от ЦТП ул. Девятого Января, 185аТ | KB11: Сети теплоснабжения от ТК-1609/1 | KC11: Техническое перевооружение. Сети теплоснабжения ЦТП ул. Клубная, 21 | KD11: Техническое перевооружение. Сети теплоснабжения от ЦТП ул. 9 Января, 255а. | KE11: Техническое перевооружение. Сети теплоснабженеия от ТК-1427/3 | KF11: Техническое перевооружение. Сети теплоснабжения от ТК - 2514 (ввод на ЦТП ул. Карла Маркса, 314а) | KG11: Техническое перевооружение. Сети теплоснабжения от ТК-1203. | KH11: Техническое перевооружение. Сети теплоснабжения от ТК-1203. | KI11: Техническое перевооружение. Сеть теплоснабжения от ТК-1109/3 (ввод на ЦТП ул. Советская, 15Т). | KJ11: Техническое перевооружение. Сети теплоснабжения от ТК-1215/1 (ввод на ЦТП ул. Коммунаров, 239а). | KK11: Техническое перевооружение. Сеть теплоснабжения от ЦТП Металлистов 52. | KL11: Техническое перевооружение. Сеть теплоснабжения от ЦТП ул.Пушкинская, 373б. | KM11: Техническое перевооружение. Сети теплоснабжения от ЦТП ул. Пушкинская 245б. | KN11: Техническое перевооружение. Сети теплоснабжения от ТК-1134/6 (ввод на ЦТП ул. Советская, 37). | KO11: Техническое перевооружение. Сети теплоснабжения от ТК-1134. | KP11: Техническое перевооружение. Сеть теплоснабжения от ТК-1109/3 (ввод на ЦТП ул. Советская, 15Т). | KQ11: Техническое перевооружение.Сети теплоснабжения от ТК-1827. | KR11: Техническое перевооружение. Сеть теплоснабжения от ТК-1109/3 (ввод на ЦТП ул. Советская, 15Т). инв.№ 608979005, 608979022, 608979023. | KS11: Техническое перевооружение. Сети теплоснабжения от ТК-1221. | KT11: Техническое перевооружение.Сети теплоснабжения от ТК-1331 (ввод на ЦТП ул. Льва Толстого, 26а, ЦТП ул. Тимирязева, 19а, ЦТП ул. Тимирязева 3а). | KU11: Техническое перевооружение. Сеть теплоснабжения от ТК-1109/3 (ввод на ЦТП ул. Советская, 15Т). | KV11: Техническое перевооружение. Сети теплоснабжения от ЦТП ул. Буммашевская, 60а. | KW11: Техническое перевооружение. Сети теплоснабжения от ТК-1422/1г. | KX11: Техническое перевооружение. Сети теплоснабжения от ТК-1719 (ввод на ЦТП ул. Воровского, 129). | KY11: Техническое перевооружение. Сети теплоснабжения от ТК-1. | KZ11: Техническое перевооружение. Сети теплоснабженеия от ТК-1427/3. | LA11: Сети теплоснабжения от ТК-2501 (ввод на ЦТП пер. Северный, 71) | LB11: Сети теплоснабжения от ТК-2729 (ввод на ЦТП ул. Барышникова, 35а) | LC11: Сети теплоснабжения от ЦТП Сабурова 47а | LD11: Сети теплоснабжения от ЦТП ул. Ворошилова, 72а | LE11: Сети теплоснабжения от котельной ул. Механизаторская, 22 | LF11: Сети теплоснабжения от ИТП ул. Ломоносова, 9б | LG11: Сети теплоснабжения от ЦТП ул. Воткинское шоссе, 17а | LH11: Сети теплоснабженеия от ТК-1427/3 | LI11: Сети теплоснабжения от ТК - 2514 (ввод на ЦТП ул. Карла Маркса, 314а) | LJ11: Сети теплоснабжения от ТК-1215/1 (ввод на ЦТП ул. Коммунаров, 239а) | LK11: Сеть теплоснабжения от ЦТП ул. Металлистов 31 | LL11: Сети теплоснабжения от ТК-1829 (ул.Орджоникидзе, Ключевой поселок, Карлутская набережная, пер.Прасовский) | LM11: Сети теплоснабжения от ЦТП ул. Удмуртская, 197Т | LN11: Сети теплоснабжения от ЦТП ул. Воровского, 160а | LO11: Сети теплоснабжения от ТК-1718 (ввод на ЦТП ул. Удмуртская, 208б) | LP11: Сети теплоснабжения от ТК-1827 | LQ11: Сети теплоснабжения от ТК-1705 | LR11: Сети теплоснабжения от ТК-1828/1 ( ввод на ИТП ул. Орджоникидзе, 35б ) | LS11: Сети теплоснабжения от ЦТП ул. Холмогорова, 90а | LT11: Сети теплоснабжения от ЦТП Воткинское шоссе 46а | LU11: Сети теплоснабжения от ТК -2401 | LV11: Сети теплоснабжения от ТК-1714/1 | LW11: Сети теплоснабжения от ТК-1714/6 | LX11: Техническое перевооружение. ССети теплоснабжения от ЦТП гор.Машиностроителей,98ц | LY11: Техническое перевооружение. Сети теплоснабжения от ЦТП ул. Баранова, 64 | LZ11: Техническое перевооружение.Сети теплоснабжения от ТК-1511 (ввод на ЦТП ул. Металлистов 52) | MA11: Техническое перевооружение.Сооружение инв.№ 608817020, 608817034, 608817036 | MB11: Техническое перевооружение. Сети теплоснабжения от ТК-1418/2 | MC11: Техническое перевооружение. Сети теплоснабжения Сети теплоснабжения от ЦТП Восточная 42 | MD11: 'Техническое перевооружение. Сети теплоснабжения от ТК-1106 | ME11: Техническое перевооружение. Сети теплоснабжения от ТК-1714/4 | MF11: Техническое перевооружение. Сети теплоснабжения от ЦТП ул. Дзержинского, 55 | MG11: Техническое перевооружение. Сети теплоснабжения от ЦТП Воткинское шоссе, 9а | MH11: Техническое перевооружение. Сети теплоснабжения от ТК-1226 | MI11: Техническое перевооружение. Сети теплоснабжения от ТК-1317 | MJ11: Техническое перевооружение. Сети теплоснабжения ТК-1328 (ввод на ЦТП ул. Редукторная,8а). | MK11: Техническое перевооружение. Сети теплоснабжения от ТК-2214 | ML11: Техническое перевооружение. Сети теплоснабжения от ЦТП Восточная 42 | MM11: Техническое перевооружение.Сети теплоснабжения от ЦТП гор.Машиностроителей,98ц | MN11: Техническое перевооружение. Сети теплоснабжения от ТК-1106 | MO11: Сети теплоснабжения от ТК-50 (ввод на ЦТП ул. Ворошилова, 36а) | MP11: Сети теплоснабжения от ЦТП Сабурова 47а | MQ11: Сети теплоснабжения от ЦТП Автозаводская 24а | MR11: Сети теплоснабжения от ТК-1225 | MS11: Сети теплоснабжения от ТК-1511 (ввод на ЦТП ул. Металлистов 52) | MT11: Сети теплоснабжения ТК-1521 | MU11: Сети теплоснабжения от ТК-1208 | MV11: Сети теплоснабжения от ТК-2909 (ввод на ЦТП ул. Ленина, 158а) | MW11: Сети теплоснабжения от ЦТП ул. Ленина, 176а | MX11: Сети теплоснабжения от ЦТП Восточная 42 | MY11: Сети теплоснабжения от ЦТП ул. Восточная, 72а | MZ11: Сети теплоснабжения от ЦТП ул. Воровского, 129 | NA11: Сети теплоснабжения от ТК-1100 | NB11: Сети теплоснабжения от ТК-1106 | NC11: Сети теплоснабжения от ТК-1106 | ND11: Сети теплоснабжения от ТК-1714/4 | NE11: Сети теплоснабжения от ЦТП ул. Дзержинского, 55 | NF11: Сети теплоснабжения от ЦТП Воткинское шоссе, 9а | NG11: Сети теплоснабжения от ТК-1317 | NH11: Сети теплоснабжения от ТК-1605 | NI11: Сети теплоснабжения от ТК-2214 | NJ11: Сети теплоснабжения от ТК -2401 | NK11: Сети теплоснабжения от ЦТП ул. Красноармейская, 134а | NL11: 2022 | NM11: Техническое перевооружение. Сети теплоснабжения от ЦТП Саратовская 36а | NN11: Техническое перевооружение. Сети теплоснабжения от ТК-55 инв.№ 608697001 | NO11: Техническое перевооружение. Сети теплоснабжения от ЦТП ул.Парковая, 9б | NP11: Техническое перевооружение. Сети теплоснабжения от ЦТП ул. 9 Января, 255а | NQ11: Техническое перевооружение. Сети теплоснабжения от ЦТП ул.Халтурина, 2 | NR11: Техническое перевооружение. Сети теплоснабжения от котельной ул. К. Маркса, 1в | NS11: Техническое перевооружение. Сети теплоснабжения от ЦТП ул. Барышникова, 35а | NT11: Техническое перевооружение. Сети теплоснабжения от ТК-1331 (ввод на ЦТП ул. Льва Толстого, 26а, ЦТП ул. Тимирязева, 19а, ЦТП ул. Тимирязева 3а) | NU11: Техническое перевооружение. Сети теплоснабжения от ЦТП ул. Барышникова, 35а | NV11: Техническое перевооружение. Сети теплоснабжения от ЦТП Саратовская 36а | NW11: Техническое перевооружение. Сети теплоснабжения от ЦТП ул.Парковая, 9б | NX11: Сети теплоснабжения от ТК-2730 (ввод на ЦТП ул. Сабурова, 37а) | NY11: Сети теплоснабжения от ТК-2929 (ввод на ЦТП ул. 40 лет Победы, 78а) | NZ11: Сети теплоснабжения от ЦТП ул. Ворошилова, 25а | OA11: Сети теплоснабжения от ЦТП ул. Барышникова, 77а | OB11: Сети теплоснабжения от ЦТП ул. Молодежная, 34б | OC11: Сети теплоснабжения от ЦТП ул. Молодежная, 3а | OD11: Сети теплоснабжения от ЦТП ул. Труда, 1 | OE11: Сети теплоснабжения от ЦТП ул. Союзная,5б | OF11: Сети теплоснабжения от ЦТП ул.Парковая, 9б | OG11: Сети теплоснабжения от ТК-1609/1 (ввод на ИТП ул.Зенитная, 9б) | OH11: Сети теплоснабжения от ЦТП пл. 50 лет Октября, 15а | OI11: Сети теплоснабжения от ТК-2513а | OJ11: Сети теплоснабжения от ЦТП ул. 10 лет Октября, 7а | OK11: Сети теплоснабжения от ЦТП ул. Школьная, 64а | OL11: Сеть теплоснабжения от ЦТП ул.10 лет Октября 21а | OM11: Сети теплоснабжения ТК-2308 | ON11: Сети теплоснабжения от ЦТП ул. Коммунаров, 239а | OO11: Сети теплоснабжения от ЦТП ул.Удмуртская, 208б | OP11: Сети теплоснабжения от ТК-1125 | OQ11: Сети теплоснабжения от ТК-1126 | OR11: Сети теплоснабжения от ТК-1226 | OS11: 2023 | OT11: Техническое перевооружение.Сети теплоснабжения от ЦТП гор. Машиностроителей, 98ц (ввод на ИТП гор. Машиностроителей, 99а) | OU11: Техническое перевооружение. Сети теплоснабжения от ТК-2308а | OV11: Техническое перевооружение. Сети теплоснабжения от ЦТП ул. Автозаводская, 38а | OW11: Техническое перевооружение. Сети теплоснабжения от котельной ул. Автономная, 87. | OX11: Техническое перевооружение. Сети теплоснабжения от ТК-1424 (ввод на ИТП ул. Кирова, 17) | OY11: Техническое перевооружение.Сети теплоснабжения от ТК-2513 | OZ11: Техническое перевооружение.Сети теплоснабжения от ТП-1 (ввод на ЦТП ул. Школьная, 64а, ЦТП ул. Фруктовая, 35а, ЦТП ул. 50 лет ВЛКСМ, 36а) | PA11: Техническое перевооружение. Сети теплоснабжения от ЦТП ул.Карла Маркса,314а | PB11: Техническое перевооружение. Сети теплоснабжения от ТК-1302 | PC11: Техническое перевооружение. Сети теплоснабжения от ТК-1307 | PD11: Техническое перевооружение. Сети теплоснабжения от ТК-1304/1 | PE11: Техническое перевооружение. Сети теплоснабжения от ТК-1308 | PF11: Техническое перевооружение. Сети теплоснабжения от ЦТП пер.Северный 47Т | PG11: Техническое перевооружение. Сети теплоснабжения от ЦТП ул. Воровского, 106а | PH11: Техническое перевооружение. Сети теплоснабжения от ТК-1109/1 | PI11: Техническое перевооружение. Сети теплоснабжения от ТК-1828/1 ( ввод на ИТП ул. Орджоникидзе, 35б ) | PJ11: Техническое перевооружение. Сети теплоснабжения от ТК-1118/2 инв.№ 608988009 | PK11: Техническое перевооружение. Сети теплоснабжения от ЦТП ул. Буммашевская, 36а | PL11: Техническое перевооружение. Сети теплоснабжения от ЦТП ул. Девятого Января, 185аТ | PM11: Сети теплоснабжения от ЦТП ул. Автозаводская, 11а | PN11: Сети теплоснабжения от ЦТП ул. Союзная, 77а | PO11: Сети теплоснабжения от ЦТП ул.Ворошилова, 36а | PP11: Сети теплоснабжения от ТК-1306/3 | PQ11: Сети теплоснабжения от ЦТП ул. Дзержинского, 39а | PR11: Сети теплоснабжения от ЦТП Воткинское шоссе, 132б | PS11: Сети теплоснабжения от ТК-1431 | PT11: Сети теплоснабжения от ТК-1302 | PU11: Сети теплоснабжения от ЦТП ул. Воровского, 165а | PV11: Сети теплоснабжения от ЦТП ул. Карла Либкнехта, 26а | PW11: Сети теплоснабжения от ЦТП ул. Промышленная, 52а | PX11: Сети теплоснабжения от ЦТП ул. Ракетная, 30а | PY11: Сети теплоснабжения от ЦТП ул. Воровского, 106а | PZ11: Сети теплоснабжения от ТК-1109/1 | QA11: Сети теплоснабжения от ТК-1109/1 | QB11: Сети теплоснабжения от ТК-1828/1 ( ввод на ИТП ул. Орджоникидзе, 35б ) | QC11: Сети теплоснабжения от ЦТП ул. Холмогорова, 90а | QD11: Сети теплоснабжения от ТК-1118/2 | QE11: Сети теплоснабжения от ТК-1223 | QF11: Сети теплоснабжения от ТК-1 к зданиям ул. Шевченко, 25, ул. Островского 44 | QG11: 2024 | QH11: Техническое перевооружение. Сети теплоснабжения от котельной ул.Строителей, 66а | QI11: Техническое перевооружение. Сети теплоснабжения от ЦТП ул. Заречное шоссе, 59а | QJ11: Техническое перевооружение. Сети теплоснабжения от ЦТП ул.Баранова 71а | QK11: Техническое перевооружение. Сети теплоснабжения от ЦТП гор. Машиностроителей, 114 | QL11: Техническое перевооружение. Сети теплоснабжения от котельной ул. Июльская, 38 | QM11: Техническое перевооружение. Сети теплоснабжения от ЦТП ул. Льва Толстого, 26а | QN11: Техническое перевооружение. Сети теплоснабжения от ТК-1602. | QO11: Техническое перевооружение. Сети теплоснабжения от ТК-2504 (ввод на ЦТП ул. Майская 29а) | QP11: Техническое перевооружение. Сети теплоснабжения от ТП-1 (ввод на ЦТП ул. Школьная, 64а, ЦТП ул. Фруктовая, 35а, ЦТП ул. 50 лет ВЛКСМ, 36а) | QQ11: Техническое перевооружение. Сети теплоснабжения от ТК-1422/4 | QR11: Техническое перевооружение. Сети теплоснабжения от ТК-1304/2 | QS11: Техническое перевооружение. Сети теплоснабжения от ТК-1318 | QT11: Техническое перевооружение. Сети теплоснабжения от ЦТП ул. Металлистов, 34Т | QU11: Техническое перевооружение. Сеть теплоснабжения от ЦТП ул.Холмогорова 45а | QV11: Техническое перевооружение.Сети теплоснабжения от ЦТП ул. Родниковая, 66а | QW11: Техническое перевооружение. Сети теплоснабжения от ЦТП ул. Восточная, 72а | QX11: Техническое перевооружение. Сети теплоснабжения от ЦТП Воткинское шоссе, 70а | QY11: Техническое перевооружение. Сети теплоснабжения от ТК-1331 (ввод на ЦТП ул. Льва Толстого, 26а, ЦТП ул. Тимирязева, 19а, ЦТП ул. Тимирязева 3а) | QZ11: Техническое перевооружение. Сети теплоснабжения от ТК-1617 | RA11: Техническое перевооружение. Сети теплоснабжения от ТК-1109/1 | RB11: Техническое перевооружение. Сети теплоснабжения от ЦТП ул.Баранова 71а | RC11: Техническое перевооружение. Сети теплоснабжения от котельной ул.Строителей, 66а инв.№ 608663338 | RD11: Техническое перевооружение. Сети теплоснабжения от ЦТП ул. Металлистов, 34Т | RE11: Техническое перевооружение. Сети теплоснабжения от ТК-1422/4 | RF11: Техническое перевооружение. Сети теплоснабжения от котельной ул.Строителей, 66а | RG11: Сети теплоснабжения от ЦТП ул. Барышникова, 35а | RH11: Сети теплоснабжения от ЦТП ул. Труда, 2а | RI11: Сети теплоснабжения от ЦТП ул.Молодежная 86а | RJ11: Сети теплоснабжения от ЦТП Союзная 147а | RK11: Сети теплоснабжения от ТК-1224 | RL11: Сети теплоснабжения от ТК-2229 | RM11: Сети теплоснабжения от ЦТП ул. Тельмана, 12Р | RN11: Сети теплоснабжения от ЦТП ул. Авангардная, 4В | RO11: Сети теплоснабжения от ТК-1602 | RP11: Сети теплоснабжения от ЦТП пер.Северный 47Т | RQ11: Сети теплоснабжения от ЦТП ул. Удмуртская, 145а | RR11: Сети теплоснабжения от ЦТП ул. Советская, 37 | RS11: Сети теплоснабжения от ТК-1728 (ввод на ЦТП ул. Промышленная, 52а) | RT11: 2025 | RU11: Техническое перевооружение.Сети теплоснабжения от ЦТП ул. Заречное шоссе, 59а | RV11: Техническое перевооружение.Сети теплоснабжения от ТК-2134 | RW11: Техническое перевооружение. Сети теплоснабжения от ЦТП ул. Тимирязева, 3а | RX11: Техническое перевооружение. Сети теплоснабжения от ЦТП ул.Карла Маркса,314а | RY11: Техническое перевооружение. Сети теплоснабжения от ЦТП ул. Степана Разина, 50а | RZ11: Техническое перевооружение. Сети теплоснабжения от ЦТП ул. Буммашевская, 66аТ | SA11: Техническое перевооружение. Сети теплоснабжения от ТК-2210 | SB11: Техническое перевооружение. Сети теплоснабжения от ТК-1331 (ввод на ЦТП ул. Льва Толстого, 26а, ЦТП ул. Тимирязева, 19а, ЦТП ул. Тимирязева 3а) | SC11: Сети теплоснабжения от ТК-2309 (ввод на ЦТП ул. Ворошилова, 72а) | SD11: Сети теплоснабжения от ТК-2309 | SE11: Сети теплоснабжения от ЦТП ул. Ворошилова, 79а/1 | SF11: Сети теплоснабжения от ЦТП ул. Союзная, 77а | SG11: Сети теплоснабжения от ЦТП ул. Союзная, 37а | SH11: Сети теплоснабжения от ЦТП Союзная 147а | SI11: Сети теплоснабжения от ЦТП ул. Редукторная, 8а | SJ11: Сети теплоснабжения от ТК-1422/4 | SK11: Сети теплоснабжения от ЦТП ул. 50 лет Пионерии, 26а | SL11: Сети теплоснабжения от ТК-1121 | SM11: Сети теплоснабжения от ТК-1122 | SN11: Сети теплоснабжения от ТК-1123 | SO11: Сети теплоснабжения от ТК-1124 | SP11: Сети теплоснабжения от ЦТП ул. Буммашевская, 66аТ | SQ11: Замена теплообменного оборудования, установка насосного оборудования с ЧП г. Сарапул ул. Озерная 102а | SR11: Техническое перевооружение. Оборудование ЦТП-Сельхозинститута | SS11: Техническое перевооружение. Оборудование ЦТП по ул. 40 лет Победы 78а (А-1) | ST11: Печь муфельная SNOL | SU11: теплообменник пластинч. ЭТ-062С-16-127 | SV11: Техническое перевооружение. Сети теплоснабжения от ТК-12 (ввод на ЦТП по ул. Баранова 40) | SW11: Техническое перевооружение. Сети теплоснабжения от ЦТП по ул. Шишкина,1 | SX11: Техническое перевооружение. Сети теплоснабжения от тк-2126 | SY11: котельная школа №12 азина 325а | SZ11: Котельная Костина мельница, ул. Аграрная 28 | TA11: Котельная дер. Люлли, ул. Люлинская,62 | TB11: котельная Совхоз Медведево.мкр. Медведево 1 | TC11: Техническое перевооружение замена узлов газа в кот. Школы №38, ул. Татарская 92а | TD11: Техническое перевооружение. Оборудование ИТП 40 лет победы 50а | TE11: Техническое перевооружение. Оборудование ЦТП Тельмана | TF11: Техническое перевооружение. Оборудование ЦТП пер. Северный 71а (16 мкр. Север) | TG11: Техническое перевооружение. Оборудование ЦТП ул. Советская 15 (Рубин) | TH11: молоток отбойный макита НМ 1304в | TI11: Установка комплексной очистки BUCHA | TJ11: Виброплита ТСС | TK11: Разгонщик фланцев РФА-15 | TL11: швонарезчик | TM11: Насос DPVF 32-40 | TN11: Трассоискатель сталкер 15-14 | TO11: Техническое перевооружение Котельная д/с 107 | TP11: Техническое перевооружение. Котельная Гагарина. 27а | TQ11: Техническое перевооружение. Котельная Гагарина. 24а | TR11: Техническое перевооружение. Котельная школа №38 | TS11: Техническое перевооружение. Котельная короткая 93а | TT11: Устройство циркуляционного трубопровода ГВС г. Сарапул ул. Молодежная 5б | TU11: Техническое перевооружение. Оборудование здания БГВС 10 лет Октября 26в | TV11: Техническое перевооружение. Котельная Июльская 38 | TW11: Техническое перевооружение. Котельная ГПО ул Сельская 1б | TX11: Техническое перевооружение. Котельная ул Степная 81 школа №10 | TY11: Техническое перевооружение надземных квартальных тепловых сетей с модернизацией тепловой изоляции
E12: 2 | F12: Дата утверждения инвестиционной программы | G12: x | H12: 15.12.2016 | I12: x | J12: x | K12: x | L12: x | M12: x | N12: x | O12: x | P12: x | Q12: x | R12: x | S12: x | T12: x | U12: x | V12: x | W12: x | X12: x | Y12: x | Z12: x | AA12: x | AB12: x | AC12: x | AD12: x | AE12: x | AF12: x | AG12: x | AH12: x | AI12: x | AJ12: x | AK12: x | AL12: x | AM12: x | AN12: x | AO12: x | AP12: x | AQ12: x | AR12: x | AS12: x | AT12: x | AU12: x | AV12: x | AW12: x | AX12: x | AY12: x | AZ12: x | BA12: x | BB12: x | BC12: x | BD12: x | BE12: x | BF12: x | BG12: x | BH12: x | BI12: x | BJ12: x | BK12: x | BL12: x | BM12: x | BN12: x | BO12: x | BP12: x | BQ12: x | BR12: x | BS12: x | BT12: x | BU12: x | BV12: x | BW12: x | BX12: x | BY12: x | BZ12: x | CA12: x | CB12: x | CC12: x | CD12: x | CE12: x | CF12: x | CG12: x | CH12: x | CI12: x | CJ12: x | CK12: x | CL12: x | CM12: x | CN12: x | CO12: x | CP12: x | CQ12: x | CR12: x | CS12: x | CT12: x | CU12: x | CV12: x | CW12: x | CX12: x | CY12: x | CZ12: x | DA12: x | DB12: x | DC12: x | DD12: x | DE12: x | DF12: x | DG12: x | DH12: x | DI12: x | DJ12: x | DK12: x | DL12: x | DM12: x | DN12: x | DO12: x | DP12: x | DQ12: x | DR12: x | DS12: x | DT12: x | DU12: x | DV12: x | DW12: x | DX12: x | DY12: x | DZ12: x | EA12: x | EB12: x | EC12: x | ED12: x | EE12: x | EF12: x | EG12: x | EH12: x | EI12: x | EJ12: x | EK12: x | EL12: x | EM12: x | EN12: x | EO12: x | EP12: x | EQ12: x | ER12: x | ES12: x | ET12: x | EU12: x | EV12: x | EW12: x | EX12: x | EY12: x | EZ12: x | FA12: x | FB12: x | FC12: x | FD12: x | FE12: x | FF12: x | FG12: x | FH12: x | FI12: x | FJ12: x | FK12: x | FL12: x | FM12: x | FN12: x | FO12: x | FP12: x | FQ12: x | FR12: x | FS12: x | FT12: x | FU12: x | FV12: x | FW12: x | FX12: x | FY12: x | FZ12: x | GA12: x | GB12: x | GC12: x | GD12: x | GE12: x | GF12: x | GG12: x | GH12: x | GI12: x | GJ12: x | GK12: x | GL12: x | GM12: x | GN12: x | GO12: x | GP12: x | GQ12: x | GR12: x | GS12: x | GT12: x | GU12: x | GV12: x | GW12: x | GX12: x | GY12: x | GZ12: x | HA12: x | HB12: x | HC12: x | HD12: x | HE12: x | HF12: x | HG12: x | HH12: x | HI12: x | HJ12: x | HK12: x | HL12: x | HM12: x | HN12: x | HO12: x | HP12: x | HQ12: x | HR12: x | HS12: x | HT12: x | HU12: x | HV12: x | HW12: x | HX12: x | HY12: x | HZ12: x | IA12: x | IB12: x | IC12: x | ID12: x | IE12: x | IF12: x | IG12: x | IH12: x | II12: x | IJ12: x | IK12: x | IL12: x | IM12: x | IN12: x | IO12: x | IP12: x | IQ12: x | IR12: x | IS12: x | IT12: x | IU12: x | IV12: x | IW12: x | IX12: x | IY12: x | IZ12: x | JA12: x | JB12: x | JC12: x | JD12: x | JE12: x | JF12: x | JG12: x | JH12: x | JI12: x | JJ12: x | JK12: x | JL12: x | JM12: x | JN12: x | JO12: x | JP12: x | JQ12: x | JR12: x | JS12: x | JT12: x | JU12: x | JV12: x | JW12: x | JX12: x | JY12: x | JZ12: x | KA12: x | KB12: x | KC12: x | KD12: x | KE12: x | KF12: x | KG12: x | KH12: x | KI12: x | KJ12: x | KK12: x | KL12: x | KM12: x | KN12: x | KO12: x | KP12: x | KQ12: x | KR12: x | KS12: x | KT12: x | KU12: x | KV12: x | KW12: x | KX12: x | KY12: x | KZ12: x | LA12: x | LB12: x | LC12: x | LD12: x | LE12: x | LF12: x | LG12: x | LH12: x | LI12: x | LJ12: x | LK12: x | LL12: x | LM12: x | LN12: x | LO12: x | LP12: x | LQ12: x | LR12: x | LS12: x | LT12: x | LU12: x | LV12: x | LW12: x | LX12: x | LY12: x | LZ12: x | MA12: x | MB12: x | MC12: x | MD12: x | ME12: x | MF12: x | MG12: x | MH12: x | MI12: x | MJ12: x | MK12: x | ML12: x | MM12: x | MN12: x | MO12: x | MP12: x | MQ12: x | MR12: x | MS12: x | MT12: x | MU12: x | MV12: x | MW12: x | MX12: x | MY12: x | MZ12: x | NA12: x | NB12: x | NC12: x | ND12: x | NE12: x | NF12: x | NG12: x | NH12: x | NI12: x | NJ12: x | NK12: x | NL12: x | NM12: x | NN12: x | NO12: x | NP12: x | NQ12: x | NR12: x | NS12: x | NT12: x | NU12: x | NV12: x | NW12: x | NX12: x | NY12: x | NZ12: x | OA12: x | OB12: x | OC12: x | OD12: x | OE12: x | OF12: x | OG12: x | OH12: x | OI12: x | OJ12: x | OK12: x | OL12: x | OM12: x | ON12: x | OO12: x | OP12: x | OQ12: x | OR12: x | OS12: x | OT12: x | OU12: x | OV12: x | OW12: x | OX12: x | OY12: x | OZ12: x | PA12: x | PB12: x | PC12: x | PD12: x | PE12: x | PF12: x | PG12: x | PH12: x | PI12: x | PJ12: x | PK12: x | PL12: x | PM12: x | PN12: x | PO12: x | PP12: x | PQ12: x | PR12: x | PS12: x | PT12: x | PU12: x | PV12: x | PW12: x | PX12: x | PY12: x | PZ12: x | QA12: x | QB12: x | QC12: x | QD12: x | QE12: x | QF12: x | QG12: x | QH12: x | QI12: x | QJ12: x | QK12: x | QL12: x | QM12: x | QN12: x | QO12: x | QP12: x | QQ12: x | QR12: x | QS12: x | QT12: x | QU12: x | QV12: x | QW12: x | QX12: x | QY12: x | QZ12: x | RA12: x | RB12: x | RC12: x | RD12: x | RE12: x | RF12: x | RG12: x | RH12: x | RI12: x | RJ12: x | RK12: x | RL12: x | RM12: x | RN12: x | RO12: x | RP12: x | RQ12: x | RR12: x | RS12: x | RT12: x | RU12: x | RV12: x | RW12: x | RX12: x | RY12: x | RZ12: x | SA12: x | SB12: x | SC12: x | SD12: x | SE12: x | SF12: x | SG12: x | SH12: x | SI12: x | SJ12: x | SK12: x | SL12: x | SM12: x | SN12: x | SO12: x | SP12: x | SQ12: x | SR12: x | SS12: x | ST12: x | SU12: x | SV12: x | SW12: x | SX12: x | SY12: x | SZ12: x | TA12: x | TB12: x | TC12: x | TD12: x | TE12: x | TF12: x | TG12: x | TH12: x | TI12: x | TJ12: x | TK12: x | TL12: x | TM12: x | TN12: x | TO12: x | TP12: x | TQ12: x | TR12: x | TS12: x | TT12: x | TU12: x | TV12: x | TW12: x | TX12: x | TY12: x
E13: 3 | F13: Цели инвестиционной программы | G13: x | H13: автоматизация (с уменьшением штата); уменьшение удельных затрат (повышение КПД); уменьшение издержек на производство; снижение аварийности; прочее | I13: x | J13: x | K13: x | L13: x | M13: x | N13: x | O13: x | P13: x | Q13: x | R13: x | S13: x | T13: x | U13: x | V13: x | W13: x | X13: x | Y13: x | Z13: x | AA13: x | AB13: x | AC13: x | AD13: x | AE13: x | AF13: x | AG13: x | AH13: x | AI13: x | AJ13: x | AK13: x | AL13: x | AM13: x | AN13: x | AO13: x | AP13: x | AQ13: x | AR13: x | AS13: x | AT13: x | AU13: x | AV13: x | AW13: x | AX13: x | AY13: x | AZ13: x | BA13: x | BB13: x | BC13: x | BD13: x | BE13: x | BF13: x | BG13: x | BH13: x | BI13: x | BJ13: x | BK13: x | BL13: x | BM13: x | BN13: x | BO13: x | BP13: x | BQ13: x | BR13: x | BS13: x | BT13: x | BU13: x | BV13: x | BW13: x | BX13: x | BY13: x | BZ13: x | CA13: x | CB13: x | CC13: x | CD13: x | CE13: x | CF13: x | CG13: x | CH13: x | CI13: x | CJ13: x | CK13: x | CL13: x | CM13: x | CN13: x | CO13: x | CP13: x | CQ13: x | CR13: x | CS13: x | CT13: x | CU13: x | CV13: x | CW13: x | CX13: x | CY13: x | CZ13: x | DA13: x | DB13: x | DC13: x | DD13: x | DE13: x | DF13: x | DG13: x | DH13: x | DI13: x | DJ13: x | DK13: x | DL13: x | DM13: x | DN13: x | DO13: x | DP13: x | DQ13: x | DR13: x | DS13: x | DT13: x | DU13: x | DV13: x | DW13: x | DX13: x | DY13: x | DZ13: x | EA13: x | EB13: x | EC13: x | ED13: x | EE13: x | EF13: x | EG13: x | EH13: x | EI13: x | EJ13: x | EK13: x | EL13: x | EM13: x | EN13: x | EO13: x | EP13: x | EQ13: x | ER13: x | ES13: x | ET13: x | EU13: x | EV13: x | EW13: x | EX13: x | EY13: x | EZ13: x | FA13: x | FB13: x | FC13: x | FD13: x | FE13: x | FF13: x | FG13: x | FH13: x | FI13: x | FJ13: x | FK13: x | FL13: x | FM13: x | FN13: x | FO13: x | FP13: x | FQ13: x | FR13: x | FS13: x | FT13: x | FU13: x | FV13: x | FW13: x | FX13: x | FY13: x | FZ13: x | GA13: x | GB13: x | GC13: x | GD13: x | GE13: x | GF13: x | GG13: x | GH13: x | GI13: x | GJ13: x | GK13: x | GL13: x | GM13: x | GN13: x | GO13: x | GP13: x | GQ13: x | GR13: x | GS13: x | GT13: x | GU13: x | GV13: x | GW13: x | GX13: x | GY13: x | GZ13: x | HA13: x | HB13: x | HC13: x | HD13: x | HE13: x | HF13: x | HG13: x | HH13: x | HI13: x | HJ13: x | HK13: x | HL13: x | HM13: x | HN13: x | HO13: x | HP13: x | HQ13: x | HR13: x | HS13: x | HT13: x | HU13: x | HV13: x | HW13: x | HX13: x | HY13: x | HZ13: x | IA13: x | IB13: x | IC13: x | ID13: x | IE13: x | IF13: x | IG13: x | IH13: x | II13: x | IJ13: x | IK13: x | IL13: x | IM13: x | IN13: x | IO13: x | IP13: x | IQ13: x | IR13: x | IS13: x | IT13: x | IU13: x | IV13: x | IW13: x | IX13: x | IY13: x | IZ13: x | JA13: x | JB13: x | JC13: x | JD13: x | JE13: x | JF13: x | JG13: x | JH13: x | JI13: x | JJ13: x | JK13: x | JL13: x | JM13: x | JN13: x | JO13: x | JP13: x | JQ13: x | JR13: x | JS13: x | JT13: x | JU13: x | JV13: x | JW13: x | JX13: x | JY13: x | JZ13: x | KA13: x | KB13: x | KC13: x | KD13: x | KE13: x | KF13: x | KG13: x | KH13: x | KI13: x | KJ13: x | KK13: x | KL13: x | KM13: x | KN13: x | KO13: x | KP13: x | KQ13: x | KR13: x | KS13: x | KT13: x | KU13: x | KV13: x | KW13: x | KX13: x | KY13: x | KZ13: x | LA13: x | LB13: x | LC13: x | LD13: x | LE13: x | LF13: x | LG13: x | LH13: x | LI13: x | LJ13: x | LK13: x | LL13: x | LM13: x | LN13: x | LO13: x | LP13: x | LQ13: x | LR13: x | LS13: x | LT13: x | LU13: x | LV13: x | LW13: x | LX13: x | LY13: x | LZ13: x | MA13: x | MB13: x | MC13: x | MD13: x | ME13: x | MF13: x | MG13: x | MH13: x | MI13: x | MJ13: x | MK13: x | ML13: x | MM13: x | MN13: x | MO13: x | MP13: x | MQ13: x | MR13: x | MS13: x | MT13: x | MU13: x | MV13: x | MW13: x | MX13: x | MY13: x | MZ13: x | NA13: x | NB13: x | NC13: x | ND13: x | NE13: x | NF13: x | NG13: x | NH13: x | NI13: x | NJ13: x | NK13: x | NL13: x | NM13: x | NN13: x | NO13: x | NP13: x | NQ13: x | NR13: x | NS13: x | NT13: x | NU13: x | NV13: x | NW13: x | NX13: x | NY13: x | NZ13: x | OA13: x | OB13: x | OC13: x | OD13: x | OE13: x | OF13: x | OG13: x | OH13: x | OI13: x | OJ13: x | OK13: x | OL13: x | OM13: x | ON13: x | OO13: x | OP13: x | OQ13: x | OR13: x | OS13: x | OT13: x | OU13: x | OV13: x | OW13: x | OX13: x | OY13: x | OZ13: x | PA13: x | PB13: x | PC13: x | PD13: x | PE13: x | PF13: x | PG13: x | PH13: x | PI13: x | PJ13: x | PK13: x | PL13: x | PM13: x | PN13: x | PO13: x | PP13: x | PQ13: x | PR13: x | PS13: x | PT13: x | PU13: x | PV13: x | PW13: x | PX13: x | PY13: x | PZ13: x | QA13: x | QB13: x | QC13: x | QD13: x | QE13: x | QF13: x | QG13: x | QH13: x | QI13: x | QJ13: x | QK13: x | QL13: x | QM13: x | QN13: x | QO13: x | QP13: x | QQ13: x | QR13: x | QS13: x | QT13: x | QU13: x | QV13: x | QW13: x | QX13: x | QY13: x | QZ13: x | RA13: x | RB13: x | RC13: x | RD13: x | RE13: x | RF13: x | RG13: x | RH13: x | RI13: x | RJ13: x | RK13: x | RL13: x | RM13: x | RN13: x | RO13: x | RP13: x | RQ13: x | RR13: x | RS13: x | RT13: x | RU13: x | RV13: x | RW13: x | RX13: x | RY13: x | RZ13: x | SA13: x | SB13: x | SC13: x | SD13: x | SE13: x | SF13: x | SG13: x | SH13: x | SI13: x | SJ13: x | SK13: x | SL13: x | SM13: x | SN13: x | SO13: x | SP13: x | SQ13: x | SR13: x | SS13: x | ST13: x | SU13: x | SV13: x | SW13: x | SX13: x | SY13: x | SZ13: x | TA13: x | TB13: x | TC13: x | TD13: x | TE13: x | TF13: x | TG13: x | TH13: x | TI13: x | TJ13: x | TK13: x | TL13: x | TM13: x | TN13: x | TO13: x | TP13: x | TQ13: x | TR13: x | TS13: x | TT13: x | TU13: x | TV13: x | TW13: x | TX13: x | TY13: x
E14: 4 | F14: Наименование органа исполнительной власти субъекта РФ, утвердившего инвестиционную программу | G14: x | H14: Министерство строительства архитектуры и жилищной политики УР , Министерство энергетики, жилищно-коммунального хозяйства и государственного регулирования тарифов УР | I14: x | J14: x | K14: x | L14: x | M14: x | N14: x | O14: x | P14: x | Q14: x | R14: x | S14: x | T14: x | U14: x | V14: x | W14: x | X14: x | Y14: x | Z14: x | AA14: x | AB14: x | AC14: x | AD14: x | AE14: x | AF14: x | AG14: x | AH14: x | AI14: x | AJ14: x | AK14: x | AL14: x | AM14: x | AN14: x | AO14: x | AP14: x | AQ14: x | AR14: x | AS14: x | AT14: x | AU14: x | AV14: x | AW14: x | AX14: x | AY14: x | AZ14: x | BA14: x | BB14: x | BC14: x | BD14: x | BE14: x | BF14: x | BG14: x | BH14: x | BI14: x | BJ14: x | BK14: x | BL14: x | BM14: x | BN14: x | BO14: x | BP14: x | BQ14: x | BR14: x | BS14: x | BT14: x | BU14: x | BV14: x | BW14: x | BX14: x | BY14: x | BZ14: x | CA14: x | CB14: x | CC14: x | CD14: x | CE14: x | CF14: x | CG14: x | CH14: x | CI14: x | CJ14: x | CK14: x | CL14: x | CM14: x | CN14: x | CO14: x | CP14: x | CQ14: x | CR14: x | CS14: x | CT14: x | CU14: x | CV14: x | CW14: x | CX14: x | CY14: x | CZ14: x | DA14: x | DB14: x | DC14: x | DD14: x | DE14: x | DF14: x | DG14: x | DH14: x | DI14: x | DJ14: x | DK14: x | DL14: x | DM14: x | DN14: x | DO14: x | DP14: x | DQ14: x | DR14: x | DS14: x | DT14: x | DU14: x | DV14: x | DW14: x | DX14: x | DY14: x | DZ14: x | EA14: x | EB14: x | EC14: x | ED14: x | EE14: x | EF14: x | EG14: x | EH14: x | EI14: x | EJ14: x | EK14: x | EL14: x | EM14: x | EN14: x | EO14: x | EP14: x | EQ14: x | ER14: x | ES14: x | ET14: x | EU14: x | EV14: x | EW14: x | EX14: x | EY14: x | EZ14: x | FA14: x | FB14: x | FC14: x | FD14: x | FE14: x | FF14: x | FG14: x | FH14: x | FI14: x | FJ14: x | FK14: x | FL14: x | FM14: x | FN14: x | FO14: x | FP14: x | FQ14: x | FR14: x | FS14: x | FT14: x | FU14: x | FV14: x | FW14: x | FX14: x | FY14: x | FZ14: x | GA14: x | GB14: x | GC14: x | GD14: x | GE14: x | GF14: x | GG14: x | GH14: x | GI14: x | GJ14: x | GK14: x | GL14: x | GM14: x | GN14: x | GO14: x | GP14: x | GQ14: x | GR14: x | GS14: x | GT14: x | GU14: x | GV14: x | GW14: x | GX14: x | GY14: x | GZ14: x | HA14: x | HB14: x | HC14: x | HD14: x | HE14: x | HF14: x | HG14: x | HH14: x | HI14: x | HJ14: x | HK14: x | HL14: x | HM14: x | HN14: x | HO14: x | HP14: x | HQ14: x | HR14: x | HS14: x | HT14: x | HU14: x | HV14: x | HW14: x | HX14: x | HY14: x | HZ14: x | IA14: x | IB14: x | IC14: x | ID14: x | IE14: x | IF14: x | IG14: x | IH14: x | II14: x | IJ14: x | IK14: x | IL14: x | IM14: x | IN14: x | IO14: x | IP14: x | IQ14: x | IR14: x | IS14: x | IT14: x | IU14: x | IV14: x | IW14: x | IX14: x | IY14: x | IZ14: x | JA14: x | JB14: x | JC14: x | JD14: x | JE14: x | JF14: x | JG14: x | JH14: x | JI14: x | JJ14: x | JK14: x | JL14: x | JM14: x | JN14: x | JO14: x | JP14: x | JQ14: x | JR14: x | JS14: x | JT14: x | JU14: x | JV14: x | JW14: x | JX14: x | JY14: x | JZ14: x | KA14: x | KB14: x | KC14: x | KD14: x | KE14: x | KF14: x | KG14: x | KH14: x | KI14: x | KJ14: x | KK14: x | KL14: x | KM14: x | KN14: x | KO14: x | KP14: x | KQ14: x | KR14: x | KS14: x | KT14: x | KU14: x | KV14: x | KW14: x | KX14: x | KY14: x | KZ14: x | LA14: x | LB14: x | LC14: x | LD14: x | LE14: x | LF14: x | LG14: x | LH14: x | LI14: x | LJ14: x | LK14: x | LL14: x | LM14: x | LN14: x | LO14: x | LP14: x | LQ14: x | LR14: x | LS14: x | LT14: x | LU14: x | LV14: x | LW14: x | LX14: x | LY14: x | LZ14: x | MA14: x | MB14: x | MC14: x | MD14: x | ME14: x | MF14: x | MG14: x | MH14: x | MI14: x | MJ14: x | MK14: x | ML14: x | MM14: x | MN14: x | MO14: x | MP14: x | MQ14: x | MR14: x | MS14: x | MT14: x | MU14: x | MV14: x | MW14: x | MX14: x | MY14: x | MZ14: x | NA14: x | NB14: x | NC14: x | ND14: x | NE14: x | NF14: x | NG14: x | NH14: x | NI14: x | NJ14: x | NK14: x | NL14: x | NM14: x | NN14: x | NO14: x | NP14: x | NQ14: x | NR14: x | NS14: x | NT14: x | NU14: x | NV14: x | NW14: x | NX14: x | NY14: x | NZ14: x | OA14: x | OB14: x | OC14: x | OD14: x | OE14: x | OF14: x | OG14: x | OH14: x | OI14: x | OJ14: x | OK14: x | OL14: x | OM14: x | ON14: x | OO14: x | OP14: x | OQ14: x | OR14: x | OS14: x | OT14: x | OU14: x | OV14: x | OW14: x | OX14: x | OY14: x | OZ14: x | PA14: x | PB14: x | PC14: x | PD14: x | PE14: x | PF14: x | PG14: x | PH14: x | PI14: x | PJ14: x | PK14: x | PL14: x | PM14: x | PN14: x | PO14: x | PP14: x | PQ14: x | PR14: x | PS14: x | PT14: x | PU14: x | PV14: x | PW14: x | PX14: x | PY14: x | PZ14: x | QA14: x | QB14: x | QC14: x | QD14: x | QE14: x | QF14: x | QG14: x | QH14: x | QI14: x | QJ14: x | QK14: x | QL14: x | QM14: x | QN14: x | QO14: x | QP14: x | QQ14: x | QR14: x | QS14: x | QT14: x | QU14: x | QV14: x | QW14: x | QX14: x | QY14: x | QZ14: x | RA14: x | RB14: x | RC14: x | RD14: x | RE14: x | RF14: x | RG14: x | RH14: x | RI14: x | RJ14: x | RK14: x | RL14: x | RM14: x | RN14: x | RO14: x | RP14: x | RQ14: x | RR14: x | RS14: x | RT14: x | RU14: x | RV14: x | RW14: x | RX14: x | RY14: x | RZ14: x | SA14: x | SB14: x | SC14: x | SD14: x | SE14: x | SF14: x | SG14: x | SH14: x | SI14: x | SJ14: x | SK14: x | SL14: x | SM14: x | SN14: x | SO14: x | SP14: x | SQ14: x | SR14: x | SS14: x | ST14: x | SU14: x | SV14: x | SW14: x | SX14: x | SY14: x | SZ14: x | TA14: x | TB14: x | TC14: x | TD14: x | TE14: x | TF14: x | TG14: x | TH14: x | TI14: x | TJ14: x | TK14: x | TL14: x | TM14: x | TN14: x | TO14: x | TP14: x | TQ14: x | TR14: x | TS14: x | TT14: x | TU14: x | TV14: x | TW14: x | TX14: x | TY14: x
E15: 5 | F15: Наименование органа местного самоуправления, согласовавшего инвестиционную программу | G15: x | H15: Администрация города Ижевска, города сарапула | I15: x | J15: x | K15: x | L15: x | M15: x | N15: x | O15: x | P15: x | Q15: x | R15: x | S15: x | T15: x | U15: x | V15: x | W15: x | X15: x | Y15: x | Z15: x | AA15: x | AB15: x | AC15: x | AD15: x | AE15: x | AF15: x | AG15: x | AH15: x | AI15: x | AJ15: x | AK15: x | AL15: x | AM15: x | AN15: x | AO15: x | AP15: x | AQ15: x | AR15: x | AS15: x | AT15: x | AU15: x | AV15: x | AW15: x | AX15: x | AY15: x | AZ15: x | BA15: x | BB15: x | BC15: x | BD15: x | BE15: x | BF15: x | BG15: x | BH15: x | BI15: x | BJ15: x | BK15: x | BL15: x | BM15: x | BN15: x | BO15: x | BP15: x | BQ15: x | BR15: x | BS15: x | BT15: x | BU15: x | BV15: x | BW15: x | BX15: x | BY15: x | BZ15: x | CA15: x | CB15: x | CC15: x | CD15: x | CE15: x | CF15: x | CG15: x | CH15: x | CI15: x | CJ15: x | CK15: x | CL15: x | CM15: x | CN15: x | CO15: x | CP15: x | CQ15: x | CR15: x | CS15: x | CT15: x | CU15: x | CV15: x | CW15: x | CX15: x | CY15: x | CZ15: x | DA15: x | DB15: x | DC15: x | DD15: x | DE15: x | DF15: x | DG15: x | DH15: x | DI15: x | DJ15: x | DK15: x | DL15: x | DM15: x | DN15: x | DO15: x | DP15: x | DQ15: x | DR15: x | DS15: x | DT15: x | DU15: x | DV15: x | DW15: x | DX15: x | DY15: x | DZ15: x | EA15: x | EB15: x | EC15: x | ED15: x | EE15: x | EF15: x | EG15: x | EH15: x | EI15: x | EJ15: x | EK15: x | EL15: x | EM15: x | EN15: x | EO15: x | EP15: x | EQ15: x | ER15: x | ES15: x | ET15: x | EU15: x | EV15: x | EW15: x | EX15: x | EY15: x | EZ15: x | FA15: x | FB15: x | FC15: x | FD15: x | FE15: x | FF15: x | FG15: x | FH15: x | FI15: x | FJ15: x | FK15: x | FL15: x | FM15: x | FN15: x | FO15: x | FP15: x | FQ15: x | FR15: x | FS15: x | FT15: x | FU15: x | FV15: x | FW15: x | FX15: x | FY15: x | FZ15: x | GA15: x | GB15: x | GC15: x | GD15: x | GE15: x | GF15: x | GG15: x | GH15: x | GI15: x | GJ15: x | GK15: x | GL15: x | GM15: x | GN15: x | GO15: x | GP15: x | GQ15: x | GR15: x | GS15: x | GT15: x | GU15: x | GV15: x | GW15: x | GX15: x | GY15: x | GZ15: x | HA15: x | HB15: x | HC15: x | HD15: x | HE15: x | HF15: x | HG15: x | HH15: x | HI15: x | HJ15: x | HK15: x | HL15: x | HM15: x | HN15: x | HO15: x | HP15: x | HQ15: x | HR15: x | HS15: x | HT15: x | HU15: x | HV15: x | HW15: x | HX15: x | HY15: x | HZ15: x | IA15: x | IB15: x | IC15: x | ID15: x | IE15: x | IF15: x | IG15: x | IH15: x | II15: x | IJ15: x | IK15: x | IL15: x | IM15: x | IN15: x | IO15: x | IP15: x | IQ15: x | IR15: x | IS15: x | IT15: x | IU15: x | IV15: x | IW15: x | IX15: x | IY15: x | IZ15: x | JA15: x | JB15: x | JC15: x | JD15: x | JE15: x | JF15: x | JG15: x | JH15: x | JI15: x | JJ15: x | JK15: x | JL15: x | JM15: x | JN15: x | JO15: x | JP15: x | JQ15: x | JR15: x | JS15: x | JT15: x | JU15: x | JV15: x | JW15: x | JX15: x | JY15: x | JZ15: x | KA15: x | KB15: x | KC15: x | KD15: x | KE15: x | KF15: x | KG15: x | KH15: x | KI15: x | KJ15: x | KK15: x | KL15: x | KM15: x | KN15: x | KO15: x | KP15: x | KQ15: x | KR15: x | KS15: x | KT15: x | KU15: x | KV15: x | KW15: x | KX15: x | KY15: x | KZ15: x | LA15: x | LB15: x | LC15: x | LD15: x | LE15: x | LF15: x | LG15: x | LH15: x | LI15: x | LJ15: x | LK15: x | LL15: x | LM15: x | LN15: x | LO15: x | LP15: x | LQ15: x | LR15: x | LS15: x | LT15: x | LU15: x | LV15: x | LW15: x | LX15: x | LY15: x | LZ15: x | MA15: x | MB15: x | MC15: x | MD15: x | ME15: x | MF15: x | MG15: x | MH15: x | MI15: x | MJ15: x | MK15: x | ML15: x | MM15: x | MN15: x | MO15: x | MP15: x | MQ15: x | MR15: x | MS15: x | MT15: x | MU15: x | MV15: x | MW15: x | MX15: x | MY15: x | MZ15: x | NA15: x | NB15: x | NC15: x | ND15: x | NE15: x | NF15: x | NG15: x | NH15: x | NI15: x | NJ15: x | NK15: x | NL15: x | NM15: x | NN15: x | NO15: x | NP15: x | NQ15: x | NR15: x | NS15: x | NT15: x | NU15: x | NV15: x | NW15: x | NX15: x | NY15: x | NZ15: x | OA15: x | OB15: x | OC15: x | OD15: x | OE15: x | OF15: x | OG15: x | OH15: x | OI15: x | OJ15: x | OK15: x | OL15: x | OM15: x | ON15: x | OO15: x | OP15: x | OQ15: x | OR15: x | OS15: x | OT15: x | OU15: x | OV15: x | OW15: x | OX15: x | OY15: x | OZ15: x | PA15: x | PB15: x | PC15: x | PD15: x | PE15: x | PF15: x | PG15: x | PH15: x | PI15: x | PJ15: x | PK15: x | PL15: x | PM15: x | PN15: x | PO15: x | PP15: x | PQ15: x | PR15: x | PS15: x | PT15: x | PU15: x | PV15: x | PW15: x | PX15: x | PY15: x | PZ15: x | QA15: x | QB15: x | QC15: x | QD15: x | QE15: x | QF15: x | QG15: x | QH15: x | QI15: x | QJ15: x | QK15: x | QL15: x | QM15: x | QN15: x | QO15: x | QP15: x | QQ15: x | QR15: x | QS15: x | QT15: x | QU15: x | QV15: x | QW15: x | QX15: x | QY15: x | QZ15: x | RA15: x | RB15: x | RC15: x | RD15: x | RE15: x | RF15: x | RG15: x | RH15: x | RI15: x | RJ15: x | RK15: x | RL15: x | RM15: x | RN15: x | RO15: x | RP15: x | RQ15: x | RR15: x | RS15: x | RT15: x | RU15: x | RV15: x | RW15: x | RX15: x | RY15: x | RZ15: x | SA15: x | SB15: x | SC15: x | SD15: x | SE15: x | SF15: x | SG15: x | SH15: x | SI15: x | SJ15: x | SK15: x | SL15: x | SM15: x | SN15: x | SO15: x | SP15: x | SQ15: x | SR15: x | SS15: x | ST15: x | SU15: x | SV15: x | SW15: x | SX15: x | SY15: x | SZ15: x | TA15: x | TB15: x | TC15: x | TD15: x | TE15: x | TF15: x | TG15: x | TH15: x | TI15: x | TJ15: x | TK15: x | TL15: x | TM15: x | TN15: x | TO15: x | TP15: x | TQ15: x | TR15: x | TS15: x | TT15: x | TU15: x | TV15: x | TW15: x | TX15: x | TY15: x
E16: 6 | F16: Срок начала реализации инвестиционной программы (мероприятия) | G16: x | H16: 01.01.2015 | J16: 01.01.2015 | K16: 01.01.2016 | L16: 01.01.2015 | M16: 01.01.2015 | N16: 01.01.2015 | O16: 01.01.2015 | P16: 01.01.2015 | Q16: 01.01.2015 | R16: 01.01.2015 | S16: 01.01.2015 | T16: 01.01.2015 | U16: 01.01.2015 | V16: 01.01.2015 | W16: 01.01.2015 | X16: 01.01.2015 | Y16: 01.01.2015 | Z16: 01.01.2015 | AA16: 01.01.2015 | AB16: 01.01.2015 | AC16: 01.01.2015 | AD16: 01.01.2015 | AE16: 01.01.2015 | AF16: 01.01.2015 | AG16: 01.01.2015 | AH16: 01.01.2015 | AI16: 01.01.2015 | AJ16: 01.01.2015 | AK16: 01.01.2015 | AL16: 01.01.2015 | AM16: 01.01.2015 | AN16: 01.01.2015 | AO16: 01.01.2015 | AP16: 01.01.2015 | AQ16: 01.01.2015 | AR16: 01.01.2015 | AS16: 01.01.2015 | AT16: 01.01.2015 | AU16: 01.01.2015 | AV16: 01.01.2015 | AW16: 01.01.2015 | AX16: 01.01.2015 | AY16: 01.01.2015 | AZ16: 01.01.2015 | BA16: 01.01.2015 | BB16: 01.01.2015 | BC16: 01.01.2015 | BD16: 01.01.2015 | BE16: 01.01.2015 | BF16: 01.01.2015 | BG16: 01.01.2015 | BH16: 01.01.2015 | BI16: 01.01.2015 | BJ16: 01.01.2015 | BK16: 01.01.2015 | BL16: 01.01.2015 | BM16: 01.01.2015 | BN16: 01.01.2015 | BO16: 01.01.2015 | BP16: 01.01.2015 | BQ16: 01.01.2015 | BR16: 01.01.2015 | BS16: 01.01.2015 | BT16: 01.01.2015 | BU16: 01.01.2015 | BV16: 01.01.2015 | BW16: 01.01.2015 | BX16: 01.01.2015 | BY16: 01.01.2015 | BZ16: 01.01.2015 | CA16: 01.01.2015 | CB16: 01.01.2015 | CC16: 01.01.2015 | CD16: 01.01.2015 | CE16: 01.01.2015 | CF16: 01.01.2015 | CG16: 01.01.2015 | CH16: 01.01.2015 | CI16: 01.01.2015 | CJ16: 01.01.2015 | CK16: 01.01.2015 | CL16: 01.01.2015 | CM16: 01.01.2015 | CN16: 01.01.2015 | CO16: 01.01.2015 | CP16: 01.01.2015 | CQ16: 01.01.2015 | CR16: 01.01.2015 | CS16: 01.01.2015 | CT16: 01.01.2015 | CU16: 01.01.2015 | CV16: 01.01.2015 | CW16: 01.01.2015 | CX16: 01.01.2015 | CY16: 01.01.2015 | CZ16: 01.01.2015 | DA16: 01.01.2015 | DB16: 01.01.2015 | DC16: 01.01.2015 | DD16: 01.01.2015 | DE16: 01.01.2015 | DF16: 01.01.2015 | DG16: 01.01.2015 | DH16: 01.01.2015 | DI16: 01.01.2015 | DJ16: 01.01.2015 | DK16: 01.01.2015 | DL16: 01.01.2015 | DM16: 01.01.2015 | DN16: 01.01.2015 | DO16: 01.01.2015 | DP16: 01.01.2015 | DQ16: 01.01.2015 | DR16: 01.01.2015 | DS16: 01.01.2015 | DT16: 01.01.2015 | DU16: 01.01.2015 | DV16: 01.01.2015 | DW16: 01.01.2015 | DX16: 01.01.2015 | DY16: 01.01.2015 | DZ16: 01.01.2015 | EA16: 01.01.2015 | EB16: 01.01.2015 | EC16: 01.01.2015 | ED16: 01.01.2015 | EE16: 01.01.2015 | EF16: 01.01.2015 | EG16: 01.01.2015 | EH16: 01.01.2015 | EI16: 01.01.2015 | EJ16: 01.01.2015 | EK16: 01.01.2015 | EL16: 01.01.2015 | EM16: 01.01.2015 | EN16: 01.01.2015 | EO16: 01.01.2015 | EP16: 01.01.2015 | EQ16: 01.01.2015 | ER16: 01.01.2015 | ES16: 01.01.2015 | ET16: 01.01.2015 | EU16: 01.01.2015 | EV16: 01.01.2015 | EW16: 01.01.2015 | EX16: 01.01.2015 | EY16: 01.01.2015 | EZ16: 01.01.2015 | FA16: 01.01.2015 | FB16: 01.01.2015 | FC16: 01.01.2015 | FD16: 01.01.2015 | FE16: 01.01.2015 | FF16: 01.01.2015 | FG16: 01.01.2015 | FH16: 01.01.2015 | FI16: 01.01.2015 | FJ16: 01.01.2015 | FK16: 01.01.2015 | FL16: 01.01.2015 | FM16: 01.01.2015 | FN16: 01.01.2015 | FO16: 01.01.2015 | FP16: 01.01.2015 | FQ16: 01.01.2015 | FR16: 01.01.2015 | FS16: 01.01.2015 | FT16: 01.01.2015 | FU16: 01.01.2015 | FV16: 01.01.2015 | FW16: 01.01.2015 | FX16: 01.01.2015 | FY16: 01.01.2015 | FZ16: 01.01.2015 | GA16: 01.01.2015 | GB16: 01.01.2015 | GC16: 01.01.2015 | GD16: 01.01.2015 | GE16: 01.01.2015 | GF16: 01.01.2015 | GG16: 01.01.2015 | GH16: 01.01.2015 | GI16: 01.01.2015 | GJ16: 01.01.2015 | GK16: 01.01.2015 | GL16: 01.01.2015 | GM16: 01.01.2015 | GN16: 01.01.2015 | GO16: 01.01.2015 | GP16: 01.01.2015 | GQ16: 01.01.2015 | GR16: 01.01.2015 | GS16: 01.01.2015 | GT16: 01.01.2015 | GU16: 01.01.2015 | GV16: 01.01.2015 | GW16: 01.01.2015 | GX16: 01.01.2015 | GY16: 01.01.2015 | GZ16: 01.01.2015 | HA16: 01.01.2015 | HB16: 01.01.2015 | HC16: 01.01.2015 | HD16: 01.01.2015 | HE16: 01.01.2015 | HF16: 01.01.2015 | HG16: 01.01.2015 | HH16: 01.01.2015 | HI16: 01.01.2015 | HJ16: 01.01.2015 | HK16: 01.01.2015 | HL16: 01.01.2015 | HM16: 01.01.2015 | HN16: 01.01.2015 | HO16: 01.01.2015 | HP16: 01.01.2015 | HQ16: 01.01.2015 | HR16: 01.01.2015 | HS16: 01.01.2015 | HT16: 01.01.2015 | HU16: 01.01.2015 | HV16: 01.01.2015 | HW16: 01.01.2015 | HX16: 01.01.2015 | HY16: 01.01.2015 | HZ16: 01.01.2015 | IA16: 01.01.2015 | IB16: 01.01.2015 | IC16: 01.01.2015 | ID16: 01.01.2015 | IE16: 01.01.2015 | IF16: 01.01.2015 | IG16: 01.01.2015 | IH16: 01.01.2015 | II16: 01.01.2015 | IJ16: 01.01.2015 | IK16: 01.01.2015 | IL16: 01.01.2015 | IM16: 01.01.2015 | IN16: 01.01.2015 | IO16: 01.01.2015 | IP16: 01.01.2015 | IQ16: 01.01.2015 | IR16: 01.01.2015 | IS16: 01.01.2015 | IT16: 01.01.2015 | IU16: 01.01.2015 | IV16: 01.01.2015 | IW16: 01.01.2015 | IX16: 01.01.2015 | IY16: 01.01.2015 | IZ16: 01.01.2015 | JA16: 01.01.2015 | JB16: 01.01.2015 | JC16: 01.01.2015 | JD16: 01.01.2015 | JE16: 01.01.2015 | JF16: 01.01.2015 | JG16: 01.01.2015 | JH16: 01.01.2015 | JI16: 01.01.2015 | JJ16: 01.01.2015 | JK16: 01.01.2015 | JL16: 01.01.2015 | JM16: 01.01.2015 | JN16: 01.01.2015 | JO16: 01.01.2015 | JP16: 01.01.2015 | JQ16: 01.01.2015 | JR16: 01.01.2015 | JS16: 01.01.2015 | JT16: 01.01.2015 | JU16: 01.01.2015 | JV16: 01.01.2015 | JW16: 01.01.2015 | JX16: 01.01.2015 | JY16: 01.01.2015 | JZ16: 01.01.2015 | KA16: 01.01.2015 | KB16: 01.01.2015 | KC16: 01.01.2015 | KD16: 01.01.2015 | KE16: 01.01.2015 | KF16: 01.01.2015 | KG16: 01.01.2015 | KH16: 01.01.2015 | KI16: 01.01.2015 | KJ16: 01.01.2015 | KK16: 01.01.2015 | KL16: 01.01.2015 | KM16: 01.01.2015 | KN16: 01.01.2015 | KO16: 01.01.2015 | KP16: 01.01.2015 | KQ16: 01.01.2015 | KR16: 01.01.2015 | KS16: 01.01.2015 | KT16: 01.01.2015 | KU16: 01.01.2015 | KV16: 01.01.2015 | KW16: 01.01.2015 | KX16: 01.01.2015 | KY16: 01.01.2015 | KZ16: 01.01.2015 | LA16: 01.01.2015 | LB16: 01.01.2015 | LC16: 01.01.2015 | LD16: 01.01.2015 | LE16: 01.01.2015 | LF16: 01.01.2015 | LG16: 01.01.2015 | LH16: 01.01.2015 | LI16: 01.01.2015 | LJ16: 01.01.2015 | LK16: 01.01.2015 | LL16: 01.01.2015 | LM16: 01.01.2015 | LN16: 01.01.2015 | LO16: 01.01.2015 | LP16: 01.01.2015 | LQ16: 01.01.2015 | LR16: 01.01.2015 | LS16: 01.01.2015 | LT16: 01.01.2015 | LU16: 01.01.2015 | LV16: 01.01.2015 | LW16: 01.01.2015 | LX16: 01.01.2015 | LY16: 01.01.2015 | LZ16: 01.01.2015 | MA16: 01.01.2015 | MB16: 01.01.2015 | MC16: 01.01.2015 | MD16: 01.01.2015 | ME16: 01.01.2015 | MF16: 01.01.2015 | MG16: 01.01.2015 | MH16: 01.01.2015 | MI16: 01.01.2015 | MJ16: 01.01.2015 | MK16: 01.01.2015 | ML16: 01.01.2015 | MM16: 01.01.2015 | MN16: 01.01.2015 | MO16: 01.01.2015 | MP16: 01.01.2015 | MQ16: 01.01.2015 | MR16: 01.01.2015 | MS16: 01.01.2015 | MT16: 01.01.2015 | MU16: 01.01.2015 | MV16: 01.01.2015 | MW16: 01.01.2015 | MX16: 01.01.2015 | MY16: 01.01.2015 | MZ16: 01.01.2015 | NA16: 01.01.2015 | NB16: 01.01.2015 | NC16: 01.01.2015 | ND16: 01.01.2015 | NE16: 01.01.2015 | NF16: 01.01.2015 | NG16: 01.01.2015 | NH16: 01.01.2015 | NI16: 01.01.2015 | NJ16: 01.01.2015 | NK16: 01.01.2015 | NL16: 01.01.2015 | NM16: 01.01.2015 | NN16: 01.01.2015 | NO16: 01.01.2015 | NP16: 01.01.2015 | NQ16: 01.01.2015 | NR16: 01.01.2015 | NS16: 01.01.2015 | NT16: 01.01.2015 | NU16: 01.01.2015 | NV16: 01.01.2015 | NW16: 01.01.2015 | NX16: 01.01.2015 | NY16: 01.01.2015 | NZ16: 01.01.2015 | OA16: 01.01.2015 | OB16: 01.01.2015 | OC16: 01.01.2015 | OD16: 01.01.2015 | OE16: 01.01.2015 | OF16: 01.01.2015 | OG16: 01.01.2015 | OH16: 01.01.2015 | OI16: 01.01.2015 | OJ16: 01.01.2015 | OK16: 01.01.2015 | OL16: 01.01.2015 | OM16: 01.01.2015 | ON16: 01.01.2015 | OO16: 01.01.2015 | OP16: 01.01.2015 | OQ16: 01.01.2015 | OR16: 01.01.2015 | OS16: 01.01.2015 | OT16: 01.01.2015 | OU16: 01.01.2015 | OV16: 01.01.2015 | OW16: 01.01.2015 | OX16: 01.01.2015 | OY16: 01.01.2015 | OZ16: 01.01.2015 | PA16: 01.01.2015 | PB16: 01.01.2015 | PC16: 01.01.2015 | PD16: 01.01.2015 | PE16: 01.01.2015 | PF16: 01.01.2015 | PG16: 01.01.2015 | PH16: 01.01.2015 | PI16: 01.01.2015 | PJ16: 01.01.2015 | PK16: 01.01.2015 | PL16: 01.01.2015 | PM16: 01.01.2015 | PN16: 01.01.2015 | PO16: 01.01.2015 | PP16: 01.01.2015 | PQ16: 01.01.2015 | PR16: 01.01.2015 | PS16: 01.01.2015 | PT16: 01.01.2015 | PU16: 01.01.2015 | PV16: 01.01.2015 | PW16: 01.01.2015 | PX16: 01.01.2015 | PY16: 01.01.2015 | PZ16: 01.01.2015 | QA16: 01.01.2015 | QB16: 01.01.2015 | QC16: 01.01.2015 | QD16: 01.01.2015 | QE16: 01.01.2015 | QF16: 01.01.2015 | QG16: 01.01.2015 | QH16: 01.01.2015 | QI16: 01.01.2015 | QJ16: 01.01.2015 | QK16: 01.01.2015 | QL16: 01.01.2015 | QM16: 01.01.2015 | QN16: 01.01.2015 | QO16: 01.01.2015 | QP16: 01.01.2015 | QQ16: 01.01.2015 | QR16: 01.01.2015 | QS16: 01.01.2015 | QT16: 01.01.2015 | QU16: 01.01.2015 | QV16: 01.01.2015 | QW16: 01.01.2015 | QX16: 01.01.2015 | QY16: 01.01.2015 | QZ16: 01.01.2015 | RA16: 01.01.2015 | RB16: 01.01.2015 | RC16: 01.01.2015 | RD16: 01.01.2015 | RE16: 01.01.2015 | RF16: 01.01.2015 | RG16: 01.01.2015 | RH16: 01.01.2015 | RI16: 01.01.2015 | RJ16: 01.01.2015 | RK16: 01.01.2015 | RL16: 01.01.2015 | RM16: 01.01.2015 | RN16: 01.01.2015 | RO16: 01.01.2015 | RP16: 01.01.2015 | RQ16: 01.01.2015 | RR16: 01.01.2015 | RS16: 01.01.2015 | RT16: 01.01.2015 | RU16: 31.01.2015 | RV16: 01.01.2015 | RW16: 01.01.2015 | RX16: 01.01.2015 | RY16: 01.01.2015 | RZ16: 01.01.2015 | SA16: 01.01.2015 | SB16: 01.01.2015 | SC16: 01.01.2015 | SD16: 01.01.2015 | SE16: 01.01.2015 | SF16: 01.01.2015 | SG16: 01.01.2015 | SH16: 01.01.2015 | SI16: 01.01.2015 | SJ16: 01.01.2015 | SK16: 01.01.2015 | SL16: 01.01.2015 | SM16: 01.01.2015 | SN16: 01.01.2015 | SO16: 01.01.2015 | SP16: 01.01.2015
E17: 7 | F17: Срок окончания реализации инвестиционной программы (мероприятия) | G17: x | H17: 31.12.2032 | J17: 31.12.2032 | K17: 31.12.2032 | L17: 31.12.2032 | M17: 31.12.2032 | N17: 31.12.2032 | O17: 31.12.2032 | P17: 31.12.2032 | Q17: 31.12.2032 | R17: 31.12.2032 | S17: 31.12.2032 | T17: 31.12.2032 | U17: 31.12.2032 | V17: 31.12.2032 | W17: 31.12.2032 | X17: 31.12.2032 | Y17: 31.12.2032 | Z17: 31.12.2032 | AA17: 31.12.2032 | AB17: 31.12.2032 | AC17: 31.12.2032 | AD17: 31.12.2032 | AE17: 31.12.2032 | AF17: 31.12.2032 | AG17: 31.12.2032 | AH17: 31.12.2032 | AI17: 31.12.2032 | AJ17: 31.12.2032 | AK17: 31.12.2032 | AL17: 31.12.2032 | AM17: 31.12.2032 | AN17: 31.12.2032 | AO17: 31.12.2032 | AP17: 31.12.2032 | AQ17: 31.12.2032 | AR17: 31.12.2032 | AS17: 31.12.2032 | AT17: 31.12.2032 | AU17: 31.12.2032 | AV17: 31.12.2032 | AW17: 31.12.2032 | AX17: 31.12.2032 | AY17: 31.12.2032 | AZ17: 31.12.2032 | BA17: 31.12.2032 | BB17: 31.12.2032 | BC17: 31.12.2032 | BD17: 31.12.2032 | BE17: 31.12.2032 | BF17: 31.12.2032 | BG17: 31.12.2032 | BH17: 31.12.2032 | BI17: 31.12.2032 | BJ17: 31.12.2032 | BK17: 31.12.2032 | BL17: 31.12.2032 | BM17: 31.12.2032 | BN17: 31.12.2032 | BO17: 31.12.2032 | BP17: 31.12.2032 | BQ17: 31.12.2032 | BR17: 31.12.2032 | BS17: 31.12.2032 | BT17: 31.12.2032 | BU17: 31.12.2032 | BV17: 31.12.2032 | BW17: 31.12.2032 | BX17: 31.12.2032 | BY17: 31.12.2032 | BZ17: 31.12.2032 | CA17: 31.12.2032 | CB17: 31.12.2032 | CC17: 31.12.2032 | CD17: 31.12.2032 | CE17: 31.12.2032 | CF17: 31.12.2032 | CG17: 31.12.2032 | CH17: 31.12.2032 | CI17: 31.12.2032 | CJ17: 31.12.2032 | CK17: 31.12.2032 | CL17: 31.12.2032 | CM17: 31.12.2032 | CN17: 31.12.2032 | CO17: 31.12.2032 | CP17: 31.12.2032 | CQ17: 31.12.2032 | CR17: 31.12.2032 | CS17: 31.12.2032 | CT17: 31.12.2032 | CU17: 31.12.2032 | CV17: 31.12.2032 | CW17: 31.12.2032 | CX17: 31.12.2032 | CY17: 31.12.2032 | CZ17: 31.12.2032 | DA17: 31.12.2032 | DB17: 31.12.2032 | DC17: 31.12.2032 | DD17: 31.12.2032 | DE17: 31.12.2032 | DF17: 31.12.2032 | DG17: 31.12.2032 | DH17: 31.12.2032 | DI17: 31.12.2032 | DJ17: 31.12.2032 | DK17: 31.12.2032 | DL17: 31.12.2032 | DM17: 31.12.2032 | DN17: 31.12.2032 | DO17: 31.12.2032 | DP17: 31.12.2032 | DQ17: 31.12.2032 | DR17: 31.12.2032 | DS17: 31.12.2032 | DT17: 31.12.2032 | DU17: 31.12.2032 | DV17: 31.12.2032 | DW17: 31.12.2032 | DX17: 31.12.2032 | DY17: 31.12.2032 | DZ17: 31.12.2032 | EA17: 31.12.2032 | EB17: 31.12.2032 | EC17: 31.12.2032 | ED17: 31.12.2032 | EE17: 31.12.2032 | EF17: 31.12.2032 | EG17: 31.12.2032 | EH17: 31.12.2032 | EI17: 31.12.2032 | EJ17: 31.12.2032 | EK17: 31.12.2032 | EL17: 31.12.2032 | EM17: 31.12.2032 | EN17: 31.12.2032 | EO17: 31.12.2032 | EP17: 31.12.2032 | EQ17: 31.12.2032 | ER17: 31.12.2032 | ES17: 31.12.2032 | ET17: 31.12.2032 | EU17: 31.12.2032 | EV17: 31.12.2032 | EW17: 31.12.2032 | EX17: 31.12.2032 | EY17: 31.12.2032 | EZ17: 31.12.2032 | FA17: 31.12.2032 | FB17: 31.12.2032 | FC17: 31.12.2032 | FD17: 31.12.2032 | FE17: 31.12.2032 | FF17: 31.12.2032 | FG17: 31.12.2032 | FH17: 31.12.2032 | FI17: 31.12.2032 | FJ17: 31.12.2032 | FK17: 31.12.2032 | FL17: 31.12.2032 | FM17: 31.12.2032 | FN17: 31.12.2032 | FO17: 31.12.2032 | FP17: 31.12.2032 | FQ17: 31.12.2032 | FR17: 31.12.2032 | FS17: 31.12.2032 | FT17: 31.12.2032 | FU17: 31.12.2032 | FV17: 31.12.2032 | FW17: 31.12.2032 | FX17: 31.12.2032 | FY17: 31.12.2032 | FZ17: 31.12.2032 | GA17: 31.12.2032 | GB17: 31.12.2032 | GC17: 31.12.2032 | GD17: 31.12.2032 | GE17: 31.12.2032 | GF17: 31.12.2032 | GG17: 31.12.2032 | GH17: 31.12.2032 | GI17: 31.12.2032 | GJ17: 31.12.2032 | GK17: 31.12.2032 | GL17: 31.12.2032 | GM17: 31.12.2032 | GN17: 31.12.2032 | GO17: 31.12.2032 | GP17: 31.12.2032 | GQ17: 31.12.2032 | GR17: 31.12.2032 | GS17: 31.12.2032 | GT17: 31.12.2032 | GU17: 31.12.2032 | GV17: 31.12.2032 | GW17: 31.12.2032 | GX17: 31.12.2032 | GY17: 31.12.2032 | GZ17: 31.12.2032 | HA17: 31.12.2032 | HB17: 31.12.2032 | HC17: 31.12.2032 | HD17: 31.12.2032 | HE17: 31.12.2032 | HF17: 31.12.2032 | HG17: 31.12.2032 | HH17: 31.12.2032 | HI17: 31.12.2032 | HJ17: 31.12.2032 | HK17: 31.12.2032 | HL17: 31.12.2032 | HM17: 31.12.2032 | HN17: 31.12.2032 | HO17: 31.12.2032 | HP17: 31.12.2032 | HQ17: 31.12.2032 | HR17: 31.12.2032 | HS17: 31.12.2032 | HT17: 31.12.2032 | HU17: 31.12.2032 | HV17: 31.12.2032 | HW17: 31.12.2032 | HX17: 31.12.2032 | HY17: 31.12.2032 | HZ17: 31.12.2032 | IA17: 31.12.2032 | IB17: 31.12.2032 | IC17: 31.12.2032 | ID17: 31.12.2032 | IE17: 31.12.2032 | IF17: 31.12.2032 | IG17: 31.12.2032 | IH17: 31.12.2032 | II17: 31.12.2032 | IJ17: 31.12.2032 | IK17: 31.12.2032 | IL17: 31.12.2032 | IM17: 31.12.2032 | IN17: 31.12.2032 | IO17: 31.12.2032 | IP17: 31.12.2032 | IQ17: 31.12.2032 | IR17: 31.12.2032 | IS17: 31.12.2032 | IT17: 31.12.2032 | IU17: 31.12.2032 | IV17: 31.12.2032 | IW17: 31.12.2032 | IX17: 31.12.2032 | IY17: 31.12.2032 | IZ17: 31.12.2032 | JA17: 31.12.2032 | JB17: 31.12.2032 | JC17: 31.12.2032 | JD17: 31.12.2032 | JE17: 31.12.2032 | JF17: 31.12.2032 | JG17: 31.12.2032 | JH17: 31.12.2032 | JI17: 31.12.2032 | JJ17: 31.12.2032 | JK17: 31.12.2032 | JL17: 31.12.2032 | JM17: 31.12.2032 | JN17: 31.12.2032 | JO17: 31.12.2032 | JP17: 31.12.2032 | JQ17: 31.12.2032 | JR17: 31.12.2032 | JS17: 31.12.2032 | JT17: 31.12.2032 | JU17: 31.12.2032 | JV17: 31.12.2032 | JW17: 31.12.2032 | JX17: 31.12.2032 | JY17: 31.12.2032 | JZ17: 31.12.2032 | KA17: 31.12.2032 | KB17: 31.12.2032 | KC17: 31.12.2032 | KD17: 31.12.2032 | KE17: 31.12.2032 | KF17: 31.12.2032 | KG17: 31.01.2032 | KH17: 31.01.2032 | KI17: 31.12.2032 | KJ17: 31.12.2032 | KK17: 31.12.2032 | KL17: 31.12.2032 | KM17: 31.12.2032 | KN17: 31.12.2032 | KO17: 31.12.2032 | KP17: 31.12.2032 | KQ17: 31.12.2032 | KR17: 31.12.2032 | KS17: 31.12.2032 | KT17: 31.12.2032 | KU17: 31.12.2032 | KV17: 31.12.2032 | KW17: 31.12.2032 | KX17: 31.12.2032 | KY17: 31.12.2032 | KZ17: 31.12.2032 | LA17: 31.12.2032 | LB17: 31.12.2032 | LC17: 31.12.2032 | LD17: 31.12.2032 | LE17: 31.12.2032 | LF17: 31.12.2032 | LG17: 31.12.2032 | LH17: 31.12.2032 | LI17: 31.12.2032 | LJ17: 31.12.2032 | LK17: 31.12.2032 | LL17: 31.12.2032 | LM17: 31.12.2032 | LN17: 31.12.2032 | LO17: 24.12.2032 | LP17: 31.12.2032 | LQ17: 31.12.2032 | LR17: 31.12.2032 | LS17: 31.12.2032 | LT17: 31.12.2032 | LU17: 31.12.2032 | LV17: 31.12.2032 | LW17: 31.12.2032 | LX17: 31.12.2032 | LY17: 31.12.2032 | LZ17: 31.12.2032 | MA17: 31.12.2032 | MB17: 31.12.2032 | MC17: 31.12.2032 | MD17: 31.12.2032 | ME17: 31.12.2032 | MF17: 31.12.2032 | MG17: 01.12.2032 | MH17: 31.12.2032 | MI17: 31.12.2032 | MJ17: 31.12.2032 | MK17: 31.12.2032 | ML17: 31.12.2032 | MM17: 31.12.2032 | MN17: 31.12.2032 | MO17: 31.12.2032 | MP17: 31.12.2032 | MQ17: 31.12.2032 | MR17: 31.12.2032 | MS17: 31.12.2032 | MT17: 31.12.2032 | MU17: 31.12.2032 | MV17: 31.12.2032 | MW17: 31.12.2032 | MX17: 31.12.2032 | MY17: 31.12.2032 | MZ17: 31.12.2032 | NA17: 31.12.2032 | NB17: 31.12.2032 | NC17: 31.12.2032 | ND17: 31.12.2032 | NE17: 31.12.2032 | NF17: 31.12.2032 | NG17: 31.12.2032 | NH17: 31.12.2032 | NI17: 31.12.2032 | NJ17: 31.12.2032 | NK17: 31.12.2032 | NL17: 31.12.2032 | NM17: 31.12.2032 | NN17: 31.12.2032 | NO17: 31.12.2032 | NP17: 31.12.2032 | NQ17: 31.12.2032 | NR17: 31.12.2032 | NS17: 31.12.2032 | NT17: 31.12.2032 | NU17: 31.12.2032 | NV17: 31.12.2032 | NW17: 31.12.2032 | NX17: 31.12.2032 | NY17: 31.12.2032 | NZ17: 31.12.2032 | OA17: 31.12.2032 | OB17: 31.12.2032 | OC17: 31.12.2032 | OD17: 31.12.2032 | OE17: 31.12.2032 | OF17: 31.12.2032 | OG17: 31.12.2032 | OH17: 31.12.2032 | OI17: 31.12.2032 | OJ17: 31.12.2032 | OK17: 31.12.2032 | OL17: 31.12.2032 | OM17: 31.12.2032 | ON17: 31.12.2032 | OO17: 31.12.2032 | OP17: 31.12.2032 | OQ17: 31.12.2032 | OR17: 31.12.2032 | OS17: 31.12.2032 | OT17: 31.12.2032 | OU17: 31.12.2032 | OV17: 31.12.2032 | OW17: 31.12.2032 | OX17: 31.12.2032 | OY17: 31.12.2032 | OZ17: 31.12.2032 | PA17: 31.12.2032 | PB17: 31.12.2032 | PC17: 31.12.2032 | PD17: 31.12.2032 | PE17: 31.12.2032 | PF17: 31.12.2032 | PG17: 31.12.2032 | PH17: 31.12.2032 | PI17: 31.12.2032 | PJ17: 31.12.2032 | PK17: 31.12.2032 | PL17: 31.03.2032 | PM17: 31.12.2032 | PN17: 31.12.2032 | PO17: 31.12.2032 | PP17: 31.12.2032 | PQ17: 31.12.2032 | PR17: 31.12.2032 | PS17: 31.12.2032 | PT17: 31.12.2032 | PU17: 31.12.2032 | PV17: 31.12.2032 | PW17: 31.12.2032 | PX17: 31.12.2032 | PY17: 31.12.2032 | PZ17: 31.12.2032 | QA17: 31.12.2032 | QB17: 31.12.2032 | QC17: 31.12.2032 | QD17: 31.12.2032 | QE17: 31.12.2032 | QF17: 31.12.2032 | QG17: 31.12.2032 | QH17: 31.12.2032 | QI17: 31.12.2032 | QJ17: 31.12.2032 | QK17: 31.12.2032 | QL17: 31.12.2032 | QM17: 31.12.2032 | QN17: 31.12.2032 | QO17: 31.12.2032 | QP17: 31.12.2032 | QQ17: 31.12.2032 | QR17: 31.12.2032 | QS17: 31.12.2032 | QT17: 31.12.2032 | QU17: 31.12.2032 | QV17: 31.12.2032 | QW17: 31.01.2032 | QX17: 31.12.2032 | QY17: 31.12.2032 | QZ17: 31.12.2032 | RA17: 31.12.2032 | RB17: 31.12.2032 | RC17: 31.12.2032 | RD17: 31.12.2032 | RE17: 31.12.2032 | RF17: 31.12.2032 | RG17: 31.12.2032 | RH17: 31.12.2032 | RI17: 31.12.2032 | RJ17: 31.12.2032 | RK17: 31.12.2032 | RL17: 31.12.2032 | RM17: 31.12.2032 | RN17: 31.12.2032 | RO17: 31.12.2032 | RP17: 31.12.2032 | RQ17: 31.12.2032 | RR17: 31.12.2032 | RS17: 31.12.2032 | RT17: 31.12.2032 | RU17: 31.12.2032 | RV17: 31.12.2032 | RW17: 31.12.2032 | RX17: 31.12.2032 | RY17: 31.12.2032 | RZ17: 31.12.2032 | SA17: 31.03.2032 | SB17: 31.12.2032 | SC17: 31.12.2032 | SD17: 31.12.2032 | SE17: 31.12.2032 | SF17: 31.12.2032 | SG17: 31.12.2032 | SH17: 31.12.2032 | SI17: 31.12.2032 | SJ17: 31.12.2032 | SK17: 31.12.2032 | SL17: 31.12.2032 | SM17: 31.12.2032 | SN17: 31.12.2032 | SO17: 31.12.2032 | SP17: 31.12.2032
E18: 8 | F18: Потребности в финансовых средствах, необходимых для реализации инвестиционной программы на год, в том числе по источникам финансирования | G18: тыс руб | H18: =SUM(I18:TZ18) -> 4791220.075 | I18: =SUMIF(List06_flag_year,"y",I19:I71) -> 0 | J18: 26832.64 | K18: 32905.27 | L18: 25494.53 | M18: 19000.56 | N18: 21469.55 | O18: 4893.38 | P18: 6969.027 | Q18: 9935.81 | R18: 2174.106 | S18: 4483.336 | T18: 175.2966 | U18: 58.4322 | V18: 29.2161 | W18: 571.7034 | X18: 180.0339 | Y18: 732.9915 | Z18: 122.16525 | AA18: 196.03525 | AB18: 144.226 | AC18: 1014.624 | AD18: 137.432 | AE18: 137.432 | AF18: 717 | AG18: 577.99 | AH18: 53.16949 | AI18: 105.40254 | AJ18: 895.33441 | AK18: 358.30508 | AL18: 358.30508 | AM18: 248.084745 | AN18: 292.014915 | AO18: 30.50847 | AP18: 685.42576 | AQ18: 90.693 | AR18: 44.2115 | AS18: 249.8515 | AT18: 262.3322 | AU18: 69.75 | AV18: 109.37431 | AW18: 1352.869 | AX18: 999.1472 | AY18: 282.209 | AZ18: 70.869 | BA18: 70.869 | BB18: 70.869 | BC18: 456.20593 | BD18: 184.677 | BE18: 313.72092 | BF18: 131.465 | BG18: 142.9425 | BH18: 739.897 | BI18: 588.8602 | BJ18: 588.8602 | BK18: 953 | BL18: 0 | BM18: 14676 | BN18: 5015 | BO18: 5817 | BP18: 2896 | BQ18: 4987.49 | BR18: 1914 | BS18: 3499 | BT18: 52960 | BU18: =SUMIF(List06_flag_year,"y",BU19:BU71) -> 1185 | BV18: 1424 | BW18: 876 | BX18: 5149 | BY18: 75 | BZ18: 11619.6 | CA18: 1517 | CB18: 3701.03 | CC18: 14526 | CD18: 654 | CE18: 1591 | CF18: 15760.5 | CG18: 2859 | CH18: 4365 | CI18: 10280 | CJ18: 5280 | CK18: 5930.98 | CL18: 1907 | CM18: 60 | CN18: 1016 | CO18: 1759 | CP18: 0 | CQ18: 320 | CR18: 7702 | CS18: 2556 | CT18: 936 | CU18: 511 | CV18: 42 | CW18: 227 | CX18: 997 | CY18: 0 | CZ18: 686 | DA18: 73 | DB18: 96 | DC18: 1750 | DD18: 0 | DE18: 863 | DF18: 656 | DG18: 391 | DH18: 19661 | DI18: 11723 | DJ18: 3691 | DK18: 4023 | DL18: 7132.63 | DM18: 0 | DN18: 42 | DO18: 500 | DP18: 42 | DQ18: 10210 | DR18: 42 | DS18: 634 | DT18: 419 | DU18: 62 | DV18: 0 | DW18: 485 | DX18: 10044 | DY18: 533 | DZ18: 8823 | EA18: 147 | EB18: 149 | EC18: 90 | ED18: 265 | EE18: 15048.99 | EF18: 632 | EG18: =SUMIF(List06_flag_year,"y",EG19:EG71) -> 639 | EH18: 17 | EI18: 204 | EJ18: 211 | EK18: 54 | EL18: 84 | EM18: 573 | EN18: 0 | EO18: 500 | EP18: 3210 | EQ18: 680 | ER18: 758 | ES18: 528 | ET18: 438 | EU18: 502 | EV18: 1115 | EW18: 1363 | EX18: 624 | EY18: 455 | EZ18: 471 | FA18: 2295 | FB18: 0 | FC18: 16251.13 | FD18: 432 | FE18: 21601.69 | FF18: 315 | FG18: 378 | FH18: 243 | FI18: 12947.59 | FJ18: 7886 | FK18: 13609.57 | FL18: 0 | FM18: 0 | FN18: 42 | FO18: 384 | FP18: 18 | FQ18: 0 | FR18: 84 | FS18: 0 | FT18: 2316 | FU18: 43514 | FV18: 5204 | FW18: 3373 | FX18: 3802 | FY18: 5057 | FZ18: 3404 | GA18: 0 | GB18: 19180 | GC18: 998 | GD18: 5397 | GE18: 12421 | GF18: 4928 | GG18: 2680 | GH18: 2613 | GI18: 4447 | GJ18: 17306 | GK18: 1343 | GL18: 11800 | GM18: 9400 | GN18: 0 | GO18: 0 | GP18: 0 | GQ18: 0 | GR18: 2033 | GS18: =SUMIF(List06_flag_year,"y",GS19:GS71) -> 0 | GT18: 0 | GU18: 0 | GV18: 0 | GW18: 0 | GX18: 0 | GY18: 0 | GZ18: 0 | HA18: 0 | HB18: 8896 | HC18: 0 | HD18: 0 | HE18: 0 | HF18: 0 | HG18: 0 | HH18: 0 | HI18: 0 | HJ18: 1688 | HK18: 1084 | HL18: 6348 | HM18: 0 | HN18: 1260 | HO18: 1250 | HP18: 5713.55 | HQ18: 0 | HR18: 4900.536563 | HS18: 33671.11 | HT18: 15726.55 | HU18: 10646.02 | HV18: 10590.55 | HW18: 3819.38 | HX18: 21345.65122 | HY18: 5738 | HZ18: 547.14 | IA18: 31307 | IB18: 1875.19 | IC18: 33077.67 | ID18: 609.59 | IE18: 100.09 | IF18: 4595.2 | IG18: 13367.41 | IH18: 5919.01 | II18: 16048.42 | IJ18: 0 | IK18: 29246.05 | IL18: 0 | IM18: 0 | IN18: 0 | IO18: 9659.57 | IP18: 15864.98 | IQ18: 22329.95 | IR18: 71915.39 | IS18: 2076.95 | IT18: 40192.26 | IU18: 668.65 | IV18: 0 | IW18: 0 | IX18: 6397.35 | IY18: 9956.83 | IZ18: 0 | JA18: 9593.18 | JB18: 200.49 | JC18: 3799.73 | JD18: 5315.41 | JE18: =SUMIF(List06_flag_year,"y",JE19:JE71) -> 5897.93 | JF18: 42481.69 | JG18: 7014.46 | JH18: 24434.65 | JI18: 5507.98 | JJ18: 2063.03 | JK18: 338.09 | JL18: 3402.56 | JM18: 7704.95 | JN18: 742.3 | JO18: 8835.19 | JP18: 4058.59 | JQ18: 1076.2 | JR18: 1581.63 | JS18: 2150.36 | JT18: 5207.36 | JU18: 3031.11 | JV18: 1337.27 | JW18: 2023.6 | JX18: 6329.43 | JY18: 17299.25 | JZ18: 152.9 | KA18: 35976.01 | KB18: 4519.99 | KC18: 8123.94 | KD18: 518.4908833 | KE18: 35543.15 | KF18: 24293.31 | KG18: 0 | KH18: 0 | KI18: 7104.51 | KJ18: 6446.69 | KK18: 1701.66 | KL18: 36054.22 | KM18: 6723.15 | KN18: 14182.47 | KO18: 5047.96 | KP18: 15800.35 | KQ18: 1014.64 | KR18: 8300.15 | KS18: 857.6 | KT18: 25096.72 | KU18: 901.16 | KV18: 19820.7 | KW18: 3457.15 | KX18: 11942.29 | KY18: 1487.76 | KZ18: 2974.62 | LA18: 26390.19 | LB18: 4189.08 | LC18: 10216.02 | LD18: 243.85 | LE18: 1403.45 | LF18: 4894.16 | LG18: 28830.94 | LH18: 13067.3 | LI18: 0 | LJ18: 0 | LK18: 47910.25 | LL18: 32696.56 | LM18: 9052.37 | LN18: 1034.56 | LO18: 246.9203566 | LP18: 1484.86 | LQ18: =SUMIF(List06_flag_year,"y",LQ19:LQ71) -> 2827.37 | LR18: 3340.925517 | LS18: 22540.32 | LT18: 12253.72 | LU18: 23221.59 | LV18: 228.45 | LW18: 4200.23 | LX18: 42515.37 | LY18: 10192.7 | LZ18: 13452.54 | MA18: 11931.46 | MB18: 11900.57 | MC18: 68798.29 | MD18: 11932.99 | ME18: 393.52 | MF18: 15790.22 | MG18: 11956.7 | MH18: 2885.04 | MI18: 120949.47 | MJ18: 5879.92 | MK18: 5786.61 | ML18: 695.63 | MM18: 0 | MN18: 1286.37 | MO18: 13706.33615 | MP18: 3956.93 | MQ18: 29052.39 | MR18: 508.53 | MS18: 10823.11 | MT18: 25409.86 | MU18: 1293.177439 | MV18: 1718.19 | MW18: 10979.85 | MX18: 0 | MY18: 4014.49 | MZ18: 1543.03 | NA18: 4393.88 | NB18: 4747.58 | NC18: 10092.01 | ND18: 8749.09 | NE18: 27770.61 | NF18: 5713.68 | NG18: 0 | NH18: 7133.5 | NI18: 4496.58 | NJ18: 8196.59 | NK18: 47879.57 | NL18: 0 | NM18: 21257.69 | NN18: 11787.29 | NO18: 56284.02 | NP18: 264.7 | NQ18: 1410.73 | NR18: 33027.82 | NS18: 2501.99 | NT18: 70660.6 | NU18: 42626.67 | NV18: 0 | NW18: 0 | NX18: 6124.594164 | NY18: 7683.056756 | NZ18: 40135.72 | OA18: 20542.57 | OB18: 16310.06 | OC18: =SUMIF(List06_flag_year,"y",OC19:OC71) -> 22200.69 | OD18: 18203.54 | OE18: 639.4 | OF18: 36189.54 | OG18: 222.7132 | OH18: 20743.09 | OI18: 84953.36 | OJ18: 26275.14 | OK18: 15388.33 | OL18: 23589.45 | OM18: 6969.251902 | ON18: 32479.05 | OO18: 10763.01 | OP18: 1338.54 | OQ18: 281.2444076 | OR18: 10925.33 | OS18: 0 | OT18: 21257.69 | OU18: 3539.23 | OV18: 24836.4 | OW18: 0 | OX18: 11111.84722 | OY18: 1220.974578 | OZ18: 19965.90301 | PA18: 15095.30877 | PB18: 502.2726721 | PC18: 608.6292027 | PD18: 852.6080528 | PE18: 20040.6654 | PF18: 13103.71 | PG18: 34683.54 | PH18: 20093.68 | PI18: 6164.07 | PJ18: 1065.51 | PK18: 60229.15 | PL18: 22169.07 | PM18: 5428.28 | PN18: 11133.21 | PO18: 24267.32 | PP18: 23486.76 | PQ18: 17004.57 | PR18: 12010.42 | PS18: 31605.7 | PT18: 13427.76 | PU18: 12549.55 | PV18: 12732.31 | PW18: 31956.18 | PX18: 81.78591821 | PY18: 2815.32 | PZ18: 5380.75 | QA18: 0 | QB18: 4819.52 | QC18: 29879.71 | QD18: 1563.62 | QE18: 8934.79 | QF18: 32309.05 | QG18: 0 | QH18: 0 | QI18: 0 | QJ18: 21257.69 | QK18: 0 | QL18: 160 | QM18: 36871.46 | QN18: 558.2400692 | QO18: =SUMIF(List06_flag_year,"y",QO19:QO71) -> 2637.971614 | QP18: 36990.90668 | QQ18: 495.8082524 | QR18: 871.6196598 | QS18: 660.4170543 | QT18: 23022.99 | QU18: 9320.35 | QV18: 3679.45 | QW18: 32059.64 | QX18: 50087.34 | QY18: 25602.8 | QZ18: 5142.35 | RA18: 5466.98 | RB18: 0 | RC18: 0 | RD18: 189.24 | RE18: 255.94 | RF18: 0 | RG18: 11670.35 | RH18: 32630.96 | RI18: 40036.38 | RJ18: 6143.05 | RK18: 10105.95 | RL18: 3066.2 | RM18: 46798.41 | RN18: 9728.61 | RO18: 8679.2 | RP18: 69003.35 | RQ18: 12942.99 | RR18: 33728.74 | RS18: 9545.80869 | RT18: 0 | RU18: 35497.49 | RV18: 10815.92297 | RW18: 8436.384419 | RX18: 55541.7325 | RY18: 54365.53 | RZ18: 58036.4 | SA18: 3091.91 | SB18: 13128.13 | SC18: 0 | SD18: 15608.95 | SE18: 57039.24 | SF18: 858.38 | SG18: 3191.85 | SH18: 3063.31 | SI18: 54435.74 | SJ18: 3880.53 | SK18: 152533.41 | SL18: 775.0889052 | SM18: 563.63 | SN18: 2568.79 | SO18: 284.1992652 | SP18: 12156.88 | SQ18: 2827.58 | SR18: 500 | SS18: 500 | ST18: 189 | SU18: 1600 | SV18: 11400.2 | SW18: 8900 | SX18: 1936.02 | SY18: 547 | SZ18: 639 | TA18: =SUMIF(List06_flag_year,"y",TA19:TA71) -> 773 | TB18: 1669.81 | TC18: 88.81 | TD18: 2700 | TE18: 500 | TF18: 500 | TG18: 500 | TH18: 248.46 | TI18: 219.49 | TJ18: 99.47 | TK18: 186.44 | TL18: 331.62 | TM18: 90.11 | TN18: 72.29 | TO18: 828.81 | TP18: 0 | TQ18: 828.81 | TR18: 828.81 | TS18: 828.81 | TT18: 1756 | TU18: 1389 | TV18: 787 | TW18: 460 | TX18: 394 | TY18: 19025
A19: 8.0 | E19: =A19 -> 8.0 | G19: тыс руб | H19: =SUM(H20:H21) -> 0 | I19: 0 | J19: 0 | K19: 0 | L19: 0 | M19: 0 | N19: 0 | O19: 0 | P19: 0 | Q19: 0 | R19: 0 | S19: 0 | T19: 0 | U19: 0 | V19: 0 | W19: 0 | X19: 0 | Y19: 0 | Z19: 0 | AA19: 0 | AB19: 0 | AC19: 0 | AD19: 0 | AE19: 0 | AF19: 0 | AG19: 0 | AH19: 0 | AI19: 0 | AJ19: 0 | AK19: 0 | AL19: 0 | AM19: 0 | AN19: 0 | AO19: 0 | AP19: 0 | AQ19: 0 | AR19: 0 | AS19: 0 | AT19: 0 | AU19: 0 | AV19: 0 | AW19: 0 | AX19: 0 | AY19: 0 | AZ19: 0 | BA19: 0 | BB19: 0 | BC19: 0 | BD19: 0 | BE19: 0 | BF19: 0 | BG19: 0 | BH19: 0 | BI19: 0 | BJ19: 0 | BK19: 0 | BL19: 0 | BM19: 0 | BN19: 0 | BO19: 0 | BP19: 0 | BQ19: 0 | BR19: 0 | BS19: 0 | BT19: 0 | BU19: 0 | BV19: 0 | BW19: 0 | BX19: 0 | BY19: 0 | BZ19: 0 | CA19: 0 | CB19: 0 | CC19: 0 | CD19: 0 | CE19: 0 | CF19: 0 | CG19: 0 | CH19: 0 | CI19: 0 | CJ19: 0 | CK19: 0 | CL19: =SUM(CL20:CL21) -> 0 | CM19: 0 | CN19: 0 | CO19: 0 | CP19: 0 | CQ19: 0 | CR19: 0 | CS19: 0 | CT19: 0 | CU19: 0 | CV19: 0 | CW19: 0 | CX19: 0 | CY19: 0 | CZ19: 0 | DA19: 0 | DB19: 0 | DC19: 0 | DD19: 0 | DE19: 0 | DF19: 0 | DG19: 0 | DH19: 0 | DI19: 0 | DJ19: 0 | DK19: 0 | DL19: 0 | DM19: 0 | DN19: 0 | DO19: 0 | DP19: 0 | DQ19: 0 | DR19: 0 | DS19: 0 | DT19: 0 | DU19: 0 | DV19: 0 | DW19: 0 | DX19: 0 | DY19: 0 | DZ19: 0 | EA19: 0 | EB19: 0 | EC19: 0 | ED19: 0 | EE19: 0 | EF19: 0 | EG19: 0 | EH19: 0 | EI19: 0 | EJ19: 0 | EK19: 0 | EL19: 0 | EM19: 0 | EN19: 0 | EO19: 0 | EP19: 0 | EQ19: 0 | ER19: 0 | ES19: 0 | ET19: 0 | EU19: 0 | EV19: 0 | EW19: 0 | EX19: =SUM(EX20:EX21) -> 0 | EY19: 0 | EZ19: 0 | FA19: 0 | FB19: 0 | FC19: 0 | FD19: 0 | FE19: 0 | FF19: 0 | FG19: 0 | FH19: 0 | FI19: 0 | FJ19: 0 | FK19: 0 | FL19: 0 | FM19: 0 | FN19: 0 | FO19: 0 | FP19: 0 | FQ19: 0 | FR19: 0 | FS19: 0 | FT19: 0 | FU19: 0 | FV19: 0 | FW19: 0 | FX19: 0 | FY19: 0 | FZ19: 0 | GA19: 0 | GB19: 0 | GC19: 0 | GD19: 0 | GE19: 0 | GF19: 0 | GG19: 0 | GH19: 0 | GI19: 0 | GJ19: 0 | GK19: 0 | GL19: 0 | GM19: =SUM(GM20:GM21) -> 0 | GN19: 0 | GO19: 0 | GP19: 0 | GQ19: 0 | GR19: 0 | GS19: 0 | GT19: 0 | GU19: 0 | GV19: 0 | GW19: 0 | GX19: 0 | GY19: 0 | GZ19: 0 | HA19: 0 | HB19: 0 | HC19: 0 | HD19: 0 | HE19: 0 | HF19: 0 | HG19: 0 | HH19: 0 | HI19: 0 | HJ19: 0 | HK19: 0 | HL19: 0 | HM19: 0 | HN19: 0 | HO19: 0 | HP19: 0 | HQ19: 0 | HR19: 0 | HS19: 0 | HT19: 0 | HU19: 0 | HV19: 0 | HW19: 0 | HX19: 0 | HY19: 0 | HZ19: 0 | IA19: 0 | IB19: 0 | IC19: 0 | ID19: 0 | IE19: 0 | IF19: 0 | IG19: 0 | IH19: 0 | II19: 0 | IJ19: 0 | IK19: 0 | IL19: 0 | IM19: 0 | IN19: 0 | IO19: 0 | IP19: 0 | IQ19: 0 | IR19: 0 | IS19: 0 | IT19: 0 | IU19: =SUM(IU20:IU21) -> 0 | IV19: 0 | IW19: 0 | IX19: 0 | IY19: 0 | IZ19: 0 | JA19: 0 | JB19: 0 | JC19: 0 | JD19: 0 | JE19: 0 | JF19: 0 | JG19: 0 | JH19: 0 | JI19: 0 | JJ19: 0 | JK19: 0 | JL19: 0 | JM19: 0 | JN19: 0 | JO19: 0 | JP19: 0 | JQ19: 0 | JR19: 0 | JS19: 0 | JT19: 0 | JU19: 0 | JV19: 0 | JW19: 0 | JX19: 0 | JY19: 0 | JZ19: 0 | KA19: 0 | KB19: 0 | KC19: 0 | KD19: 0 | KE19: 0 | KF19: 0 | KG19: 0 | KH19: 0 | KI19: 0 | KJ19: 0 | KK19: 0 | KL19: 0 | KM19: 0 | KN19: 0 | KO19: 0 | KP19: 0 | KQ19: 0 | KR19: 0 | KS19: 0 | KT19: 0 | KU19: 0 | KV19: 0 | KW19: 0 | KX19: 0 | KY19: 0 | KZ19: 0 | LA19: 0 | LB19: 0 | LC19: 0 | LD19: 0 | LE19: 0 | LF19: =SUM(LF20:LF21) -> 0 | LG19: 0 | LH19: 0 | LI19: 0 | LJ19: 0 | LK19: 0 | LL19: 0 | LM19: 0 | LN19: 0 | LO19: 0 | LP19: 0 | LQ19: 0 | LR19: 0 | LS19: 0 | LT19: 0 | LU19: 0 | LV19: 0 | LW19: 0 | LX19: 0 | LY19: 0 | LZ19: 0 | MA19: 0 | MB19: 0 | MC19: 0 | MD19: 0 | ME19: 0 | MF19: 0 | MG19: 0 | MH19: 0 | MI19: 0 | MJ19: 0 | MK19: 0 | ML19: 0 | MM19: 0 | MN19: 0 | MO19: 0 | MP19: 0 | MQ19: 0 | MR19: 0 | MS19: 0 | MT19: 0 | MU19: 0 | MV19: 0 | MW19: 0 | MX19: 0 | MY19: 0 | MZ19: 0 | NA19: 0 | NB19: 0 | NC19: 0 | ND19: 0 | NE19: 0 | NF19: 0 | NG19: 0 | NH19: 0 | NI19: 0 | NJ19: 0 | NK19: 0 | NL19: 0 | NM19: 0 | NN19: 0 | NO19: 0 | NP19: 0 | NQ19: =SUM(NQ20:NQ21) -> 0 | NR19: 0 | NS19: 0 | NT19: 0 | NU19: 0 | NV19: 0 | NW19: 0 | NX19: 0 | NY19: 0 | NZ19: 0 | OA19: 0 | OB19: 0 | OC19: 0 | OD19: 0 | OE19: 0 | OF19: 0 | OG19: 0 | OH19: 0 | OI19: 0 | OJ19: 0 | OK19: 0 | OL19: 0 | OM19: 0 | ON19: 0 | OO19: 0 | OP19: 0 | OQ19: 0 | OR19: 0 | OS19: 0 | OT19: 0 | OU19: 0 | OV19: 0 | OW19: 0 | OX19: 0 | OY19: 0 | OZ19: 0 | PA19: 0 | PB19: 0 | PC19: 0 | PD19: 0 | PE19: 0 | PF19: 0 | PG19: 0 | PH19: 0 | PI19: 0 | PJ19: 0 | PK19: 0 | PL19: 0 | PM19: 0 | PN19: 0 | PO19: 0 | PP19: 0 | PQ19: 0 | PR19: 0 | PS19: 0 | PT19: 0 | PU19: 0 | PV19: 0 | PW19: 0 | PX19: 0 | PY19: 0 | PZ19: 0 | QA19: 0 | QB19: 0 | QC19: =SUM(QC20:QC21) -> 0 | QD19: 0 | QE19: 0 | QF19: 0 | QG19: 0 | QH19: 0 | QI19: 0 | QJ19: 0 | QK19: 0 | QL19: 0 | QM19: 0 | QN19: 0 | QO19: 0 | QP19: 0 | QQ19: 0 | QR19: 0 | QS19: 0 | QT19: 0 | QU19: 0 | QV19: 0 | QW19: 0 | QX19: 0 | QY19: 0 | QZ19: 0 | RA19: 0 | RB19: 0 | RC19: 0 | RD19: 0 | RE19: 0 | RF19: 0 | RG19: 0 | RH19: 0 | RI19: 0 | RJ19: 0 | RK19: 0 | RL19: 0 | RM19: 0 | RN19: 0 | RO19: 0 | RP19: 0 | RQ19: 0 | RR19: 0 | RS19: 0 | RT19: 0 | RU19: 0 | RV19: 0 | RW19: 0 | RX19: 0 | RY19: 0 | RZ19: 0 | SA19: 0 | SB19: 0 | SC19: 0 | SD19: 0 | SE19: 0 | SF19: 0 | SG19: 0 | SH19: 0 | SI19: 0 | SJ19: 0 | SK19: 0 | SL19: 0 | SM19: 0 | SN19: 0 | SO19: =SUM(SO20:SO21) -> 0 | SP19: =SUM(SP20:SP21) -> 0 | SQ19: =SUM(SQ20:SQ21) -> 0 | SR19: =SUM(SR20:SR21) -> 0 | SS19: =SUM(SS20:SS21) -> 0 | ST19: 0 | SU19: 0 | SV19: 0 | SW19: 0 | SX19: 0 | SY19: 0 | SZ19: 0 | TA19: 0 | TB19: 0 | TC19: 0 | TD19: 0 | TE19: 0 | TF19: 0 | TG19: 0 | TH19: 0 | TI19: 0 | TJ19: 0 | TK19: 0 | TL19: 0 | TM19: 0 | TN19: 0 | TO19: 0 | TP19: 0 | TQ19: 0 | TR19: 0 | TS19: 0 | TT19: 0 | TU19: 0 | TV19: 0 | TW19: 0 | TX19: 0 | TY19: 0 | TZ19: y
B20: 1 | E20: =A19&"."&B20 -> 8.0.1 | G20: тыс руб | H20: =SUM(I20:TZ20) -> 0
F21: Добавить источники
A22: 8.1 | C22: О | E22: =A22 -> 8.1 | F22: 2016 | G22: тыс руб | H22: =SUM(H23:H25) -> 150059.5912 | I22: =SUM(I23:I25) -> 0 | J22: =SUM(J23:J25) -> 26832.64 | K22: =SUM(K23:K25) -> 32905.27 | L22: =SUM(L23:L25) -> 25494.53 | M22: =SUM(M23:M25) -> 19000.56 | N22: 7469.55 | O22: 4893.38 | P22: 6969.027 | Q22: 9935.81 | R22: 1509.106 | S22: 3654.526 | T22: 175.2966 | U22: 58.4322 | V22: 29.2161 | W22: 402.2034 | X22: 67.0339 | Y22: 732.9915 | Z22: 122.16525 | AA22: 122.16525 | AB22: 85.906 | AC22: 343.624 | AD22: 137.432 | AE22: 137.432 | AF22: 717 | AG22: 358.5 | AH22: 53.16949 | AI22: 105.40254 | AJ22: 836.86441 | AK22: 358.30508 | AL22: 358.30508 | AM22: 248.084745 | AN22: 82.694915 | AO22: 30.50847 | AP22: 500.42576 | AQ22: 90.693 | AR22: 44.2115 | AS22: 44.2115 | AT22: 262.3322 | AU22: 69.75 | AV22: 109.37431 | AW22: 70.869 | AX22: 999.1472 | AY22: 282.209 | AZ22: 70.869 | BA22: 70.869 | BB22: 70.869 | BC22: 456.20593 | BD22: 184.677 | BE22: 313.72092 | BF22: 131.465 | BG22: 142.9425 | BH22: 739.897 | BI22: 588.8602 | BJ22: 588.8602 | BK22: 0 | BL22: 0 | BM22: 0 | BN22: 0 | BO22: 0 | BP22: 0 | BQ22: 0 | BR22: 0 | BS22: 0 | BT22: 0 | BU22: 0 | BV22: 0 | BW22: 0 | BX22: 0 | BY22: =SUM(BY23:BY25) -> 0 | BZ22: 0 | CA22: 0 | CB22: 0 | CC22: 0 | CD22: 0 | CE22: 0 | CF22: 0 | CG22: 0 | CH22: 0 | CI22: 0 | CJ22: 0 | CK22: 0 | CL22: 0 | CM22: 0 | CN22: 0 | CO22: 0 | CP22: 0 | CQ22: 0 | CR22: 0 | CS22: 0 | CT22: 0 | CU22: 0 | CV22: 0 | CW22: 0 | CX22: 0 | CY22: 0 | CZ22: 0 | DA22: 0 | DB22: 0 | DC22: 0 | DD22: 0 | DE22: 0 | DF22: 0 | DG22: 0 | DH22: 0 | DI22: 0 | DJ22: 0 | DK22: 0 | DL22: 0 | DM22: 0 | DN22: 0 | DO22: 0 | DP22: 0 | DQ22: 0 | DR22: 0 | DS22: 0 | DT22: 0 | DU22: 0 | DV22: 0 | DW22: 0 | DX22: 0 | DY22: 0 | DZ22: 0 | EA22: 0 | EB22: 0 | EC22: 0 | ED22: 0 | EE22: 0 | EF22: 0 | EG22: 0 | EH22: 0 | EI22: 0 | EJ22: 0 | EK22: =SUM(EK23:EK25) -> 0 | EL22: 0 | EM22: 0 | EN22: 0 | EO22: 0 | EP22: 0 | EQ22: 0 | ER22: 0 | ES22: 0 | ET22: 0 | EU22: 0 | EV22: 0 | EW22: 0 | EX22: 0 | EY22: 0 | EZ22: 0 | FA22: 0 | FB22: 0 | FC22: 0 | FD22: 0 | FE22: 0 | FF22: 0 | FG22: 0 | FH22: 0 | FI22: 0 | FJ22: 0 | FK22: 0 | FL22: 0 | FM22: 0 | FN22: 0 | FO22: 0 | FP22: 0 | FQ22: 0 | FR22: 0 | FS22: 0 | FT22: 0 | FU22: 0 | FV22: 0 | FW22: 0 | FX22: 0 | FY22: 0 | FZ22: 0 | GA22: 0 | GB22: 0 | GC22: 0 | GD22: 0 | GE22: 0 | GF22: 0 | GG22: 0 | GH22: 0 | GI22: 0 | GJ22: 0 | GK22: 0 | GL22: 0 | GM22: =SUM(GM23:GM25) -> 0 | GN22: 0 | GO22: 0 | GP22: 0 | GQ22: 0 | GR22: 0 | GS22: 0 | GT22: 0 | GU22: 0 | GV22: 0 | GW22: 0 | GX22: 0 | GY22: 0 | GZ22: 0 | HA22: 0 | HB22: 0 | HC22: 0 | HD22: 0 | HE22: 0 | HF22: 0 | HG22: 0 | HH22: 0 | HI22: 0 | HJ22: 0 | HK22: 0 | HL22: 0 | HM22: 0 | HN22: 0 | HO22: 0 | HP22: 0 | HQ22: 0 | HR22: 0 | HS22: 0 | HT22: 0 | HU22: 0 | HV22: 0 | HW22: 0 | HX22: 0 | HY22: 0 | HZ22: 0 | IA22: 0 | IB22: 0 | IC22: 0 | ID22: 0 | IE22: 0 | IF22: 0 | IG22: 0 | IH22: =SUM(IH23:IH25) -> 0 | II22: 0 | IJ22: 0 | IK22: 0 | IL22: 0 | IM22: 0 | IN22: 0 | IO22: 0 | IP22: 0 | IQ22: 0 | IR22: 0 | IS22: 0 | IT22: 0 | IU22: 0 | IV22: 0 | IW22: 0 | IX22: 0 | IY22: 0 | IZ22: 0 | JA22: 0 | JB22: 0 | JC22: 0 | JD22: 0 | JE22: 0 | JF22: 0 | JG22: 0 | JH22: 0 | JI22: 0 | JJ22: 0 | JK22: 0 | JL22: 0 | JM22: 0 | JN22: 0 | JO22: 0 | JP22: 0 | JQ22: 0 | JR22: 0 | JS22: 0 | JT22: 0 | JU22: 0 | JV22: 0 | JW22: 0 | JX22: 0 | JY22: 0 | JZ22: 0 | KA22: 0 | KB22: 0 | KC22: 0 | KD22: 0 | KE22: 0 | KF22: 0 | KG22: 0 | KH22: 0 | KI22: 0 | KJ22: 0 | KK22: 0 | KL22: 0 | KM22: 0 | KN22: 0 | KO22: 0 | KP22: 0 | KQ22: 0 | KR22: 0 | KS22: =SUM(KS23:KS25) -> 0 | KT22: 0 | KU22: 0 | KV22: 0 | KW22: 0 | KX22: 0 | KY22: 0 | KZ22: 0 | LA22: 0 | LB22: 0 | LC22: 0 | LD22: 0 | LE22: 0 | LF22: 0 | LG22: 0 | LH22: 0 | LI22: 0 | LJ22: 0 | LK22: 0 | LL22: 0 | LM22: 0 | LN22: 0 | LO22: 0 | LP22: 0 | LQ22: 0 | LR22: 0 | LS22: 0 | LT22: 0 | LU22: 0 | LV22: 0 | LW22: 0 | LX22: 0 | LY22: 0 | LZ22: 0 | MA22: 0 | MB22: 0 | MC22: 0 | MD22: 0 | ME22: 0 | MF22: 0 | MG22: 0 | MH22: 0 | MI22: 0 | MJ22: 0 | MK22: 0 | ML22: 0 | MM22: 0 | MN22: 0 | MO22: 0 | MP22: 0 | MQ22: 0 | MR22: 0 | MS22: 0 | MT22: 0 | MU22: 0 | MV22: 0 | MW22: 0 | MX22: 0 | MY22: 0 | MZ22: 0 | NA22: 0 | NB22: 0 | NC22: 0 | ND22: =SUM(ND23:ND25) -> 0 | NE22: 0 | NF22: 0 | NG22: 0 | NH22: 0 | NI22: 0 | NJ22: 0 | NK22: 0 | NL22: 0 | NM22: 0 | NN22: 0 | NO22: 0 | NP22: 0 | NQ22: 0 | NR22: 0 | NS22: 0 | NT22: 0 | NU22: 0 | NV22: 0 | NW22: 0 | NX22: 0 | NY22: 0 | NZ22: 0 | OA22: 0 | OB22: 0 | OC22: 0 | OD22: 0 | OE22: 0 | OF22: 0 | OG22: 0 | OH22: 0 | OI22: 0 | OJ22: 0 | OK22: 0 | OL22: 0 | OM22: 0 | ON22: 0 | OO22: 0 | OP22: 0 | OQ22: 0 | OR22: 0 | OS22: 0 | OT22: 0 | OU22: 0 | OV22: 0 | OW22: 0 | OX22: 0 | OY22: 0 | OZ22: 0 | PA22: 0 | PB22: 0 | PC22: 0 | PD22: 0 | PE22: 0 | PF22: 0 | PG22: 0 | PH22: 0 | PI22: 0 | PJ22: 0 | PK22: 0 | PL22: 0 | PM22: 0 | PN22: 0 | PO22: 0 | PP22: =SUM(PP23:PP25) -> 0 | PQ22: 0 | PR22: 0 | PS22: 0 | PT22: 0 | PU22: 0 | PV22: 0 | PW22: 0 | PX22: 0 | PY22: 0 | PZ22: 0 | QA22: 0 | QB22: 0 | QC22: 0 | QD22: 0 | QE22: 0 | QF22: 0 | QG22: 0 | QH22: 0 | QI22: 0 | QJ22: 0 | QK22: 0 | QL22: 0 | QM22: 0 | QN22: 0 | QO22: 0 | QP22: 0 | QQ22: 0 | QR22: 0 | QS22: 0 | QT22: 0 | QU22: 0 | QV22: 0 | QW22: 0 | QX22: 0 | QY22: 0 | QZ22: 0 | RA22: 0 | RB22: 0 | RC22: 0 | RD22: 0 | RE22: 0 | RF22: 0 | RG22: 0 | RH22: 0 | RI22: 0 | RJ22: 0 | RK22: 0 | RL22: 0 | RM22: 0 | RN22: 0 | RO22: 0 | RP22: 0 | RQ22: 0 | RR22: 0 | RS22: 0 | RT22: 0 | RU22: 0 | RV22: 0 | RW22: 0 | RX22: 0 | RY22: 0 | RZ22: 0 | SA22: 0 | SB22: =SUM(SB23:SB25) -> 0 | SC22: 0 | SD22: 0 | SE22: 0 | SF22: 0 | SG22: 0 | SH22: 0 | SI22: 0 | SJ22: 0 | SK22: 0 | SL22: 0 | SM22: 0 | SN22: 0 | SO22: 0 | SP22: 0 | SQ22: =SUM(SQ23:SQ25) -> 0 | SR22: 0 | SS22: 0 | ST22: 0 | SU22: 0 | SV22: 0 | SW22: 0 | SX22: 0 | SY22: 0 | SZ22: 0 | TA22: 0 | TB22: 0 | TC22: 0 | TD22: 0 | TE22: 0 | TF22: 0 | TG22: 0 | TH22: 0 | TI22: 0 | TJ22: 0 | TK22: 0 | TL22: 0 | TM22: 0 | TN22: 0 | TO22: 0 | TP22: =SUM(TP23:TP25) -> 0 | TQ22: 0 | TR22: 0 | TS22: 0 | TT22: 0 | TU22: 0 | TV22: 0 | TW22: 0 | TX22: 0 | TY22: 0 | TZ22: y
B23: 1 | E23: =A22&"."&B23 -> 8.1.1 | F23: амортизация | G23: тыс руб | H23: =SUM(I23:TZ23) -> 65712.27 | J23: 0 | K23: 32905.27 | L23: 23828.35 | M23: 0 | N23: 7469.55 | O23: 0 | P23: 0 | Q23: 0 | R23: 1509.1 | S23: 0 | T23: 0 | U23: 0 | V23: 0 | W23: 0 | X23: 0 | Y23: 0 | Z23: 0 | AA23: 0 | AB23: 0 | AC23: 0 | AD23: 0 | AE23: 0 | AF23: 0 | AG23: 0 | AH23: 0 | AI23: 0 | AJ23: 0 | AK23: 0 | AL23: 0 | AM23: 0 | AN23: 0 | AO23: 0 | AP23: 0 | AQ23: 0 | AR23: 0 | AS23: 0 | AT23: 0 | AU23: 0 | AV23: 0 | AW23: 0 | AX23: 0 | AY23: 0 | AZ23: 0 | BA23: 0 | BB23: 0 | BC23: 0 | BD23: 0 | BE23: 0 | BF23: 0 | BG23: 0 | BH23: 0 | BI23: 0 | BJ23: 0 | BK23: 0 | BL23: 0 | BM23: 0 | BN23: 0 | BO23: 0 | BP23: 0 | BQ23: 0 | BR23: 0 | BS23: 0 | BT23: 0 | BU23: 0 | BV23: 0 | BW23: 0 | BX23: 0 | BY23: 0 | BZ23: 0 | CA23: 0 | CB23: 0 | CC23: 0 | CD23: 0 | CE23: 0 | CF23: 0 | CG23: 0 | CH23: 0 | CI23: 0 | CJ23: 0 | CK23: 0 | CL23: 0 | CM23: 0 | CN23: 0 | CO23: 0 | CP23: 0 | CQ23: 0 | CR23: 0 | CS23: 0 | CT23: 0 | CU23: 0 | CV23: 0 | CW23: 0 | CX23: 0 | CY23: 0 | CZ23: 0 | DA23: 0 | DB23: 0 | DC23: 0 | DD23: 0 | DE23: 0 | DF23: 0 | DG23: 0 | DH23: 0 | DI23: 0 | DJ23: 0 | DK23: 0 | DL23: 0 | DM23: 0 | DN23: 0 | DO23: 0 | DP23: 0 | DQ23: 0 | DR23: 0 | DS23: 0 | DT23: 0 | DU23: 0 | DV23: 0 | DW23: 0 | DX23: 0 | DY23: 0 | DZ23: 0 | EA23: 0 | EB23: 0 | EC23: 0 | ED23: 0 | EE23: 0 | EF23: 0 | EG23: 0 | EH23: 0 | EI23: 0 | EJ23: 0 | EK23: 0 | EL23: 0 | EM23: 0 | EN23: 0 | EO23: 0 | EP23: 0 | EQ23: 0 | ER23: 0 | ES23: 0 | ET23: 0 | EU23: 0 | EV23: 0 | EW23: 0 | EX23: 0 | EY23: 0 | EZ23: 0 | FA23: 0 | FB23: 0 | FC23: 0 | FD23: 0 | FE23: 0 | FF23: 0 | FG23: 0 | FH23: 0 | FI23: 0 | FJ23: 0 | FK23: 0 | FL23: 0 | FM23: 0 | FN23: 0 | FO23: 0 | FP23: 0 | FQ23: 0 | FR23: 0 | FS23: 0 | FT23: 0 | FU23: 0 | FV23: 0 | FW23: 0 | FX23: 0 | FY23: 0 | FZ23: 0 | GA23: 0 | GB23: 0 | GC23: 0 | GD23: 0 | GE23: 0 | GF23: 0 | GG23: 0 | GH23: 0 | GI23: 0 | GJ23: 0 | GK23: 0 | GL23: 0 | GM23: 0 | GN23: 0 | GO23: 0 | GP23: 0 | GQ23: 0 | GR23: 0 | GS23: 0 | GT23: 0 | GU23: 0 | GV23: 0 | GW23: 0 | GX23: 0 | GY23: 0 | GZ23: 0 | HA23: 0 | HB23: 0 | HC23: 0 | HD23: 0 | HE23: 0 | HF23: 0 | HG23: 0 | HH23: 0 | HI23: 0 | HJ23: 0 | HK23: 0 | HL23: 0 | HM23: 0 | HN23: 0 | HO23: 0 | HP23: 0 | HQ23: 0 | HR23: 0 | HS23: 0 | HT23: 0 | HU23: 0 | HV23: 0 | HW23: 0 | HX23: 0 | HY23: 0 | HZ23: 0 | IA23: 0 | IB23: 0 | IC23: 0 | ID23: 0 | IE23: 0 | IF23: 0 | IG23: 0 | IH23: 0 | II23: 0 | IJ23: 0 | IK23: 0 | IL23: 0 | IM23: 0 | IN23: 0 | IO23: 0 | IP23: 0 | IQ23: 0 | IR23: 0 | IS23: 0 | IT23: 0 | IU23: 0 | IV23: 0 | IW23: 0 | IX23: 0 | IY23: 0 | IZ23: 0 | JA23: 0 | JB23: 0 | JC23: 0 | JD23: 0 | JE23: 0 | JF23: 0 | JG23: 0 | JH23: 0 | JI23: 0 | JJ23: 0 | JK23: 0 | JL23: 0 | JM23: 0 | JN23: 0 | JO23: 0 | JP23: 0 | JQ23: 0 | JR23: 0 | JS23: 0 | JT23: 0 | JU23: 0 | JV23: 0 | JW23: 0 | JX23: 0 | JY23: 0 | JZ23: 0 | KA23: 0 | KB23: 0 | KC23: 0 | KD23: 0 | KE23: 0 | KF23: 0 | KG23: 0 | KH23: 0 | KI23: 0 | KJ23: 0 | KK23: 0 | KL23: 0 | KM23: 0 | KN23: 0 | KO23: 0 | KP23: 0 | KQ23: 0 | KR23: 0 | KS23: 0 | KT23: 0 | KU23: 0 | KV23: 0 | KW23: 0 | KX23: 0 | KY23: 0 | KZ23: 0 | LA23: 0 | LB23: 0 | LC23: 0 | LD23: 0 | LE23: 0 | LF23: 0 | LG23: 0 | LH23: 0 | LI23: 0 | LJ23: 0 | LK23: 0 | LL23: 0 | LM23: 0 | LN23: 0 | LO23: 0 | LP23: 0 | LQ23: 0 | LR23: 0 | LS23: 0 | LT23: 0 | LU23: 0 | LV23: 0 | LW23: 0 | LX23: 0 | LY23: 0 | LZ23: 0 | MA23: 0 | MB23: 0 | MC23: 0 | MD23: 0 | ME23: 0 | MF23: 0 | MG23: 0 | MH23: 0 | MI23: 0 | MJ23: 0 | MK23: 0 | ML23: 0 | MM23: 0 | MN23: 0 | MO23: 0 | MP23: 0 | MQ23: 0 | MR23: 0 | MS23: 0 | MT23: 0 | MU23: 0 | MV23: 0 | MW23: 0 | MX23: 0 | MY23: 0 | MZ23: 0 | NA23: 0 | NB23: 0 | NC23: 0 | ND23: 0 | NE23: 0 | NF23: 0 | NG23: 0 | NH23: 0 | NI23: 0 | NJ23: 0 | NK23: 0 | NL23: 0 | NM23: 0 | NN23: 0 | NO23: 0 | NP23: 0 | NQ23: 0 | NR23: 0 | NS23: 0 | NT23: 0 | NU23: 0 | NV23: 0 | NW23: 0 | NX23: 0 | NY23: 0 | NZ23: 0 | OA23: 0 | OB23: 0 | OC23: 0 | OD23: 0 | OE23: 0 | OF23: 0 | OG23: 0 | OH23: 0 | OI23: 0 | OJ23: 0 | OK23: 0 | OL23: 0 | OM23: 0 | ON23: 0 | OO23: 0 | OP23: 0 | OQ23: 0 | OR23: 0 | OS23: 0 | OT23: 0 | OU23: 0 | OV23: 0 | OW23: 0 | OX23: 0 | OY23: 0 | OZ23: 0 | PA23: 0 | PB23: 0 | PC23: 0 | PD23: 0 | PE23: 0 | PF23: 0 | PG23: 0 | PH23: 0 | PI23: 0 | PJ23: 0 | PK23: 0 | PL23: 0 | PM23: 0 | PN23: 0 | PO23: 0 | PP23: 0 | PQ23: 0 | PR23: 0 | PS23: 0 | PT23: 0 | PU23: 0 | PV23: 0 | PW23: 0 | PX23: 0 | PY23: 0 | PZ23: 0 | QA23: 0 | QB23: 0 | QC23: 0 | QD23: 0 | QE23: 0 | QF23: 0 | QG23: 0 | QH23: 0 | QI23: 0 | QJ23: 0 | QK23: 0 | QL23: 0 | QM23: 0 | QN23: 0 | QO23: 0 | QP23: 0 | QQ23: 0 | QR23: 0 | QS23: 0 | QT23: 0 | QU23: 0 | QV23: 0 | QW23: 0 | QX23: 0 | QY23: 0 | QZ23: 0 | RA23: 0 | RB23: 0 | RC23: 0 | RD23: 0 | RE23: 0 | RF23: 0 | RG23: 0 | RH23: 0 | RI23: 0 | RJ23: 0 | RK23: 0 | RL23: 0 | RM23: 0 | RN23: 0 | RO23: 0 | RP23: 0 | RQ23: 0 | RR23: 0 | RS23: 0 | RT23: 0 | RU23: 0 | RV23: 0 | RW23: 0 | RX23: 0 | RY23: 0 | RZ23: 0 | SA23: 0 | SB23: 0 | SC23: 0 | SD23: 0 | SE23: 0 | SF23: 0 | SG23: 0 | SH23: 0 | SI23: 0 | SJ23: 0 | SK23: 0 | SL23: 0 | SM23: 0 | SN23: 0 | SO23: 0 | SP23: 0 | SQ23: 0 | SR23: 0 | SS23: 0 | ST23: 0 | SU23: 0 | SV23: 0 | SW23: 0 | SX23: 0 | SY23: 0 | SZ23: 0 | TA23: 0 | TB23: 0 | TC23: 0 | TD23: 0 | TE23: 0 | TF23: 0 | TG23: 0 | TH23: 0 | TI23: 0 | TJ23: 0 | TK23: 0 | TL23: 0 | TM23: 0 | TN23: 0 | TO23: 0 | TP23: 0 | TQ23: 0 | TR23: 0 | TS23: 0 | TT23: 0 | TU23: 0 | TV23: 0 | TW23: 0 | TX23: 0 | TY23: 0
B24: 2 | D24: О | E24: =$A$22&"."&$B$24 -> 8.1.2 | F24: прибыль, направляемая на инвестиции | G24: тыс руб | H24: =SUM(I24:TZ24) -> 84347.32115 | J24: 26832.64 | K24: 0 | L24: 1666.18 | M24: 19000.56 | N24: 0 | O24: 4893.38 | P24: 6969.027 | Q24: 9935.81 | R24: 0.006 | S24: 3654.526 | T24: 175.2966 | U24: 58.4322 | V24: 29.2161 | W24: 402.2034 | X24: 67.0339 | Y24: 732.9915 | Z24: 122.16525 | AA24: 122.16525 | AB24: 85.906 | AC24: 343.624 | AD24: 137.432 | AE24: 137.432 | AF24: 717 | AG24: 358.5 | AH24: 53.16949 | AI24: 105.40254 | AJ24: 836.86441 | AK24: 358.30508 | AL24: 358.30508 | AM24: 248.084745 | AN24: 82.694915 | AO24: 30.50847 | AP24: 500.42576 | AQ24: 90.693 | AR24: 44.2115 | AS24: 44.2115 | AT24: 262.3322 | AU24: 69.75 | AV24: 109.37431 | AW24: 70.869 | AX24: 999.1472 | AY24: 282.209 | AZ24: 70.869 | BA24: 70.869 | BB24: 70.869 | BC24: 456.20593 | BD24: 184.677 | BE24: 313.72092 | BF24: 131.465 | BG24: 142.9425 | BH24: 739.897 | BI24: 588.8602 | BJ24: 588.8602 | BK24: 0 | BL24: 0 | BM24: 0 | BN24: 0 | BO24: 0 | BP24: 0 | BQ24: 0 | BR24: 0 | BS24: 0 | BT24: 0 | BU24: 0 | BV24: 0 | BW24: 0 | BX24: 0 | BY24: 0 | BZ24: 0 | CA24: 0 | CB24: 0 | CC24: 0 | CD24: 0 | CE24: 0 | CF24: 0 | CG24: 0 | CH24: 0 | CI24: 0 | CJ24: 0 | CK24: 0 | CL24: 0 | CM24: 0 | CN24: 0 | CO24: 0 | CP24: 0 | CQ24: 0 | CR24: 0 | CS24: 0 | CT24: 0 | CU24: 0 | CV24: 0 | CW24: 0 | CX24: 0 | CY24: 0 | CZ24: 0 | DA24: 0 | DB24: 0 | DC24: 0 | DD24: 0 | DE24: 0 | DF24: 0 | DG24: 0 | DH24: 0 | DI24: 0 | DJ24: 0 | DK24: 0 | DL24: 0 | DM24: 0 | DN24: 0 | DO24: 0 | DP24: 0 | DQ24: 0 | DR24: 0 | DS24: 0 | DT24: 0 | DU24: 0 | DV24: 0 | DW24: 0 | DX24: 0 | DY24: 0 | DZ24: 0 | EA24: 0 | EB24: 0 | EC24: 0 | ED24: 0 | EE24: 0 | EF24: 0 | EG24: 0 | EH24: 0 | EI24: 0 | EJ24: 0 | EK24: 0 | EL24: 0 | EM24: 0 | EN24: 0 | EO24: 0 | EP24: 0 | EQ24: 0 | ER24: 0 | ES24: 0 | ET24: 0 | EU24: 0 | EV24: 0 | EW24: 0 | EX24: 0 | EY24: 0 | EZ24: 0 | FA24: 0 | FB24: 0 | FC24: 0 | FD24: 0 | FE24: 0 | FF24: 0 | FG24: 0 | FH24: 0 | FI24: 0 | FJ24: 0 | FK24: 0 | FL24: 0 | FM24: 0 | FN24: 0 | FO24: 0 | FP24: 0 | FQ24: 0 | FR24: 0 | FS24: 0 | FT24: 0 | FU24: 0 | FV24: 0 | FW24: 0 | FX24: 0 | FY24: 0 | FZ24: 0 | GA24: 0 | GB24: 0 | GC24: 0 | GD24: 0 | GE24: 0 | GF24: 0 | GG24: 0 | GH24: 0 | GI24: 0 | GJ24: 0 | GK24: 0 | GL24: 0 | GM24: 0 | GN24: 0 | GO24: 0 | GP24: 0 | GQ24: 0 | GR24: 0 | GS24: 0 | GT24: 0 | GU24: 0 | GV24: 0 | GW24: 0 | GX24: 0 | GY24: 0 | GZ24: 0 | HA24: 0 | HB24: 0 | HC24: 0 | HD24: 0 | HE24: 0 | HF24: 0 | HG24: 0 | HH24: 0 | HI24: 0 | HJ24: 0 | HK24: 0 | HL24: 0 | HM24: 0 | HN24: 0 | HO24: 0 | HP24: 0 | HQ24: 0 | HR24: 0 | HS24: 0 | HT24: 0 | HU24: 0 | HV24: 0 | HW24: 0 | HX24: 0 | HY24: 0 | HZ24: 0 | IA24: 0 | IB24: 0 | IC24: 0 | ID24: 0 | IE24: 0 | IF24: 0 | IG24: 0 | IH24: 0 | II24: 0 | IJ24: 0 | IK24: 0 | IL24: 0 | IM24: 0 | IN24: 0 | IO24: 0 | IP24: 0 | IQ24: 0 | IR24: 0 | IS24: 0 | IT24: 0 | IU24: 0 | IV24: 0 | IW24: 0 | IX24: 0 | IY24: 0 | IZ24: 0 | JA24: 0 | JB24: 0 | JC24: 0 | JD24: 0 | JE24: 0 | JF24: 0 | JG24: 0 | JH24: 0 | JI24: 0 | JJ24: 0 | JK24: 0 | JL24: 0 | JM24: 0 | JN24: 0 | JO24: 0 | JP24: 0 | JQ24: 0 | JR24: 0 | JS24: 0 | JT24: 0 | JU24: 0 | JV24: 0 | JW24: 0 | JX24: 0 | JY24: 0 | JZ24: 0 | KA24: 0 | KB24: 0 | KC24: 0 | KD24: 0 | KE24: 0 | KF24: 0 | KG24: 0 | KH24: 0 | KI24: 0 | KJ24: 0 | KK24: 0 | KL24: 0 | KM24: 0 | KN24: 0 | KO24: 0 | KP24: 0 | KQ24: 0 | KR24: 0 | KS24: 0 | KT24: 0 | KU24: 0 | KV24: 0 | KW24: 0 | KX24: 0 | KY24: 0 | KZ24: 0 | LA24: 0 | LB24: 0 | LC24: 0 | LD24: 0 | LE24: 0 | LF24: 0 | LG24: 0 | LH24: 0 | LI24: 0 | LJ24: 0 | LK24: 0 | LL24: 0 | LM24: 0 | LN24: 0 | LO24: 0 | LP24: 0 | LQ24: 0 | LR24: 0 | LS24: 0 | LT24: 0 | LU24: 0 | LV24: 0 | LW24: 0 | LX24: 0 | LY24: 0 | LZ24: 0 | MA24: 0 | MB24: 0 | MC24: 0 | MD24: 0 | ME24: 0 | MF24: 0 | MG24: 0 | MH24: 0 | MI24: 0 | MJ24: 0 | MK24: 0 | ML24: 0 | MM24: 0 | MN24: 0 | MO24: 0 | MP24: 0 | MQ24: 0 | MR24: 0 | MS24: 0 | MT24: 0 | MU24: 0 | MV24: 0 | MW24: 0 | MX24: 0 | MY24: 0 | MZ24: 0 | NA24: 0 | NB24: 0 | NC24: 0 | ND24: 0 | NE24: 0 | NF24: 0 | NG24: 0 | NH24: 0 | NI24: 0 | NJ24: 0 | NK24: 0 | NL24: 0 | NM24: 0 | NN24: 0 | NO24: 0 | NP24: 0 | NQ24: 0 | NR24: 0 | NS24: 0 | NT24: 0 | NU24: 0 | NV24: 0 | NW24: 0 | NX24: 0 | NY24: 0 | NZ24: 0 | OA24: 0 | OB24: 0 | OC24: 0 | OD24: 0 | OE24: 0 | OF24: 0 | OG24: 0 | OH24: 0 | OI24: 0 | OJ24: 0 | OK24: 0 | OL24: 0 | OM24: 0 | ON24: 0 | OO24: 0 | OP24: 0 | OQ24: 0 | OR24: 0 | OS24: 0 | OT24: 0 | OU24: 0 | OV24: 0 | OW24: 0 | OX24: 0 | OY24: 0 | OZ24: 0 | PA24: 0 | PB24: 0 | PC24: 0 | PD24: 0 | PE24: 0 | PF24: 0 | PG24: 0 | PH24: 0 | PI24: 0 | PJ24: 0 | PK24: 0 | PL24: 0 | PM24: 0 | PN24: 0 | PO24: 0 | PP24: 0 | PQ24: 0 | PR24: 0 | PS24: 0 | PT24: 0 | PU24: 0 | PV24: 0 | PW24: 0 | PX24: 0 | PY24: 0 | PZ24: 0 | QA24: 0 | QB24: 0 | QC24: 0 | QD24: 0 | QE24: 0 | QF24: 0 | QG24: 0 | QH24: 0 | QI24: 0 | QJ24: 0 | QK24: 0 | QL24: 0 | QM24: 0 | QN24: 0 | QO24: 0 | QP24: 0 | QQ24: 0 | QR24: 0 | QS24: 0 | QT24: 0 | QU24: 0 | QV24: 0 | QW24: 0 | QX24: 0 | QY24: 0 | QZ24: 0 | RA24: 0 | RB24: 0 | RC24: 0 | RD24: 0 | RE24: 0 | RF24: 0 | RG24: 0 | RH24: 0 | RI24: 0 | RJ24: 0 | RK24: 0 | RL24: 0 | RM24: 0 | RN24: 0 | RO24: 0 | RP24: 0 | RQ24: 0 | RR24: 0 | RS24: 0 | RT24: 0 | RU24: 0 | RV24: 0 | RW24: 0 | RX24: 0 | RY24: 0 | RZ24: 0 | SA24: 0 | SB24: 0 | SC24: 0 | SD24: 0 | SE24: 0 | SF24: 0 | SG24: 0 | SH24: 0 | SI24: 0 | SJ24: 0 | SK24: 0 | SL24: 0 | SM24: 0 | SN24: 0 | SO24: 0 | SP24: 0 | SQ24: 0 | SR24: 0 | SS24: 0 | ST24: 0 | SU24: 0 | SV24: 0 | SW24: 0 | SX24: 0 | SY24: 0 | SZ24: 0 | TA24: 0 | TB24: 0 | TC24: 0 | TD24: 0 | TE24: 0 | TF24: 0 | TG24: 0 | TH24: 0 | TI24: 0 | TJ24: 0 | TK24: 0 | TL24: 0 | TM24: 0 | TN24: 0 | TO24: 0 | TP24: 0 | TQ24: 0 | TR24: 0 | TS24: 0 | TT24: 0 | TU24: 0 | TV24: 0 | TW24: 0 | TX24: 0 | TY24: 0
F25: Добавить источники
A26: 8.2 | C26: О | E26: =A26 -> 8.2 | F26: 2017 | G26: тыс руб | H26: =SUM(H27:H30) -> 434543 | I26: 0 | J26: 0 | K26: 0 | L26: 0 | M26: 0 | N26: 0 | O26: 0 | P26: 0 | Q26: 0 | R26: 665 | S26: 0 | T26: 0 | U26: 0 | V26: 0 | W26: 0 | X26: 0 | Y26: 0 | Z26: 0 | AA26: 0 | AB26: 0 | AC26: 0 | AD26: 0 | AE26: 0 | AF26: 0 | AG26: 0 | AH26: 0 | AI26: 0 | AJ26: 0 | AK26: 0 | AL26: 0 | AM26: 0 | AN26: 0 | AO26: 0 | AP26: 0 | AQ26: 0 | AR26: 0 | AS26: 0 | AT26: 0 | AU26: 0 | AV26: 0 | AW26: 1282 | AX26: 0 | AY26: 0 | AZ26: 0 | BA26: 0 | BB26: 0 | BC26: 0 | BD26: 0 | BE26: 0 | BF26: 0 | BG26: 0 | BH26: 0 | BI26: 0 | BJ26: 0 | BK26: 953 | BL26: 0 | BM26: 14676 | BN26: 5015 | BO26: 5817 | BP26: 2896 | BQ26: 4787 | BR26: 1914 | BS26: 3499 | BT26: =SUM(BT27:BT30) -> 52960 | BU26: 1185 | BV26: 1424 | BW26: 876 | BX26: 5149 | BY26: 75 | BZ26: 2994 | CA26: 1517 | CB26: 1521 | CC26: 14526 | CD26: 654 | CE26: 1591 | CF26: 1441 | CG26: 2859 | CH26: 4365 | CI26: 10280 | CJ26: 5280 | CK26: 2541 | CL26: 1907 | CM26: 60 | CN26: 1016 | CO26: 1759 | CP26: 0 | CQ26: 320 | CR26: 5847 | CS26: 2556 | CT26: 468 | CU26: 511 | CV26: 42 | CW26: 227 | CX26: 997 | CY26: 0 | CZ26: 686 | DA26: 73 | DB26: 96 | DC26: 1750 | DD26: 0 | DE26: 863 | DF26: 656 | DG26: 391 | DH26: 19661 | DI26: 11723 | DJ26: 3691 | DK26: 4023 | DL26: 150 | DM26: 0 | DN26: 42 | DO26: 0 | DP26: 42 | DQ26: 210 | DR26: 42 | DS26: 134 | DT26: 419 | DU26: 62 | DV26: 0 | DW26: 485 | DX26: 10044 | DY26: 533 | DZ26: 123 | EA26: 147 | EB26: 149 | EC26: 90 | ED26: 265 | EE26: 7621 | EF26: =SUM(EF27:EF30) -> 632 | EG26: 639 | EH26: 17 | EI26: 204 | EJ26: 211 | EK26: 54 | EL26: 84 | EM26: 573 | EN26: 0 | EO26: 0 | EP26: 210 | EQ26: 680 | ER26: 338 | ES26: 528 | ET26: 438 | EU26: 502 | EV26: 1115 | EW26: 1363 | EX26: 624 | EY26: 455 | EZ26: 471 | FA26: 2295 | FB26: 0 | FC26: 0 | FD26: 432 | FE26: 344 | FF26: 315 | FG26: 378 | FH26: 243 | FI26: 0 | FJ26: 396 | FK26: 468 | FL26: 0 | FM26: 0 | FN26: 42 | FO26: 384 | FP26: 18 | FQ26: 0 | FR26: 84 | FS26: 0 | FT26: 2316 | FU26: 43514 | FV26: 5204 | FW26: 3373 | FX26: 3802 | FY26: 5057 | FZ26: 3404 | GA26: 0 | GB26: 19180 | GC26: 998 | GD26: 5397 | GE26: 12421 | GF26: 4928 | GG26: 2680 | GH26: 2613 | GI26: 4447 | GJ26: 17306 | GK26: 1343 | GL26: 10840 | GM26: 0 | GN26: 0 | GO26: 0 | GP26: 0 | GQ26: 0 | GR26: =SUM(GR27:GR30) -> 0 | GS26: 0 | GT26: 0 | GU26: 0 | GV26: 0 | GW26: 0 | GX26: 0 | GY26: 0 | GZ26: 0 | HA26: 0 | HB26: 0 | HC26: 0 | HD26: 0 | HE26: 0 | HF26: 0 | HG26: 0 | HH26: 0 | HI26: 0 | HJ26: 1688 | HK26: 1084 | HL26: 0 | HM26: 0 | HN26: 0 | HO26: 0 | HP26: 0 | HQ26: 0 | HR26: 0 | HS26: 0 | HT26: 0 | HU26: 0 | HV26: 0 | HW26: 0 | HX26: 0 | HY26: 5738 | HZ26: 0 | IA26: 0 | IB26: 0 | IC26: 0 | ID26: 0 | IE26: 0 | IF26: 0 | IG26: 0 | IH26: 0 | II26: 0 | IJ26: 0 | IK26: 0 | IL26: 0 | IM26: 0 | IN26: 0 | IO26: 0 | IP26: 0 | IQ26: 0 | IR26: 0 | IS26: 0 | IT26: 0 | IU26: 0 | IV26: 0 | IW26: 0 | IX26: 0 | IY26: 0 | IZ26: 0 | JA26: 0 | JB26: 0 | JC26: 0 | JD26: =SUM(JD27:JD30) -> 0 | JE26: 0 | JF26: 0 | JG26: 0 | JH26: 0 | JI26: 0 | JJ26: 0 | JK26: 0 | JL26: 1322 | JM26: 0 | JN26: 0 | JO26: 0 | JP26: 0 | JQ26: 0 | JR26: 0 | JS26: 0 | JT26: 0 | JU26: 0 | JV26: 0 | JW26: 0 | JX26: 170 | JY26: 0 | JZ26: 0 | KA26: 0 | KB26: 0 | KC26: 0 | KD26: 0 | KE26: 0 | KF26: 0 | KG26: 0 | KH26: 0 | KI26: 0 | KJ26: 0 | KK26: 0 | KL26: 0 | KM26: 0 | KN26: 0 | KO26: 0 | KP26: 0 | KQ26: 0 | KR26: 0 | KS26: 0 | KT26: 0 | KU26: 0 | KV26: 0 | KW26: 0 | KX26: 0 | KY26: 0 | KZ26: 0 | LA26: 0 | LB26: 0 | LC26: 0 | LD26: 0 | LE26: 0 | LF26: 0 | LG26: 0 | LH26: 0 | LI26: 0 | LJ26: 0 | LK26: 0 | LL26: 0 | LM26: 0 | LN26: 0 | LO26: 0 | LP26: =SUM(LP27:LP30) -> 0 | LQ26: 0 | LR26: 0 | LS26: 259 | LT26: 0 | LU26: 0 | LV26: 0 | LW26: 0 | LX26: 0 | LY26: 0 | LZ26: 0 | MA26: 0 | MB26: 0 | MC26: 0 | MD26: 0 | ME26: 0 | MF26: 0 | MG26: 0 | MH26: 0 | MI26: 0 | MJ26: 0 | MK26: 0 | ML26: 0 | MM26: 0 | MN26: 0 | MO26: 0 | MP26: 0 | MQ26: 0 | MR26: 0 | MS26: 0 | MT26: 0 | MU26: 0 | MV26: 0 | MW26: 0 | MX26: 0 | MY26: 0 | MZ26: 0 | NA26: 0 | NB26: 0 | NC26: 0 | ND26: 0 | NE26: 0 | NF26: 0 | NG26: 0 | NH26: 0 | NI26: 0 | NJ26: 0 | NK26: 0 | NL26: 0 | NM26: 0 | NN26: 0 | NO26: 0 | NP26: 0 | NQ26: 0 | NR26: 0 | NS26: 0 | NT26: 0 | NU26: 0 | NV26: 0 | NW26: 0 | NX26: 0 | NY26: 0 | NZ26: 0 | OA26: 0 | OB26: =SUM(OB27:OB30) -> 0 | OC26: 0 | OD26: 0 | OE26: 0 | OF26: 0 | OG26: 0 | OH26: 0 | OI26: 0 | OJ26: 0 | OK26: 0 | OL26: 0 | OM26: 0 | ON26: 0 | OO26: 0 | OP26: 0 | OQ26: 0 | OR26: 0 | OS26: 0 | OT26: 0 | OU26: 0 | OV26: 0 | OW26: 0 | OX26: 0 | OY26: 0 | OZ26: 0 | PA26: 0 | PB26: 0 | PC26: 0 | PD26: 0 | PE26: 0 | PF26: 0 | PG26: 2268 | PH26: 0 | PI26: 0 | PJ26: 0 | PK26: 0 | PL26: 0 | PM26: 0 | PN26: 0 | PO26: 0 | PP26: 0 | PQ26: 0 | PR26: 0 | PS26: 0 | PT26: 0 | PU26: 0 | PV26: 0 | PW26: 0 | PX26: 0 | PY26: 0 | PZ26: 0 | QA26: 0 | QB26: 0 | QC26: 0 | QD26: 0 | QE26: 0 | QF26: 0 | QG26: 0 | QH26: 0 | QI26: 0 | QJ26: 0 | QK26: 0 | QL26: 0 | QM26: 0 | QN26: =SUM(QN27:QN30) -> 0 | QO26: 0 | QP26: 0 | QQ26: 0 | QR26: 0 | QS26: 0 | QT26: 0 | QU26: 0 | QV26: 0 | QW26: 0 | QX26: 0 | QY26: 0 | QZ26: 0 | RA26: 0 | RB26: 0 | RC26: 0 | RD26: 0 | RE26: 0 | RF26: 0 | RG26: 0 | RH26: 0 | RI26: 0 | RJ26: 0 | RK26: 0 | RL26: 0 | RM26: 0 | RN26: 0 | RO26: 0 | RP26: 0 | RQ26: 0 | RR26: 0 | RS26: 0 | RT26: 0 | RU26: 0 | RV26: 0 | RW26: 0 | RX26: 0 | RY26: 0 | RZ26: 0 | SA26: 0 | SB26: 0 | SC26: 0 | SD26: 0 | SE26: 0 | SF26: 0 | SG26: 0 | SH26: 0 | SI26: 0 | SJ26: 0 | SK26: 0 | SL26: 0 | SM26: 0 | SN26: 0 | SO26: 0 | SP26: 0 | SQ26: 0 | SR26: 0 | SS26: 0 | ST26: 0 | SU26: 0 | SV26: 0 | SW26: 0 | SX26: 0 | SY26: 387 | SZ26: =SUM(SZ27:SZ30) -> 479 | TA26: 613 | TB26: 741 | TC26: 0 | TD26: 0 | TE26: 0 | TF26: 0 | TG26: 0 | TH26: 0 | TI26: 0 | TJ26: 0 | TK26: 0 | TL26: 0 | TM26: 0 | TN26: 0 | TO26: 0 | TP26: 0 | TQ26: 0 | TR26: 0 | TS26: 0 | TT26: 1756 | TU26: 1389 | TV26: 787 | TW26: 460 | TX26: 394 | TY26: 19025 | TZ26: y
B27: 1 | E27: =A26&"."&B27 -> 8.2.1 | F27: амортизация | G27: тыс руб | H27: =SUM(I27:TZ27) -> 203349 | J27: 0 | K27: 0 | L27: 0 | M27: 0 | N27: 0 | O27: 0 | P27: 0 | Q27: 0 | R27: 0 | S27: 0 | T27: 0 | U27: 0 | V27: 0 | W27: 0 | X27: 0 | Y27: 0 | Z27: 0 | AA27: 0 | AB27: 0 | AC27: 0 | AD27: 0 | AE27: 0 | AF27: 0 | AG27: 0 | AH27: 0 | AI27: 0 | AJ27: 0 | AK27: 0 | AL27: 0 | AM27: 0 | AN27: 0 | AO27: 0 | AP27: 0 | AQ27: 0 | AR27: 0 | AS27: 0 | AT27: 0 | AU27: 0 | AV27: 0 | AW27: 0 | AX27: 0 | AY27: 0 | AZ27: 0 | BA27: 0 | BB27: 0 | BC27: 0 | BD27: 0 | BE27: 0 | BF27: 0 | BG27: 0 | BH27: 0 | BI27: 0 | BJ27: 0 | BK27: 953 | BL27: 0 | BM27: 0 | BN27: 0 | BO27: 0 | BP27: 0 | BQ27: 0 | BR27: 0 | BS27: 0 | BT27: 0 | BU27: 0 | BV27: 0 | BW27: 0 | BX27: 0 | BY27: 0 | BZ27: 2994 | CA27: 0 | CB27: 0 | CC27: 14526 | CD27: 654 | CE27: 0 | CF27: 1441 | CG27: 0 | CH27: 0 | CI27: 10280 | CJ27: 2939 | CK27: 0 | CL27: 0 | CM27: 0 | CN27: 1016 | CO27: 0 | CP27: 0 | CQ27: 0 | CR27: 2210 | CS27: 2556 | CT27: 0 | CU27: 511 | CV27: 42 | CW27: 227 | CX27: 997 | CY27: 0 | CZ27: 686 | DA27: 73 | DB27: 96 | DC27: 1750 | DD27: 0 | DE27: 863 | DF27: 656 | DG27: 391 | DH27: 19661 | DI27: 5695 | DJ27: 3691 | DK27: 4023 | DL27: 150 | DM27: 0 | DN27: 42 | DO27: 0 | DP27: 42 | DQ27: 210 | DR27: 42 | DS27: 134 | DT27: 419 | DU27: 62 | DV27: 0 | DW27: 485 | DX27: 10044 | DY27: 533 | DZ27: 123 | EA27: 147 | EB27: 149 | EC27: 90 | ED27: 265 | EE27: 7621 | EF27: 632 | EG27: 639 | EH27: 17 | EI27: 204 | EJ27: 211 | EK27: 54 | EL27: 84 | EM27: 0 | EN27: 0 | EO27: 0 | EP27: 210 | EQ27: 680 | ER27: 338 | ES27: 528 | ET27: 438 | EU27: 502 | EV27: 1115 | EW27: 1363 | EX27: 624 | EY27: 455 | EZ27: 471 | FA27: 2295 | FB27: 0 | FC27: 0 | FD27: 432 | FE27: 344 | FF27: 315 | FG27: 378 | FH27: 243 | FI27: 0 | FJ27: 396 | FK27: 468 | FL27: 0 | FM27: 0 | FN27: 42 | FO27: 384 | FP27: 18 | FQ27: 0 | FR27: 84 | FS27: 0 | FT27: 2316 | FU27: 0 | FV27: 0 | FW27: 0 | FX27: 0 | FY27: 0 | FZ27: 0 | GA27: 0 | GB27: 0 | GC27: 0 | GD27: 5397 | GE27: 12421 | GF27: 4928 | GG27: 0 | GH27: 2613 | GI27: 4447 | GJ27: 17190 | GK27: 1343 | GL27: 10840 | GM27: 0 | GN27: 0 | GO27: 0 | GP27: 0 | GQ27: 0 | GR27: 0 | GS27: 0 | GT27: 0 | GU27: 0 | GV27: 0 | GW27: 0 | GX27: 0 | GY27: 0 | GZ27: 0 | HA27: 0 | HB27: 0 | HC27: 0 | HD27: 0 | HE27: 0 | HF27: 0 | HG27: 0 | HH27: 0 | HI27: 0 | HJ27: 1688 | HK27: 0 | HL27: 0 | HM27: 0 | HN27: 0 | HO27: 0 | HP27: 0 | HQ27: 0 | HR27: 0 | HS27: 0 | HT27: 0 | HU27: 0 | HV27: 0 | HW27: 0 | HX27: 0 | HY27: 0 | HZ27: 0 | IA27: 0 | IB27: 0 | IC27: 0 | ID27: 0 | IE27: 0 | IF27: 0 | IG27: 0 | IH27: 0 | II27: 0 | IJ27: 0 | IK27: 0 | IL27: 0 | IM27: 0 | IN27: 0 | IO27: 0 | IP27: 0 | IQ27: 0 | IR27: 0 | IS27: 0 | IT27: 0 | IU27: 0 | IV27: 0 | IW27: 0 | IX27: 0 | IY27: 0 | IZ27: 0 | JA27: 0 | JB27: 0 | JC27: 0 | JD27: 0 | JE27: 0 | JF27: 0 | JG27: 0 | JH27: 0 | JI27: 0 | JJ27: 0 | JK27: 0 | JL27: 0 | JM27: 0 | JN27: 0 | JO27: 0 | JP27: 0 | JQ27: 0 | JR27: 0 | JS27: 0 | JT27: 0 | JU27: 0 | JV27: 0 | JW27: 0 | JX27: 170 | JY27: 0 | JZ27: 0 | KA27: 0 | KB27: 0 | KC27: 0 | KD27: 0 | KE27: 0 | KF27: 0 | KG27: 0 | KH27: 0 | KI27: 0 | KJ27: 0 | KK27: 0 | KL27: 0 | KM27: 0 | KN27: 0 | KO27: 0 | KP27: 0 | KQ27: 0 | KR27: 0 | KS27: 0 | KT27: 0 | KU27: 0 | KV27: 0 | KW27: 0 | KX27: 0 | KY27: 0 | KZ27: 0 | LA27: 0 | LB27: 0 | LC27: 0 | LD27: 0 | LE27: 0 | LF27: 0 | LG27: 0 | LH27: 0 | LI27: 0 | LJ27: 0 | LK27: 0 | LL27: 0 | LM27: 0 | LN27: 0 | LO27: 0 | LP27: 0 | LQ27: 0 | LR27: 0 | LS27: 0 | LT27: 0 | LU27: 0 | LV27: 0 | LW27: 0 | LX27: 0 | LY27: 0 | LZ27: 0 | MA27: 0 | MB27: 0 | MC27: 0 | MD27: 0 | ME27: 0 | MF27: 0 | MG27: 0 | MH27: 0 | MI27: 0 | MJ27: 0 | MK27: 0 | ML27: 0 | MM27: 0 | MN27: 0 | MO27: 0 | MP27: 0 | MQ27: 0 | MR27: 0 | MS27: 0 | MT27: 0 | MU27: 0 | MV27: 0 | MW27: 0 | MX27: 0 | MY27: 0 | MZ27: 0 | NA27: 0 | NB27: 0 | NC27: 0 | ND27: 0 | NE27: 0 | NF27: 0 | NG27: 0 | NH27: 0 | NI27: 0 | NJ27: 0 | NK27: 0 | NL27: 0 | NM27: 0 | NN27: 0 | NO27: 0 | NP27: 0 | NQ27: 0 | NR27: 0 | NS27: 0 | NT27: 0 | NU27: 0 | NV27: 0 | NW27: 0 | NX27: 0 | NY27: 0 | NZ27: 0 | OA27: 0 | OB27: 0 | OC27: 0 | OD27: 0 | OE27: 0 | OF27: 0 | OG27: 0 | OH27: 0 | OI27: 0 | OJ27: 0 | OK27: 0 | OL27: 0 | OM27: 0 | ON27: 0 | OO27: 0 | OP27: 0 | OQ27: 0 | OR27: 0 | OS27: 0 | OT27: 0 | OU27: 0 | OV27: 0 | OW27: 0 | OX27: 0 | OY27: 0 | OZ27: 0 | PA27: 0 | PB27: 0 | PC27: 0 | PD27: 0 | PE27: 0 | PF27: 0 | PG27: 2268 | PH27: 0 | PI27: 0 | PJ27: 0 | PK27: 0 | PL27: 0 | PM27: 0 | PN27: 0 | PO27: 0 | PP27: 0 | PQ27: 0 | PR27: 0 | PS27: 0 | PT27: 0 | PU27: 0 | PV27: 0 | PW27: 0 | PX27: 0 | PY27: 0 | PZ27: 0 | QA27: 0 | QB27: 0 | QC27: 0 | QD27: 0 | QE27: 0 | QF27: 0 | QG27: 0 | QH27: 0 | QI27: 0 | QJ27: 0 | QK27: 0 | QL27: 0 | QM27: 0 | QN27: 0 | QO27: 0 | QP27: 0 | QQ27: 0 | QR27: 0 | QS27: 0 | QT27: 0 | QU27: 0 | QV27: 0 | QW27: 0 | QX27: 0 | QY27: 0 | QZ27: 0 | RA27: 0 | RB27: 0 | RC27: 0 | RD27: 0 | RE27: 0 | RF27: 0 | RG27: 0 | RH27: 0 | RI27: 0 | RJ27: 0 | RK27: 0 | RL27: 0 | RM27: 0 | RN27: 0 | RO27: 0 | RP27: 0 | RQ27: 0 | RR27: 0 | RS27: 0 | RT27: 0 | RU27: 0 | RV27: 0 | RW27: 0 | RX27: 0 | RY27: 0 | RZ27: 0 | SA27: 0 | SB27: 0 | SC27: 0 | SD27: 0 | SE27: 0 | SF27: 0 | SG27: 0 | SH27: 0 | SI27: 0 | SJ27: 0 | SK27: 0 | SL27: 0 | SM27: 0 | SN27: 0 | SO27: 0 | SP27: 0 | SQ27: 0 | SR27: 0 | SS27: 0 | ST27: 0 | SU27: 0 | SV27: 0 | SW27: 0 | SX27: 0 | SY27: 387 | SZ27: 479 | TA27: 613 | TB27: 741 | TC27: 0 | TD27: 0 | TE27: 0 | TF27: 0 | TG27: 0 | TH27: 0 | TI27: 0 | TJ27: 0 | TK27: 0 | TL27: 0 | TM27: 0 | TN27: 0 | TO27: 0 | TP27: 0 | TQ27: 0 | TR27: 0 | TS27: 0 | TT27: 0 | TU27: 1389 | TV27: 787 | TW27: 460 | TX27: 394 | TY27: 19025
B28: 2 | D28: О | E28: =$A$26&"."&$B$28 -> 8.2.2 | F28: прибыль, направляемая на инвестиции | G28: тыс руб | H28: =SUM(I28:TZ28) -> 110324 | J28: 0 | K28: 0 | L28: 0 | M28: 0 | N28: 0 | O28: 0 | P28: 0 | Q28: 0 | R28: 665 | S28: 0 | T28: 0 | U28: 0 | V28: 0 | W28: 0 | X28: 0 | Y28: 0 | Z28: 0 | AA28: 0 | AB28: 0 | AC28: 0 | AD28: 0 | AE28: 0 | AF28: 0 | AG28: 0 | AH28: 0 | AI28: 0 | AJ28: 0 | AK28: 0 | AL28: 0 | AM28: 0 | AN28: 0 | AO28: 0 | AP28: 0 | AQ28: 0 | AR28: 0 | AS28: 0 | AT28: 0 | AU28: 0 | AV28: 0 | AW28: 1282 | AX28: 0 | AY28: 0 | AZ28: 0 | BA28: 0 | BB28: 0 | BC28: 0 | BD28: 0 | BE28: 0 | BF28: 0 | BG28: 0 | BH28: 0 | BI28: 0 | BJ28: 0 | BK28: 0 | BL28: 0 | BM28: 14676 | BN28: 0 | BO28: 5817 | BP28: 2395 | BQ28: 0 | BR28: 1914 | BS28: 3499 | BT28: 52960 | BU28: 1185 | BV28: 0 | BW28: 876 | BX28: 0 | BY28: 0 | BZ28: 0 | CA28: 1517 | CB28: 0 | CC28: 0 | CD28: 0 | CE28: 0 | CF28: 0 | CG28: 0 | CH28: 4365 | CI28: 0 | CJ28: 0 | CK28: 0 | CL28: 1907 | CM28: 60 | CN28: 0 | CO28: 1759 | CP28: 0 | CQ28: 320 | CR28: 3637 | CS28: 0 | CT28: 468 | CU28: 0 | CV28: 0 | CW28: 0 | CX28: 0 | CY28: 0 | CZ28: 0 | DA28: 0 | DB28: 0 | DC28: 0 | DD28: 0 | DE28: 0 | DF28: 0 | DG28: 0 | DH28: 0 | DI28: 6028 | DJ28: 0 | DK28: 0 | DL28: 0 | DM28: 0 | DN28: 0 | DO28: 0 | DP28: 0 | DQ28: 0 | DR28: 0 | DS28: 0 | DT28: 0 | DU28: 0 | DV28: 0 | DW28: 0 | DX28: 0 | DY28: 0 | DZ28: 0 | EA28: 0 | EB28: 0 | EC28: 0 | ED28: 0 | EE28: 0 | EF28: 0 | EG28: 0 | EH28: 0 | EI28: 0 | EJ28: 0 | EK28: 0 | EL28: 0 | EM28: 573 | EN28: 0 | EO28: 0 | EP28: 0 | EQ28: 0 | ER28: 0 | ES28: 0 | ET28: 0 | EU28: 0 | EV28: 0 | EW28: 0 | EX28: 0 | EY28: 0 | EZ28: 0 | FA28: 0 | FB28: 0 | FC28: 0 | FD28: 0 | FE28: 0 | FF28: 0 | FG28: 0 | FH28: 0 | FI28: 0 | FJ28: 0 | FK28: 0 | FL28: 0 | FM28: 0 | FN28: 0 | FO28: 0 | FP28: 0 | FQ28: 0 | FR28: 0 | FS28: 0 | FT28: 0 | FU28: 0 | FV28: 0 | FW28: 0 | FX28: 0 | FY28: 0 | FZ28: 0 | GA28: 0 | GB28: 0 | GC28: 0 | GD28: 0 | GE28: 0 | GF28: 0 | GG28: 0 | GH28: 0 | GI28: 0 | GJ28: 0 | GK28: 0 | GL28: 0 | GM28: 0 | GN28: 0 | GO28: 0 | GP28: 0 | GQ28: 0 | GR28: 0 | GS28: 0 | GT28: 0 | GU28: 0 | GV28: 0 | GW28: 0 | GX28: 0 | GY28: 0 | GZ28: 0 | HA28: 0 | HB28: 0 | HC28: 0 | HD28: 0 | HE28: 0 | HF28: 0 | HG28: 0 | HH28: 0 | HI28: 0 | HJ28: 0 | HK28: 1084 | HL28: 0 | HM28: 0 | HN28: 0 | HO28: 0 | HP28: 0 | HQ28: 0 | HR28: 0 | HS28: 0 | HT28: 0 | HU28: 0 | HV28: 0 | HW28: 0 | HX28: 0 | HY28: 0 | HZ28: 0 | IA28: 0 | IB28: 0 | IC28: 0 | ID28: 0 | IE28: 0 | IF28: 0 | IG28: 0 | IH28: 0 | II28: 0 | IJ28: 0 | IK28: 0 | IL28: 0 | IM28: 0 | IN28: 0 | IO28: 0 | IP28: 0 | IQ28: 0 | IR28: 0 | IS28: 0 | IT28: 0 | IU28: 0 | IV28: 0 | IW28: 0 | IX28: 0 | IY28: 0 | IZ28: 0 | JA28: 0 | JB28: 0 | JC28: 0 | JD28: 0 | JE28: 0 | JF28: 0 | JG28: 0 | JH28: 0 | JI28: 0 | JJ28: 0 | JK28: 0 | JL28: 1322 | JM28: 0 | JN28: 0 | JO28: 0 | JP28: 0 | JQ28: 0 | JR28: 0 | JS28: 0 | JT28: 0 | JU28: 0 | JV28: 0 | JW28: 0 | JX28: 0 | JY28: 0 | JZ28: 0 | KA28: 0 | KB28: 0 | KC28: 0 | KD28: 0 | KE28: 0 | KF28: 0 | KG28: 0 | KH28: 0 | KI28: 0 | KJ28: 0 | KK28: 0 | KL28: 0 | KM28: 0 | KN28: 0 | KO28: 0 | KP28: 0 | KQ28: 0 | KR28: 0 | KS28: 0 | KT28: 0 | KU28: 0 | KV28: 0 | KW28: 0 | KX28: 0 | KY28: 0 | KZ28: 0 | LA28: 0 | LB28: 0 | LC28: 0 | LD28: 0 | LE28: 0 | LF28: 0 | LG28: 0 | LH28: 0 | LI28: 0 | LJ28: 0 | LK28: 0 | LL28: 0 | LM28: 0 | LN28: 0 | LO28: 0 | LP28: 0 | LQ28: 0 | LR28: 0 | LS28: 259 | LT28: 0 | LU28: 0 | LV28: 0 | LW28: 0 | LX28: 0 | LY28: 0 | LZ28: 0 | MA28: 0 | MB28: 0 | MC28: 0 | MD28: 0 | ME28: 0 | MF28: 0 | MG28: 0 | MH28: 0 | MI28: 0 | MJ28: 0 | MK28: 0 | ML28: 0 | MM28: 0 | MN28: 0 | MO28: 0 | MP28: 0 | MQ28: 0 | MR28: 0 | MS28: 0 | MT28: 0 | MU28: 0 | MV28: 0 | MW28: 0 | MX28: 0 | MY28: 0 | MZ28: 0 | NA28: 0 | NB28: 0 | NC28: 0 | ND28: 0 | NE28: 0 | NF28: 0 | NG28: 0 | NH28: 0 | NI28: 0 | NJ28: 0 | NK28: 0 | NL28: 0 | NM28: 0 | NN28: 0 | NO28: 0 | NP28: 0 | NQ28: 0 | NR28: 0 | NS28: 0 | NT28: 0 | NU28: 0 | NV28: 0 | NW28: 0 | NX28: 0 | NY28: 0 | NZ28: 0 | OA28: 0 | OB28: 0 | OC28: 0 | OD28: 0 | OE28: 0 | OF28: 0 | OG28: 0 | OH28: 0 | OI28: 0 | OJ28: 0 | OK28: 0 | OL28: 0 | OM28: 0 | ON28: 0 | OO28: 0 | OP28: 0 | OQ28: 0 | OR28: 0 | OS28: 0 | OT28: 0 | OU28: 0 | OV28: 0 | OW28: 0 | OX28: 0 | OY28: 0 | OZ28: 0 | PA28: 0 | PB28: 0 | PC28: 0 | PD28: 0 | PE28: 0 | PF28: 0 | PG28: 0 | PH28: 0 | PI28: 0 | PJ28: 0 | PK28: 0 | PL28: 0 | PM28: 0 | PN28: 0 | PO28: 0 | PP28: 0 | PQ28: 0 | PR28: 0 | PS28: 0 | PT28: 0 | PU28: 0 | PV28: 0 | PW28: 0 | PX28: 0 | PY28: 0 | PZ28: 0 | QA28: 0 | QB28: 0 | QC28: 0 | QD28: 0 | QE28: 0 | QF28: 0 | QG28: 0 | QH28: 0 | QI28: 0 | QJ28: 0 | QK28: 0 | QL28: 0 | QM28: 0 | QN28: 0 | QO28: 0 | QP28: 0 | QQ28: 0 | QR28: 0 | QS28: 0 | QT28: 0 | QU28: 0 | QV28: 0 | QW28: 0 | QX28: 0 | QY28: 0 | QZ28: 0 | RA28: 0 | RB28: 0 | RC28: 0 | RD28: 0 | RE28: 0 | RF28: 0 | RG28: 0 | RH28: 0 | RI28: 0 | RJ28: 0 | RK28: 0 | RL28: 0 | RM28: 0 | RN28: 0 | RO28: 0 | RP28: 0 | RQ28: 0 | RR28: 0 | RS28: 0 | RT28: 0 | RU28: 0 | RV28: 0 | RW28: 0 | RX28: 0 | RY28: 0 | RZ28: 0 | SA28: 0 | SB28: 0 | SC28: 0 | SD28: 0 | SE28: 0 | SF28: 0 | SG28: 0 | SH28: 0 | SI28: 0 | SJ28: 0 | SK28: 0 | SL28: 0 | SM28: 0 | SN28: 0 | SO28: 0 | SP28: 0 | SQ28: 0 | SR28: 0 | SS28: 0 | ST28: 0 | SU28: 0 | SV28: 0 | SW28: 0 | SX28: 0 | SY28: 0 | SZ28: 0 | TA28: 0 | TB28: 0 | TC28: 0 | TD28: 0 | TE28: 0 | TF28: 0 | TG28: 0 | TH28: 0 | TI28: 0 | TJ28: 0 | TK28: 0 | TL28: 0 | TM28: 0 | TN28: 0 | TO28: 0 | TP28: 0 | TQ28: 0 | TR28: 0 | TS28: 0 | TT28: 1756 | TU28: 0 | TV28: 0 | TW28: 0 | TX28: 0 | TY28: 0
B29: 3 | D29: О | E29: =$A$26&"."&$B$29 -> 8.2.3 | F29: прочие средства | G29: тыс руб | H29: =SUM(I29:TZ29) -> 120870 | J29: 0 | K29: 0 | L29: 0 | M29: 0 | N29: 0 | O29: 0 | P29: 0 | Q29: 0 | R29: 0 | S29: 0 | T29: 0 | U29: 0 | V29: 0 | W29: 0 | X29: 0 | Y29: 0 | Z29: 0 | AA29: 0 | AB29: 0 | AC29: 0 | AD29: 0 | AE29: 0 | AF29: 0 | AG29: 0 | AH29: 0 | AI29: 0 | AJ29: 0 | AK29: 0 | AL29: 0 | AM29: 0 | AN29: 0 | AO29: 0 | AP29: 0 | AQ29: 0 | AR29: 0 | AS29: 0 | AT29: 0 | AU29: 0 | AV29: 0 | AW29: 0 | AX29: 0 | AY29: 0 | AZ29: 0 | BA29: 0 | BB29: 0 | BC29: 0 | BD29: 0 | BE29: 0 | BF29: 0 | BG29: 0 | BH29: 0 | BI29: 0 | BJ29: 0 | BK29: 0 | BL29: 0 | BM29: 0 | BN29: 5015 | BO29: 0 | BP29: 501 | BQ29: 4787 | BR29: 0 | BS29: 0 | BT29: 0 | BU29: 0 | BV29: 1424 | BW29: 0 | BX29: 5149 | BY29: 75 | BZ29: 0 | CA29: 0 | CB29: 1521 | CC29: 0 | CD29: 0 | CE29: 1591 | CF29: 0 | CG29: 2859 | CH29: 0 | CI29: 0 | CJ29: 2341 | CK29: 2541 | CL29: 0 | CM29: 0 | CN29: 0 | CO29: 0 | CP29: 0 | CQ29: 0 | CR29: 0 | CS29: 0 | CT29: 0 | CU29: 0 | CV29: 0 | CW29: 0 | CX29: 0 | CY29: 0 | CZ29: 0 | DA29: 0 | DB29: 0 | DC29: 0 | DD29: 0 | DE29: 0 | DF29: 0 | DG29: 0 | DH29: 0 | DI29: 0 | DJ29: 0 | DK29: 0 | DL29: 0 | DM29: 0 | DN29: 0 | DO29: 0 | DP29: 0 | DQ29: 0 | DR29: 0 | DS29: 0 | DT29: 0 | DU29: 0 | DV29: 0 | DW29: 0 | DX29: 0 | DY29: 0 | DZ29: 0 | EA29: 0 | EB29: 0 | EC29: 0 | ED29: 0 | EE29: 0 | EF29: 0 | EG29: 0 | EH29: 0 | EI29: 0 | EJ29: 0 | EK29: 0 | EL29: 0 | EM29: 0 | EN29: 0 | EO29: 0 | EP29: 0 | EQ29: 0 | ER29: 0 | ES29: 0 | ET29: 0 | EU29: 0 | EV29: 0 | EW29: 0 | EX29: 0 | EY29: 0 | EZ29: 0 | FA29: 0 | FB29: 0 | FC29: 0 | FD29: 0 | FE29: 0 | FF29: 0 | FG29: 0 | FH29: 0 | FI29: 0 | FJ29: 0 | FK29: 0 | FL29: 0 | FM29: 0 | FN29: 0 | FO29: 0 | FP29: 0 | FQ29: 0 | FR29: 0 | FS29: 0 | FT29: 0 | FU29: 43514 | FV29: 5204 | FW29: 3373 | FX29: 3802 | FY29: 5057 | FZ29: 3404 | GA29: 0 | GB29: 19180 | GC29: 998 | GD29: 0 | GE29: 0 | GF29: 0 | GG29: 2680 | GH29: 0 | GI29: 0 | GJ29: 116 | GK29: 0 | GL29: 0 | GM29: 0 | GN29: 0 | GO29: 0 | GP29: 0 | GQ29: 0 | GR29: 0 | GS29: 0 | GT29: 0 | GU29: 0 | GV29: 0 | GW29: 0 | GX29: 0 | GY29: 0 | GZ29: 0 | HA29: 0 | HB29: 0 | HC29: 0 | HD29: 0 | HE29: 0 | HF29: 0 | HG29: 0 | HH29: 0 | HI29: 0 | HJ29: 0 | HK29: 0 | HL29: 0 | HM29: 0 | HN29: 0 | HO29: 0 | HP29: 0 | HQ29: 0 | HR29: 0 | HS29: 0 | HT29: 0 | HU29: 0 | HV29: 0 | HW29: 0 | HX29: 0 | HY29: 5738 | HZ29: 0 | IA29: 0 | IB29: 0 | IC29: 0 | ID29: 0 | IE29: 0 | IF29: 0 | IG29: 0 | IH29: 0 | II29: 0 | IJ29: 0 | IK29: 0 | IL29: 0 | IM29: 0 | IN29: 0 | IO29: 0 | IP29: 0 | IQ29: 0 | IR29: 0 | IS29: 0 | IT29: 0 | IU29: 0 | IV29: 0 | IW29: 0 | IX29: 0 | IY29: 0 | IZ29: 0 | JA29: 0 | JB29: 0 | JC29: 0 | JD29: 0 | JE29: 0 | JF29: 0 | JG29: 0 | JH29: 0 | JI29: 0 | JJ29: 0 | JK29: 0 | JL29: 0 | JM29: 0 | JN29: 0 | JO29: 0 | JP29: 0 | JQ29: 0 | JR29: 0 | JS29: 0 | JT29: 0 | JU29: 0 | JV29: 0 | JW29: 0 | JX29: 0 | JY29: 0 | JZ29: 0 | KA29: 0 | KB29: 0 | KC29: 0 | KD29: 0 | KE29: 0 | KF29: 0 | KG29: 0 | KH29: 0 | KI29: 0 | KJ29: 0 | KK29: 0 | KL29: 0 | KM29: 0 | KN29: 0 | KO29: 0 | KP29: 0 | KQ29: 0 | KR29: 0 | KS29: 0 | KT29: 0 | KU29: 0 | KV29: 0 | KW29: 0 | KX29: 0 | KY29: 0 | KZ29: 0 | LA29: 0 | LB29: 0 | LC29: 0 | LD29: 0 | LE29: 0 | LF29: 0 | LG29: 0 | LH29: 0 | LI29: 0 | LJ29: 0 | LK29: 0 | LL29: 0 | LM29: 0 | LN29: 0 | LO29: 0 | LP29: 0 | LQ29: 0 | LR29: 0 | LS29: 0 | LT29: 0 | LU29: 0 | LV29: 0 | LW29: 0 | LX29: 0 | LY29: 0 | LZ29: 0 | MA29: 0 | MB29: 0 | MC29: 0 | MD29: 0 | ME29: 0 | MF29: 0 | MG29: 0 | MH29: 0 | MI29: 0 | MJ29: 0 | MK29: 0 | ML29: 0 | MM29: 0 | MN29: 0 | MO29: 0 | MP29: 0 | MQ29: 0 | MR29: 0 | MS29: 0 | MT29: 0 | MU29: 0 | MV29: 0 | MW29: 0 | MX29: 0 | MY29: 0 | MZ29: 0 | NA29: 0 | NB29: 0 | NC29: 0 | ND29: 0 | NE29: 0 | NF29: 0 | NG29: 0 | NH29: 0 | NI29: 0 | NJ29: 0 | NK29: 0 | NL29: 0 | NM29: 0 | NN29: 0 | NO29: 0 | NP29: 0 | NQ29: 0 | NR29: 0 | NS29: 0 | NT29: 0 | NU29: 0 | NV29: 0 | NW29: 0 | NX29: 0 | NY29: 0 | NZ29: 0 | OA29: 0 | OB29: 0 | OC29: 0 | OD29: 0 | OE29: 0 | OF29: 0 | OG29: 0 | OH29: 0 | OI29: 0 | OJ29: 0 | OK29: 0 | OL29: 0 | OM29: 0 | ON29: 0 | OO29: 0 | OP29: 0 | OQ29: 0 | OR29: 0 | OS29: 0 | OT29: 0 | OU29: 0 | OV29: 0 | OW29: 0 | OX29: 0 | OY29: 0 | OZ29: 0 | PA29: 0 | PB29: 0 | PC29: 0 | PD29: 0 | PE29: 0 | PF29: 0 | PG29: 0 | PH29: 0 | PI29: 0 | PJ29: 0 | PK29: 0 | PL29: 0 | PM29: 0 | PN29: 0 | PO29: 0 | PP29: 0 | PQ29: 0 | PR29: 0 | PS29: 0 | PT29: 0 | PU29: 0 | PV29: 0 | PW29: 0 | PX29: 0 | PY29: 0 | PZ29: 0 | QA29: 0 | QB29: 0 | QC29: 0 | QD29: 0 | QE29: 0 | QF29: 0 | QG29: 0 | QH29: 0 | QI29: 0 | QJ29: 0 | QK29: 0 | QL29: 0 | QM29: 0 | QN29: 0 | QO29: 0 | QP29: 0 | QQ29: 0 | QR29: 0 | QS29: 0 | QT29: 0 | QU29: 0 | QV29: 0 | QW29: 0 | QX29: 0 | QY29: 0 | QZ29: 0 | RA29: 0 | RB29: 0 | RC29: 0 | RD29: 0 | RE29: 0 | RF29: 0 | RG29: 0 | RH29: 0 | RI29: 0 | RJ29: 0 | RK29: 0 | RL29: 0 | RM29: 0 | RN29: 0 | RO29: 0 | RP29: 0 | RQ29: 0 | RR29: 0 | RS29: 0 | RT29: 0 | RU29: 0 | RV29: 0 | RW29: 0 | RX29: 0 | RY29: 0 | RZ29: 0 | SA29: 0 | SB29: 0 | SC29: 0 | SD29: 0 | SE29: 0 | SF29: 0 | SG29: 0 | SH29: 0 | SI29: 0 | SJ29: 0 | SK29: 0 | SL29: 0 | SM29: 0 | SN29: 0 | SO29: 0 | SP29: 0 | SQ29: 0 | SR29: 0 | SS29: 0 | ST29: 0 | SU29: 0 | SV29: 0 | SW29: 0 | SX29: 0 | SY29: 0 | SZ29: 0 | TA29: 0 | TB29: 0 | TC29: 0 | TD29: 0 | TE29: 0 | TF29: 0 | TG29: 0 | TH29: 0 | TI29: 0 | TJ29: 0 | TK29: 0 | TL29: 0 | TM29: 0 | TN29: 0 | TO29: 0 | TP29: 0 | TQ29: 0 | TR29: 0 | TS29: 0 | TT29: 0 | TU29: 0 | TV29: 0 | TW29: 0 | TX29: 0 | TY29: 0
F30: Добавить источники
A31: 8.3 | C31: О | E31: =A31 -> 8.3 | F31: 2018 | G31: тыс руб | H31: =SUM(H32:H35) -> 426184.3378 | I31: 0 | J31: 0 | K31: 0 | L31: 0 | M31: 0 | N31: 14000 | O31: 0 | P31: 0 | Q31: 0 | R31: 0 | S31: 0 | T31: 0 | U31: 0 | V31: 0 | W31: 169.5 | X31: 113 | Y31: 0 | Z31: 0 | AA31: 73.87 | AB31: 58.32 | AC31: 671 | AD31: 0 | AE31: 0 | AF31: 0 | AG31: 219.49 | AH31: 0 | AI31: 0 | AJ31: 58.47 | AK31: 0 | AL31: 0 | AM31: 0 | AN31: 209.32 | AO31: 0 | AP31: 185 | AQ31: 0 | AR31: 0 | AS31: 205.64 | AT31: 0 | AU31: 0 | AV31: 0 | AW31: 0 | AX31: 0 | AY31: 0 | AZ31: 0 | BA31: 0 | BB31: 0 | BC31: 0 | BD31: 0 | BE31: 0 | BF31: 0 | BG31: 0 | BH31: 0 | BI31: 0 | BJ31: 0 | BK31: 0 | BL31: 0 | BM31: 0 | BN31: 0 | BO31: 0 | BP31: 0 | BQ31: 0 | BR31: 0 | BS31: 0 | BT31: 0 | BU31: 0 | BV31: 0 | BW31: 0 | BX31: 0 | BY31: 0 | BZ31: 8625.6 | CA31: 0 | CB31: 0 | CC31: 0 | CD31: 0 | CE31: 0 | CF31: 14319.5 | CG31: 0 | CH31: 0 | CI31: 0 | CJ31: 0 | CK31: 3389.98 | CL31: =SUM(CL32:CL35) -> 0 | CM31: 0 | CN31: 0 | CO31: 0 | CP31: 0 | CQ31: 0 | CR31: 1855 | CS31: 0 | CT31: 468 | CU31: 0 | CV31: 0 | CW31: 0 | CX31: 0 | CY31: 0 | CZ31: 0 | DA31: 0 | DB31: 0 | DC31: 0 | DD31: 0 | DE31: 0 | DF31: 0 | DG31: 0 | DH31: 0 | DI31: 0 | DJ31: 0 | DK31: 0 | DL31: 6982.63 | DM31: 0 | DN31: 0 | DO31: 500 | DP31: 0 | DQ31: 10000 | DR31: 0 | DS31: 500 | DT31: 0 | DU31: 0 | DV31: 0 | DW31: 0 | DX31: 0 | DY31: 0 | DZ31: 8700 | EA31: 0 | EB31: 0 | EC31: 0 | ED31: 0 | EE31: 7427.99 | EF31: 0 | EG31: 0 | EH31: 0 | EI31: 0 | EJ31: 0 | EK31: 0 | EL31: 0 | EM31: 0 | EN31: 0 | EO31: 500 | EP31: 3000 | EQ31: 0 | ER31: 420 | ES31: 0 | ET31: 0 | EU31: 0 | EV31: 0 | EW31: 0 | EX31: =SUM(EX32:EX35) -> 0 | EY31: 0 | EZ31: 0 | FA31: 0 | FB31: 0 | FC31: 16251.13 | FD31: 0 | FE31: 0 | FF31: 0 | FG31: 0 | FH31: 0 | FI31: 12947.59 | FJ31: 7490 | FK31: 13141.57 | FL31: 0 | FM31: 0 | FN31: 0 | FO31: 0 | FP31: 0 | FQ31: 0 | FR31: 0 | FS31: 0 | FT31: 0 | FU31: 0 | FV31: 0 | FW31: 0 | FX31: 0 | FY31: 0 | FZ31: 0 | GA31: 0 | GB31: 0 | GC31: 0 | GD31: 0 | GE31: 0 | GF31: 0 | GG31: 0 | GH31: 0 | GI31: 0 | GJ31: 0 | GK31: 0 | GL31: 960 | GM31: =SUM(GM32:GM35) -> 9400 | GN31: 0 | GO31: 0 | GP31: 0 | GQ31: 0 | GR31: 2033 | GS31: 0 | GT31: 0 | GU31: 0 | GV31: 0 | GW31: 0 | GX31: 0 | GY31: 0 | GZ31: 0 | HA31: 0 | HB31: 8896 | HC31: 0 | HD31: 0 | HE31: 0 | HF31: 0 | HG31: 0 | HH31: 0 | HI31: 0 | HJ31: 0 | HK31: 0 | HL31: 6348 | HM31: 0 | HN31: 1260 | HO31: 1250 | HP31: 5713.55 | HQ31: 0 | HR31: 4900.536563 | HS31: 33671.11 | HT31: 15726.55 | HU31: 10646.02 | HV31: 10590.55 | HW31: 3819.38 | HX31: 21345.65122 | HY31: 0 | HZ31: 547.14 | IA31: 31307 | IB31: 1875.19 | IC31: 33077.67 | ID31: 609.59 | IE31: 100.09 | IF31: 4595.2 | IG31: 13367.41 | IH31: 5919.01 | II31: 16048.42 | IJ31: 0 | IK31: 0 | IL31: 0 | IM31: 0 | IN31: 0 | IO31: 0 | IP31: 0 | IQ31: 0 | IR31: 0 | IS31: 0 | IT31: 0 | IU31: =SUM(IU32:IU35) -> 0 | IV31: 0 | IW31: 0 | IX31: 1680.18 | IY31: 0 | IZ31: 0 | JA31: 0 | JB31: 0 | JC31: 0 | JD31: 0 | JE31: 0 | JF31: 0 | JG31: 0 | JH31: 0 | JI31: 0 | JJ31: 0 | JK31: 0 | JL31: 0 | JM31: 0 | JN31: 0 | JO31: 0 | JP31: 0 | JQ31: 0 | JR31: 0 | JS31: 0 | JT31: 0 | JU31: 0 | JV31: 0 | JW31: 0 | JX31: 0 | JY31: 0 | JZ31: 0 | KA31: 0 | KB31: 0 | KC31: 0 | KD31: 0 | KE31: 0 | KF31: 0 | KG31: 0 | KH31: 0 | KI31: 0 | KJ31: 0 | KK31: 0 | KL31: 0 | KM31: 0 | KN31: 0 | KO31: 0 | KP31: 0 | KQ31: 0 | KR31: 0 | KS31: 0 | KT31: 0 | KU31: 0 | KV31: 0 | KW31: 0 | KX31: 0 | KY31: 0 | KZ31: 0 | LA31: 0 | LB31: 0 | LC31: 0 | LD31: 0 | LE31: 0 | LF31: =SUM(LF32:LF35) -> 0 | LG31: 0 | LH31: 0 | LI31: 0 | LJ31: 0 | LK31: 0 | LL31: 0 | LM31: 0 | LN31: 0 | LO31: 0 | LP31: 0 | LQ31: 0 | LR31: 0 | LS31: 0 | LT31: 0 | LU31: 0 | LV31: 0 | LW31: 0 | LX31: 0 | LY31: 0 | LZ31: 0 | MA31: 0 | MB31: 0 | MC31: 0 | MD31: 0 | ME31: 0 | MF31: 0 | MG31: 0 | MH31: 0 | MI31: 0 | MJ31: 0 | MK31: 0 | ML31: 0 | MM31: 0 | MN31: 0 | MO31: 0 | MP31: 0 | MQ31: 0 | MR31: 0 | MS31: 0 | MT31: 0 | MU31: 0 | MV31: 0 | MW31: 0 | MX31: 0 | MY31: 0 | MZ31: 0 | NA31: 0 | NB31: 0 | NC31: 0 | ND31: 0 | NE31: 0 | NF31: 0 | NG31: 0 | NH31: 0 | NI31: 0 | NJ31: 0 | NK31: 0 | NL31: 0 | NM31: 0 | NN31: 0 | NO31: 0 | NP31: 0 | NQ31: =SUM(NQ32:NQ35) -> 0 | NR31: 0 | NS31: 0 | NT31: 0 | NU31: 0 | NV31: 0 | NW31: 0 | NX31: 0 | NY31: 0 | NZ31: 0 | OA31: 0 | OB31: 6585 | OC31: 0 | OD31: 0 | OE31: 0 | OF31: 0 | OG31: 0 | OH31: 0 | OI31: 0 | OJ31: 0 | OK31: 0 | OL31: 0 | OM31: 0 | ON31: 0 | OO31: 0 | OP31: 0 | OQ31: 0 | OR31: 0 | OS31: 0 | OT31: 0 | OU31: 0 | OV31: 0 | OW31: 0 | OX31: 0 | OY31: 0 | OZ31: 0 | PA31: 0 | PB31: 0 | PC31: 0 | PD31: 0 | PE31: 0 | PF31: 0 | PG31: 0 | PH31: 0 | PI31: 0 | PJ31: 0 | PK31: 0 | PL31: 0 | PM31: 0 | PN31: 0 | PO31: 0 | PP31: 0 | PQ31: 7300 | PR31: 0 | PS31: 0 | PT31: 0 | PU31: 0 | PV31: 0 | PW31: 0 | PX31: 0 | PY31: 0 | PZ31: 0 | QA31: 0 | QB31: 0 | QC31: =SUM(QC32:QC35) -> 0 | QD31: 0 | QE31: 0 | QF31: 0 | QG31: 0 | QH31: 0 | QI31: 0 | QJ31: 0 | QK31: 0 | QL31: 160 | QM31: 0 | QN31: 0 | QO31: 0 | QP31: 0 | QQ31: 0 | QR31: 0 | QS31: 0 | QT31: 0 | QU31: 0 | QV31: 0 | QW31: 0 | QX31: 0 | QY31: 0 | QZ31: 0 | RA31: 0 | RB31: 0 | RC31: 0 | RD31: 0 | RE31: 0 | RF31: 0 | RG31: 0 | RH31: 0 | RI31: 0 | RJ31: 0 | RK31: 0 | RL31: 0 | RM31: 0 | RN31: 0 | RO31: 0 | RP31: 0 | RQ31: 0 | RR31: 0 | RS31: 0 | RT31: 0 | RU31: 0 | RV31: 0 | RW31: 0 | RX31: 0 | RY31: 0 | RZ31: 0 | SA31: 0 | SB31: 0 | SC31: 0 | SD31: 0 | SE31: 0 | SF31: 0 | SG31: 0 | SH31: 0 | SI31: 0 | SJ31: 0 | SK31: 0 | SL31: 0 | SM31: 0 | SN31: 0 | SO31: =SUM(SO32:SO35) -> 0 | SP31: =SUM(SP32:SP35) -> 0 | SQ31: =SUM(SQ32:SQ35) -> 2827.58 | SR31: =SUM(SR32:SR35) -> 500 | SS31: =SUM(SS32:SS35) -> 500 | ST31: 189 | SU31: 1600 | SV31: 11400.2 | SW31: 8900 | SX31: 1936.02 | SY31: 160 | SZ31: 160 | TA31: 160 | TB31: 100 | TC31: 88.81 | TD31: 2700 | TE31: 500 | TF31: 500 | TG31: 500 | TH31: 248.46 | TI31: 219.49 | TJ31: 99.47 | TK31: 186.44 | TL31: 331.62 | TM31: 90.11 | TN31: 72.29 | TO31: 0 | TP31: 0 | TQ31: 0 | TR31: 0 | TS31: 0 | TT31: 0 | TU31: 0 | TV31: 0 | TW31: 0 | TX31: 0 | TY31: 0 | TZ31: y
B32: 1 | E32: =A31&"."&B32 -> 8.3.1 | F32: амортизация | G32: тыс руб | H32: =SUM(I32:TZ32) -> 210797.16 | J32: 0 | K32: 0 | L32: 0 | M32: 0 | N32: 5901.59 | O32: 0 | P32: 0 | Q32: 0 | R32: 0 | S32: 0 | T32: 0 | U32: 0 | V32: 0 | W32: 169.5 | X32: 113 | Y32: 0 | Z32: 0 | AA32: 73.87 | AB32: 58.32 | AC32: 335.5 | AD32: 0 | AE32: 0 | AF32: 0 | AG32: 219.49 | AH32: 0 | AI32: 0 | AJ32: 58.47 | AK32: 0 | AL32: 0 | AM32: 0 | AN32: 209.32 | AO32: 0 | AP32: 185 | AQ32: 0 | AR32: 0 | AS32: 0 | AT32: 0 | AU32: 0 | AV32: 0 | AW32: 0 | AX32: 0 | AY32: 0 | AZ32: 0 | BA32: 0 | BB32: 0 | BC32: 0 | BD32: 0 | BE32: 0 | BF32: 0 | BG32: 0 | BH32: 0 | BI32: 0 | BJ32: 0 | BK32: 0 | BL32: 0 | BM32: 0 | BN32: 0 | BO32: 0 | BP32: 0 | BQ32: 0 | BR32: 0 | BS32: 0 | BT32: 0 | BU32: 0 | BV32: 0 | BW32: 0 | BX32: 0 | BY32: 0 | BZ32: 0 | CA32: 0 | CB32: 0 | CC32: 0 | CD32: 0 | CE32: 0 | CF32: 14319.5 | CG32: 0 | CH32: 0 | CI32: 0 | CJ32: 0 | CK32: 3389.98 | CL32: 0 | CM32: 0 | CN32: 0 | CO32: 0 | CP32: 0 | CQ32: 0 | CR32: 0 | CS32: 0 | CT32: 0 | CU32: 0 | CV32: 0 | CW32: 0 | CX32: 0 | CY32: 0 | CZ32: 0 | DA32: 0 | DB32: 0 | DC32: 0 | DD32: 0 | DE32: 0 | DF32: 0 | DG32: 0 | DH32: 0 | DI32: 0 | DJ32: 0 | DK32: 0 | DL32: 6982.63 | DM32: 0 | DN32: 0 | DO32: 0 | DP32: 0 | DQ32: 10000 | DR32: 0 | DS32: 0 | DT32: 0 | DU32: 0 | DV32: 0 | DW32: 0 | DX32: 0 | DY32: 0 | DZ32: 8700 | EA32: 0 | EB32: 0 | EC32: 0 | ED32: 0 | EE32: 7427.99 | EF32: 0 | EG32: 0 | EH32: 0 | EI32: 0 | EJ32: 0 | EK32: 0 | EL32: 0 | EM32: 0 | EN32: 0 | EO32: 0 | EP32: 3000 | EQ32: 0 | ER32: 0 | ES32: 0 | ET32: 0 | EU32: 0 | EV32: 0 | EW32: 0 | EX32: 0 | EY32: 0 | EZ32: 0 | FA32: 0 | FB32: 0 | FC32: 16251.13 | FD32: 0 | FE32: 0 | FF32: 0 | FG32: 0 | FH32: 0 | FI32: 12947.59 | FJ32: 7490 | FK32: 4082.92 | FL32: 0 | FM32: 0 | FN32: 0 | FO32: 0 | FP32: 0 | FQ32: 0 | FR32: 0 | FS32: 0 | FT32: 0 | FU32: 0 | FV32: 0 | FW32: 0 | FX32: 0 | FY32: 0 | FZ32: 0 | GA32: 0 | GB32: 0 | GC32: 0 | GD32: 0 | GE32: 0 | GF32: 0 | GG32: 0 | GH32: 0 | GI32: 0 | GJ32: 0 | GK32: 0 | GL32: 960 | GM32: 0 | GN32: 0 | GO32: 0 | GP32: 0 | GQ32: 0 | GR32: 0 | GS32: 0 | GT32: 0 | GU32: 0 | GV32: 0 | GW32: 0 | GX32: 0 | GY32: 0 | GZ32: 0 | HA32: 0 | HB32: 0 | HC32: 0 | HD32: 0 | HE32: 0 | HF32: 0 | HG32: 0 | HH32: 0 | HI32: 0 | HJ32: 0 | HK32: 0 | HL32: 0 | HM32: 0 | HN32: 0 | HO32: 756 | HP32: 5713.55 | HQ32: 0 | HR32: 0 | HS32: 0 | HT32: 0 | HU32: 0 | HV32: 0 | HW32: 0 | HX32: 0 | HY32: 0 | HZ32: 0 | IA32: 0 | IB32: 1875.19 | IC32: 33077.67 | ID32: 0 | IE32: 0 | IF32: 4595.2 | IG32: 11423.41 | IH32: 5919.01 | II32: 16048.42 | IJ32: 0 | IK32: 0 | IL32: 0 | IM32: 0 | IN32: 0 | IO32: 0 | IP32: 0 | IQ32: 0 | IR32: 0 | IS32: 0 | IT32: 0 | IU32: 0 | IV32: 0 | IW32: 0 | IX32: 0 | IY32: 0 | IZ32: 0 | JA32: 0 | JB32: 0 | JC32: 0 | JD32: 0 | JE32: 0 | JF32: 0 | JG32: 0 | JH32: 0 | JI32: 0 | JJ32: 0 | JK32: 0 | JL32: 0 | JM32: 0 | JN32: 0 | JO32: 0 | JP32: 0 | JQ32: 0 | JR32: 0 | JS32: 0 | JT32: 0 | JU32: 0 | JV32: 0 | JW32: 0 | JX32: 0 | JY32: 0 | JZ32: 0 | KA32: 0 | KB32: 0 | KC32: 0 | KD32: 0 | KE32: 0 | KF32: 0 | KG32: 0 | KH32: 0 | KI32: 0 | KJ32: 0 | KK32: 0 | KL32: 0 | KM32: 0 | KN32: 0 | KO32: 0 | KP32: 0 | KQ32: 0 | KR32: 0 | KS32: 0 | KT32: 0 | KU32: 0 | KV32: 0 | KW32: 0 | KX32: 0 | KY32: 0 | KZ32: 0 | LA32: 0 | LB32: 0 | LC32: 0 | LD32: 0 | LE32: 0 | LF32: 0 | LG32: 0 | LH32: 0 | LI32: 0 | LJ32: 0 | LK32: 0 | LL32: 0 | LM32: 0 | LN32: 0 | LO32: 0 | LP32: 0 | LQ32: 0 | LR32: 0 | LS32: 0 | LT32: 0 | LU32: 0 | LV32: 0 | LW32: 0 | LX32: 0 | LY32: 0 | LZ32: 0 | MA32: 0 | MB32: 0 | MC32: 0 | MD32: 0 | ME32: 0 | MF32: 0 | MG32: 0 | MH32: 0 | MI32: 0 | MJ32: 0 | MK32: 0 | ML32: 0 | MM32: 0 | MN32: 0 | MO32: 0 | MP32: 0 | MQ32: 0 | MR32: 0 | MS32: 0 | MT32: 0 | MU32: 0 | MV32: 0 | MW32: 0 | MX32: 0 | MY32: 0 | MZ32: 0 | NA32: 0 | NB32: 0 | NC32: 0 | ND32: 0 | NE32: 0 | NF32: 0 | NG32: 0 | NH32: 0 | NI32: 0 | NJ32: 0 | NK32: 0 | NL32: 0 | NM32: 0 | NN32: 0 | NO32: 0 | NP32: 0 | NQ32: 0 | NR32: 0 | NS32: 0 | NT32: 0 | NU32: 0 | NV32: 0 | NW32: 0 | NX32: 0 | NY32: 0 | NZ32: 0 | OA32: 0 | OB32: 0 | OC32: 0 | OD32: 0 | OE32: 0 | OF32: 0 | OG32: 0 | OH32: 0 | OI32: 0 | OJ32: 0 | OK32: 0 | OL32: 0 | OM32: 0 | ON32: 0 | OO32: 0 | OP32: 0 | OQ32: 0 | OR32: 0 | OS32: 0 | OT32: 0 | OU32: 0 | OV32: 0 | OW32: 0 | OX32: 0 | OY32: 0 | OZ32: 0 | PA32: 0 | PB32: 0 | PC32: 0 | PD32: 0 | PE32: 0 | PF32: 0 | PG32: 0 | PH32: 0 | PI32: 0 | PJ32: 0 | PK32: 0 | PL32: 0 | PM32: 0 | PN32: 0 | PO32: 0 | PP32: 0 | PQ32: 0 | PR32: 0 | PS32: 0 | PT32: 0 | PU32: 0 | PV32: 0 | PW32: 0 | PX32: 0 | PY32: 0 | PZ32: 0 | QA32: 0 | QB32: 0 | QC32: 0 | QD32: 0 | QE32: 0 | QF32: 0 | QG32: 0 | QH32: 0 | QI32: 0 | QJ32: 0 | QK32: 0 | QL32: 160 | QM32: 0 | QN32: 0 | QO32: 0 | QP32: 0 | QQ32: 0 | QR32: 0 | QS32: 0 | QT32: 0 | QU32: 0 | QV32: 0 | QW32: 0 | QX32: 0 | QY32: 0 | QZ32: 0 | RA32: 0 | RB32: 0 | RC32: 0 | RD32: 0 | RE32: 0 | RF32: 0 | RG32: 0 | RH32: 0 | RI32: 0 | RJ32: 0 | RK32: 0 | RL32: 0 | RM32: 0 | RN32: 0 | RO32: 0 | RP32: 0 | RQ32: 0 | RR32: 0 | RS32: 0 | RT32: 0 | RU32: 0 | RV32: 0 | RW32: 0 | RX32: 0 | RY32: 0 | RZ32: 0 | SA32: 0 | SB32: 0 | SC32: 0 | SD32: 0 | SE32: 0 | SF32: 0 | SG32: 0 | SH32: 0 | SI32: 0 | SJ32: 0 | SK32: 0 | SL32: 0 | SM32: 0 | SN32: 0 | SO32: 0 | SP32: 0 | SQ32: 0 | SR32: 0 | SS32: 0 | ST32: 0 | SU32: 0 | SV32: 11400.2 | SW32: 8900 | SX32: 1936.02 | SY32: 160 | SZ32: 160 | TA32: 160 | TB32: 100 | TC32: 88.81 | TD32: 2700 | TE32: 500 | TF32: 500 | TG32: 500 | TH32: 248.46 | TI32: 219.49 | TJ32: 99.47 | TK32: 186.44 | TL32: 331.62 | TM32: 90.11 | TN32: 72.29 | TO32: 0 | TP32: 0 | TQ32: 0 | TR32: 0 | TS32: 0 | TT32: 0 | TU32: 0 | TV32: 0 | TW32: 0 | TX32: 0 | TY32: 0
B33: 2 | D33: О | E33: =$A$31&"."&$B$33 -> 8.3.2 | F33: прибыль, направляемая на инвестиции | G33: тыс руб | H33: =SUM(I33:TZ33) -> 118880.56 | J33: 0 | K33: 0 | L33: 0 | M33: 0 | N33: 8098.41 | O33: 0 | P33: 0 | Q33: 0 | R33: 0 | S33: 0 | T33: 0 | U33: 0 | V33: 0 | W33: 0 | X33: 0 | Y33: 0 | Z33: 0 | AA33: 0 | AB33: 0 | AC33: 335.5 | AD33: 0 | AE33: 0 | AF33: 0 | AG33: 0 | AH33: 0 | AI33: 0 | AJ33: 0 | AK33: 0 | AL33: 0 | AM33: 0 | AN33: 0 | AO33: 0 | AP33: 0 | AQ33: 0 | AR33: 0 | AS33: 205.64 | AT33: 0 | AU33: 0 | AV33: 0 | AW33: 0 | AX33: 0 | AY33: 0 | AZ33: 0 | BA33: 0 | BB33: 0 | BC33: 0 | BD33: 0 | BE33: 0 | BF33: 0 | BG33: 0 | BH33: 0 | BI33: 0 | BJ33: 0 | BK33: 0 | BL33: 0 | BM33: 0 | BN33: 0 | BO33: 0 | BP33: 0 | BQ33: 0 | BR33: 0 | BS33: 0 | BT33: 0 | BU33: 0 | BV33: 0 | BW33: 0 | BX33: 0 | BY33: 0 | BZ33: 8625.6 | CA33: 0 | CB33: 0 | CC33: 0 | CD33: 0 | CE33: 0 | CF33: 0 | CG33: 0 | CH33: 0 | CI33: 0 | CJ33: 0 | CK33: 0 | CL33: 0 | CM33: 0 | CN33: 0 | CO33: 0 | CP33: 0 | CQ33: 0 | CR33: 1855 | CS33: 0 | CT33: 468 | CU33: 0 | CV33: 0 | CW33: 0 | CX33: 0 | CY33: 0 | CZ33: 0 | DA33: 0 | DB33: 0 | DC33: 0 | DD33: 0 | DE33: 0 | DF33: 0 | DG33: 0 | DH33: 0 | DI33: 0 | DJ33: 0 | DK33: 0 | DL33: 0 | DM33: 0 | DN33: 0 | DO33: 500 | DP33: 0 | DQ33: 0 | DR33: 0 | DS33: 500 | DT33: 0 | DU33: 0 | DV33: 0 | DW33: 0 | DX33: 0 | DY33: 0 | DZ33: 0 | EA33: 0 | EB33: 0 | EC33: 0 | ED33: 0 | EE33: 0 | EF33: 0 | EG33: 0 | EH33: 0 | EI33: 0 | EJ33: 0 | EK33: 0 | EL33: 0 | EM33: 0 | EN33: 0 | EO33: 500 | EP33: 0 | EQ33: 0 | ER33: 420 | ES33: 0 | ET33: 0 | EU33: 0 | EV33: 0 | EW33: 0 | EX33: 0 | EY33: 0 | EZ33: 0 | FA33: 0 | FB33: 0 | FC33: 0 | FD33: 0 | FE33: 0 | FF33: 0 | FG33: 0 | FH33: 0 | FI33: 0 | FJ33: 0 | FK33: 9058.65 | FL33: 0 | FM33: 0 | FN33: 0 | FO33: 0 | FP33: 0 | FQ33: 0 | FR33: 0 | FS33: 0 | FT33: 0 | FU33: 0 | FV33: 0 | FW33: 0 | FX33: 0 | FY33: 0 | FZ33: 0 | GA33: 0 | GB33: 0 | GC33: 0 | GD33: 0 | GE33: 0 | GF33: 0 | GG33: 0 | GH33: 0 | GI33: 0 | GJ33: 0 | GK33: 0 | GL33: 0 | GM33: 9400 | GN33: 0 | GO33: 0 | GP33: 0 | GQ33: 0 | GR33: 2033 | GS33: 0 | GT33: 0 | GU33: 0 | GV33: 0 | GW33: 0 | GX33: 0 | GY33: 0 | GZ33: 0 | HA33: 0 | HB33: 8896 | HC33: 0 | HD33: 0 | HE33: 0 | HF33: 0 | HG33: 0 | HH33: 0 | HI33: 0 | HJ33: 0 | HK33: 0 | HL33: 6348 | HM33: 0 | HN33: 1260 | HO33: 494 | HP33: 0 | HQ33: 0 | HR33: 0 | HS33: 0 | HT33: 0 | HU33: 5450 | HV33: 0 | HW33: 0 | HX33: 0 | HY33: 0 | HZ33: 0 | IA33: 31307 | IB33: 0 | IC33: 0 | ID33: 0 | IE33: 0 | IF33: 0 | IG33: 1944 | IH33: 0 | II33: 0 | IJ33: 0 | IK33: 0 | IL33: 0 | IM33: 0 | IN33: 0 | IO33: 0 | IP33: 0 | IQ33: 0 | IR33: 0 | IS33: 0 | IT33: 0 | IU33: 0 | IV33: 0 | IW33: 0 | IX33: 1680.18 | IY33: 0 | IZ33: 0 | JA33: 0 | JB33: 0 | JC33: 0 | JD33: 0 | JE33: 0 | JF33: 0 | JG33: 0 | JH33: 0 | JI33: 0 | JJ33: 0 | JK33: 0 | JL33: 0 | JM33: 0 | JN33: 0 | JO33: 0 | JP33: 0 | JQ33: 0 | JR33: 0 | JS33: 0 | JT33: 0 | JU33: 0 | JV33: 0 | JW33: 0 | JX33: 0 | JY33: 0 | JZ33: 0 | KA33: 0 | KB33: 0 | KC33: 0 | KD33: 0 | KE33: 0 | KF33: 0 | KG33: 0 | KH33: 0 | KI33: 0 | KJ33: 0 | KK33: 0 | KL33: 0 | KM33: 0 | KN33: 0 | KO33: 0 | KP33: 0 | KQ33: 0 | KR33: 0 | KS33: 0 | KT33: 0 | KU33: 0 | KV33: 0 | KW33: 0 | KX33: 0 | KY33: 0 | KZ33: 0 | LA33: 0 | LB33: 0 | LC33: 0 | LD33: 0 | LE33: 0 | LF33: 0 | LG33: 0 | LH33: 0 | LI33: 0 | LJ33: 0 | LK33: 0 | LL33: 0 | LM33: 0 | LN33: 0 | LO33: 0 | LP33: 0 | LQ33: 0 | LR33: 0 | LS33: 0 | LT33: 0 | LU33: 0 | LV33: 0 | LW33: 0 | LX33: 0 | LY33: 0 | LZ33: 0 | MA33: 0 | MB33: 0 | MC33: 0 | MD33: 0 | ME33: 0 | MF33: 0 | MG33: 0 | MH33: 0 | MI33: 0 | MJ33: 0 | MK33: 0 | ML33: 0 | MM33: 0 | MN33: 0 | MO33: 0 | MP33: 0 | MQ33: 0 | MR33: 0 | MS33: 0 | MT33: 0 | MU33: 0 | MV33: 0 | MW33: 0 | MX33: 0 | MY33: 0 | MZ33: 0 | NA33: 0 | NB33: 0 | NC33: 0 | ND33: 0 | NE33: 0 | NF33: 0 | NG33: 0 | NH33: 0 | NI33: 0 | NJ33: 0 | NK33: 0 | NL33: 0 | NM33: 0 | NN33: 0 | NO33: 0 | NP33: 0 | NQ33: 0 | NR33: 0 | NS33: 0 | NT33: 0 | NU33: 0 | NV33: 0 | NW33: 0 | NX33: 0 | NY33: 0 | NZ33: 0 | OA33: 0 | OB33: 6585 | OC33: 0 | OD33: 0 | OE33: 0 | OF33: 0 | OG33: 0 | OH33: 0 | OI33: 0 | OJ33: 0 | OK33: 0 | OL33: 0 | OM33: 0 | ON33: 0 | OO33: 0 | OP33: 0 | OQ33: 0 | OR33: 0 | OS33: 0 | OT33: 0 | OU33: 0 | OV33: 0 | OW33: 0 | OX33: 0 | OY33: 0 | OZ33: 0 | PA33: 0 | PB33: 0 | PC33: 0 | PD33: 0 | PE33: 0 | PF33: 0 | PG33: 0 | PH33: 0 | PI33: 0 | PJ33: 0 | PK33: 0 | PL33: 0 | PM33: 0 | PN33: 0 | PO33: 0 | PP33: 0 | PQ33: 7300 | PR33: 0 | PS33: 0 | PT33: 0 | PU33: 0 | PV33: 0 | PW33: 0 | PX33: 0 | PY33: 0 | PZ33: 0 | QA33: 0 | QB33: 0 | QC33: 0 | QD33: 0 | QE33: 0 | QF33: 0 | QG33: 0 | QH33: 0 | QI33: 0 | QJ33: 0 | QK33: 0 | QL33: 0 | QM33: 0 | QN33: 0 | QO33: 0 | QP33: 0 | QQ33: 0 | QR33: 0 | QS33: 0 | QT33: 0 | QU33: 0 | QV33: 0 | QW33: 0 | QX33: 0 | QY33: 0 | QZ33: 0 | RA33: 0 | RB33: 0 | RC33: 0 | RD33: 0 | RE33: 0 | RF33: 0 | RG33: 0 | RH33: 0 | RI33: 0 | RJ33: 0 | RK33: 0 | RL33: 0 | RM33: 0 | RN33: 0 | RO33: 0 | RP33: 0 | RQ33: 0 | RR33: 0 | RS33: 0 | RT33: 0 | RU33: 0 | RV33: 0 | RW33: 0 | RX33: 0 | RY33: 0 | RZ33: 0 | SA33: 0 | SB33: 0 | SC33: 0 | SD33: 0 | SE33: 0 | SF33: 0 | SG33: 0 | SH33: 0 | SI33: 0 | SJ33: 0 | SK33: 0 | SL33: 0 | SM33: 0 | SN33: 0 | SO33: 0 | SP33: 0 | SQ33: 2827.58 | SR33: 500 | SS33: 500 | ST33: 189 | SU33: 1600 | SV33: 0 | SW33: 0 | SX33: 0 | SY33: 0 | SZ33: 0 | TA33: 0 | TB33: 0 | TC33: 0 | TD33: 0 | TE33: 0 | TF33: 0 | TG33: 0 | TH33: 0 | TI33: 0 | TJ33: 0 | TK33: 0 | TL33: 0 | TM33: 0 | TN33: 0 | TO33: 0 | TP33: 0 | TQ33: 0 | TR33: 0 | TS33: 0 | TT33: 0 | TU33: 0 | TV33: 0 | TW33: 0 | TX33: 0 | TY33: 0
B34: 3 | D34: О | E34: =$A$31&"."&$B$34 -> 8.3.3 | F34: прочие средства | G34: тыс руб | H34: =SUM(I34:TZ34) -> 96506.61779 | J34: 0 | K34: 0 | L34: 0 | M34: 0 | N34: 0 | O34: 0 | P34: 0 | Q34: 0 | R34: 0 | S34: 0 | T34: 0 | U34: 0 | V34: 0 | W34: 0 | X34: 0 | Y34: 0 | Z34: 0 | AA34: 0 | AB34: 0 | AC34: 0 | AD34: 0 | AE34: 0 | AF34: 0 | AG34: 0 | AH34: 0 | AI34: 0 | AJ34: 0 | AK34: 0 | AL34: 0 | AM34: 0 | AN34: 0 | AO34: 0 | AP34: 0 | AQ34: 0 | AR34: 0 | AS34: 0 | AT34: 0 | AU34: 0 | AV34: 0 | AW34: 0 | AX34: 0 | AY34: 0 | AZ34: 0 | BA34: 0 | BB34: 0 | BC34: 0 | BD34: 0 | BE34: 0 | BF34: 0 | BG34: 0 | BH34: 0 | BI34: 0 | BJ34: 0 | BK34: 0 | BL34: 0 | BM34: 0 | BN34: 0 | BO34: 0 | BP34: 0 | BQ34: 0 | BR34: 0 | BS34: 0 | BT34: 0 | BU34: 0 | BV34: 0 | BW34: 0 | BX34: 0 | BY34: 0 | BZ34: 0 | CA34: 0 | CB34: 0 | CC34: 0 | CD34: 0 | CE34: 0 | CF34: 0 | CG34: 0 | CH34: 0 | CI34: 0 | CJ34: 0 | CK34: 0 | CL34: 0 | CM34: 0 | CN34: 0 | CO34: 0 | CP34: 0 | CQ34: 0 | CR34: 0 | CS34: 0 | CT34: 0 | CU34: 0 | CV34: 0 | CW34: 0 | CX34: 0 | CY34: 0 | CZ34: 0 | DA34: 0 | DB34: 0 | DC34: 0 | DD34: 0 | DE34: 0 | DF34: 0 | DG34: 0 | DH34: 0 | DI34: 0 | DJ34: 0 | DK34: 0 | DL34: 0 | DM34: 0 | DN34: 0 | DO34: 0 | DP34: 0 | DQ34: 0 | DR34: 0 | DS34: 0 | DT34: 0 | DU34: 0 | DV34: 0 | DW34: 0 | DX34: 0 | DY34: 0 | DZ34: 0 | EA34: 0 | EB34: 0 | EC34: 0 | ED34: 0 | EE34: 0 | EF34: 0 | EG34: 0 | EH34: 0 | EI34: 0 | EJ34: 0 | EK34: 0 | EL34: 0 | EM34: 0 | EN34: 0 | EO34: 0 | EP34: 0 | EQ34: 0 | ER34: 0 | ES34: 0 | ET34: 0 | EU34: 0 | EV34: 0 | EW34: 0 | EX34: 0 | EY34: 0 | EZ34: 0 | FA34: 0 | FB34: 0 | FC34: 0 | FD34: 0 | FE34: 0 | FF34: 0 | FG34: 0 | FH34: 0 | FI34: 0 | FJ34: 0 | FK34: 0 | FL34: 0 | FM34: 0 | FN34: 0 | FO34: 0 | FP34: 0 | FQ34: 0 | FR34: 0 | FS34: 0 | FT34: 0 | FU34: 0 | FV34: 0 | FW34: 0 | FX34: 0 | FY34: 0 | FZ34: 0 | GA34: 0 | GB34: 0 | GC34: 0 | GD34: 0 | GE34: 0 | GF34: 0 | GG34: 0 | GH34: 0 | GI34: 0 | GJ34: 0 | GK34: 0 | GL34: 0 | GM34: 0 | GN34: 0 | GO34: 0 | GP34: 0 | GQ34: 0 | GR34: 0 | GS34: 0 | GT34: 0 | GU34: 0 | GV34: 0 | GW34: 0 | GX34: 0 | GY34: 0 | GZ34: 0 | HA34: 0 | HB34: 0 | HC34: 0 | HD34: 0 | HE34: 0 | HF34: 0 | HG34: 0 | HH34: 0 | HI34: 0 | HJ34: 0 | HK34: 0 | HL34: 0 | HM34: 0 | HN34: 0 | HO34: 0 | HP34: 0 | HQ34: 0 | HR34: 4900.536563 | HS34: 33671.11 | HT34: 15726.55 | HU34: 5196.02 | HV34: 10590.55 | HW34: 3819.38 | HX34: 21345.65122 | HY34: 0 | HZ34: 547.14 | IA34: 0 | IB34: 0 | IC34: 0 | ID34: 609.59 | IE34: 100.09 | IF34: 0 | IG34: 0 | IH34: 0 | II34: 0 | IJ34: 0 | IK34: 0 | IL34: 0 | IM34: 0 | IN34: 0 | IO34: 0 | IP34: 0 | IQ34: 0 | IR34: 0 | IS34: 0 | IT34: 0 | IU34: 0 | IV34: 0 | IW34: 0 | IX34: 0 | IY34: 0 | IZ34: 0 | JA34: 0 | JB34: 0 | JC34: 0 | JD34: 0 | JE34: 0 | JF34: 0 | JG34: 0 | JH34: 0 | JI34: 0 | JJ34: 0 | JK34: 0 | JL34: 0 | JM34: 0 | JN34: 0 | JO34: 0 | JP34: 0 | JQ34: 0 | JR34: 0 | JS34: 0 | JT34: 0 | JU34: 0 | JV34: 0 | JW34: 0 | JX34: 0 | JY34: 0 | JZ34: 0 | KA34: 0 | KB34: 0 | KC34: 0 | KD34: 0 | KE34: 0 | KF34: 0 | KG34: 0 | KH34: 0 | KI34: 0 | KJ34: 0 | KK34: 0 | KL34: 0 | KM34: 0 | KN34: 0 | KO34: 0 | KP34: 0 | KQ34: 0 | KR34: 0 | KS34: 0 | KT34: 0 | KU34: 0 | KV34: 0 | KW34: 0 | KX34: 0 | KY34: 0 | KZ34: 0 | LA34: 0 | LB34: 0 | LC34: 0 | LD34: 0 | LE34: 0 | LF34: 0 | LG34: 0 | LH34: 0 | LI34: 0 | LJ34: 0 | LK34: 0 | LL34: 0 | LM34: 0 | LN34: 0 | LO34: 0 | LP34: 0 | LQ34: 0 | LR34: 0 | LS34: 0 | LT34: 0 | LU34: 0 | LV34: 0 | LW34: 0 | LX34: 0 | LY34: 0 | LZ34: 0 | MA34: 0 | MB34: 0 | MC34: 0 | MD34: 0 | ME34: 0 | MF34: 0 | MG34: 0 | MH34: 0 | MI34: 0 | MJ34: 0 | MK34: 0 | ML34: 0 | MM34: 0 | MN34: 0 | MO34: 0 | MP34: 0 | MQ34: 0 | MR34: 0 | MS34: 0 | MT34: 0 | MU34: 0 | MV34: 0 | MW34: 0 | MX34: 0 | MY34: 0 | MZ34: 0 | NA34: 0 | NB34: 0 | NC34: 0 | ND34: 0 | NE34: 0 | NF34: 0 | NG34: 0 | NH34: 0 | NI34: 0 | NJ34: 0 | NK34: 0 | NL34: 0 | NM34: 0 | NN34: 0 | NO34: 0 | NP34: 0 | NQ34: 0 | NR34: 0 | NS34: 0 | NT34: 0 | NU34: 0 | NV34: 0 | NW34: 0 | NX34: 0 | NY34: 0 | NZ34: 0 | OA34: 0 | OB34: 0 | OC34: 0 | OD34: 0 | OE34: 0 | OF34: 0 | OG34: 0 | OH34: 0 | OI34: 0 | OJ34: 0 | OK34: 0 | OL34: 0 | OM34: 0 | ON34: 0 | OO34: 0 | OP34: 0 | OQ34: 0 | OR34: 0 | OS34: 0 | OT34: 0 | OU34: 0 | OV34: 0 | OW34: 0 | OX34: 0 | OY34: 0 | OZ34: 0 | PA34: 0 | PB34: 0 | PC34: 0 | PD34: 0 | PE34: 0 | PF34: 0 | PG34: 0 | PH34: 0 | PI34: 0 | PJ34: 0 | PK34: 0 | PL34: 0 | PM34: 0 | PN34: 0 | PO34: 0 | PP34: 0 | PQ34: 0 | PR34: 0 | PS34: 0 | PT34: 0 | PU34: 0 | PV34: 0 | PW34: 0 | PX34: 0 | PY34: 0 | PZ34: 0 | QA34: 0 | QB34: 0 | QC34: 0 | QD34: 0 | QE34: 0 | QF34: 0 | QG34: 0 | QH34: 0 | QI34: 0 | QJ34: 0 | QK34: 0 | QL34: 0 | QM34: 0 | QN34: 0 | QO34: 0 | QP34: 0 | QQ34: 0 | QR34: 0 | QS34: 0 | QT34: 0 | QU34: 0 | QV34: 0 | QW34: 0 | QX34: 0 | QY34: 0 | QZ34: 0 | RA34: 0 | RB34: 0 | RC34: 0 | RD34: 0 | RE34: 0 | RF34: 0 | RG34: 0 | RH34: 0 | RI34: 0 | RJ34: 0 | RK34: 0 | RL34: 0 | RM34: 0 | RN34: 0 | RO34: 0 | RP34: 0 | RQ34: 0 | RR34: 0 | RS34: 0 | RT34: 0 | RU34: 0 | RV34: 0 | RW34: 0 | RX34: 0 | RY34: 0 | RZ34: 0 | SA34: 0 | SB34: 0 | SC34: 0 | SD34: 0 | SE34: 0 | SF34: 0 | SG34: 0 | SH34: 0 | SI34: 0 | SJ34: 0 | SK34: 0 | SL34: 0 | SM34: 0 | SN34: 0 | SO34: 0 | SP34: 0 | SQ34: 0 | SR34: 0 | SS34: 0 | ST34: 0 | SU34: 0 | SV34: 0 | SW34: 0 | SX34: 0 | SY34: 0 | SZ34: 0 | TA34: 0 | TB34: 0 | TC34: 0 | TD34: 0 | TE34: 0 | TF34: 0 | TG34: 0 | TH34: 0 | TI34: 0 | TJ34: 0 | TK34: 0 | TL34: 0 | TM34: 0 | TN34: 0 | TO34: 0 | TP34: 0 | TQ34: 0 | TR34: 0 | TS34: 0 | TT34: 0 | TU34: 0 | TV34: 0 | TW34: 0 | TX34: 0 | TY34: 0
F35: Добавить источники
A36: 8.4 | C36: О | E36: =A36 -> 8.4 | F36: 2019 | G36: тыс руб | H36: =SUM(H37:H40) -> 434205.47 | I36: 0 | J36: 0 | K36: 0 | L36: 0 | M36: 0 | N36: 0 | O36: 0 | P36: 0 | Q36: 0 | R36: 0 | S36: 0 | T36: 0 | U36: 0 | V36: 0 | W36: 0 | X36: 0 | Y36: 0 | Z36: 0 | AA36: 0 | AB36: 0 | AC36: 0 | AD36: 0 | AE36: 0 | AF36: 0 | AG36: 0 | AH36: 0 | AI36: 0 | AJ36: 0 | AK36: 0 | AL36: 0 | AM36: 0 | AN36: 0 | AO36: 0 | AP36: 0 | AQ36: 0 | AR36: 0 | AS36: 0 | AT36: 0 | AU36: 0 | AV36: 0 | AW36: 0 | AX36: 0 | AY36: 0 | AZ36: 0 | BA36: 0 | BB36: 0 | BC36: 0 | BD36: 0 | BE36: 0 | BF36: 0 | BG36: 0 | BH36: 0 | BI36: 0 | BJ36: 0 | BK36: 0 | BL36: 0 | BM36: 0 | BN36: 0 | BO36: 0 | BP36: 0 | BQ36: 200.49 | BR36: 0 | BS36: 0 | BT36: 0 | BU36: 0 | BV36: 0 | BW36: 0 | BX36: 0 | BY36: 0 | BZ36: 0 | CA36: 0 | CB36: 2180.03 | CC36: 0 | CD36: 0 | CE36: 0 | CF36: 0 | CG36: 0 | CH36: 0 | CI36: 0 | CJ36: 0 | CK36: 0 | CL36: =SUM(CL37:CL40) -> 0 | CM36: 0 | CN36: 0 | CO36: 0 | CP36: 0 | CQ36: 0 | CR36: 0 | CS36: 0 | CT36: 0 | CU36: 0 | CV36: 0 | CW36: 0 | CX36: 0 | CY36: 0 | CZ36: 0 | DA36: 0 | DB36: 0 | DC36: 0 | DD36: 0 | DE36: 0 | DF36: 0 | DG36: 0 | DH36: 0 | DI36: 0 | DJ36: 0 | DK36: 0 | DL36: 0 | DM36: 0 | DN36: 0 | DO36: 0 | DP36: 0 | DQ36: 0 | DR36: 0 | DS36: 0 | DT36: 0 | DU36: 0 | DV36: 0 | DW36: 0 | DX36: 0 | DY36: 0 | DZ36: 0 | EA36: 0 | EB36: 0 | EC36: 0 | ED36: 0 | EE36: 0 | EF36: 0 | EG36: 0 | EH36: 0 | EI36: 0 | EJ36: 0 | EK36: 0 | EL36: 0 | EM36: 0 | EN36: 0 | EO36: 0 | EP36: 0 | EQ36: 0 | ER36: 0 | ES36: 0 | ET36: 0 | EU36: 0 | EV36: 0 | EW36: 0 | EX36: =SUM(EX37:EX40) -> 0 | EY36: 0 | EZ36: 0 | FA36: 0 | FB36: 0 | FC36: 0 | FD36: 0 | FE36: 0 | FF36: 0 | FG36: 0 | FH36: 0 | FI36: 0 | FJ36: 0 | FK36: 0 | FL36: 0 | FM36: 0 | FN36: 0 | FO36: 0 | FP36: 0 | FQ36: 0 | FR36: 0 | FS36: 0 | FT36: 0 | FU36: 0 | FV36: 0 | FW36: 0 | FX36: 0 | FY36: 0 | FZ36: 0 | GA36: 0 | GB36: 0 | GC36: 0 | GD36: 0 | GE36: 0 | GF36: 0 | GG36: 0 | GH36: 0 | GI36: 0 | GJ36: 0 | GK36: 0 | GL36: 0 | GM36: =SUM(GM37:GM40) -> 0 | GN36: 0 | GO36: 0 | GP36: 0 | GQ36: 0 | GR36: 0 | GS36: 0 | GT36: 0 | GU36: 0 | GV36: 0 | GW36: 0 | GX36: 0 | GY36: 0 | GZ36: 0 | HA36: 0 | HB36: 0 | HC36: 0 | HD36: 0 | HE36: 0 | HF36: 0 | HG36: 0 | HH36: 0 | HI36: 0 | HJ36: 0 | HK36: 0 | HL36: 0 | HM36: 0 | HN36: 0 | HO36: 0 | HP36: 0 | HQ36: 0 | HR36: 0 | HS36: 0 | HT36: 0 | HU36: 0 | HV36: 0 | HW36: 0 | HX36: 0 | HY36: 0 | HZ36: 0 | IA36: 0 | IB36: 0 | IC36: 0 | ID36: 0 | IE36: 0 | IF36: 0 | IG36: 0 | IH36: 0 | II36: 0 | IJ36: 0 | IK36: 29246.05 | IL36: 0 | IM36: 0 | IN36: 0 | IO36: 9659.57 | IP36: 15864.98 | IQ36: 22329.95 | IR36: 71915.39 | IS36: 2076.95 | IT36: 40192.26 | IU36: =SUM(IU37:IU40) -> 668.65 | IV36: 0 | IW36: 0 | IX36: 4717.17 | IY36: 9956.83 | IZ36: 0 | JA36: 9593.18 | JB36: 200.49 | JC36: 3799.73 | JD36: 5315.41 | JE36: 5897.93 | JF36: 42481.69 | JG36: 7014.46 | JH36: 13856.29 | JI36: 5507.98 | JJ36: 2063.03 | JK36: 338.09 | JL36: 2080.56 | JM36: 7704.95 | JN36: 742.3 | JO36: 8835.19 | JP36: 4058.59 | JQ36: 1076.2 | JR36: 1581.63 | JS36: 2150.36 | JT36: 5207.36 | JU36: 3031.11 | JV36: 1337.27 | JW36: 2023.6 | JX36: 6159.43 | JY36: 17299.25 | JZ36: 152.9 | KA36: 35976.01 | KB36: 4519.99 | KC36: 0 | KD36: 0 | KE36: 0 | KF36: 0 | KG36: 0 | KH36: 0 | KI36: 0 | KJ36: 0 | KK36: 0 | KL36: 0 | KM36: 0 | KN36: 0 | KO36: 0 | KP36: 0 | KQ36: 0 | KR36: 0 | KS36: 0 | KT36: 3105.67 | KU36: 0 | KV36: 0 | KW36: 0 | KX36: 0 | KY36: 0 | KZ36: 0 | LA36: 0 | LB36: 0 | LC36: 0 | LD36: 0 | LE36: 0 | LF36: =SUM(LF37:LF40) -> 0 | LG36: 0 | LH36: 0 | LI36: 0 | LJ36: 0 | LK36: 0 | LL36: 0 | LM36: 0 | LN36: 0 | LO36: 0 | LP36: 0 | LQ36: 0 | LR36: 0 | LS36: 0 | LT36: 0 | LU36: 0 | LV36: 0 | LW36: 0 | LX36: 0 | LY36: 0 | LZ36: 0 | MA36: 0 | MB36: 0 | MC36: 0 | MD36: 0 | ME36: 0 | MF36: 0 | MG36: 0 | MH36: 0 | MI36: 0 | MJ36: 0 | MK36: 0 | ML36: 0 | MM36: 0 | MN36: 0 | MO36: 0 | MP36: 0 | MQ36: 0 | MR36: 0 | MS36: 0 | MT36: 0 | MU36: 0 | MV36: 0 | MW36: 0 | MX36: 0 | MY36: 0 | MZ36: 0 | NA36: 0 | NB36: 0 | NC36: 0 | ND36: 0 | NE36: 0 | NF36: 0 | NG36: 0 | NH36: 0 | NI36: 0 | NJ36: 0 | NK36: 0 | NL36: 0 | NM36: 0 | NN36: 0 | NO36: 0 | NP36: 0 | NQ36: =SUM(NQ37:NQ40) -> 0 | NR36: 0 | NS36: 0 | NT36: 0 | NU36: 0 | NV36: 0 | NW36: 0 | NX36: 0 | NY36: 0 | NZ36: 0 | OA36: 0 | OB36: 0 | OC36: 0 | OD36: 0 | OE36: 0 | OF36: 0 | OG36: 0 | OH36: 0 | OI36: 0 | OJ36: 0 | OK36: 0 | OL36: 0 | OM36: 0 | ON36: 0 | OO36: 0 | OP36: 0 | OQ36: 0 | OR36: 0 | OS36: 0 | OT36: 0 | OU36: 0 | OV36: 0 | OW36: 0 | OX36: 0 | OY36: 0 | OZ36: 0 | PA36: 0 | PB36: 0 | PC36: 0 | PD36: 0 | PE36: 0 | PF36: 0 | PG36: 0 | PH36: 0 | PI36: 0 | PJ36: 0 | PK36: 0 | PL36: 0 | PM36: 0 | PN36: 0 | PO36: 0 | PP36: 0 | PQ36: 0 | PR36: 0 | PS36: 0 | PT36: 0 | PU36: 0 | PV36: 0 | PW36: 0 | PX36: 0 | PY36: 0 | PZ36: 0 | QA36: 0 | QB36: 0 | QC36: =SUM(QC37:QC40) -> 0 | QD36: 0 | QE36: 0 | QF36: 21257.69 | QG36: 0 | QH36: 0 | QI36: 0 | QJ36: 0 | QK36: 0 | QL36: 0 | QM36: 0 | QN36: 0 | QO36: 0 | QP36: 0 | QQ36: 0 | QR36: 0 | QS36: 0 | QT36: 0 | QU36: 0 | QV36: 0 | QW36: 0 | QX36: 0 | QY36: 0 | QZ36: 0 | RA36: 0 | RB36: 0 | RC36: 0 | RD36: 0 | RE36: 0 | RF36: 0 | RG36: 0 | RH36: 0 | RI36: 0 | RJ36: 0 | RK36: 0 | RL36: 0 | RM36: 0 | RN36: 0 | RO36: 0 | RP36: 0 | RQ36: 0 | RR36: 0 | RS36: 0 | RT36: 0 | RU36: 0 | RV36: 0 | RW36: 0 | RX36: 0 | RY36: 0 | RZ36: 0 | SA36: 0 | SB36: 0 | SC36: 0 | SD36: 0 | SE36: 0 | SF36: 0 | SG36: 0 | SH36: 0 | SI36: 0 | SJ36: 0 | SK36: 0 | SL36: 0 | SM36: 0 | SN36: 0 | SO36: =SUM(SO37:SO40) -> 0 | SP36: =SUM(SP37:SP40) -> 0 | SQ36: =SUM(SQ37:SQ40) -> 0 | SR36: =SUM(SR37:SR40) -> 0 | SS36: =SUM(SS37:SS40) -> 0 | ST36: 0 | SU36: 0 | SV36: 0 | SW36: 0 | SX36: 0 | SY36: 0 | SZ36: 0 | TA36: 0 | TB36: 0 | TC36: 0 | TD36: 0 | TE36: 0 | TF36: 0 | TG36: 0 | TH36: 0 | TI36: 0 | TJ36: 0 | TK36: 0 | TL36: 0 | TM36: 0 | TN36: 0 | TO36: 828.81 | TP36: 0 | TQ36: 0 | TR36: 0 | TS36: 0 | TT36: 0 | TU36: 0 | TV36: 0 | TW36: 0 | TX36: 0 | TY36: 0 | TZ36: y
B37: 1 | E37: =A36&"."&B37 -> 8.4.1 | F37: амортизация | G37: тыс руб | H37: =SUM(I37:TZ37) -> 202961.95 | J37: 0 | K37: 0 | L37: 0 | M37: 0 | N37: 0 | O37: 0 | P37: 0 | Q37: 0 | R37: 0 | S37: 0 | T37: 0 | U37: 0 | V37: 0 | W37: 0 | X37: 0 | Y37: 0 | Z37: 0 | AA37: 0 | AB37: 0 | AC37: 0 | AD37: 0 | AE37: 0 | AF37: 0 | AG37: 0 | AH37: 0 | AI37: 0 | AJ37: 0 | AK37: 0 | AL37: 0 | AM37: 0 | AN37: 0 | AO37: 0 | AP37: 0 | AQ37: 0 | AR37: 0 | AS37: 0 | AT37: 0 | AU37: 0 | AV37: 0 | AW37: 0 | AX37: 0 | AY37: 0 | AZ37: 0 | BA37: 0 | BB37: 0 | BC37: 0 | BD37: 0 | BE37: 0 | BF37: 0 | BG37: 0 | BH37: 0 | BI37: 0 | BJ37: 0 | BK37: 0 | BL37: 0 | BM37: 0 | BN37: 0 | BO37: 0 | BP37: 0 | BQ37: 200.49 | BR37: 0 | BS37: 0 | BT37: 0 | BU37: 0 | BV37: 0 | BW37: 0 | BX37: 0 | BY37: 0 | BZ37: 0 | CA37: 0 | CB37: 0 | CC37: 0 | CD37: 0 | CE37: 0 | CF37: 0 | CG37: 0 | CH37: 0 | CI37: 0 | CJ37: 0 | CK37: 0 | CL37: 0 | CM37: 0 | CN37: 0 | CO37: 0 | CP37: 0 | CQ37: 0 | CR37: 0 | CS37: 0 | CT37: 0 | CU37: 0 | CV37: 0 | CW37: 0 | CX37: 0 | CY37: 0 | CZ37: 0 | DA37: 0 | DB37: 0 | DC37: 0 | DD37: 0 | DE37: 0 | DF37: 0 | DG37: 0 | DH37: 0 | DI37: 0 | DJ37: 0 | DK37: 0 | DL37: 0 | DM37: 0 | DN37: 0 | DO37: 0 | DP37: 0 | DQ37: 0 | DR37: 0 | DS37: 0 | DT37: 0 | DU37: 0 | DV37: 0 | DW37: 0 | DX37: 0 | DY37: 0 | DZ37: 0 | EA37: 0 | EB37: 0 | EC37: 0 | ED37: 0 | EE37: 0 | EF37: 0 | EG37: 0 | EH37: 0 | EI37: 0 | EJ37: 0 | EK37: 0 | EL37: 0 | EM37: 0 | EN37: 0 | EO37: 0 | EP37: 0 | EQ37: 0 | ER37: 0 | ES37: 0 | ET37: 0 | EU37: 0 | EV37: 0 | EW37: 0 | EX37: 0 | EY37: 0 | EZ37: 0 | FA37: 0 | FB37: 0 | FC37: 0 | FD37: 0 | FE37: 0 | FF37: 0 | FG37: 0 | FH37: 0 | FI37: 0 | FJ37: 0 | FK37: 0 | FL37: 0 | FM37: 0 | FN37: 0 | FO37: 0 | FP37: 0 | FQ37: 0 | FR37: 0 | FS37: 0 | FT37: 0 | FU37: 0 | FV37: 0 | FW37: 0 | FX37: 0 | FY37: 0 | FZ37: 0 | GA37: 0 | GB37: 0 | GC37: 0 | GD37: 0 | GE37: 0 | GF37: 0 | GG37: 0 | GH37: 0 | GI37: 0 | GJ37: 0 | GK37: 0 | GL37: 0 | GM37: 0 | GN37: 0 | GO37: 0 | GP37: 0 | GQ37: 0 | GR37: 0 | GS37: 0 | GT37: 0 | GU37: 0 | GV37: 0 | GW37: 0 | GX37: 0 | GY37: 0 | GZ37: 0 | HA37: 0 | HB37: 0 | HC37: 0 | HD37: 0 | HE37: 0 | HF37: 0 | HG37: 0 | HH37: 0 | HI37: 0 | HJ37: 0 | HK37: 0 | HL37: 0 | HM37: 0 | HN37: 0 | HO37: 0 | HP37: 0 | HQ37: 0 | HR37: 0 | HS37: 0 | HT37: 0 | HU37: 0 | HV37: 0 | HW37: 0 | HX37: 0 | HY37: 0 | HZ37: 0 | IA37: 0 | IB37: 0 | IC37: 0 | ID37: 0 | IE37: 0 | IF37: 0 | IG37: 0 | IH37: 0 | II37: 0 | IJ37: 0 | IK37: 11913.5 | IL37: 0 | IM37: 0 | IN37: 0 | IO37: 0 | IP37: 0 | IQ37: 0 | IR37: 0 | IS37: 0 | IT37: 0 | IU37: 0 | IV37: 0 | IW37: 0 | IX37: 0 | IY37: 0 | IZ37: 0 | JA37: 9593.18 | JB37: 0 | JC37: 3799.73 | JD37: 5315.41 | JE37: 5897.93 | JF37: 42481.69 | JG37: 7014.46 | JH37: 13856.29 | JI37: 5507.98 | JJ37: 2063.03 | JK37: 338.09 | JL37: 2080.56 | JM37: 7704.95 | JN37: 742.3 | JO37: 8835.19 | JP37: 4058.59 | JQ37: 1076.2 | JR37: 1581.63 | JS37: 2150.36 | JT37: 5207.36 | JU37: 3031.11 | JV37: 1337.27 | JW37: 2023.6 | JX37: 6159.43 | JY37: 17299.25 | JZ37: 152.9 | KA37: 9452.97 | KB37: 0 | KC37: 0 | KD37: 0 | KE37: 0 | KF37: 0 | KG37: 0 | KH37: 0 | KI37: 0 | KJ37: 0 | KK37: 0 | KL37: 0 | KM37: 0 | KN37: 0 | KO37: 0 | KP37: 0 | KQ37: 0 | KR37: 0 | KS37: 0 | KT37: 0 | KU37: 0 | KV37: 0 | KW37: 0 | KX37: 0 | KY37: 0 | KZ37: 0 | LA37: 0 | LB37: 0 | LC37: 0 | LD37: 0 | LE37: 0 | LF37: 0 | LG37: 0 | LH37: 0 | LI37: 0 | LJ37: 0 | LK37: 0 | LL37: 0 | LM37: 0 | LN37: 0 | LO37: 0 | LP37: 0 | LQ37: 0 | LR37: 0 | LS37: 0 | LT37: 0 | LU37: 0 | LV37: 0 | LW37: 0 | LX37: 0 | LY37: 0 | LZ37: 0 | MA37: 0 | MB37: 0 | MC37: 0 | MD37: 0 | ME37: 0 | MF37: 0 | MG37: 0 | MH37: 0 | MI37: 0 | MJ37: 0 | MK37: 0 | ML37: 0 | MM37: 0 | MN37: 0 | MO37: 0 | MP37: 0 | MQ37: 0 | MR37: 0 | MS37: 0 | MT37: 0 | MU37: 0 | MV37: 0 | MW37: 0 | MX37: 0 | MY37: 0 | MZ37: 0 | NA37: 0 | NB37: 0 | NC37: 0 | ND37: 0 | NE37: 0 | NF37: 0 | NG37: 0 | NH37: 0 | NI37: 0 | NJ37: 0 | NK37: 0 | NL37: 0 | NM37: 0 | NN37: 0 | NO37: 0 | NP37: 0 | NQ37: 0 | NR37: 0 | NS37: 0 | NT37: 0 | NU37: 0 | NV37: 0 | NW37: 0 | NX37: 0 | NY37: 0 | NZ37: 0 | OA37: 0 | OB37: 0 | OC37: 0 | OD37: 0 | OE37: 0 | OF37: 0 | OG37: 0 | OH37: 0 | OI37: 0 | OJ37: 0 | OK37: 0 | OL37: 0 | OM37: 0 | ON37: 0 | OO37: 0 | OP37: 0 | OQ37: 0 | OR37: 0 | OS37: 0 | OT37: 0 | OU37: 0 | OV37: 0 | OW37: 0 | OX37: 0 | OY37: 0 | OZ37: 0 | PA37: 0 | PB37: 0 | PC37: 0 | PD37: 0 | PE37: 0 | PF37: 0 | PG37: 0 | PH37: 0 | PI37: 0 | PJ37: 0 | PK37: 0 | PL37: 0 | PM37: 0 | PN37: 0 | PO37: 0 | PP37: 0 | PQ37: 0 | PR37: 0 | PS37: 0 | PT37: 0 | PU37: 0 | PV37: 0 | PW37: 0 | PX37: 0 | PY37: 0 | PZ37: 0 | QA37: 0 | QB37: 0 | QC37: 0 | QD37: 0 | QE37: 0 | QF37: 21257.69 | QG37: 0 | QH37: 0 | QI37: 0 | QJ37: 0 | QK37: 0 | QL37: 0 | QM37: 0 | QN37: 0 | QO37: 0 | QP37: 0 | QQ37: 0 | QR37: 0 | QS37: 0 | QT37: 0 | QU37: 0 | QV37: 0 | QW37: 0 | QX37: 0 | QY37: 0 | QZ37: 0 | RA37: 0 | RB37: 0 | RC37: 0 | RD37: 0 | RE37: 0 | RF37: 0 | RG37: 0 | RH37: 0 | RI37: 0 | RJ37: 0 | RK37: 0 | RL37: 0 | RM37: 0 | RN37: 0 | RO37: 0 | RP37: 0 | RQ37: 0 | RR37: 0 | RS37: 0 | RT37: 0 | RU37: 0 | RV37: 0 | RW37: 0 | RX37: 0 | RY37: 0 | RZ37: 0 | SA37: 0 | SB37: 0 | SC37: 0 | SD37: 0 | SE37: 0 | SF37: 0 | SG37: 0 | SH37: 0 | SI37: 0 | SJ37: 0 | SK37: 0 | SL37: 0 | SM37: 0 | SN37: 0 | SO37: 0 | SP37: 0 | SQ37: 0 | SR37: 0 | SS37: 0 | ST37: 0 | SU37: 0 | SV37: 0 | SW37: 0 | SX37: 0 | SY37: 0 | SZ37: 0 | TA37: 0 | TB37: 0 | TC37: 0 | TD37: 0 | TE37: 0 | TF37: 0 | TG37: 0 | TH37: 0 | TI37: 0 | TJ37: 0 | TK37: 0 | TL37: 0 | TM37: 0 | TN37: 0 | TO37: 828.81 | TP37: 0 | TQ37: 0 | TR37: 0 | TS37: 0 | TT37: 0 | TU37: 0 | TV37: 0 | TW37: 0 | TX37: 0 | TY37: 0
B38: 2 | D38: О | E38: =$A$36&"."&$B$38 -> 8.4.2 | F38: прибыль, направляемая на инвестиции | G38: тыс руб | H38: =SUM(I38:TZ38) -> 200000 | J38: 0 | K38: 0 | L38: 0 | M38: 0 | N38: 0 | O38: 0 | P38: 0 | Q38: 0 | R38: 0 | S38: 0 | T38: 0 | U38: 0 | V38: 0 | W38: 0 | X38: 0 | Y38: 0 | Z38: 0 | AA38: 0 | AB38: 0 | AC38: 0 | AD38: 0 | AE38: 0 | AF38: 0 | AG38: 0 | AH38: 0 | AI38: 0 | AJ38: 0 | AK38: 0 | AL38: 0 | AM38: 0 | AN38: 0 | AO38: 0 | AP38: 0 | AQ38: 0 | AR38: 0 | AS38: 0 | AT38: 0 | AU38: 0 | AV38: 0 | AW38: 0 | AX38: 0 | AY38: 0 | AZ38: 0 | BA38: 0 | BB38: 0 | BC38: 0 | BD38: 0 | BE38: 0 | BF38: 0 | BG38: 0 | BH38: 0 | BI38: 0 | BJ38: 0 | BK38: 0 | BL38: 0 | BM38: 0 | BN38: 0 | BO38: 0 | BP38: 0 | BQ38: 0 | BR38: 0 | BS38: 0 | BT38: 0 | BU38: 0 | BV38: 0 | BW38: 0 | BX38: 0 | BY38: 0 | BZ38: 0 | CA38: 0 | CB38: 2180.03 | CC38: 0 | CD38: 0 | CE38: 0 | CF38: 0 | CG38: 0 | CH38: 0 | CI38: 0 | CJ38: 0 | CK38: 0 | CL38: 0 | CM38: 0 | CN38: 0 | CO38: 0 | CP38: 0 | CQ38: 0 | CR38: 0 | CS38: 0 | CT38: 0 | CU38: 0 | CV38: 0 | CW38: 0 | CX38: 0 | CY38: 0 | CZ38: 0 | DA38: 0 | DB38: 0 | DC38: 0 | DD38: 0 | DE38: 0 | DF38: 0 | DG38: 0 | DH38: 0 | DI38: 0 | DJ38: 0 | DK38: 0 | DL38: 0 | DM38: 0 | DN38: 0 | DO38: 0 | DP38: 0 | DQ38: 0 | DR38: 0 | DS38: 0 | DT38: 0 | DU38: 0 | DV38: 0 | DW38: 0 | DX38: 0 | DY38: 0 | DZ38: 0 | EA38: 0 | EB38: 0 | EC38: 0 | ED38: 0 | EE38: 0 | EF38: 0 | EG38: 0 | EH38: 0 | EI38: 0 | EJ38: 0 | EK38: 0 | EL38: 0 | EM38: 0 | EN38: 0 | EO38: 0 | EP38: 0 | EQ38: 0 | ER38: 0 | ES38: 0 | ET38: 0 | EU38: 0 | EV38: 0 | EW38: 0 | EX38: 0 | EY38: 0 | EZ38: 0 | FA38: 0 | FB38: 0 | FC38: 0 | FD38: 0 | FE38: 0 | FF38: 0 | FG38: 0 | FH38: 0 | FI38: 0 | FJ38: 0 | FK38: 0 | FL38: 0 | FM38: 0 | FN38: 0 | FO38: 0 | FP38: 0 | FQ38: 0 | FR38: 0 | FS38: 0 | FT38: 0 | FU38: 0 | FV38: 0 | FW38: 0 | FX38: 0 | FY38: 0 | FZ38: 0 | GA38: 0 | GB38: 0 | GC38: 0 | GD38: 0 | GE38: 0 | GF38: 0 | GG38: 0 | GH38: 0 | GI38: 0 | GJ38: 0 | GK38: 0 | GL38: 0 | GM38: 0 | GN38: 0 | GO38: 0 | GP38: 0 | GQ38: 0 | GR38: 0 | GS38: 0 | GT38: 0 | GU38: 0 | GV38: 0 | GW38: 0 | GX38: 0 | GY38: 0 | GZ38: 0 | HA38: 0 | HB38: 0 | HC38: 0 | HD38: 0 | HE38: 0 | HF38: 0 | HG38: 0 | HH38: 0 | HI38: 0 | HJ38: 0 | HK38: 0 | HL38: 0 | HM38: 0 | HN38: 0 | HO38: 0 | HP38: 0 | HQ38: 0 | HR38: 0 | HS38: 0 | HT38: 0 | HU38: 0 | HV38: 0 | HW38: 0 | HX38: 0 | HY38: 0 | HZ38: 0 | IA38: 0 | IB38: 0 | IC38: 0 | ID38: 0 | IE38: 0 | IF38: 0 | IG38: 0 | IH38: 0 | II38: 0 | IJ38: 0 | IK38: 17332.55 | IL38: 0 | IM38: 0 | IN38: 0 | IO38: 9659.57 | IP38: 15864.98 | IQ38: 22329.95 | IR38: 71915.39 | IS38: 2076.95 | IT38: 40192.26 | IU38: 668.65 | IV38: 0 | IW38: 0 | IX38: 4717.17 | IY38: 9956.83 | IZ38: 0 | JA38: 0 | JB38: 0 | JC38: 0 | JD38: 0 | JE38: 0 | JF38: 0 | JG38: 0 | JH38: 0 | JI38: 0 | JJ38: 0 | JK38: 0 | JL38: 0 | JM38: 0 | JN38: 0 | JO38: 0 | JP38: 0 | JQ38: 0 | JR38: 0 | JS38: 0 | JT38: 0 | JU38: 0 | JV38: 0 | JW38: 0 | JX38: 0 | JY38: 0 | JZ38: 0 | KA38: 0 | KB38: 0 | KC38: 0 | KD38: 0 | KE38: 0 | KF38: 0 | KG38: 0 | KH38: 0 | KI38: 0 | KJ38: 0 | KK38: 0 | KL38: 0 | KM38: 0 | KN38: 0 | KO38: 0 | KP38: 0 | KQ38: 0 | KR38: 0 | KS38: 0 | KT38: 3105.67 | KU38: 0 | KV38: 0 | KW38: 0 | KX38: 0 | KY38: 0 | KZ38: 0 | LA38: 0 | LB38: 0 | LC38: 0 | LD38: 0 | LE38: 0 | LF38: 0 | LG38: 0 | LH38: 0 | LI38: 0 | LJ38: 0 | LK38: 0 | LL38: 0 | LM38: 0 | LN38: 0 | LO38: 0 | LP38: 0 | LQ38: 0 | LR38: 0 | LS38: 0 | LT38: 0 | LU38: 0 | LV38: 0 | LW38: 0 | LX38: 0 | LY38: 0 | LZ38: 0 | MA38: 0 | MB38: 0 | MC38: 0 | MD38: 0 | ME38: 0 | MF38: 0 | MG38: 0 | MH38: 0 | MI38: 0 | MJ38: 0 | MK38: 0 | ML38: 0 | MM38: 0 | MN38: 0 | MO38: 0 | MP38: 0 | MQ38: 0 | MR38: 0 | MS38: 0 | MT38: 0 | MU38: 0 | MV38: 0 | MW38: 0 | MX38: 0 | MY38: 0 | MZ38: 0 | NA38: 0 | NB38: 0 | NC38: 0 | ND38: 0 | NE38: 0 | NF38: 0 | NG38: 0 | NH38: 0 | NI38: 0 | NJ38: 0 | NK38: 0 | NL38: 0 | NM38: 0 | NN38: 0 | NO38: 0 | NP38: 0 | NQ38: 0 | NR38: 0 | NS38: 0 | NT38: 0 | NU38: 0 | NV38: 0 | NW38: 0 | NX38: 0 | NY38: 0 | NZ38: 0 | OA38: 0 | OB38: 0 | OC38: 0 | OD38: 0 | OE38: 0 | OF38: 0 | OG38: 0 | OH38: 0 | OI38: 0 | OJ38: 0 | OK38: 0 | OL38: 0 | OM38: 0 | ON38: 0 | OO38: 0 | OP38: 0 | OQ38: 0 | OR38: 0 | OS38: 0 | OT38: 0 | OU38: 0 | OV38: 0 | OW38: 0 | OX38: 0 | OY38: 0 | OZ38: 0 | PA38: 0 | PB38: 0 | PC38: 0 | PD38: 0 | PE38: 0 | PF38: 0 | PG38: 0 | PH38: 0 | PI38: 0 | PJ38: 0 | PK38: 0 | PL38: 0 | PM38: 0 | PN38: 0 | PO38: 0 | PP38: 0 | PQ38: 0 | PR38: 0 | PS38: 0 | PT38: 0 | PU38: 0 | PV38: 0 | PW38: 0 | PX38: 0 | PY38: 0 | PZ38: 0 | QA38: 0 | QB38: 0 | QC38: 0 | QD38: 0 | QE38: 0 | QF38: 0 | QG38: 0 | QH38: 0 | QI38: 0 | QJ38: 0 | QK38: 0 | QL38: 0 | QM38: 0 | QN38: 0 | QO38: 0 | QP38: 0 | QQ38: 0 | QR38: 0 | QS38: 0 | QT38: 0 | QU38: 0 | QV38: 0 | QW38: 0 | QX38: 0 | QY38: 0 | QZ38: 0 | RA38: 0 | RB38: 0 | RC38: 0 | RD38: 0 | RE38: 0 | RF38: 0 | RG38: 0 | RH38: 0 | RI38: 0 | RJ38: 0 | RK38: 0 | RL38: 0 | RM38: 0 | RN38: 0 | RO38: 0 | RP38: 0 | RQ38: 0 | RR38: 0 | RS38: 0 | RT38: 0 | RU38: 0 | RV38: 0 | RW38: 0 | RX38: 0 | RY38: 0 | RZ38: 0 | SA38: 0 | SB38: 0 | SC38: 0 | SD38: 0 | SE38: 0 | SF38: 0 | SG38: 0 | SH38: 0 | SI38: 0 | SJ38: 0 | SK38: 0 | SL38: 0 | SM38: 0 | SN38: 0 | SO38: 0 | SP38: 0 | SQ38: 0 | SR38: 0 | SS38: 0 | ST38: 0 | SU38: 0 | SV38: 0 | SW38: 0 | SX38: 0 | SY38: 0 | SZ38: 0 | TA38: 0 | TB38: 0 | TC38: 0 | TD38: 0 | TE38: 0 | TF38: 0 | TG38: 0 | TH38: 0 | TI38: 0 | TJ38: 0 | TK38: 0 | TL38: 0 | TM38: 0 | TN38: 0 | TO38: 0 | TP38: 0 | TQ38: 0 | TR38: 0 | TS38: 0 | TT38: 0 | TU38: 0 | TV38: 0 | TW38: 0 | TX38: 0 | TY38: 0
B39: 3 | D39: О | E39: =$A$36&"."&$B$39 -> 8.4.3 | F39: прочие средства | G39: тыс руб | H39: =SUM(I39:TZ39) -> 31243.52 | J39: 0 | K39: 0 | L39: 0 | M39: 0 | N39: 0 | O39: 0 | P39: 0 | Q39: 0 | R39: 0 | S39: 0 | T39: 0 | U39: 0 | V39: 0 | W39: 0 | X39: 0 | Y39: 0 | Z39: 0 | AA39: 0 | AB39: 0 | AC39: 0 | AD39: 0 | AE39: 0 | AF39: 0 | AG39: 0 | AH39: 0 | AI39: 0 | AJ39: 0 | AK39: 0 | AL39: 0 | AM39: 0 | AN39: 0 | AO39: 0 | AP39: 0 | AQ39: 0 | AR39: 0 | AS39: 0 | AT39: 0 | AU39: 0 | AV39: 0 | AW39: 0 | AX39: 0 | AY39: 0 | AZ39: 0 | BA39: 0 | BB39: 0 | BC39: 0 | BD39: 0 | BE39: 0 | BF39: 0 | BG39: 0 | BH39: 0 | BI39: 0 | BJ39: 0 | BK39: 0 | BL39: 0 | BM39: 0 | BN39: 0 | BO39: 0 | BP39: 0 | BQ39: 0 | BR39: 0 | BS39: 0 | BT39: 0 | BU39: 0 | BV39: 0 | BW39: 0 | BX39: 0 | BY39: 0 | BZ39: 0 | CA39: 0 | CB39: 0 | CC39: 0 | CD39: 0 | CE39: 0 | CF39: 0 | CG39: 0 | CH39: 0 | CI39: 0 | CJ39: 0 | CK39: 0 | CL39: 0 | CM39: 0 | CN39: 0 | CO39: 0 | CP39: 0 | CQ39: 0 | CR39: 0 | CS39: 0 | CT39: 0 | CU39: 0 | CV39: 0 | CW39: 0 | CX39: 0 | CY39: 0 | CZ39: 0 | DA39: 0 | DB39: 0 | DC39: 0 | DD39: 0 | DE39: 0 | DF39: 0 | DG39: 0 | DH39: 0 | DI39: 0 | DJ39: 0 | DK39: 0 | DL39: 0 | DM39: 0 | DN39: 0 | DO39: 0 | DP39: 0 | DQ39: 0 | DR39: 0 | DS39: 0 | DT39: 0 | DU39: 0 | DV39: 0 | DW39: 0 | DX39: 0 | DY39: 0 | DZ39: 0 | EA39: 0 | EB39: 0 | EC39: 0 | ED39: 0 | EE39: 0 | EF39: 0 | EG39: 0 | EH39: 0 | EI39: 0 | EJ39: 0 | EK39: 0 | EL39: 0 | EM39: 0 | EN39: 0 | EO39: 0 | EP39: 0 | EQ39: 0 | ER39: 0 | ES39: 0 | ET39: 0 | EU39: 0 | EV39: 0 | EW39: 0 | EX39: 0 | EY39: 0 | EZ39: 0 | FA39: 0 | FB39: 0 | FC39: 0 | FD39: 0 | FE39: 0 | FF39: 0 | FG39: 0 | FH39: 0 | FI39: 0 | FJ39: 0 | FK39: 0 | FL39: 0 | FM39: 0 | FN39: 0 | FO39: 0 | FP39: 0 | FQ39: 0 | FR39: 0 | FS39: 0 | FT39: 0 | FU39: 0 | FV39: 0 | FW39: 0 | FX39: 0 | FY39: 0 | FZ39: 0 | GA39: 0 | GB39: 0 | GC39: 0 | GD39: 0 | GE39: 0 | GF39: 0 | GG39: 0 | GH39: 0 | GI39: 0 | GJ39: 0 | GK39: 0 | GL39: 0 | GM39: 0 | GN39: 0 | GO39: 0 | GP39: 0 | GQ39: 0 | GR39: 0 | GS39: 0 | GT39: 0 | GU39: 0 | GV39: 0 | GW39: 0 | GX39: 0 | GY39: 0 | GZ39: 0 | HA39: 0 | HB39: 0 | HC39: 0 | HD39: 0 | HE39: 0 | HF39: 0 | HG39: 0 | HH39: 0 | HI39: 0 | HJ39: 0 | HK39: 0 | HL39: 0 | HM39: 0 | HN39: 0 | HO39: 0 | HP39: 0 | HQ39: 0 | HR39: 0 | HS39: 0 | HT39: 0 | HU39: 0 | HV39: 0 | HW39: 0 | HX39: 0 | HY39: 0 | HZ39: 0 | IA39: 0 | IB39: 0 | IC39: 0 | ID39: 0 | IE39: 0 | IF39: 0 | IG39: 0 | IH39: 0 | II39: 0 | IJ39: 0 | IK39: 0 | IL39: 0 | IM39: 0 | IN39: 0 | IO39: 0 | IP39: 0 | IQ39: 0 | IR39: 0 | IS39: 0 | IT39: 0 | IU39: 0 | IV39: 0 | IW39: 0 | IX39: 0 | IY39: 0 | IZ39: 0 | JA39: 0 | JB39: 200.49 | JC39: 0 | JD39: 0 | JE39: 0 | JF39: 0 | JG39: 0 | JH39: 0 | JI39: 0 | JJ39: 0 | JK39: 0 | JL39: 0 | JM39: 0 | JN39: 0 | JO39: 0 | JP39: 0 | JQ39: 0 | JR39: 0 | JS39: 0 | JT39: 0 | JU39: 0 | JV39: 0 | JW39: 0 | JX39: 0 | JY39: 0 | JZ39: 0 | KA39: 26523.04 | KB39: 4519.99 | KC39: 0 | KD39: 0 | KE39: 0 | KF39: 0 | KG39: 0 | KH39: 0 | KI39: 0 | KJ39: 0 | KK39: 0 | KL39: 0 | KM39: 0 | KN39: 0 | KO39: 0 | KP39: 0 | KQ39: 0 | KR39: 0 | KS39: 0 | KT39: 0 | KU39: 0 | KV39: 0 | KW39: 0 | KX39: 0 | KY39: 0 | KZ39: 0 | LA39: 0 | LB39: 0 | LC39: 0 | LD39: 0 | LE39: 0 | LF39: 0 | LG39: 0 | LH39: 0 | LI39: 0 | LJ39: 0 | LK39: 0 | LL39: 0 | LM39: 0 | LN39: 0 | LO39: 0 | LP39: 0 | LQ39: 0 | LR39: 0 | LS39: 0 | LT39: 0 | LU39: 0 | LV39: 0 | LW39: 0 | LX39: 0 | LY39: 0 | LZ39: 0 | MA39: 0 | MB39: 0 | MC39: 0 | MD39: 0 | ME39: 0 | MF39: 0 | MG39: 0 | MH39: 0 | MI39: 0 | MJ39: 0 | MK39: 0 | ML39: 0 | MM39: 0 | MN39: 0 | MO39: 0 | MP39: 0 | MQ39: 0 | MR39: 0 | MS39: 0 | MT39: 0 | MU39: 0 | MV39: 0 | MW39: 0 | MX39: 0 | MY39: 0 | MZ39: 0 | NA39: 0 | NB39: 0 | NC39: 0 | ND39: 0 | NE39: 0 | NF39: 0 | NG39: 0 | NH39: 0 | NI39: 0 | NJ39: 0 | NK39: 0 | NL39: 0 | NM39: 0 | NN39: 0 | NO39: 0 | NP39: 0 | NQ39: 0 | NR39: 0 | NS39: 0 | NT39: 0 | NU39: 0 | NV39: 0 | NW39: 0 | NX39: 0 | NY39: 0 | NZ39: 0 | OA39: 0 | OB39: 0 | OC39: 0 | OD39: 0 | OE39: 0 | OF39: 0 | OG39: 0 | OH39: 0 | OI39: 0 | OJ39: 0 | OK39: 0 | OL39: 0 | OM39: 0 | ON39: 0 | OO39: 0 | OP39: 0 | OQ39: 0 | OR39: 0 | OS39: 0 | OT39: 0 | OU39: 0 | OV39: 0 | OW39: 0 | OX39: 0 | OY39: 0 | OZ39: 0 | PA39: 0 | PB39: 0 | PC39: 0 | PD39: 0 | PE39: 0 | PF39: 0 | PG39: 0 | PH39: 0 | PI39: 0 | PJ39: 0 | PK39: 0 | PL39: 0 | PM39: 0 | PN39: 0 | PO39: 0 | PP39: 0 | PQ39: 0 | PR39: 0 | PS39: 0 | PT39: 0 | PU39: 0 | PV39: 0 | PW39: 0 | PX39: 0 | PY39: 0 | PZ39: 0 | QA39: 0 | QB39: 0 | QC39: 0 | QD39: 0 | QE39: 0 | QF39: 0 | QG39: 0 | QH39: 0 | QI39: 0 | QJ39: 0 | QK39: 0 | QL39: 0 | QM39: 0 | QN39: 0 | QO39: 0 | QP39: 0 | QQ39: 0 | QR39: 0 | QS39: 0 | QT39: 0 | QU39: 0 | QV39: 0 | QW39: 0 | QX39: 0 | QY39: 0 | QZ39: 0 | RA39: 0 | RB39: 0 | RC39: 0 | RD39: 0 | RE39: 0 | RF39: 0 | RG39: 0 | RH39: 0 | RI39: 0 | RJ39: 0 | RK39: 0 | RL39: 0 | RM39: 0 | RN39: 0 | RO39: 0 | RP39: 0 | RQ39: 0 | RR39: 0 | RS39: 0 | RT39: 0 | RU39: 0 | RV39: 0 | RW39: 0 | RX39: 0 | RY39: 0 | RZ39: 0 | SA39: 0 | SB39: 0 | SC39: 0 | SD39: 0 | SE39: 0 | SF39: 0 | SG39: 0 | SH39: 0 | SI39: 0 | SJ39: 0 | SK39: 0 | SL39: 0 | SM39: 0 | SN39: 0 | SO39: 0 | SP39: 0 | SQ39: 0 | SR39: 0 | SS39: 0 | ST39: 0 | SU39: 0 | SV39: 0 | SW39: 0 | SX39: 0 | SY39: 0 | SZ39: 0 | TA39: 0 | TB39: 0 | TC39: 0 | TD39: 0 | TE39: 0 | TF39: 0 | TG39: 0 | TH39: 0 | TI39: 0 | TJ39: 0 | TK39: 0 | TL39: 0 | TM39: 0 | TN39: 0 | TO39: 0 | TP39: 0 | TQ39: 0 | TR39: 0 | TS39: 0 | TT39: 0 | TU39: 0 | TV39: 0 | TW39: 0 | TX39: 0 | TY39: 0
F40: Добавить источники
A41: 8.5 | C41: О | E41: =A41 -> 8.5 | F41: 2020 | G41: тыс руб | H41: =SUM(H42:H45) -> 516965.9968 | I41: 0 | J41: 0 | K41: 0 | L41: 0 | M41: 0 | N41: 0 | O41: 0 | P41: 0 | Q41: 0 | R41: 0 | S41: 828.81 | T41: 0 | U41: 0 | V41: 0 | W41: 0 | X41: 0 | Y41: 0 | Z41: 0 | AA41: 0 | AB41: 0 | AC41: 0 | AD41: 0 | AE41: 0 | AF41: 0 | AG41: 0 | AH41: 0 | AI41: 0 | AJ41: 0 | AK41: 0 | AL41: 0 | AM41: 0 | AN41: 0 | AO41: 0 | AP41: 0 | AQ41: 0 | AR41: 0 | AS41: 0 | AT41: 0 | AU41: 0 | AV41: 0 | AW41: 0 | AX41: 0 | AY41: 0 | AZ41: 0 | BA41: 0 | BB41: 0 | BC41: 0 | BD41: 0 | BE41: 0 | BF41: 0 | BG41: 0 | BH41: 0 | BI41: 0 | BJ41: 0 | BK41: 0 | BL41: 0 | BM41: 0 | BN41: 0 | BO41: 0 | BP41: 0 | BQ41: 0 | BR41: 0 | BS41: 0 | BT41: 0 | BU41: 0 | BV41: 0 | BW41: 0 | BX41: 0 | BY41: 0 | BZ41: 0 | CA41: 0 | CB41: 0 | CC41: 0 | CD41: 0 | CE41: 0 | CF41: 0 | CG41: 0 | CH41: 0 | CI41: 0 | CJ41: 0 | CK41: 0 | CL41: =SUM(CL42:CL45) -> 0 | CM41: 0 | CN41: 0 | CO41: 0 | CP41: 0 | CQ41: 0 | CR41: 0 | CS41: 0 | CT41: 0 | CU41: 0 | CV41: 0 | CW41: 0 | CX41: 0 | CY41: 0 | CZ41: 0 | DA41: 0 | DB41: 0 | DC41: 0 | DD41: 0 | DE41: 0 | DF41: 0 | DG41: 0 | DH41: 0 | DI41: 0 | DJ41: 0 | DK41: 0 | DL41: 0 | DM41: 0 | DN41: 0 | DO41: 0 | DP41: 0 | DQ41: 0 | DR41: 0 | DS41: 0 | DT41: 0 | DU41: 0 | DV41: 0 | DW41: 0 | DX41: 0 | DY41: 0 | DZ41: 0 | EA41: 0 | EB41: 0 | EC41: 0 | ED41: 0 | EE41: 0 | EF41: 0 | EG41: 0 | EH41: 0 | EI41: 0 | EJ41: 0 | EK41: 0 | EL41: 0 | EM41: 0 | EN41: 0 | EO41: 0 | EP41: 0 | EQ41: 0 | ER41: 0 | ES41: 0 | ET41: 0 | EU41: 0 | EV41: 0 | EW41: 0 | EX41: =SUM(EX42:EX45) -> 0 | EY41: 0 | EZ41: 0 | FA41: 0 | FB41: 0 | FC41: 0 | FD41: 0 | FE41: 0 | FF41: 0 | FG41: 0 | FH41: 0 | FI41: 0 | FJ41: 0 | FK41: 0 | FL41: 0 | FM41: 0 | FN41: 0 | FO41: 0 | FP41: 0 | FQ41: 0 | FR41: 0 | FS41: 0 | FT41: 0 | FU41: 0 | FV41: 0 | FW41: 0 | FX41: 0 | FY41: 0 | FZ41: 0 | GA41: 0 | GB41: 0 | GC41: 0 | GD41: 0 | GE41: 0 | GF41: 0 | GG41: 0 | GH41: 0 | GI41: 0 | GJ41: 0 | GK41: 0 | GL41: 0 | GM41: 0 | GN41: 0 | GO41: 0 | GP41: 0 | GQ41: 0 | GR41: 0 | GS41: 0 | GT41: 0 | GU41: 0 | GV41: 0 | GW41: 0 | GX41: 0 | GY41: 0 | GZ41: 0 | HA41: 0 | HB41: 0 | HC41: 0 | HD41: 0 | HE41: 0 | HF41: 0 | HG41: 0 | HH41: 0 | HI41: 0 | HJ41: =SUM(HJ42:HJ45) -> 0 | HK41: 0 | HL41: 0 | HM41: 0 | HN41: 0 | HO41: 0 | HP41: 0 | HQ41: 0 | HR41: 0 | HS41: 0 | HT41: 0 | HU41: 0 | HV41: 0 | HW41: 0 | HX41: 0 | HY41: 0 | HZ41: 0 | IA41: 0 | IB41: 0 | IC41: 0 | ID41: 0 | IE41: 0 | IF41: 0 | IG41: 0 | IH41: 0 | II41: 0 | IJ41: 0 | IK41: 0 | IL41: 0 | IM41: 0 | IN41: 0 | IO41: 0 | IP41: 0 | IQ41: 0 | IR41: 0 | IS41: 0 | IT41: 0 | IU41: 0 | IV41: 0 | IW41: 0 | IX41: 0 | IY41: 0 | IZ41: 0 | JA41: 0 | JB41: 0 | JC41: 0 | JD41: 0 | JE41: 0 | JF41: 0 | JG41: 0 | JH41: 10578.36 | JI41: 0 | JJ41: 0 | JK41: 0 | JL41: 0 | JM41: 0 | JN41: 0 | JO41: 0 | JP41: 0 | JQ41: 0 | JR41: 0 | JS41: 0 | JT41: 0 | JU41: 0 | JV41: =SUM(JV42:JV45) -> 0 | JW41: 0 | JX41: 0 | JY41: 0 | JZ41: 0 | KA41: 0 | KB41: 0 | KC41: 8123.94 | KD41: 518.4908833 | KE41: 35543.15 | KF41: 24293.31 | KG41: 0 | KH41: 0 | KI41: 7104.51 | KJ41: 6446.69 | KK41: 1701.66 | KL41: 36054.22 | KM41: 6723.15 | KN41: 14182.47 | KO41: 5047.96 | KP41: 15800.35 | KQ41: 1014.64 | KR41: 8300.15 | KS41: 857.6 | KT41: 21991.05 | KU41: 901.16 | KV41: 19820.7 | KW41: 3457.15 | KX41: 11942.29 | KY41: 1487.76 | KZ41: 2974.62 | LA41: 26390.19 | LB41: 4189.08 | LC41: 10216.02 | LD41: 243.85 | LE41: 1403.45 | LF41: 4894.16 | LG41: 28830.94 | LH41: 13067.3 | LI41: 0 | LJ41: 0 | LK41: 47910.25 | LL41: 32696.56 | LM41: 9052.37 | LN41: 1034.56 | LO41: 246.9203566 | LP41: 1484.86 | LQ41: 2827.37 | LR41: 3340.925517 | LS41: 22281.32 | LT41: 12253.72 | LU41: 23221.59 | LV41: 228.45 | LW41: 4200.23 | LX41: 21257.69 | LY41: 0 | LZ41: 0 | MA41: 0 | MB41: 0 | MC41: 0 | MD41: 0 | ME41: 0 | MF41: =SUM(MF42:MF45) -> 0 | MG41: 0 | MH41: 0 | MI41: 0 | MJ41: 0 | MK41: 0 | ML41: 0 | MM41: 0 | MN41: 0 | MO41: 0 | MP41: 0 | MQ41: 0 | MR41: 0 | MS41: 0 | MT41: 0 | MU41: 0 | MV41: 0 | MW41: 0 | MX41: 0 | MY41: 0 | MZ41: 0 | NA41: 0 | NB41: 0 | NC41: 0 | ND41: 0 | NE41: 0 | NF41: 0 | NG41: 0 | NH41: 0 | NI41: 0 | NJ41: 0 | NK41: 0 | NL41: 0 | NM41: 0 | NN41: 0 | NO41: 0 | NP41: 0 | NQ41: 0 | NR41: 0 | NS41: 0 | NT41: 0 | NU41: 0 | NV41: 0 | NW41: 0 | NX41: 0 | NY41: 0 | NZ41: 0 | OA41: 0 | OB41: 0 | OC41: 0 | OD41: 0 | OE41: 0 | OF41: 0 | OG41: 0 | OH41: 0 | OI41: 0 | OJ41: 0 | OK41: 0 | OL41: 0 | OM41: 0 | ON41: 0 | OO41: 0 | OP41: 0 | OQ41: 0 | OR41: =SUM(OR42:OR45) -> 0 | OS41: 0 | OT41: 0 | OU41: 0 | OV41: 0 | OW41: 0 | OX41: 0 | OY41: 0 | OZ41: 0 | PA41: 0 | PB41: 0 | PC41: 0 | PD41: 0 | PE41: 0 | PF41: 0 | PG41: 0 | PH41: 0 | PI41: 0 | PJ41: 0 | PK41: 0 | PL41: 0 | PM41: 0 | PN41: 0 | PO41: 0 | PP41: 0 | PQ41: 0 | PR41: 0 | PS41: 0 | PT41: 0 | PU41: 0 | PV41: 0 | PW41: 0 | PX41: 0 | PY41: 0 | PZ41: 0 | QA41: 0 | QB41: 0 | QC41: 0 | QD41: 0 | QE41: 0 | QF41: 0 | QG41: 0 | QH41: 0 | QI41: 0 | QJ41: 0 | QK41: 0 | QL41: 0 | QM41: 0 | QN41: 0 | QO41: 0 | QP41: 0 | QQ41: 0 | QR41: 0 | QS41: 0 | QT41: 0 | QU41: 0 | QV41: 0 | QW41: 0 | QX41: 0 | QY41: 0 | QZ41: 0 | RA41: 0 | RB41: 0 | RC41: 0 | RD41: =SUM(RD42:RD45) -> 0 | RE41: 0 | RF41: 0 | RG41: 0 | RH41: 0 | RI41: 0 | RJ41: 0 | RK41: 0 | RL41: 0 | RM41: 0 | RN41: 0 | RO41: 0 | RP41: 0 | RQ41: 0 | RR41: 0 | RS41: 0 | RT41: 0 | RU41: 0 | RV41: 0 | RW41: 0 | RX41: 0 | RY41: 0 | RZ41: 0 | SA41: 0 | SB41: 0 | SC41: 0 | SD41: 0 | SE41: 0 | SF41: 0 | SG41: 0 | SH41: 0 | SI41: 0 | SJ41: 0 | SK41: 0 | SL41: 0 | SM41: 0 | SN41: 0 | SO41: 0 | SP41: 0 | SQ41: 0 | SR41: 0 | SS41: 0 | ST41: 0 | SU41: 0 | SV41: 0 | SW41: 0 | SX41: 0 | SY41: 0 | SZ41: 0 | TA41: 0 | TB41: 0 | TC41: 0 | TD41: 0 | TE41: 0 | TF41: 0 | TG41: 0 | TH41: 0 | TI41: 0 | TJ41: 0 | TK41: 0 | TL41: 0 | TM41: 0 | TN41: 0 | TO41: 0 | TP41: =SUM(TP42:TP45) -> 0 | TQ41: 0 | TR41: 0 | TS41: 0 | TT41: 0 | TU41: 0 | TV41: 0 | TW41: 0 | TX41: 0 | TY41: 0 | TZ41: y
B42: 1 | E42: =A41&"."&B42 -> 8.5.1 | F42: амортизация | G42: тыс руб | H42: =SUM(I42:TZ42) -> 202197.9609 | J42: 0 | K42: 0 | L42: 0 | M42: 0 | N42: 0 | O42: 0 | P42: 0 | Q42: 0 | R42: 0 | S42: 828.81 | T42: 0 | U42: 0 | V42: 0 | W42: 0 | X42: 0 | Y42: 0 | Z42: 0 | AA42: 0 | AB42: 0 | AC42: 0 | AD42: 0 | AE42: 0 | AF42: 0 | AG42: 0 | AH42: 0 | AI42: 0 | AJ42: 0 | AK42: 0 | AL42: 0 | AM42: 0 | AN42: 0 | AO42: 0 | AP42: 0 | AQ42: 0 | AR42: 0 | AS42: 0 | AT42: 0 | AU42: 0 | AV42: 0 | AW42: 0 | AX42: 0 | AY42: 0 | AZ42: 0 | BA42: 0 | BB42: 0 | BC42: 0 | BD42: 0 | BE42: 0 | BF42: 0 | BG42: 0 | BH42: 0 | BI42: 0 | BJ42: 0 | BK42: 0 | BL42: 0 | BM42: 0 | BN42: 0 | BO42: 0 | BP42: 0 | BQ42: 0 | BR42: 0 | BS42: 0 | BT42: 0 | BU42: 0 | BV42: 0 | BW42: 0 | BX42: 0 | BY42: 0 | BZ42: 0 | CA42: 0 | CB42: 0 | CC42: 0 | CD42: 0 | CE42: 0 | CF42: 0 | CG42: 0 | CH42: 0 | CI42: 0 | CJ42: 0 | CK42: 0 | CL42: 0 | CM42: 0 | CN42: 0 | CO42: 0 | CP42: 0 | CQ42: 0 | CR42: 0 | CS42: 0 | CT42: 0 | CU42: 0 | CV42: 0 | CW42: 0 | CX42: 0 | CY42: 0 | CZ42: 0 | DA42: 0 | DB42: 0 | DC42: 0 | DD42: 0 | DE42: 0 | DF42: 0 | DG42: 0 | DH42: 0 | DI42: 0 | DJ42: 0 | DK42: 0 | DL42: 0 | DM42: 0 | DN42: 0 | DO42: 0 | DP42: 0 | DQ42: 0 | DR42: 0 | DS42: 0 | DT42: 0 | DU42: 0 | DV42: 0 | DW42: 0 | DX42: 0 | DY42: 0 | DZ42: 0 | EA42: 0 | EB42: 0 | EC42: 0 | ED42: 0 | EE42: 0 | EF42: 0 | EG42: 0 | EH42: 0 | EI42: 0 | EJ42: 0 | EK42: 0 | EL42: 0 | EM42: 0 | EN42: 0 | EO42: 0 | EP42: 0 | EQ42: 0 | ER42: 0 | ES42: 0 | ET42: 0 | EU42: 0 | EV42: 0 | EW42: 0 | EX42: 0 | EY42: 0 | EZ42: 0 | FA42: 0 | FB42: 0 | FC42: 0 | FD42: 0 | FE42: 0 | FF42: 0 | FG42: 0 | FH42: 0 | FI42: 0 | FJ42: 0 | FK42: 0 | FL42: 0 | FM42: 0 | FN42: 0 | FO42: 0 | FP42: 0 | FQ42: 0 | FR42: 0 | FS42: 0 | FT42: 0 | FU42: 0 | FV42: 0 | FW42: 0 | FX42: 0 | FY42: 0 | FZ42: 0 | GA42: 0 | GB42: 0 | GC42: 0 | GD42: 0 | GE42: 0 | GF42: 0 | GG42: 0 | GH42: 0 | GI42: 0 | GJ42: 0 | GK42: 0 | GL42: 0 | GM42: 0 | GN42: 0 | GO42: 0 | GP42: 0 | GQ42: 0 | GR42: 0 | GS42: 0 | GT42: 0 | GU42: 0 | GV42: 0 | GW42: 0 | GX42: 0 | GY42: 0 | GZ42: 0 | HA42: 0 | HB42: 0 | HC42: 0 | HD42: 0 | HE42: 0 | HF42: 0 | HG42: 0 | HH42: 0 | HI42: 0 | HJ42: 0 | HK42: 0 | HL42: 0 | HM42: 0 | HN42: 0 | HO42: 0 | HP42: 0 | HQ42: 0 | HR42: 0 | HS42: 0 | HT42: 0 | HU42: 0 | HV42: 0 | HW42: 0 | HX42: 0 | HY42: 0 | HZ42: 0 | IA42: 0 | IB42: 0 | IC42: 0 | ID42: 0 | IE42: 0 | IF42: 0 | IG42: 0 | IH42: 0 | II42: 0 | IJ42: 0 | IK42: 0 | IL42: 0 | IM42: 0 | IN42: 0 | IO42: 0 | IP42: 0 | IQ42: 0 | IR42: 0 | IS42: 0 | IT42: 0 | IU42: 0 | IV42: 0 | IW42: 0 | IX42: 0 | IY42: 0 | IZ42: 0 | JA42: 0 | JB42: 0 | JC42: 0 | JD42: 0 | JE42: 0 | JF42: 0 | JG42: 0 | JH42: 10578.36 | JI42: 0 | JJ42: 0 | JK42: 0 | JL42: 0 | JM42: 0 | JN42: 0 | JO42: 0 | JP42: 0 | JQ42: 0 | JR42: 0 | JS42: 0 | JT42: 0 | JU42: 0 | JV42: 0 | JW42: 0 | JX42: 0 | JY42: 0 | JZ42: 0 | KA42: 0 | KB42: 0 | KC42: 8123.94 | KD42: 518.4908833 | KE42: 0 | KF42: 1692.7 | KG42: 0 | KH42: 0 | KI42: 0 | KJ42: 0 | KK42: 0 | KL42: 0 | KM42: 0 | KN42: 0 | KO42: 0 | KP42: 0 | KQ42: 0 | KR42: 0 | KS42: 0 | KT42: 0 | KU42: 0 | KV42: 0 | KW42: 0 | KX42: 0 | KY42: 0 | KZ42: 0 | LA42: 26390.19 | LB42: 4189.08 | LC42: 10216.02 | LD42: 243.85 | LE42: 1403.45 | LF42: 4894.16 | LG42: 28830.94 | LH42: 13067.3 | LI42: 0 | LJ42: 0 | LK42: 47910.25 | LL42: 0 | LM42: 0 | LN42: 0 | LO42: 0 | LP42: 0 | LQ42: 0 | LR42: 0 | LS42: 0 | LT42: 0 | LU42: 22052.73 | LV42: 0 | LW42: 0 | LX42: 21257.69 | LY42: 0 | LZ42: 0 | MA42: 0 | MB42: 0 | MC42: 0 | MD42: 0 | ME42: 0 | MF42: 0 | MG42: 0 | MH42: 0 | MI42: 0 | MJ42: 0 | MK42: 0 | ML42: 0 | MM42: 0 | MN42: 0 | MO42: 0 | MP42: 0 | MQ42: 0 | MR42: 0 | MS42: 0 | MT42: 0 | MU42: 0 | MV42: 0 | MW42: 0 | MX42: 0 | MY42: 0 | MZ42: 0 | NA42: 0 | NB42: 0 | NC42: 0 | ND42: 0 | NE42: 0 | NF42: 0 | NG42: 0 | NH42: 0 | NI42: 0 | NJ42: 0 | NK42: 0 | NL42: 0 | NM42: 0 | NN42: 0 | NO42: 0 | NP42: 0 | NQ42: 0 | NR42: 0 | NS42: 0 | NT42: 0 | NU42: 0 | NV42: 0 | NW42: 0 | NX42: 0 | NY42: 0 | NZ42: 0 | OA42: 0 | OB42: 0 | OC42: 0 | OD42: 0 | OE42: 0 | OF42: 0 | OG42: 0 | OH42: 0 | OI42: 0 | OJ42: 0 | OK42: 0 | OL42: 0 | OM42: 0 | ON42: 0 | OO42: 0 | OP42: 0 | OQ42: 0 | OR42: 0 | OS42: 0 | OT42: 0 | OU42: 0 | OV42: 0 | OW42: 0 | OX42: 0 | OY42: 0 | OZ42: 0 | PA42: 0 | PB42: 0 | PC42: 0 | PD42: 0 | PE42: 0 | PF42: 0 | PG42: 0 | PH42: 0 | PI42: 0 | PJ42: 0 | PK42: 0 | PL42: 0 | PM42: 0 | PN42: 0 | PO42: 0 | PP42: 0 | PQ42: 0 | PR42: 0 | PS42: 0 | PT42: 0 | PU42: 0 | PV42: 0 | PW42: 0 | PX42: 0 | PY42: 0 | PZ42: 0 | QA42: 0 | QB42: 0 | QC42: 0 | QD42: 0 | QE42: 0 | QF42: 0 | QG42: 0 | QH42: 0 | QI42: 0 | QJ42: 0 | QK42: 0 | QL42: 0 | QM42: 0 | QN42: 0 | QO42: 0 | QP42: 0 | QQ42: 0 | QR42: 0 | QS42: 0 | QT42: 0 | QU42: 0 | QV42: 0 | QW42: 0 | QX42: 0 | QY42: 0 | QZ42: 0 | RA42: 0 | RB42: 0 | RC42: 0 | RD42: 0 | RE42: 0 | RF42: 0 | RG42: 0 | RH42: 0 | RI42: 0 | RJ42: 0 | RK42: 0 | RL42: 0 | RM42: 0 | RN42: 0 | RO42: 0 | RP42: 0 | RQ42: 0 | RR42: 0 | RS42: 0 | RT42: 0 | RU42: 0 | RV42: 0 | RW42: 0 | RX42: 0 | RY42: 0 | RZ42: 0 | SA42: 0 | SB42: 0 | SC42: 0 | SD42: 0 | SE42: 0 | SF42: 0 | SG42: 0 | SH42: 0 | SI42: 0 | SJ42: 0 | SK42: 0 | SL42: 0 | SM42: 0 | SN42: 0 | SO42: 0 | SP42: 0 | SQ42: 0 | SR42: 0 | SS42: 0 | ST42: 0 | SU42: 0 | SV42: 0 | SW42: 0 | SX42: 0 | SY42: 0 | SZ42: 0 | TA42: 0 | TB42: 0 | TC42: 0 | TD42: 0 | TE42: 0 | TF42: 0 | TG42: 0 | TH42: 0 | TI42: 0 | TJ42: 0 | TK42: 0 | TL42: 0 | TM42: 0 | TN42: 0 | TO42: 0 | TP42: 0 | TQ42: 0 | TR42: 0 | TS42: 0 | TT42: 0 | TU42: 0 | TV42: 0 | TW42: 0 | TX42: 0 | TY42: 0
B43: 2 | D43: О | E43: =$A$41&"."&$B$43 -> 8.5.2 | F43: прибыль, направляемая на инвестиции | G43: тыс руб | H43: =SUM(I43:TZ43) -> 195000 | J43: 0 | K43: 0 | L43: 0 | M43: 0 | N43: 0 | O43: 0 | P43: 0 | Q43: 0 | R43: 0 | S43: 0 | T43: 0 | U43: 0 | V43: 0 | W43: 0 | X43: 0 | Y43: 0 | Z43: 0 | AA43: 0 | AB43: 0 | AC43: 0 | AD43: 0 | AE43: 0 | AF43: 0 | AG43: 0 | AH43: 0 | AI43: 0 | AJ43: 0 | AK43: 0 | AL43: 0 | AM43: 0 | AN43: 0 | AO43: 0 | AP43: 0 | AQ43: 0 | AR43: 0 | AS43: 0 | AT43: 0 | AU43: 0 | AV43: 0 | AW43: 0 | AX43: 0 | AY43: 0 | AZ43: 0 | BA43: 0 | BB43: 0 | BC43: 0 | BD43: 0 | BE43: 0 | BF43: 0 | BG43: 0 | BH43: 0 | BI43: 0 | BJ43: 0 | BK43: 0 | BL43: 0 | BM43: 0 | BN43: 0 | BO43: 0 | BP43: 0 | BQ43: 0 | BR43: 0 | BS43: 0 | BT43: 0 | BU43: 0 | BV43: 0 | BW43: 0 | BX43: 0 | BY43: 0 | BZ43: 0 | CA43: 0 | CB43: 0 | CC43: 0 | CD43: 0 | CE43: 0 | CF43: 0 | CG43: 0 | CH43: 0 | CI43: 0 | CJ43: 0 | CK43: 0 | CL43: 0 | CM43: 0 | CN43: 0 | CO43: 0 | CP43: 0 | CQ43: 0 | CR43: 0 | CS43: 0 | CT43: 0 | CU43: 0 | CV43: 0 | CW43: 0 | CX43: 0 | CY43: 0 | CZ43: 0 | DA43: 0 | DB43: 0 | DC43: 0 | DD43: 0 | DE43: 0 | DF43: 0 | DG43: 0 | DH43: 0 | DI43: 0 | DJ43: 0 | DK43: 0 | DL43: 0 | DM43: 0 | DN43: 0 | DO43: 0 | DP43: 0 | DQ43: 0 | DR43: 0 | DS43: 0 | DT43: 0 | DU43: 0 | DV43: 0 | DW43: 0 | DX43: 0 | DY43: 0 | DZ43: 0 | EA43: 0 | EB43: 0 | EC43: 0 | ED43: 0 | EE43: 0 | EF43: 0 | EG43: 0 | EH43: 0 | EI43: 0 | EJ43: 0 | EK43: 0 | EL43: 0 | EM43: 0 | EN43: 0 | EO43: 0 | EP43: 0 | EQ43: 0 | ER43: 0 | ES43: 0 | ET43: 0 | EU43: 0 | EV43: 0 | EW43: 0 | EX43: 0 | EY43: 0 | EZ43: 0 | FA43: 0 | FB43: 0 | FC43: 0 | FD43: 0 | FE43: 0 | FF43: 0 | FG43: 0 | FH43: 0 | FI43: 0 | FJ43: 0 | FK43: 0 | FL43: 0 | FM43: 0 | FN43: 0 | FO43: 0 | FP43: 0 | FQ43: 0 | FR43: 0 | FS43: 0 | FT43: 0 | FU43: 0 | FV43: 0 | FW43: 0 | FX43: 0 | FY43: 0 | FZ43: 0 | GA43: 0 | GB43: 0 | GC43: 0 | GD43: 0 | GE43: 0 | GF43: 0 | GG43: 0 | GH43: 0 | GI43: 0 | GJ43: 0 | GK43: 0 | GL43: 0 | GM43: 0 | GN43: 0 | GO43: 0 | GP43: 0 | GQ43: 0 | GR43: 0 | GS43: 0 | GT43: 0 | GU43: 0 | GV43: 0 | GW43: 0 | GX43: 0 | GY43: 0 | GZ43: 0 | HA43: 0 | HB43: 0 | HC43: 0 | HD43: 0 | HE43: 0 | HF43: 0 | HG43: 0 | HH43: 0 | HI43: 0 | HJ43: 0 | HK43: 0 | HL43: 0 | HM43: 0 | HN43: 0 | HO43: 0 | HP43: 0 | HQ43: 0 | HR43: 0 | HS43: 0 | HT43: 0 | HU43: 0 | HV43: 0 | HW43: 0 | HX43: 0 | HY43: 0 | HZ43: 0 | IA43: 0 | IB43: 0 | IC43: 0 | ID43: 0 | IE43: 0 | IF43: 0 | IG43: 0 | IH43: 0 | II43: 0 | IJ43: 0 | IK43: 0 | IL43: 0 | IM43: 0 | IN43: 0 | IO43: 0 | IP43: 0 | IQ43: 0 | IR43: 0 | IS43: 0 | IT43: 0 | IU43: 0 | IV43: 0 | IW43: 0 | IX43: 0 | IY43: 0 | IZ43: 0 | JA43: 0 | JB43: 0 | JC43: 0 | JD43: 0 | JE43: 0 | JF43: 0 | JG43: 0 | JH43: 0 | JI43: 0 | JJ43: 0 | JK43: 0 | JL43: 0 | JM43: 0 | JN43: 0 | JO43: 0 | JP43: 0 | JQ43: 0 | JR43: 0 | JS43: 0 | JT43: 0 | JU43: 0 | JV43: 0 | JW43: 0 | JX43: 0 | JY43: 0 | JZ43: 0 | KA43: 0 | KB43: 0 | KC43: 0 | KD43: 0 | KE43: 35543.15 | KF43: 0 | KG43: 0 | KH43: 0 | KI43: 7104.51 | KJ43: 873.31 | KK43: 1701.66 | KL43: 36054.22 | KM43: 6723.15 | KN43: 14182.47 | KO43: 5047.96 | KP43: 15800.35 | KQ43: 1014.64 | KR43: 8300.15 | KS43: 857.6 | KT43: 21991.05 | KU43: 901.16 | KV43: 19820.7 | KW43: 3457.15 | KX43: 11942.29 | KY43: 1487.76 | KZ43: 2196.72 | LA43: 0 | LB43: 0 | LC43: 0 | LD43: 0 | LE43: 0 | LF43: 0 | LG43: 0 | LH43: 0 | LI43: 0 | LJ43: 0 | LK43: 0 | LL43: 0 | LM43: 0 | LN43: 0 | LO43: 0 | LP43: 0 | LQ43: 0 | LR43: 0 | LS43: 0 | LT43: 0 | LU43: 0 | LV43: 0 | LW43: 0 | LX43: 0 | LY43: 0 | LZ43: 0 | MA43: 0 | MB43: 0 | MC43: 0 | MD43: 0 | ME43: 0 | MF43: 0 | MG43: 0 | MH43: 0 | MI43: 0 | MJ43: 0 | MK43: 0 | ML43: 0 | MM43: 0 | MN43: 0 | MO43: 0 | MP43: 0 | MQ43: 0 | MR43: 0 | MS43: 0 | MT43: 0 | MU43: 0 | MV43: 0 | MW43: 0 | MX43: 0 | MY43: 0 | MZ43: 0 | NA43: 0 | NB43: 0 | NC43: 0 | ND43: 0 | NE43: 0 | NF43: 0 | NG43: 0 | NH43: 0 | NI43: 0 | NJ43: 0 | NK43: 0 | NL43: 0 | NM43: 0 | NN43: 0 | NO43: 0 | NP43: 0 | NQ43: 0 | NR43: 0 | NS43: 0 | NT43: 0 | NU43: 0 | NV43: 0 | NW43: 0 | NX43: 0 | NY43: 0 | NZ43: 0 | OA43: 0 | OB43: 0 | OC43: 0 | OD43: 0 | OE43: 0 | OF43: 0 | OG43: 0 | OH43: 0 | OI43: 0 | OJ43: 0 | OK43: 0 | OL43: 0 | OM43: 0 | ON43: 0 | OO43: 0 | OP43: 0 | OQ43: 0 | OR43: 0 | OS43: 0 | OT43: 0 | OU43: 0 | OV43: 0 | OW43: 0 | OX43: 0 | OY43: 0 | OZ43: 0 | PA43: 0 | PB43: 0 | PC43: 0 | PD43: 0 | PE43: 0 | PF43: 0 | PG43: 0 | PH43: 0 | PI43: 0 | PJ43: 0 | PK43: 0 | PL43: 0 | PM43: 0 | PN43: 0 | PO43: 0 | PP43: 0 | PQ43: 0 | PR43: 0 | PS43: 0 | PT43: 0 | PU43: 0 | PV43: 0 | PW43: 0 | PX43: 0 | PY43: 0 | PZ43: 0 | QA43: 0 | QB43: 0 | QC43: 0 | QD43: 0 | QE43: 0 | QF43: 0 | QG43: 0 | QH43: 0 | QI43: 0 | QJ43: 0 | QK43: 0 | QL43: 0 | QM43: 0 | QN43: 0 | QO43: 0 | QP43: 0 | QQ43: 0 | QR43: 0 | QS43: 0 | QT43: 0 | QU43: 0 | QV43: 0 | QW43: 0 | QX43: 0 | QY43: 0 | QZ43: 0 | RA43: 0 | RB43: 0 | RC43: 0 | RD43: 0 | RE43: 0 | RF43: 0 | RG43: 0 | RH43: 0 | RI43: 0 | RJ43: 0 | RK43: 0 | RL43: 0 | RM43: 0 | RN43: 0 | RO43: 0 | RP43: 0 | RQ43: 0 | RR43: 0 | RS43: 0 | RT43: 0 | RU43: 0 | RV43: 0 | RW43: 0 | RX43: 0 | RY43: 0 | RZ43: 0 | SA43: 0 | SB43: 0 | SC43: 0 | SD43: 0 | SE43: 0 | SF43: 0 | SG43: 0 | SH43: 0 | SI43: 0 | SJ43: 0 | SK43: 0 | SL43: 0 | SM43: 0 | SN43: 0 | SO43: 0 | SP43: 0 | SQ43: 0 | SR43: 0 | SS43: 0 | ST43: 0 | SU43: 0 | SV43: 0 | SW43: 0 | SX43: 0 | SY43: 0 | SZ43: 0 | TA43: 0 | TB43: 0 | TC43: 0 | TD43: 0 | TE43: 0 | TF43: 0 | TG43: 0 | TH43: 0 | TI43: 0 | TJ43: 0 | TK43: 0 | TL43: 0 | TM43: 0 | TN43: 0 | TO43: 0 | TP43: 0 | TQ43: 0 | TR43: 0 | TS43: 0 | TT43: 0 | TU43: 0 | TV43: 0 | TW43: 0 | TX43: 0 | TY43: 0
B44: 3 | D44: О | E44: =$A$41&"."&$B$44 -> 8.5.3 | F44: прочие средства | G44: тыс руб | H44: =SUM(I44:TZ44) -> 119768.0359 | J44: 0 | K44: 0 | L44: 0 | M44: 0 | N44: 0 | O44: 0 | P44: 0 | Q44: 0 | R44: 0 | S44: 0 | T44: 0 | U44: 0 | V44: 0 | W44: 0 | X44: 0 | Y44: 0 | Z44: 0 | AA44: 0 | AB44: 0 | AC44: 0 | AD44: 0 | AE44: 0 | AF44: 0 | AG44: 0 | AH44: 0 | AI44: 0 | AJ44: 0 | AK44: 0 | AL44: 0 | AM44: 0 | AN44: 0 | AO44: 0 | AP44: 0 | AQ44: 0 | AR44: 0 | AS44: 0 | AT44: 0 | AU44: 0 | AV44: 0 | AW44: 0 | AX44: 0 | AY44: 0 | AZ44: 0 | BA44: 0 | BB44: 0 | BC44: 0 | BD44: 0 | BE44: 0 | BF44: 0 | BG44: 0 | BH44: 0 | BI44: 0 | BJ44: 0 | BK44: 0 | BL44: 0 | BM44: 0 | BN44: 0 | BO44: 0 | BP44: 0 | BQ44: 0 | BR44: 0 | BS44: 0 | BT44: 0 | BU44: 0 | BV44: 0 | BW44: 0 | BX44: 0 | BY44: 0 | BZ44: 0 | CA44: 0 | CB44: 0 | CC44: 0 | CD44: 0 | CE44: 0 | CF44: 0 | CG44: 0 | CH44: 0 | CI44: 0 | CJ44: 0 | CK44: 0 | CL44: 0 | CM44: 0 | CN44: 0 | CO44: 0 | CP44: 0 | CQ44: 0 | CR44: 0 | CS44: 0 | CT44: 0 | CU44: 0 | CV44: 0 | CW44: 0 | CX44: 0 | CY44: 0 | CZ44: 0 | DA44: 0 | DB44: 0 | DC44: 0 | DD44: 0 | DE44: 0 | DF44: 0 | DG44: 0 | DH44: 0 | DI44: 0 | DJ44: 0 | DK44: 0 | DL44: 0 | DM44: 0 | DN44: 0 | DO44: 0 | DP44: 0 | DQ44: 0 | DR44: 0 | DS44: 0 | DT44: 0 | DU44: 0 | DV44: 0 | DW44: 0 | DX44: 0 | DY44: 0 | DZ44: 0 | EA44: 0 | EB44: 0 | EC44: 0 | ED44: 0 | EE44: 0 | EF44: 0 | EG44: 0 | EH44: 0 | EI44: 0 | EJ44: 0 | EK44: 0 | EL44: 0 | EM44: 0 | EN44: 0 | EO44: 0 | EP44: 0 | EQ44: 0 | ER44: 0 | ES44: 0 | ET44: 0 | EU44: 0 | EV44: 0 | EW44: 0 | EX44: 0 | EY44: 0 | EZ44: 0 | FA44: 0 | FB44: 0 | FC44: 0 | FD44: 0 | FE44: 0 | FF44: 0 | FG44: 0 | FH44: 0 | FI44: 0 | FJ44: 0 | FK44: 0 | FL44: 0 | FM44: 0 | FN44: 0 | FO44: 0 | FP44: 0 | FQ44: 0 | FR44: 0 | FS44: 0 | FT44: 0 | FU44: 0 | FV44: 0 | FW44: 0 | FX44: 0 | FY44: 0 | FZ44: 0 | GA44: 0 | GB44: 0 | GC44: 0 | GD44: 0 | GE44: 0 | GF44: 0 | GG44: 0 | GH44: 0 | GI44: 0 | GJ44: 0 | GK44: 0 | GL44: 0 | GM44: 0 | GN44: 0 | GO44: 0 | GP44: 0 | GQ44: 0 | GR44: 0 | GS44: 0 | GT44: 0 | GU44: 0 | GV44: 0 | GW44: 0 | GX44: 0 | GY44: 0 | GZ44: 0 | HA44: 0 | HB44: 0 | HC44: 0 | HD44: 0 | HE44: 0 | HF44: 0 | HG44: 0 | HH44: 0 | HI44: 0 | HJ44: 0 | HK44: 0 | HL44: 0 | HM44: 0 | HN44: 0 | HO44: 0 | HP44: 0 | HQ44: 0 | HR44: 0 | HS44: 0 | HT44: 0 | HU44: 0 | HV44: 0 | HW44: 0 | HX44: 0 | HY44: 0 | HZ44: 0 | IA44: 0 | IB44: 0 | IC44: 0 | ID44: 0 | IE44: 0 | IF44: 0 | IG44: 0 | IH44: 0 | II44: 0 | IJ44: 0 | IK44: 0 | IL44: 0 | IM44: 0 | IN44: 0 | IO44: 0 | IP44: 0 | IQ44: 0 | IR44: 0 | IS44: 0 | IT44: 0 | IU44: 0 | IV44: 0 | IW44: 0 | IX44: 0 | IY44: 0 | IZ44: 0 | JA44: 0 | JB44: 0 | JC44: 0 | JD44: 0 | JE44: 0 | JF44: 0 | JG44: 0 | JH44: 0 | JI44: 0 | JJ44: 0 | JK44: 0 | JL44: 0 | JM44: 0 | JN44: 0 | JO44: 0 | JP44: 0 | JQ44: 0 | JR44: 0 | JS44: 0 | JT44: 0 | JU44: 0 | JV44: 0 | JW44: 0 | JX44: 0 | JY44: 0 | JZ44: 0 | KA44: 0 | KB44: 0 | KC44: 0 | KD44: 0 | KE44: 0 | KF44: 22600.61 | KG44: 0 | KH44: 0 | KI44: 0 | KJ44: 5573.38 | KK44: 0 | KL44: 0 | KM44: 0 | KN44: 0 | KO44: 0 | KP44: 0 | KQ44: 0 | KR44: 0 | KS44: 0 | KT44: 0 | KU44: 0 | KV44: 0 | KW44: 0 | KX44: 0 | KY44: 0 | KZ44: 777.9 | LA44: 0 | LB44: 0 | LC44: 0 | LD44: 0 | LE44: 0 | LF44: 0 | LG44: 0 | LH44: 0 | LI44: 0 | LJ44: 0 | LK44: 0 | LL44: 32696.56 | LM44: 9052.37 | LN44: 1034.56 | LO44: 246.9203566 | LP44: 1484.86 | LQ44: 2827.37 | LR44: 3340.925517 | LS44: 22281.32 | LT44: 12253.72 | LU44: 1168.86 | LV44: 228.45 | LW44: 4200.23 | LX44: 0 | LY44: 0 | LZ44: 0 | MA44: 0 | MB44: 0 | MC44: 0 | MD44: 0 | ME44: 0 | MF44: 0 | MG44: 0 | MH44: 0 | MI44: 0 | MJ44: 0 | MK44: 0 | ML44: 0 | MM44: 0 | MN44: 0 | MO44: 0 | MP44: 0 | MQ44: 0 | MR44: 0 | MS44: 0 | MT44: 0 | MU44: 0 | MV44: 0 | MW44: 0 | MX44: 0 | MY44: 0 | MZ44: 0 | NA44: 0 | NB44: 0 | NC44: 0 | ND44: 0 | NE44: 0 | NF44: 0 | NG44: 0 | NH44: 0 | NI44: 0 | NJ44: 0 | NK44: 0 | NL44: 0 | NM44: 0 | NN44: 0 | NO44: 0 | NP44: 0 | NQ44: 0 | NR44: 0 | NS44: 0 | NT44: 0 | NU44: 0 | NV44: 0 | NW44: 0 | NX44: 0 | NY44: 0 | NZ44: 0 | OA44: 0 | OB44: 0 | OC44: 0 | OD44: 0 | OE44: 0 | OF44: 0 | OG44: 0 | OH44: 0 | OI44: 0 | OJ44: 0 | OK44: 0 | OL44: 0 | OM44: 0 | ON44: 0 | OO44: 0 | OP44: 0 | OQ44: 0 | OR44: 0 | OS44: 0 | OT44: 0 | OU44: 0 | OV44: 0 | OW44: 0 | OX44: 0 | OY44: 0 | OZ44: 0 | PA44: 0 | PB44: 0 | PC44: 0 | PD44: 0 | PE44: 0 | PF44: 0 | PG44: 0 | PH44: 0 | PI44: 0 | PJ44: 0 | PK44: 0 | PL44: 0 | PM44: 0 | PN44: 0 | PO44: 0 | PP44: 0 | PQ44: 0 | PR44: 0 | PS44: 0 | PT44: 0 | PU44: 0 | PV44: 0 | PW44: 0 | PX44: 0 | PY44: 0 | PZ44: 0 | QA44: 0 | QB44: 0 | QC44: 0 | QD44: 0 | QE44: 0 | QF44: 0 | QG44: 0 | QH44: 0 | QI44: 0 | QJ44: 0 | QK44: 0 | QL44: 0 | QM44: 0 | QN44: 0 | QO44: 0 | QP44: 0 | QQ44: 0 | QR44: 0 | QS44: 0 | QT44: 0 | QU44: 0 | QV44: 0 | QW44: 0 | QX44: 0 | QY44: 0 | QZ44: 0 | RA44: 0 | RB44: 0 | RC44: 0 | RD44: 0 | RE44: 0 | RF44: 0 | RG44: 0 | RH44: 0 | RI44: 0 | RJ44: 0 | RK44: 0 | RL44: 0 | RM44: 0 | RN44: 0 | RO44: 0 | RP44: 0 | RQ44: 0 | RR44: 0 | RS44: 0 | RT44: 0 | RU44: 0 | RV44: 0 | RW44: 0 | RX44: 0 | RY44: 0 | RZ44: 0 | SA44: 0 | SB44: 0 | SC44: 0 | SD44: 0 | SE44: 0 | SF44: 0 | SG44: 0 | SH44: 0 | SI44: 0 | SJ44: 0 | SK44: 0 | SL44: 0 | SM44: 0 | SN44: 0 | SO44: 0 | SP44: 0 | SQ44: 0 | SR44: 0 | SS44: 0 | ST44: 0 | SU44: 0 | SV44: 0 | SW44: 0 | SX44: 0 | SY44: 0 | SZ44: 0 | TA44: 0 | TB44: 0 | TC44: 0 | TD44: 0 | TE44: 0 | TF44: 0 | TG44: 0 | TH44: 0 | TI44: 0 | TJ44: 0 | TK44: 0 | TL44: 0 | TM44: 0 | TN44: 0 | TO44: 0 | TP44: 0 | TQ44: 0 | TR44: 0 | TS44: 0 | TT44: 0 | TU44: 0 | TV44: 0 | TW44: 0 | TX44: 0 | TY44: 0
F45: Добавить источники
A46: 8.6 | C46: О | E46: =A46 -> 8.6 | F46: 2021 | G46: тыс руб | H46: =SUM(H47:H50) -> 548097.5036 | I46: 0 | J46: 0 | K46: 0 | L46: 0 | M46: 0 | N46: 0 | O46: 0 | P46: 0 | Q46: 0 | R46: 0 | S46: 0 | T46: 0 | U46: 0 | V46: 0 | W46: 0 | X46: 0 | Y46: 0 | Z46: 0 | AA46: 0 | AB46: 0 | AC46: 0 | AD46: 0 | AE46: 0 | AF46: 0 | AG46: 0 | AH46: 0 | AI46: 0 | AJ46: 0 | AK46: 0 | AL46: 0 | AM46: 0 | AN46: 0 | AO46: 0 | AP46: 0 | AQ46: 0 | AR46: 0 | AS46: 0 | AT46: 0 | AU46: 0 | AV46: 0 | AW46: 0 | AX46: 0 | AY46: 0 | AZ46: 0 | BA46: 0 | BB46: 0 | BC46: 0 | BD46: 0 | BE46: 0 | BF46: 0 | BG46: 0 | BH46: 0 | BI46: 0 | BJ46: 0 | BK46: 0 | BL46: 0 | BM46: 0 | BN46: 0 | BO46: 0 | BP46: 0 | BQ46: 0 | BR46: 0 | BS46: 0 | BT46: 0 | BU46: 0 | BV46: 0 | BW46: 0 | BX46: 0 | BY46: 0 | BZ46: 0 | CA46: 0 | CB46: 0 | CC46: 0 | CD46: 0 | CE46: 0 | CF46: 0 | CG46: 0 | CH46: 0 | CI46: 0 | CJ46: 0 | CK46: 0 | CL46: =SUM(CL47:CL50) -> 0 | CM46: 0 | CN46: 0 | CO46: 0 | CP46: 0 | CQ46: 0 | CR46: 0 | CS46: 0 | CT46: 0 | CU46: 0 | CV46: 0 | CW46: 0 | CX46: 0 | CY46: 0 | CZ46: 0 | DA46: 0 | DB46: 0 | DC46: 0 | DD46: 0 | DE46: 0 | DF46: 0 | DG46: 0 | DH46: 0 | DI46: 0 | DJ46: 0 | DK46: 0 | DL46: 0 | DM46: 0 | DN46: 0 | DO46: 0 | DP46: 0 | DQ46: 0 | DR46: 0 | DS46: 0 | DT46: 0 | DU46: 0 | DV46: 0 | DW46: 0 | DX46: 0 | DY46: 0 | DZ46: 0 | EA46: 0 | EB46: 0 | EC46: 0 | ED46: 0 | EE46: 0 | EF46: 0 | EG46: 0 | EH46: 0 | EI46: 0 | EJ46: 0 | EK46: 0 | EL46: 0 | EM46: 0 | EN46: 0 | EO46: 0 | EP46: 0 | EQ46: 0 | ER46: 0 | ES46: 0 | ET46: 0 | EU46: 0 | EV46: 0 | EW46: 0 | EX46: =SUM(EX47:EX50) -> 0 | EY46: 0 | EZ46: 0 | FA46: 0 | FB46: 0 | FC46: 0 | FD46: 0 | FE46: 0 | FF46: 0 | FG46: 0 | FH46: 0 | FI46: 0 | FJ46: 0 | FK46: 0 | FL46: 0 | FM46: 0 | FN46: 0 | FO46: 0 | FP46: 0 | FQ46: 0 | FR46: 0 | FS46: 0 | FT46: 0 | FU46: 0 | FV46: 0 | FW46: 0 | FX46: 0 | FY46: 0 | FZ46: 0 | GA46: 0 | GB46: 0 | GC46: 0 | GD46: 0 | GE46: 0 | GF46: 0 | GG46: 0 | GH46: 0 | GI46: 0 | GJ46: 0 | GK46: 0 | GL46: 0 | GM46: 0 | GN46: 0 | GO46: 0 | GP46: 0 | GQ46: 0 | GR46: 0 | GS46: 0 | GT46: 0 | GU46: 0 | GV46: 0 | GW46: 0 | GX46: 0 | GY46: 0 | GZ46: 0 | HA46: 0 | HB46: 0 | HC46: 0 | HD46: 0 | HE46: 0 | HF46: 0 | HG46: 0 | HH46: 0 | HI46: 0 | HJ46: =SUM(HJ47:HJ50) -> 0 | HK46: 0 | HL46: 0 | HM46: 0 | HN46: 0 | HO46: 0 | HP46: 0 | HQ46: 0 | HR46: 0 | HS46: 0 | HT46: 0 | HU46: 0 | HV46: 0 | HW46: 0 | HX46: 0 | HY46: 0 | HZ46: 0 | IA46: 0 | IB46: 0 | IC46: 0 | ID46: 0 | IE46: 0 | IF46: 0 | IG46: 0 | IH46: 0 | II46: 0 | IJ46: 0 | IK46: 0 | IL46: 0 | IM46: 0 | IN46: 0 | IO46: 0 | IP46: 0 | IQ46: 0 | IR46: 0 | IS46: 0 | IT46: 0 | IU46: 0 | IV46: 0 | IW46: 0 | IX46: 0 | IY46: 0 | IZ46: 0 | JA46: 0 | JB46: 0 | JC46: 0 | JD46: 0 | JE46: 0 | JF46: 0 | JG46: 0 | JH46: 0 | JI46: 0 | JJ46: 0 | JK46: 0 | JL46: 0 | JM46: 0 | JN46: 0 | JO46: 0 | JP46: 0 | JQ46: 0 | JR46: 0 | JS46: 0 | JT46: 0 | JU46: 0 | JV46: =SUM(JV47:JV50) -> 0 | JW46: 0 | JX46: 0 | JY46: 0 | JZ46: 0 | KA46: 0 | KB46: 0 | KC46: 0 | KD46: 0 | KE46: 0 | KF46: 0 | KG46: 0 | KH46: 0 | KI46: 0 | KJ46: 0 | KK46: 0 | KL46: 0 | KM46: 0 | KN46: 0 | KO46: 0 | KP46: 0 | KQ46: 0 | KR46: 0 | KS46: 0 | KT46: 0 | KU46: 0 | KV46: 0 | KW46: 0 | KX46: 0 | KY46: 0 | KZ46: 0 | LA46: 0 | LB46: 0 | LC46: 0 | LD46: 0 | LE46: 0 | LF46: 0 | LG46: 0 | LH46: 0 | LI46: 0 | LJ46: 0 | LK46: 0 | LL46: 0 | LM46: 0 | LN46: 0 | LO46: 0 | LP46: 0 | LQ46: 0 | LR46: 0 | LS46: 0 | LT46: 0 | LU46: 0 | LV46: 0 | LW46: 0 | LX46: 21257.68 | LY46: 10192.7 | LZ46: 13452.54 | MA46: 11931.46 | MB46: 11900.57 | MC46: 68798.29 | MD46: 11932.99 | ME46: 393.52 | MF46: 15790.22 | MG46: 11956.7 | MH46: 2885.04 | MI46: 120949.47 | MJ46: 5879.92 | MK46: 5786.61 | ML46: 695.63 | MM46: 0 | MN46: 1286.37 | MO46: 13706.33615 | MP46: 3956.93 | MQ46: 29052.39 | MR46: 508.53 | MS46: 10823.11 | MT46: 25409.86 | MU46: 1293.177439 | MV46: 1718.19 | MW46: 10979.85 | MX46: 0 | MY46: 4014.49 | MZ46: 1543.03 | NA46: 4393.88 | NB46: 4747.58 | NC46: 10092.01 | ND46: 8749.09 | NE46: 27770.61 | NF46: 5713.68 | NG46: 0 | NH46: 7133.5 | NI46: 4496.58 | NJ46: 8196.59 | NK46: 47879.57 | NL46: 0 | NM46: 0 | NN46: 0 | NO46: 0 | NP46: 0 | NQ46: 0 | NR46: 0 | NS46: 0 | NT46: 0 | NU46: 0 | NV46: 0 | NW46: 0 | NX46: 0 | NY46: 0 | NZ46: 0 | OA46: 0 | OB46: 0 | OC46: =SUM(OC47:OC50) -> 0 | OD46: 0 | OE46: 0 | OF46: 0 | OG46: 0 | OH46: 0 | OI46: 0 | OJ46: 0 | OK46: 0 | OL46: 0 | OM46: 0 | ON46: 0 | OO46: 0 | OP46: 0 | OQ46: 0 | OR46: 0 | OS46: 0 | OT46: 0 | OU46: 0 | OV46: 0 | OW46: 0 | OX46: 0 | OY46: 0 | OZ46: 0 | PA46: 0 | PB46: 0 | PC46: 0 | PD46: 0 | PE46: 0 | PF46: 0 | PG46: 0 | PH46: 0 | PI46: 0 | PJ46: 0 | PK46: 0 | PL46: 0 | PM46: 0 | PN46: 0 | PO46: 0 | PP46: 0 | PQ46: 0 | PR46: 0 | PS46: 0 | PT46: 0 | PU46: 0 | PV46: 0 | PW46: 0 | PX46: 0 | PY46: 0 | PZ46: 0 | QA46: 0 | QB46: 0 | QC46: 0 | QD46: 0 | QE46: 0 | QF46: 0 | QG46: 0 | QH46: 0 | QI46: 0 | QJ46: 0 | QK46: 0 | QL46: 0 | QM46: 0 | QN46: 0 | QO46: =SUM(QO47:QO50) -> 0 | QP46: 0 | QQ46: 0 | QR46: 0 | QS46: 0 | QT46: 0 | QU46: 0 | QV46: 0 | QW46: 0 | QX46: 0 | QY46: 0 | QZ46: 0 | RA46: 0 | RB46: 0 | RC46: 0 | RD46: 0 | RE46: 0 | RF46: 0 | RG46: 0 | RH46: 0 | RI46: 0 | RJ46: 0 | RK46: 0 | RL46: 0 | RM46: 0 | RN46: 0 | RO46: 0 | RP46: 0 | RQ46: 0 | RR46: 0 | RS46: 0 | RT46: 0 | RU46: 0 | RV46: 0 | RW46: 0 | RX46: 0 | RY46: 0 | RZ46: 0 | SA46: 0 | SB46: 0 | SC46: 0 | SD46: 0 | SE46: 0 | SF46: 0 | SG46: 0 | SH46: 0 | SI46: 0 | SJ46: 0 | SK46: 0 | SL46: 0 | SM46: 0 | SN46: 0 | SO46: 0 | SP46: 0 | SQ46: 0 | SR46: 0 | SS46: 0 | ST46: 0 | SU46: 0 | SV46: 0 | SW46: 0 | SX46: 0 | SY46: 0 | SZ46: 0 | TA46: =SUM(TA47:TA50) -> 0 | TB46: 828.81 | TC46: 0 | TD46: 0 | TE46: 0 | TF46: 0 | TG46: 0 | TH46: 0 | TI46: 0 | TJ46: 0 | TK46: 0 | TL46: 0 | TM46: 0 | TN46: 0 | TO46: 0 | TP46: 0 | TQ46: 0 | TR46: 0 | TS46: 0 | TT46: 0 | TU46: 0 | TV46: 0 | TW46: 0 | TX46: 0 | TY46: 0 | TZ46: y
B47: 1 | E47: =A46&"."&B47 -> 8.6.1 | F47: амортизация | G47: тыс руб | H47: =SUM(I47:TZ47) -> 203114.48 | J47: 0 | K47: 0 | L47: 0 | M47: 0 | N47: 0 | O47: 0 | P47: 0 | Q47: 0 | R47: 0 | S47: 0 | T47: 0 | U47: 0 | V47: 0 | W47: 0 | X47: 0 | Y47: 0 | Z47: 0 | AA47: 0 | AB47: 0 | AC47: 0 | AD47: 0 | AE47: 0 | AF47: 0 | AG47: 0 | AH47: 0 | AI47: 0 | AJ47: 0 | AK47: 0 | AL47: 0 | AM47: 0 | AN47: 0 | AO47: 0 | AP47: 0 | AQ47: 0 | AR47: 0 | AS47: 0 | AT47: 0 | AU47: 0 | AV47: 0 | AW47: 0 | AX47: 0 | AY47: 0 | AZ47: 0 | BA47: 0 | BB47: 0 | BC47: 0 | BD47: 0 | BE47: 0 | BF47: 0 | BG47: 0 | BH47: 0 | BI47: 0 | BJ47: 0 | BK47: 0 | BL47: 0 | BM47: 0 | BN47: 0 | BO47: 0 | BP47: 0 | BQ47: 0 | BR47: 0 | BS47: 0 | BT47: 0 | BU47: 0 | BV47: 0 | BW47: 0 | BX47: 0 | BY47: 0 | BZ47: 0 | CA47: 0 | CB47: 0 | CC47: 0 | CD47: 0 | CE47: 0 | CF47: 0 | CG47: 0 | CH47: 0 | CI47: 0 | CJ47: 0 | CK47: 0 | CL47: 0 | CM47: 0 | CN47: 0 | CO47: 0 | CP47: 0 | CQ47: 0 | CR47: 0 | CS47: 0 | CT47: 0 | CU47: 0 | CV47: 0 | CW47: 0 | CX47: 0 | CY47: 0 | CZ47: 0 | DA47: 0 | DB47: 0 | DC47: 0 | DD47: 0 | DE47: 0 | DF47: 0 | DG47: 0 | DH47: 0 | DI47: 0 | DJ47: 0 | DK47: 0 | DL47: 0 | DM47: 0 | DN47: 0 | DO47: 0 | DP47: 0 | DQ47: 0 | DR47: 0 | DS47: 0 | DT47: 0 | DU47: 0 | DV47: 0 | DW47: 0 | DX47: 0 | DY47: 0 | DZ47: 0 | EA47: 0 | EB47: 0 | EC47: 0 | ED47: 0 | EE47: 0 | EF47: 0 | EG47: 0 | EH47: 0 | EI47: 0 | EJ47: 0 | EK47: 0 | EL47: 0 | EM47: 0 | EN47: 0 | EO47: 0 | EP47: 0 | EQ47: 0 | ER47: 0 | ES47: 0 | ET47: 0 | EU47: 0 | EV47: 0 | EW47: 0 | EX47: 0 | EY47: 0 | EZ47: 0 | FA47: 0 | FB47: 0 | FC47: 0 | FD47: 0 | FE47: 0 | FF47: 0 | FG47: 0 | FH47: 0 | FI47: 0 | FJ47: 0 | FK47: 0 | FL47: 0 | FM47: 0 | FN47: 0 | FO47: 0 | FP47: 0 | FQ47: 0 | FR47: 0 | FS47: 0 | FT47: 0 | FU47: 0 | FV47: 0 | FW47: 0 | FX47: 0 | FY47: 0 | FZ47: 0 | GA47: 0 | GB47: 0 | GC47: 0 | GD47: 0 | GE47: 0 | GF47: 0 | GG47: 0 | GH47: 0 | GI47: 0 | GJ47: 0 | GK47: 0 | GL47: 0 | GM47: 0 | GN47: 0 | GO47: 0 | GP47: 0 | GQ47: 0 | GR47: 0 | GS47: 0 | GT47: 0 | GU47: 0 | GV47: 0 | GW47: 0 | GX47: 0 | GY47: 0 | GZ47: 0 | HA47: 0 | HB47: 0 | HC47: 0 | HD47: 0 | HE47: 0 | HF47: 0 | HG47: 0 | HH47: 0 | HI47: 0 | HJ47: 0 | HK47: 0 | HL47: 0 | HM47: 0 | HN47: 0 | HO47: 0 | HP47: 0 | HQ47: 0 | HR47: 0 | HS47: 0 | HT47: 0 | HU47: 0 | HV47: 0 | HW47: 0 | HX47: 0 | HY47: 0 | HZ47: 0 | IA47: 0 | IB47: 0 | IC47: 0 | ID47: 0 | IE47: 0 | IF47: 0 | IG47: 0 | IH47: 0 | II47: 0 | IJ47: 0 | IK47: 0 | IL47: 0 | IM47: 0 | IN47: 0 | IO47: 0 | IP47: 0 | IQ47: 0 | IR47: 0 | IS47: 0 | IT47: 0 | IU47: 0 | IV47: 0 | IW47: 0 | IX47: 0 | IY47: 0 | IZ47: 0 | JA47: 0 | JB47: 0 | JC47: 0 | JD47: 0 | JE47: 0 | JF47: 0 | JG47: 0 | JH47: 0 | JI47: 0 | JJ47: 0 | JK47: 0 | JL47: 0 | JM47: 0 | JN47: 0 | JO47: 0 | JP47: 0 | JQ47: 0 | JR47: 0 | JS47: 0 | JT47: 0 | JU47: 0 | JV47: 0 | JW47: 0 | JX47: 0 | JY47: 0 | JZ47: 0 | KA47: 0 | KB47: 0 | KC47: 0 | KD47: 0 | KE47: 0 | KF47: 0 | KG47: 0 | KH47: 0 | KI47: 0 | KJ47: 0 | KK47: 0 | KL47: 0 | KM47: 0 | KN47: 0 | KO47: 0 | KP47: 0 | KQ47: 0 | KR47: 0 | KS47: 0 | KT47: 0 | KU47: 0 | KV47: 0 | KW47: 0 | KX47: 0 | KY47: 0 | KZ47: 0 | LA47: 0 | LB47: 0 | LC47: 0 | LD47: 0 | LE47: 0 | LF47: 0 | LG47: 0 | LH47: 0 | LI47: 0 | LJ47: 0 | LK47: 0 | LL47: 0 | LM47: 0 | LN47: 0 | LO47: 0 | LP47: 0 | LQ47: 0 | LR47: 0 | LS47: 0 | LT47: 0 | LU47: 0 | LV47: 0 | LW47: 0 | LX47: 21257.68 | LY47: 10192.7 | LZ47: 13452.54 | MA47: 11931.46 | MB47: 4336.81 | MC47: 54902.56 | MD47: 0 | ME47: 0 | MF47: 0 | MG47: 0 | MH47: 0 | MI47: 19015.96 | MJ47: 0 | MK47: 0 | ML47: 0 | MM47: 0 | MN47: 0 | MO47: 0 | MP47: 2639.28 | MQ47: 29052.39 | MR47: 508.53 | MS47: 10823.11 | MT47: 0 | MU47: 0 | MV47: 0 | MW47: 0 | MX47: 0 | MY47: 0 | MZ47: 0 | NA47: 0 | NB47: 0 | NC47: 0 | ND47: 0 | NE47: 24172.65 | NF47: 0 | NG47: 0 | NH47: 0 | NI47: 0 | NJ47: 0 | NK47: 0 | NL47: 0 | NM47: 0 | NN47: 0 | NO47: 0 | NP47: 0 | NQ47: 0 | NR47: 0 | NS47: 0 | NT47: 0 | NU47: 0 | NV47: 0 | NW47: 0 | NX47: 0 | NY47: 0 | NZ47: 0 | OA47: 0 | OB47: 0 | OC47: 0 | OD47: 0 | OE47: 0 | OF47: 0 | OG47: 0 | OH47: 0 | OI47: 0 | OJ47: 0 | OK47: 0 | OL47: 0 | OM47: 0 | ON47: 0 | OO47: 0 | OP47: 0 | OQ47: 0 | OR47: 0 | OS47: 0 | OT47: 0 | OU47: 0 | OV47: 0 | OW47: 0 | OX47: 0 | OY47: 0 | OZ47: 0 | PA47: 0 | PB47: 0 | PC47: 0 | PD47: 0 | PE47: 0 | PF47: 0 | PG47: 0 | PH47: 0 | PI47: 0 | PJ47: 0 | PK47: 0 | PL47: 0 | PM47: 0 | PN47: 0 | PO47: 0 | PP47: 0 | PQ47: 0 | PR47: 0 | PS47: 0 | PT47: 0 | PU47: 0 | PV47: 0 | PW47: 0 | PX47: 0 | PY47: 0 | PZ47: 0 | QA47: 0 | QB47: 0 | QC47: 0 | QD47: 0 | QE47: 0 | QF47: 0 | QG47: 0 | QH47: 0 | QI47: 0 | QJ47: 0 | QK47: 0 | QL47: 0 | QM47: 0 | QN47: 0 | QO47: 0 | QP47: 0 | QQ47: 0 | QR47: 0 | QS47: 0 | QT47: 0 | QU47: 0 | QV47: 0 | QW47: 0 | QX47: 0 | QY47: 0 | QZ47: 0 | RA47: 0 | RB47: 0 | RC47: 0 | RD47: 0 | RE47: 0 | RF47: 0 | RG47: 0 | RH47: 0 | RI47: 0 | RJ47: 0 | RK47: 0 | RL47: 0 | RM47: 0 | RN47: 0 | RO47: 0 | RP47: 0 | RQ47: 0 | RR47: 0 | RS47: 0 | RT47: 0 | RU47: 0 | RV47: 0 | RW47: 0 | RX47: 0 | RY47: 0 | RZ47: 0 | SA47: 0 | SB47: 0 | SC47: 0 | SD47: 0 | SE47: 0 | SF47: 0 | SG47: 0 | SH47: 0 | SI47: 0 | SJ47: 0 | SK47: 0 | SL47: 0 | SM47: 0 | SN47: 0 | SO47: 0 | SP47: 0 | SQ47: 0 | SR47: 0 | SS47: 0 | ST47: 0 | SU47: 0 | SV47: 0 | SW47: 0 | SX47: 0 | SY47: 0 | SZ47: 0 | TA47: 0 | TB47: 828.81 | TC47: 0 | TD47: 0 | TE47: 0 | TF47: 0 | TG47: 0 | TH47: 0 | TI47: 0 | TJ47: 0 | TK47: 0 | TL47: 0 | TM47: 0 | TN47: 0 | TO47: 0 | TP47: 0 | TQ47: 0 | TR47: 0 | TS47: 0 | TT47: 0 | TU47: 0 | TV47: 0 | TW47: 0 | TX47: 0 | TY47: 0
B48: 2 | D48: О | E48: =$A$46&"."&$B$48 -> 8.6.2 | F48: прибыль, направляемая на инвестиции | G48: тыс руб | H48: =SUM(I48:TZ48) -> 180000 | J48: 0 | K48: 0 | L48: 0 | M48: 0 | N48: 0 | O48: 0 | P48: 0 | Q48: 0 | R48: 0 | S48: 0 | T48: 0 | U48: 0 | V48: 0 | W48: 0 | X48: 0 | Y48: 0 | Z48: 0 | AA48: 0 | AB48: 0 | AC48: 0 | AD48: 0 | AE48: 0 | AF48: 0 | AG48: 0 | AH48: 0 | AI48: 0 | AJ48: 0 | AK48: 0 | AL48: 0 | AM48: 0 | AN48: 0 | AO48: 0 | AP48: 0 | AQ48: 0 | AR48: 0 | AS48: 0 | AT48: 0 | AU48: 0 | AV48: 0 | AW48: 0 | AX48: 0 | AY48: 0 | AZ48: 0 | BA48: 0 | BB48: 0 | BC48: 0 | BD48: 0 | BE48: 0 | BF48: 0 | BG48: 0 | BH48: 0 | BI48: 0 | BJ48: 0 | BK48: 0 | BL48: 0 | BM48: 0 | BN48: 0 | BO48: 0 | BP48: 0 | BQ48: 0 | BR48: 0 | BS48: 0 | BT48: 0 | BU48: 0 | BV48: 0 | BW48: 0 | BX48: 0 | BY48: 0 | BZ48: 0 | CA48: 0 | CB48: 0 | CC48: 0 | CD48: 0 | CE48: 0 | CF48: 0 | CG48: 0 | CH48: 0 | CI48: 0 | CJ48: 0 | CK48: 0 | CL48: 0 | CM48: 0 | CN48: 0 | CO48: 0 | CP48: 0 | CQ48: 0 | CR48: 0 | CS48: 0 | CT48: 0 | CU48: 0 | CV48: 0 | CW48: 0 | CX48: 0 | CY48: 0 | CZ48: 0 | DA48: 0 | DB48: 0 | DC48: 0 | DD48: 0 | DE48: 0 | DF48: 0 | DG48: 0 | DH48: 0 | DI48: 0 | DJ48: 0 | DK48: 0 | DL48: 0 | DM48: 0 | DN48: 0 | DO48: 0 | DP48: 0 | DQ48: 0 | DR48: 0 | DS48: 0 | DT48: 0 | DU48: 0 | DV48: 0 | DW48: 0 | DX48: 0 | DY48: 0 | DZ48: 0 | EA48: 0 | EB48: 0 | EC48: 0 | ED48: 0 | EE48: 0 | EF48: 0 | EG48: 0 | EH48: 0 | EI48: 0 | EJ48: 0 | EK48: 0 | EL48: 0 | EM48: 0 | EN48: 0 | EO48: 0 | EP48: 0 | EQ48: 0 | ER48: 0 | ES48: 0 | ET48: 0 | EU48: 0 | EV48: 0 | EW48: 0 | EX48: 0 | EY48: 0 | EZ48: 0 | FA48: 0 | FB48: 0 | FC48: 0 | FD48: 0 | FE48: 0 | FF48: 0 | FG48: 0 | FH48: 0 | FI48: 0 | FJ48: 0 | FK48: 0 | FL48: 0 | FM48: 0 | FN48: 0 | FO48: 0 | FP48: 0 | FQ48: 0 | FR48: 0 | FS48: 0 | FT48: 0 | FU48: 0 | FV48: 0 | FW48: 0 | FX48: 0 | FY48: 0 | FZ48: 0 | GA48: 0 | GB48: 0 | GC48: 0 | GD48: 0 | GE48: 0 | GF48: 0 | GG48: 0 | GH48: 0 | GI48: 0 | GJ48: 0 | GK48: 0 | GL48: 0 | GM48: 0 | GN48: 0 | GO48: 0 | GP48: 0 | GQ48: 0 | GR48: 0 | GS48: 0 | GT48: 0 | GU48: 0 | GV48: 0 | GW48: 0 | GX48: 0 | GY48: 0 | GZ48: 0 | HA48: 0 | HB48: 0 | HC48: 0 | HD48: 0 | HE48: 0 | HF48: 0 | HG48: 0 | HH48: 0 | HI48: 0 | HJ48: 0 | HK48: 0 | HL48: 0 | HM48: 0 | HN48: 0 | HO48: 0 | HP48: 0 | HQ48: 0 | HR48: 0 | HS48: 0 | HT48: 0 | HU48: 0 | HV48: 0 | HW48: 0 | HX48: 0 | HY48: 0 | HZ48: 0 | IA48: 0 | IB48: 0 | IC48: 0 | ID48: 0 | IE48: 0 | IF48: 0 | IG48: 0 | IH48: 0 | II48: 0 | IJ48: 0 | IK48: 0 | IL48: 0 | IM48: 0 | IN48: 0 | IO48: 0 | IP48: 0 | IQ48: 0 | IR48: 0 | IS48: 0 | IT48: 0 | IU48: 0 | IV48: 0 | IW48: 0 | IX48: 0 | IY48: 0 | IZ48: 0 | JA48: 0 | JB48: 0 | JC48: 0 | JD48: 0 | JE48: 0 | JF48: 0 | JG48: 0 | JH48: 0 | JI48: 0 | JJ48: 0 | JK48: 0 | JL48: 0 | JM48: 0 | JN48: 0 | JO48: 0 | JP48: 0 | JQ48: 0 | JR48: 0 | JS48: 0 | JT48: 0 | JU48: 0 | JV48: 0 | JW48: 0 | JX48: 0 | JY48: 0 | JZ48: 0 | KA48: 0 | KB48: 0 | KC48: 0 | KD48: 0 | KE48: 0 | KF48: 0 | KG48: 0 | KH48: 0 | KI48: 0 | KJ48: 0 | KK48: 0 | KL48: 0 | KM48: 0 | KN48: 0 | KO48: 0 | KP48: 0 | KQ48: 0 | KR48: 0 | KS48: 0 | KT48: 0 | KU48: 0 | KV48: 0 | KW48: 0 | KX48: 0 | KY48: 0 | KZ48: 0 | LA48: 0 | LB48: 0 | LC48: 0 | LD48: 0 | LE48: 0 | LF48: 0 | LG48: 0 | LH48: 0 | LI48: 0 | LJ48: 0 | LK48: 0 | LL48: 0 | LM48: 0 | LN48: 0 | LO48: 0 | LP48: 0 | LQ48: 0 | LR48: 0 | LS48: 0 | LT48: 0 | LU48: 0 | LV48: 0 | LW48: 0 | LX48: 0 | LY48: 0 | LZ48: 0 | MA48: 0 | MB48: 7563.76 | MC48: 13895.73 | MD48: 11932.99 | ME48: 393.52 | MF48: 15790.22 | MG48: 11956.7 | MH48: 2885.04 | MI48: 101933.51 | MJ48: 5879.92 | MK48: 5786.61 | ML48: 695.63 | MM48: 0 | MN48: 1286.37 | MO48: 0 | MP48: 0 | MQ48: 0 | MR48: 0 | MS48: 0 | MT48: 0 | MU48: 0 | MV48: 0 | MW48: 0 | MX48: 0 | MY48: 0 | MZ48: 0 | NA48: 0 | NB48: 0 | NC48: 0 | ND48: 0 | NE48: 0 | NF48: 0 | NG48: 0 | NH48: 0 | NI48: 0 | NJ48: 0 | NK48: 0 | NL48: 0 | NM48: 0 | NN48: 0 | NO48: 0 | NP48: 0 | NQ48: 0 | NR48: 0 | NS48: 0 | NT48: 0 | NU48: 0 | NV48: 0 | NW48: 0 | NX48: 0 | NY48: 0 | NZ48: 0 | OA48: 0 | OB48: 0 | OC48: 0 | OD48: 0 | OE48: 0 | OF48: 0 | OG48: 0 | OH48: 0 | OI48: 0 | OJ48: 0 | OK48: 0 | OL48: 0 | OM48: 0 | ON48: 0 | OO48: 0 | OP48: 0 | OQ48: 0 | OR48: 0 | OS48: 0 | OT48: 0 | OU48: 0 | OV48: 0 | OW48: 0 | OX48: 0 | OY48: 0 | OZ48: 0 | PA48: 0 | PB48: 0 | PC48: 0 | PD48: 0 | PE48: 0 | PF48: 0 | PG48: 0 | PH48: 0 | PI48: 0 | PJ48: 0 | PK48: 0 | PL48: 0 | PM48: 0 | PN48: 0 | PO48: 0 | PP48: 0 | PQ48: 0 | PR48: 0 | PS48: 0 | PT48: 0 | PU48: 0 | PV48: 0 | PW48: 0 | PX48: 0 | PY48: 0 | PZ48: 0 | QA48: 0 | QB48: 0 | QC48: 0 | QD48: 0 | QE48: 0 | QF48: 0 | QG48: 0 | QH48: 0 | QI48: 0 | QJ48: 0 | QK48: 0 | QL48: 0 | QM48: 0 | QN48: 0 | QO48: 0 | QP48: 0 | QQ48: 0 | QR48: 0 | QS48: 0 | QT48: 0 | QU48: 0 | QV48: 0 | QW48: 0 | QX48: 0 | QY48: 0 | QZ48: 0 | RA48: 0 | RB48: 0 | RC48: 0 | RD48: 0 | RE48: 0 | RF48: 0 | RG48: 0 | RH48: 0 | RI48: 0 | RJ48: 0 | RK48: 0 | RL48: 0 | RM48: 0 | RN48: 0 | RO48: 0 | RP48: 0 | RQ48: 0 | RR48: 0 | RS48: 0 | RT48: 0 | RU48: 0 | RV48: 0 | RW48: 0 | RX48: 0 | RY48: 0 | RZ48: 0 | SA48: 0 | SB48: 0 | SC48: 0 | SD48: 0 | SE48: 0 | SF48: 0 | SG48: 0 | SH48: 0 | SI48: 0 | SJ48: 0 | SK48: 0 | SL48: 0 | SM48: 0 | SN48: 0 | SO48: 0 | SP48: 0 | SQ48: 0 | SR48: 0 | SS48: 0 | ST48: 0 | SU48: 0 | SV48: 0 | SW48: 0 | SX48: 0 | SY48: 0 | SZ48: 0 | TA48: 0 | TB48: 0 | TC48: 0 | TD48: 0 | TE48: 0 | TF48: 0 | TG48: 0 | TH48: 0 | TI48: 0 | TJ48: 0 | TK48: 0 | TL48: 0 | TM48: 0 | TN48: 0 | TO48: 0 | TP48: 0 | TQ48: 0 | TR48: 0 | TS48: 0 | TT48: 0 | TU48: 0 | TV48: 0 | TW48: 0 | TX48: 0 | TY48: 0
B49: 3 | D49: О | E49: =$A$46&"."&$B$49 -> 8.6.3 | F49: прочие средства | G49: тыс руб | H49: =SUM(I49:TZ49) -> 164983.0236 | J49: 0 | K49: 0 | L49: 0 | M49: 0 | N49: 0 | O49: 0 | P49: 0 | Q49: 0 | R49: 0 | S49: 0 | T49: 0 | U49: 0 | V49: 0 | W49: 0 | X49: 0 | Y49: 0 | Z49: 0 | AA49: 0 | AB49: 0 | AC49: 0 | AD49: 0 | AE49: 0 | AF49: 0 | AG49: 0 | AH49: 0 | AI49: 0 | AJ49: 0 | AK49: 0 | AL49: 0 | AM49: 0 | AN49: 0 | AO49: 0 | AP49: 0 | AQ49: 0 | AR49: 0 | AS49: 0 | AT49: 0 | AU49: 0 | AV49: 0 | AW49: 0 | AX49: 0 | AY49: 0 | AZ49: 0 | BA49: 0 | BB49: 0 | BC49: 0 | BD49: 0 | BE49: 0 | BF49: 0 | BG49: 0 | BH49: 0 | BI49: 0 | BJ49: 0 | BK49: 0 | BL49: 0 | BM49: 0 | BN49: 0 | BO49: 0 | BP49: 0 | BQ49: 0 | BR49: 0 | BS49: 0 | BT49: 0 | BU49: 0 | BV49: 0 | BW49: 0 | BX49: 0 | BY49: 0 | BZ49: 0 | CA49: 0 | CB49: 0 | CC49: 0 | CD49: 0 | CE49: 0 | CF49: 0 | CG49: 0 | CH49: 0 | CI49: 0 | CJ49: 0 | CK49: 0 | CL49: 0 | CM49: 0 | CN49: 0 | CO49: 0 | CP49: 0 | CQ49: 0 | CR49: 0 | CS49: 0 | CT49: 0 | CU49: 0 | CV49: 0 | CW49: 0 | CX49: 0 | CY49: 0 | CZ49: 0 | DA49: 0 | DB49: 0 | DC49: 0 | DD49: 0 | DE49: 0 | DF49: 0 | DG49: 0 | DH49: 0 | DI49: 0 | DJ49: 0 | DK49: 0 | DL49: 0 | DM49: 0 | DN49: 0 | DO49: 0 | DP49: 0 | DQ49: 0 | DR49: 0 | DS49: 0 | DT49: 0 | DU49: 0 | DV49: 0 | DW49: 0 | DX49: 0 | DY49: 0 | DZ49: 0 | EA49: 0 | EB49: 0 | EC49: 0 | ED49: 0 | EE49: 0 | EF49: 0 | EG49: 0 | EH49: 0 | EI49: 0 | EJ49: 0 | EK49: 0 | EL49: 0 | EM49: 0 | EN49: 0 | EO49: 0 | EP49: 0 | EQ49: 0 | ER49: 0 | ES49: 0 | ET49: 0 | EU49: 0 | EV49: 0 | EW49: 0 | EX49: 0 | EY49: 0 | EZ49: 0 | FA49: 0 | FB49: 0 | FC49: 0 | FD49: 0 | FE49: 0 | FF49: 0 | FG49: 0 | FH49: 0 | FI49: 0 | FJ49: 0 | FK49: 0 | FL49: 0 | FM49: 0 | FN49: 0 | FO49: 0 | FP49: 0 | FQ49: 0 | FR49: 0 | FS49: 0 | FT49: 0 | FU49: 0 | FV49: 0 | FW49: 0 | FX49: 0 | FY49: 0 | FZ49: 0 | GA49: 0 | GB49: 0 | GC49: 0 | GD49: 0 | GE49: 0 | GF49: 0 | GG49: 0 | GH49: 0 | GI49: 0 | GJ49: 0 | GK49: 0 | GL49: 0 | GM49: 0 | GN49: 0 | GO49: 0 | GP49: 0 | GQ49: 0 | GR49: 0 | GS49: 0 | GT49: 0 | GU49: 0 | GV49: 0 | GW49: 0 | GX49: 0 | GY49: 0 | GZ49: 0 | HA49: 0 | HB49: 0 | HC49: 0 | HD49: 0 | HE49: 0 | HF49: 0 | HG49: 0 | HH49: 0 | HI49: 0 | HJ49: 0 | HK49: 0 | HL49: 0 | HM49: 0 | HN49: 0 | HO49: 0 | HP49: 0 | HQ49: 0 | HR49: 0 | HS49: 0 | HT49: 0 | HU49: 0 | HV49: 0 | HW49: 0 | HX49: 0 | HY49: 0 | HZ49: 0 | IA49: 0 | IB49: 0 | IC49: 0 | ID49: 0 | IE49: 0 | IF49: 0 | IG49: 0 | IH49: 0 | II49: 0 | IJ49: 0 | IK49: 0 | IL49: 0 | IM49: 0 | IN49: 0 | IO49: 0 | IP49: 0 | IQ49: 0 | IR49: 0 | IS49: 0 | IT49: 0 | IU49: 0 | IV49: 0 | IW49: 0 | IX49: 0 | IY49: 0 | IZ49: 0 | JA49: 0 | JB49: 0 | JC49: 0 | JD49: 0 | JE49: 0 | JF49: 0 | JG49: 0 | JH49: 0 | JI49: 0 | JJ49: 0 | JK49: 0 | JL49: 0 | JM49: 0 | JN49: 0 | JO49: 0 | JP49: 0 | JQ49: 0 | JR49: 0 | JS49: 0 | JT49: 0 | JU49: 0 | JV49: 0 | JW49: 0 | JX49: 0 | JY49: 0 | JZ49: 0 | KA49: 0 | KB49: 0 | KC49: 0 | KD49: 0 | KE49: 0 | KF49: 0 | KG49: 0 | KH49: 0 | KI49: 0 | KJ49: 0 | KK49: 0 | KL49: 0 | KM49: 0 | KN49: 0 | KO49: 0 | KP49: 0 | KQ49: 0 | KR49: 0 | KS49: 0 | KT49: 0 | KU49: 0 | KV49: 0 | KW49: 0 | KX49: 0 | KY49: 0 | KZ49: 0 | LA49: 0 | LB49: 0 | LC49: 0 | LD49: 0 | LE49: 0 | LF49: 0 | LG49: 0 | LH49: 0 | LI49: 0 | LJ49: 0 | LK49: 0 | LL49: 0 | LM49: 0 | LN49: 0 | LO49: 0 | LP49: 0 | LQ49: 0 | LR49: 0 | LS49: 0 | LT49: 0 | LU49: 0 | LV49: 0 | LW49: 0 | LX49: 0 | LY49: 0 | LZ49: 0 | MA49: 0 | MB49: 0 | MC49: 0 | MD49: 0 | ME49: 0 | MF49: 0 | MG49: 0 | MH49: 0 | MI49: 0 | MJ49: 0 | MK49: 0 | ML49: 0 | MM49: 0 | MN49: 0 | MO49: 13706.33615 | MP49: 1317.65 | MQ49: 0 | MR49: 0 | MS49: 0 | MT49: 25409.86 | MU49: 1293.177439 | MV49: 1718.19 | MW49: 10979.85 | MX49: 0 | MY49: 4014.49 | MZ49: 1543.03 | NA49: 4393.88 | NB49: 4747.58 | NC49: 10092.01 | ND49: 8749.09 | NE49: 3597.96 | NF49: 5713.68 | NG49: 0 | NH49: 7133.5 | NI49: 4496.58 | NJ49: 8196.59 | NK49: 47879.57 | NL49: 0 | NM49: 0 | NN49: 0 | NO49: 0 | NP49: 0 | NQ49: 0 | NR49: 0 | NS49: 0 | NT49: 0 | NU49: 0 | NV49: 0 | NW49: 0 | NX49: 0 | NY49: 0 | NZ49: 0 | OA49: 0 | OB49: 0 | OC49: 0 | OD49: 0 | OE49: 0 | OF49: 0 | OG49: 0 | OH49: 0 | OI49: 0 | OJ49: 0 | OK49: 0 | OL49: 0 | OM49: 0 | ON49: 0 | OO49: 0 | OP49: 0 | OQ49: 0 | OR49: 0 | OS49: 0 | OT49: 0 | OU49: 0 | OV49: 0 | OW49: 0 | OX49: 0 | OY49: 0 | OZ49: 0 | PA49: 0 | PB49: 0 | PC49: 0 | PD49: 0 | PE49: 0 | PF49: 0 | PG49: 0 | PH49: 0 | PI49: 0 | PJ49: 0 | PK49: 0 | PL49: 0 | PM49: 0 | PN49: 0 | PO49: 0 | PP49: 0 | PQ49: 0 | PR49: 0 | PS49: 0 | PT49: 0 | PU49: 0 | PV49: 0 | PW49: 0 | PX49: 0 | PY49: 0 | PZ49: 0 | QA49: 0 | QB49: 0 | QC49: 0 | QD49: 0 | QE49: 0 | QF49: 0 | QG49: 0 | QH49: 0 | QI49: 0 | QJ49: 0 | QK49: 0 | QL49: 0 | QM49: 0 | QN49: 0 | QO49: 0 | QP49: 0 | QQ49: 0 | QR49: 0 | QS49: 0 | QT49: 0 | QU49: 0 | QV49: 0 | QW49: 0 | QX49: 0 | QY49: 0 | QZ49: 0 | RA49: 0 | RB49: 0 | RC49: 0 | RD49: 0 | RE49: 0 | RF49: 0 | RG49: 0 | RH49: 0 | RI49: 0 | RJ49: 0 | RK49: 0 | RL49: 0 | RM49: 0 | RN49: 0 | RO49: 0 | RP49: 0 | RQ49: 0 | RR49: 0 | RS49: 0 | RT49: 0 | RU49: 0 | RV49: 0 | RW49: 0 | RX49: 0 | RY49: 0 | RZ49: 0 | SA49: 0 | SB49: 0 | SC49: 0 | SD49: 0 | SE49: 0 | SF49: 0 | SG49: 0 | SH49: 0 | SI49: 0 | SJ49: 0 | SK49: 0 | SL49: 0 | SM49: 0 | SN49: 0 | SO49: 0 | SP49: 0 | SQ49: 0 | SR49: 0 | SS49: 0 | ST49: 0 | SU49: 0 | SV49: 0 | SW49: 0 | SX49: 0 | SY49: 0 | SZ49: 0 | TA49: 0 | TB49: 0 | TC49: 0 | TD49: 0 | TE49: 0 | TF49: 0 | TG49: 0 | TH49: 0 | TI49: 0 | TJ49: 0 | TK49: 0 | TL49: 0 | TM49: 0 | TN49: 0 | TO49: 0 | TP49: 0 | TQ49: 0 | TR49: 0 | TS49: 0 | TT49: 0 | TU49: 0 | TV49: 0 | TW49: 0 | TX49: 0 | TY49: 0
F50: Добавить источники
A51: 8.7 | C51: О | E51: =A51 -> 8.7 | F51: 2022 | G51: тыс руб | H51: =SUM(H52:H55) -> 635194.1904 | I51: 0 | J51: 0 | K51: 0 | L51: 0 | M51: 0 | N51: 0 | O51: 0 | P51: 0 | Q51: 0 | R51: 0 | S51: 0 | T51: 0 | U51: 0 | V51: 0 | W51: 0 | X51: 0 | Y51: 0 | Z51: 0 | AA51: 0 | AB51: 0 | AC51: 0 | AD51: 0 | AE51: 0 | AF51: 0 | AG51: 0 | AH51: 0 | AI51: 0 | AJ51: 0 | AK51: 0 | AL51: 0 | AM51: 0 | AN51: 0 | AO51: 0 | AP51: 0 | AQ51: 0 | AR51: 0 | AS51: 0 | AT51: 0 | AU51: 0 | AV51: 0 | AW51: 0 | AX51: 0 | AY51: 0 | AZ51: 0 | BA51: 0 | BB51: 0 | BC51: 0 | BD51: 0 | BE51: 0 | BF51: 0 | BG51: 0 | BH51: 0 | BI51: 0 | BJ51: 0 | BK51: 0 | BL51: 0 | BM51: 0 | BN51: 0 | BO51: 0 | BP51: 0 | BQ51: 0 | BR51: 0 | BS51: 0 | BT51: 0 | BU51: 0 | BV51: 0 | BW51: 0 | BX51: 0 | BY51: 0 | BZ51: 0 | CA51: 0 | CB51: 0 | CC51: 0 | CD51: 0 | CE51: 0 | CF51: 0 | CG51: 0 | CH51: 0 | CI51: 0 | CJ51: 0 | CK51: 0 | CL51: =SUM(CL52:CL55) -> 0 | CM51: 0 | CN51: 0 | CO51: 0 | CP51: 0 | CQ51: 0 | CR51: 0 | CS51: 0 | CT51: 0 | CU51: 0 | CV51: 0 | CW51: 0 | CX51: 0 | CY51: 0 | CZ51: 0 | DA51: 0 | DB51: 0 | DC51: 0 | DD51: 0 | DE51: 0 | DF51: 0 | DG51: 0 | DH51: 0 | DI51: 0 | DJ51: 0 | DK51: 0 | DL51: 0 | DM51: 0 | DN51: 0 | DO51: 0 | DP51: 0 | DQ51: 0 | DR51: 0 | DS51: 0 | DT51: 0 | DU51: 0 | DV51: 0 | DW51: 0 | DX51: 0 | DY51: 0 | DZ51: 0 | EA51: 0 | EB51: 0 | EC51: 0 | ED51: 0 | EE51: 0 | EF51: 0 | EG51: 0 | EH51: 0 | EI51: 0 | EJ51: 0 | EK51: 0 | EL51: 0 | EM51: 0 | EN51: 0 | EO51: 0 | EP51: 0 | EQ51: 0 | ER51: 0 | ES51: 0 | ET51: 0 | EU51: 0 | EV51: 0 | EW51: 0 | EX51: =SUM(EX52:EX55) -> 0 | EY51: 0 | EZ51: 0 | FA51: 0 | FB51: 0 | FC51: 0 | FD51: 0 | FE51: 0 | FF51: 0 | FG51: 0 | FH51: 0 | FI51: 0 | FJ51: 0 | FK51: 0 | FL51: 0 | FM51: 0 | FN51: 0 | FO51: 0 | FP51: 0 | FQ51: 0 | FR51: 0 | FS51: 0 | FT51: 0 | FU51: 0 | FV51: 0 | FW51: 0 | FX51: 0 | FY51: 0 | FZ51: 0 | GA51: 0 | GB51: 0 | GC51: 0 | GD51: 0 | GE51: 0 | GF51: 0 | GG51: 0 | GH51: 0 | GI51: 0 | GJ51: 0 | GK51: 0 | GL51: 0 | GM51: 0 | GN51: 0 | GO51: 0 | GP51: 0 | GQ51: 0 | GR51: 0 | GS51: 0 | GT51: 0 | GU51: 0 | GV51: 0 | GW51: 0 | GX51: 0 | GY51: 0 | GZ51: 0 | HA51: 0 | HB51: 0 | HC51: 0 | HD51: 0 | HE51: 0 | HF51: 0 | HG51: 0 | HH51: 0 | HI51: 0 | HJ51: =SUM(HJ52:HJ55) -> 0 | HK51: 0 | HL51: 0 | HM51: 0 | HN51: 0 | HO51: 0 | HP51: 0 | HQ51: 0 | HR51: 0 | HS51: 0 | HT51: 0 | HU51: 0 | HV51: 0 | HW51: 0 | HX51: 0 | HY51: 0 | HZ51: 0 | IA51: 0 | IB51: 0 | IC51: 0 | ID51: 0 | IE51: 0 | IF51: 0 | IG51: 0 | IH51: 0 | II51: 0 | IJ51: 0 | IK51: 0 | IL51: 0 | IM51: 0 | IN51: 0 | IO51: 0 | IP51: 0 | IQ51: 0 | IR51: 0 | IS51: 0 | IT51: 0 | IU51: 0 | IV51: 0 | IW51: 0 | IX51: 0 | IY51: 0 | IZ51: 0 | JA51: 0 | JB51: 0 | JC51: 0 | JD51: 0 | JE51: 0 | JF51: 0 | JG51: 0 | JH51: 0 | JI51: 0 | JJ51: 0 | JK51: 0 | JL51: 0 | JM51: 0 | JN51: 0 | JO51: 0 | JP51: 0 | JQ51: 0 | JR51: 0 | JS51: 0 | JT51: 0 | JU51: 0 | JV51: =SUM(JV52:JV55) -> 0 | JW51: 0 | JX51: 0 | JY51: 0 | JZ51: 0 | KA51: 0 | KB51: 0 | KC51: 0 | KD51: 0 | KE51: 0 | KF51: 0 | KG51: 0 | KH51: 0 | KI51: 0 | KJ51: 0 | KK51: 0 | KL51: 0 | KM51: 0 | KN51: 0 | KO51: 0 | KP51: 0 | KQ51: 0 | KR51: 0 | KS51: 0 | KT51: 0 | KU51: 0 | KV51: 0 | KW51: 0 | KX51: 0 | KY51: 0 | KZ51: 0 | LA51: 0 | LB51: 0 | LC51: 0 | LD51: 0 | LE51: 0 | LF51: 0 | LG51: 0 | LH51: 0 | LI51: 0 | LJ51: 0 | LK51: 0 | LL51: 0 | LM51: 0 | LN51: 0 | LO51: 0 | LP51: 0 | LQ51: 0 | LR51: 0 | LS51: 0 | LT51: 0 | LU51: 0 | LV51: 0 | LW51: 0 | LX51: 0 | LY51: 0 | LZ51: 0 | MA51: 0 | MB51: 0 | MC51: 0 | MD51: 0 | ME51: 0 | MF51: =SUM(MF52:MF55) -> 0 | MG51: 0 | MH51: 0 | MI51: 0 | MJ51: 0 | MK51: 0 | ML51: 0 | MM51: 0 | MN51: 0 | MO51: 0 | MP51: 0 | MQ51: 0 | MR51: 0 | MS51: 0 | MT51: 0 | MU51: 0 | MV51: 0 | MW51: 0 | MX51: 0 | MY51: 0 | MZ51: 0 | NA51: 0 | NB51: 0 | NC51: 0 | ND51: 0 | NE51: 0 | NF51: 0 | NG51: 0 | NH51: 0 | NI51: 0 | NJ51: 0 | NK51: 0 | NL51: 0 | NM51: 21257.69 | NN51: 11787.29 | NO51: 56284.02 | NP51: 264.7 | NQ51: 1410.73 | NR51: 33027.82 | NS51: 2501.99 | NT51: 70660.6 | NU51: 42626.67 | NV51: 0 | NW51: 0 | NX51: 6124.594164 | NY51: 7683.056756 | NZ51: 40135.72 | OA51: 20542.57 | OB51: 9725.06 | OC51: 22200.69 | OD51: 18203.54 | OE51: 639.4 | OF51: 36189.54 | OG51: 222.7132 | OH51: 20743.09 | OI51: 84953.36 | OJ51: 26275.14 | OK51: 15388.33 | OL51: 23589.45 | OM51: 6969.251902 | ON51: 32479.05 | OO51: 10763.01 | OP51: 1338.54 | OQ51: 281.2444076 | OR51: 10925.33 | OS51: 0 | OT51: 0 | OU51: 0 | OV51: 0 | OW51: 0 | OX51: 0 | OY51: 0 | OZ51: 0 | PA51: 0 | PB51: 0 | PC51: 0 | PD51: 0 | PE51: 0 | PF51: 0 | PG51: 0 | PH51: 0 | PI51: 0 | PJ51: 0 | PK51: 0 | PL51: 0 | PM51: 0 | PN51: 0 | PO51: 0 | PP51: 0 | PQ51: 0 | PR51: 0 | PS51: 0 | PT51: 0 | PU51: 0 | PV51: 0 | PW51: 0 | PX51: 0 | PY51: 0 | PZ51: 0 | QA51: 0 | QB51: 0 | QC51: 0 | QD51: 0 | QE51: 0 | QF51: 0 | QG51: 0 | QH51: 0 | QI51: 0 | QJ51: 0 | QK51: 0 | QL51: 0 | QM51: 0 | QN51: 0 | QO51: 0 | QP51: 0 | QQ51: 0 | QR51: 0 | QS51: 0 | QT51: 0 | QU51: 0 | QV51: 0 | QW51: 0 | QX51: 0 | QY51: 0 | QZ51: 0 | RA51: 0 | RB51: 0 | RC51: 0 | RD51: 0 | RE51: 0 | RF51: 0 | RG51: 0 | RH51: 0 | RI51: 0 | RJ51: 0 | RK51: 0 | RL51: 0 | RM51: 0 | RN51: 0 | RO51: 0 | RP51: 0 | RQ51: 0 | RR51: 0 | RS51: 0 | RT51: 0 | RU51: 0 | RV51: 0 | RW51: 0 | RX51: 0 | RY51: 0 | RZ51: 0 | SA51: 0 | SB51: 0 | SC51: 0 | SD51: 0 | SE51: 0 | SF51: 0 | SG51: 0 | SH51: 0 | SI51: 0 | SJ51: 0 | SK51: 0 | SL51: 0 | SM51: 0 | SN51: 0 | SO51: 0 | SP51: 0 | SQ51: =SUM(SQ52:SQ55) -> 0 | SR51: =SUM(SR52:SR55) -> 0 | SS51: =SUM(SS52:SS55) -> 0 | ST51: 0 | SU51: 0 | SV51: 0 | SW51: 0 | SX51: 0 | SY51: 0 | SZ51: 0 | TA51: 0 | TB51: 0 | TC51: 0 | TD51: 0 | TE51: 0 | TF51: 0 | TG51: 0 | TH51: 0 | TI51: 0 | TJ51: 0 | TK51: 0 | TL51: 0 | TM51: 0 | TN51: 0 | TO51: 0 | TP51: 0 | TQ51: 0 | TR51: 0 | TS51: 0 | TT51: 0 | TU51: 0 | TV51: 0 | TW51: 0 | TX51: 0 | TY51: 0 | TZ51: y
B52: 1 | E52: =A51&"."&B52 -> 8.7.1 | F52: амортизация | G52: тыс руб | H52: =SUM(I52:TZ52) -> 205108.16 | J52: 0 | K52: 0 | L52: 0 | M52: 0 | N52: 0 | O52: 0 | P52: 0 | Q52: 0 | R52: 0 | S52: 0 | T52: 0 | U52: 0 | V52: 0 | W52: 0 | X52: 0 | Y52: 0 | Z52: 0 | AA52: 0 | AB52: 0 | AC52: 0 | AD52: 0 | AE52: 0 | AF52: 0 | AG52: 0 | AH52: 0 | AI52: 0 | AJ52: 0 | AK52: 0 | AL52: 0 | AM52: 0 | AN52: 0 | AO52: 0 | AP52: 0 | AQ52: 0 | AR52: 0 | AS52: 0 | AT52: 0 | AU52: 0 | AV52: 0 | AW52: 0 | AX52: 0 | AY52: 0 | AZ52: 0 | BA52: 0 | BB52: 0 | BC52: 0 | BD52: 0 | BE52: 0 | BF52: 0 | BG52: 0 | BH52: 0 | BI52: 0 | BJ52: 0 | BK52: 0 | BL52: 0 | BM52: 0 | BN52: 0 | BO52: 0 | BP52: 0 | BQ52: 0 | BR52: 0 | BS52: 0 | BT52: 0 | BU52: 0 | BV52: 0 | BW52: 0 | BX52: 0 | BY52: 0 | BZ52: 0 | CA52: 0 | CB52: 0 | CC52: 0 | CD52: 0 | CE52: 0 | CF52: 0 | CG52: 0 | CH52: 0 | CI52: 0 | CJ52: 0 | CK52: 0 | CL52: 0 | CM52: 0 | CN52: 0 | CO52: 0 | CP52: 0 | CQ52: 0 | CR52: 0 | CS52: 0 | CT52: 0 | CU52: 0 | CV52: 0 | CW52: 0 | CX52: 0 | CY52: 0 | CZ52: 0 | DA52: 0 | DB52: 0 | DC52: 0 | DD52: 0 | DE52: 0 | DF52: 0 | DG52: 0 | DH52: 0 | DI52: 0 | DJ52: 0 | DK52: 0 | DL52: 0 | DM52: 0 | DN52: 0 | DO52: 0 | DP52: 0 | DQ52: 0 | DR52: 0 | DS52: 0 | DT52: 0 | DU52: 0 | DV52: 0 | DW52: 0 | DX52: 0 | DY52: 0 | DZ52: 0 | EA52: 0 | EB52: 0 | EC52: 0 | ED52: 0 | EE52: 0 | EF52: 0 | EG52: 0 | EH52: 0 | EI52: 0 | EJ52: 0 | EK52: 0 | EL52: 0 | EM52: 0 | EN52: 0 | EO52: 0 | EP52: 0 | EQ52: 0 | ER52: 0 | ES52: 0 | ET52: 0 | EU52: 0 | EV52: 0 | EW52: 0 | EX52: 0 | EY52: 0 | EZ52: 0 | FA52: 0 | FB52: 0 | FC52: 0 | FD52: 0 | FE52: 0 | FF52: 0 | FG52: 0 | FH52: 0 | FI52: 0 | FJ52: 0 | FK52: 0 | FL52: 0 | FM52: 0 | FN52: 0 | FO52: 0 | FP52: 0 | FQ52: 0 | FR52: 0 | FS52: 0 | FT52: 0 | FU52: 0 | FV52: 0 | FW52: 0 | FX52: 0 | FY52: 0 | FZ52: 0 | GA52: 0 | GB52: 0 | GC52: 0 | GD52: 0 | GE52: 0 | GF52: 0 | GG52: 0 | GH52: 0 | GI52: 0 | GJ52: 0 | GK52: 0 | GL52: 0 | GM52: 0 | GN52: 0 | GO52: 0 | GP52: 0 | GQ52: 0 | GR52: 0 | GS52: 0 | GT52: 0 | GU52: 0 | GV52: 0 | GW52: 0 | GX52: 0 | GY52: 0 | GZ52: 0 | HA52: 0 | HB52: 0 | HC52: 0 | HD52: 0 | HE52: 0 | HF52: 0 | HG52: 0 | HH52: 0 | HI52: 0 | HJ52: 0 | HK52: 0 | HL52: 0 | HM52: 0 | HN52: 0 | HO52: 0 | HP52: 0 | HQ52: 0 | HR52: 0 | HS52: 0 | HT52: 0 | HU52: 0 | HV52: 0 | HW52: 0 | HX52: 0 | HY52: 0 | HZ52: 0 | IA52: 0 | IB52: 0 | IC52: 0 | ID52: 0 | IE52: 0 | IF52: 0 | IG52: 0 | IH52: 0 | II52: 0 | IJ52: 0 | IK52: 0 | IL52: 0 | IM52: 0 | IN52: 0 | IO52: 0 | IP52: 0 | IQ52: 0 | IR52: 0 | IS52: 0 | IT52: 0 | IU52: 0 | IV52: 0 | IW52: 0 | IX52: 0 | IY52: 0 | IZ52: 0 | JA52: 0 | JB52: 0 | JC52: 0 | JD52: 0 | JE52: 0 | JF52: 0 | JG52: 0 | JH52: 0 | JI52: 0 | JJ52: 0 | JK52: 0 | JL52: 0 | JM52: 0 | JN52: 0 | JO52: 0 | JP52: 0 | JQ52: 0 | JR52: 0 | JS52: 0 | JT52: 0 | JU52: 0 | JV52: 0 | JW52: 0 | JX52: 0 | JY52: 0 | JZ52: 0 | KA52: 0 | KB52: 0 | KC52: 0 | KD52: 0 | KE52: 0 | KF52: 0 | KG52: 0 | KH52: 0 | KI52: 0 | KJ52: 0 | KK52: 0 | KL52: 0 | KM52: 0 | KN52: 0 | KO52: 0 | KP52: 0 | KQ52: 0 | KR52: 0 | KS52: 0 | KT52: 0 | KU52: 0 | KV52: 0 | KW52: 0 | KX52: 0 | KY52: 0 | KZ52: 0 | LA52: 0 | LB52: 0 | LC52: 0 | LD52: 0 | LE52: 0 | LF52: 0 | LG52: 0 | LH52: 0 | LI52: 0 | LJ52: 0 | LK52: 0 | LL52: 0 | LM52: 0 | LN52: 0 | LO52: 0 | LP52: 0 | LQ52: 0 | LR52: 0 | LS52: 0 | LT52: 0 | LU52: 0 | LV52: 0 | LW52: 0 | LX52: 0 | LY52: 0 | LZ52: 0 | MA52: 0 | MB52: 0 | MC52: 0 | MD52: 0 | ME52: 0 | MF52: 0 | MG52: 0 | MH52: 0 | MI52: 0 | MJ52: 0 | MK52: 0 | ML52: 0 | MM52: 0 | MN52: 0 | MO52: 0 | MP52: 0 | MQ52: 0 | MR52: 0 | MS52: 0 | MT52: 0 | MU52: 0 | MV52: 0 | MW52: 0 | MX52: 0 | MY52: 0 | MZ52: 0 | NA52: 0 | NB52: 0 | NC52: 0 | ND52: 0 | NE52: 0 | NF52: 0 | NG52: 0 | NH52: 0 | NI52: 0 | NJ52: 0 | NK52: 0 | NL52: 0 | NM52: 21257.69 | NN52: 11787.29 | NO52: 53126.21 | NP52: 0 | NQ52: 0 | NR52: 0 | NS52: 0 | NT52: 0 | NU52: 0 | NV52: 0 | NW52: 0 | NX52: 0 | NY52: 0 | NZ52: 33983.61 | OA52: 0 | OB52: 0 | OC52: 0 | OD52: 0 | OE52: 0 | OF52: 0 | OG52: 0 | OH52: 0 | OI52: 84953.36 | OJ52: 0 | OK52: 0 | OL52: 0 | OM52: 0 | ON52: 0 | OO52: 0 | OP52: 0 | OQ52: 0 | OR52: 0 | OS52: 0 | OT52: 0 | OU52: 0 | OV52: 0 | OW52: 0 | OX52: 0 | OY52: 0 | OZ52: 0 | PA52: 0 | PB52: 0 | PC52: 0 | PD52: 0 | PE52: 0 | PF52: 0 | PG52: 0 | PH52: 0 | PI52: 0 | PJ52: 0 | PK52: 0 | PL52: 0 | PM52: 0 | PN52: 0 | PO52: 0 | PP52: 0 | PQ52: 0 | PR52: 0 | PS52: 0 | PT52: 0 | PU52: 0 | PV52: 0 | PW52: 0 | PX52: 0 | PY52: 0 | PZ52: 0 | QA52: 0 | QB52: 0 | QC52: 0 | QD52: 0 | QE52: 0 | QF52: 0 | QG52: 0 | QH52: 0 | QI52: 0 | QJ52: 0 | QK52: 0 | QL52: 0 | QM52: 0 | QN52: 0 | QO52: 0 | QP52: 0 | QQ52: 0 | QR52: 0 | QS52: 0 | QT52: 0 | QU52: 0 | QV52: 0 | QW52: 0 | QX52: 0 | QY52: 0 | QZ52: 0 | RA52: 0 | RB52: 0 | RC52: 0 | RD52: 0 | RE52: 0 | RF52: 0 | RG52: 0 | RH52: 0 | RI52: 0 | RJ52: 0 | RK52: 0 | RL52: 0 | RM52: 0 | RN52: 0 | RO52: 0 | RP52: 0 | RQ52: 0 | RR52: 0 | RS52: 0 | RT52: 0 | RU52: 0 | RV52: 0 | RW52: 0 | RX52: 0 | RY52: 0 | RZ52: 0 | SA52: 0 | SB52: 0 | SC52: 0 | SD52: 0 | SE52: 0 | SF52: 0 | SG52: 0 | SH52: 0 | SI52: 0 | SJ52: 0 | SK52: 0 | SL52: 0 | SM52: 0 | SN52: 0 | SO52: 0 | SP52: 0 | SQ52: 0 | SR52: 0 | SS52: 0 | ST52: 0 | SU52: 0 | SV52: 0 | SW52: 0 | SX52: 0 | SY52: 0 | SZ52: 0 | TA52: 0 | TB52: 0 | TC52: 0 | TD52: 0 | TE52: 0 | TF52: 0 | TG52: 0 | TH52: 0 | TI52: 0 | TJ52: 0 | TK52: 0 | TL52: 0 | TM52: 0 | TN52: 0 | TO52: 0 | TP52: 0 | TQ52: 0 | TR52: 0 | TS52: 0 | TT52: 0 | TU52: 0 | TV52: 0 | TW52: 0 | TX52: 0 | TY52: 0
B53: 2 | D53: О | E53: =$A$51&"."&$B$53 -> 8.7.2 | F53: прибыль, направляемая на инвестиции | G53: тыс руб | H53: =SUM(I53:TZ53) -> 160000 | J53: 0 | K53: 0 | L53: 0 | M53: 0 | N53: 0 | O53: 0 | P53: 0 | Q53: 0 | R53: 0 | S53: 0 | T53: 0 | U53: 0 | V53: 0 | W53: 0 | X53: 0 | Y53: 0 | Z53: 0 | AA53: 0 | AB53: 0 | AC53: 0 | AD53: 0 | AE53: 0 | AF53: 0 | AG53: 0 | AH53: 0 | AI53: 0 | AJ53: 0 | AK53: 0 | AL53: 0 | AM53: 0 | AN53: 0 | AO53: 0 | AP53: 0 | AQ53: 0 | AR53: 0 | AS53: 0 | AT53: 0 | AU53: 0 | AV53: 0 | AW53: 0 | AX53: 0 | AY53: 0 | AZ53: 0 | BA53: 0 | BB53: 0 | BC53: 0 | BD53: 0 | BE53: 0 | BF53: 0 | BG53: 0 | BH53: 0 | BI53: 0 | BJ53: 0 | BK53: 0 | BL53: 0 | BM53: 0 | BN53: 0 | BO53: 0 | BP53: 0 | BQ53: 0 | BR53: 0 | BS53: 0 | BT53: 0 | BU53: 0 | BV53: 0 | BW53: 0 | BX53: 0 | BY53: 0 | BZ53: 0 | CA53: 0 | CB53: 0 | CC53: 0 | CD53: 0 | CE53: 0 | CF53: 0 | CG53: 0 | CH53: 0 | CI53: 0 | CJ53: 0 | CK53: 0 | CL53: 0 | CM53: 0 | CN53: 0 | CO53: 0 | CP53: 0 | CQ53: 0 | CR53: 0 | CS53: 0 | CT53: 0 | CU53: 0 | CV53: 0 | CW53: 0 | CX53: 0 | CY53: 0 | CZ53: 0 | DA53: 0 | DB53: 0 | DC53: 0 | DD53: 0 | DE53: 0 | DF53: 0 | DG53: 0 | DH53: 0 | DI53: 0 | DJ53: 0 | DK53: 0 | DL53: 0 | DM53: 0 | DN53: 0 | DO53: 0 | DP53: 0 | DQ53: 0 | DR53: 0 | DS53: 0 | DT53: 0 | DU53: 0 | DV53: 0 | DW53: 0 | DX53: 0 | DY53: 0 | DZ53: 0 | EA53: 0 | EB53: 0 | EC53: 0 | ED53: 0 | EE53: 0 | EF53: 0 | EG53: 0 | EH53: 0 | EI53: 0 | EJ53: 0 | EK53: 0 | EL53: 0 | EM53: 0 | EN53: 0 | EO53: 0 | EP53: 0 | EQ53: 0 | ER53: 0 | ES53: 0 | ET53: 0 | EU53: 0 | EV53: 0 | EW53: 0 | EX53: 0 | EY53: 0 | EZ53: 0 | FA53: 0 | FB53: 0 | FC53: 0 | FD53: 0 | FE53: 0 | FF53: 0 | FG53: 0 | FH53: 0 | FI53: 0 | FJ53: 0 | FK53: 0 | FL53: 0 | FM53: 0 | FN53: 0 | FO53: 0 | FP53: 0 | FQ53: 0 | FR53: 0 | FS53: 0 | FT53: 0 | FU53: 0 | FV53: 0 | FW53: 0 | FX53: 0 | FY53: 0 | FZ53: 0 | GA53: 0 | GB53: 0 | GC53: 0 | GD53: 0 | GE53: 0 | GF53: 0 | GG53: 0 | GH53: 0 | GI53: 0 | GJ53: 0 | GK53: 0 | GL53: 0 | GM53: 0 | GN53: 0 | GO53: 0 | GP53: 0 | GQ53: 0 | GR53: 0 | GS53: 0 | GT53: 0 | GU53: 0 | GV53: 0 | GW53: 0 | GX53: 0 | GY53: 0 | GZ53: 0 | HA53: 0 | HB53: 0 | HC53: 0 | HD53: 0 | HE53: 0 | HF53: 0 | HG53: 0 | HH53: 0 | HI53: 0 | HJ53: 0 | HK53: 0 | HL53: 0 | HM53: 0 | HN53: 0 | HO53: 0 | HP53: 0 | HQ53: 0 | HR53: 0 | HS53: 0 | HT53: 0 | HU53: 0 | HV53: 0 | HW53: 0 | HX53: 0 | HY53: 0 | HZ53: 0 | IA53: 0 | IB53: 0 | IC53: 0 | ID53: 0 | IE53: 0 | IF53: 0 | IG53: 0 | IH53: 0 | II53: 0 | IJ53: 0 | IK53: 0 | IL53: 0 | IM53: 0 | IN53: 0 | IO53: 0 | IP53: 0 | IQ53: 0 | IR53: 0 | IS53: 0 | IT53: 0 | IU53: 0 | IV53: 0 | IW53: 0 | IX53: 0 | IY53: 0 | IZ53: 0 | JA53: 0 | JB53: 0 | JC53: 0 | JD53: 0 | JE53: 0 | JF53: 0 | JG53: 0 | JH53: 0 | JI53: 0 | JJ53: 0 | JK53: 0 | JL53: 0 | JM53: 0 | JN53: 0 | JO53: 0 | JP53: 0 | JQ53: 0 | JR53: 0 | JS53: 0 | JT53: 0 | JU53: 0 | JV53: 0 | JW53: 0 | JX53: 0 | JY53: 0 | JZ53: 0 | KA53: 0 | KB53: 0 | KC53: 0 | KD53: 0 | KE53: 0 | KF53: 0 | KG53: 0 | KH53: 0 | KI53: 0 | KJ53: 0 | KK53: 0 | KL53: 0 | KM53: 0 | KN53: 0 | KO53: 0 | KP53: 0 | KQ53: 0 | KR53: 0 | KS53: 0 | KT53: 0 | KU53: 0 | KV53: 0 | KW53: 0 | KX53: 0 | KY53: 0 | KZ53: 0 | LA53: 0 | LB53: 0 | LC53: 0 | LD53: 0 | LE53: 0 | LF53: 0 | LG53: 0 | LH53: 0 | LI53: 0 | LJ53: 0 | LK53: 0 | LL53: 0 | LM53: 0 | LN53: 0 | LO53: 0 | LP53: 0 | LQ53: 0 | LR53: 0 | LS53: 0 | LT53: 0 | LU53: 0 | LV53: 0 | LW53: 0 | LX53: 0 | LY53: 0 | LZ53: 0 | MA53: 0 | MB53: 0 | MC53: 0 | MD53: 0 | ME53: 0 | MF53: 0 | MG53: 0 | MH53: 0 | MI53: 0 | MJ53: 0 | MK53: 0 | ML53: 0 | MM53: 0 | MN53: 0 | MO53: 0 | MP53: 0 | MQ53: 0 | MR53: 0 | MS53: 0 | MT53: 0 | MU53: 0 | MV53: 0 | MW53: 0 | MX53: 0 | MY53: 0 | MZ53: 0 | NA53: 0 | NB53: 0 | NC53: 0 | ND53: 0 | NE53: 0 | NF53: 0 | NG53: 0 | NH53: 0 | NI53: 0 | NJ53: 0 | NK53: 0 | NL53: 0 | NM53: 0 | NN53: 0 | NO53: 3157.81 | NP53: 264.7 | NQ53: 1410.73 | NR53: 33027.82 | NS53: 2501.99 | NT53: 70660.6 | NU53: 42626.67 | NV53: 0 | NW53: 0 | NX53: 0 | NY53: 0 | NZ53: 0 | OA53: 0 | OB53: 0 | OC53: 0 | OD53: 0 | OE53: 0 | OF53: 6349.68 | OG53: 0 | OH53: 0 | OI53: 0 | OJ53: 0 | OK53: 0 | OL53: 0 | OM53: 0 | ON53: 0 | OO53: 0 | OP53: 0 | OQ53: 0 | OR53: 0 | OS53: 0 | OT53: 0 | OU53: 0 | OV53: 0 | OW53: 0 | OX53: 0 | OY53: 0 | OZ53: 0 | PA53: 0 | PB53: 0 | PC53: 0 | PD53: 0 | PE53: 0 | PF53: 0 | PG53: 0 | PH53: 0 | PI53: 0 | PJ53: 0 | PK53: 0 | PL53: 0 | PM53: 0 | PN53: 0 | PO53: 0 | PP53: 0 | PQ53: 0 | PR53: 0 | PS53: 0 | PT53: 0 | PU53: 0 | PV53: 0 | PW53: 0 | PX53: 0 | PY53: 0 | PZ53: 0 | QA53: 0 | QB53: 0 | QC53: 0 | QD53: 0 | QE53: 0 | QF53: 0 | QG53: 0 | QH53: 0 | QI53: 0 | QJ53: 0 | QK53: 0 | QL53: 0 | QM53: 0 | QN53: 0 | QO53: 0 | QP53: 0 | QQ53: 0 | QR53: 0 | QS53: 0 | QT53: 0 | QU53: 0 | QV53: 0 | QW53: 0 | QX53: 0 | QY53: 0 | QZ53: 0 | RA53: 0 | RB53: 0 | RC53: 0 | RD53: 0 | RE53: 0 | RF53: 0 | RG53: 0 | RH53: 0 | RI53: 0 | RJ53: 0 | RK53: 0 | RL53: 0 | RM53: 0 | RN53: 0 | RO53: 0 | RP53: 0 | RQ53: 0 | RR53: 0 | RS53: 0 | RT53: 0 | RU53: 0 | RV53: 0 | RW53: 0 | RX53: 0 | RY53: 0 | RZ53: 0 | SA53: 0 | SB53: 0 | SC53: 0 | SD53: 0 | SE53: 0 | SF53: 0 | SG53: 0 | SH53: 0 | SI53: 0 | SJ53: 0 | SK53: 0 | SL53: 0 | SM53: 0 | SN53: 0 | SO53: 0 | SP53: 0 | SQ53: 0 | SR53: 0 | SS53: 0 | ST53: 0 | SU53: 0 | SV53: 0 | SW53: 0 | SX53: 0 | SY53: 0 | SZ53: 0 | TA53: 0 | TB53: 0 | TC53: 0 | TD53: 0 | TE53: 0 | TF53: 0 | TG53: 0 | TH53: 0 | TI53: 0 | TJ53: 0 | TK53: 0 | TL53: 0 | TM53: 0 | TN53: 0 | TO53: 0 | TP53: 0 | TQ53: 0 | TR53: 0 | TS53: 0 | TT53: 0 | TU53: 0 | TV53: 0 | TW53: 0 | TX53: 0 | TY53: 0
